Workbook

Sheet レイアウト定義見直し (hidden)
B3: ■レイアウト定義見直し（案）
B4: １. V1・V2レイアウトの統一化（別冊の販促金関連を除く）
B5: ・項目説明 ： 説明未記載は、ガイドライン引用により追記
B6: ・属性 ： 混在項目は、X → X/N 表記に変更
B7: ・桁数 ： 整数・小数桁表記に変更
B8: ・予備 ： V1・V2間相互連携未実施(旧予備で未使用の項目)は、「旧フォーマット予備欄連携・・」の表記を削除
B9: → 発注・トレーラの予備 等
B10: ・その他 ： 変更点/注意点、設定値は、スペースの関係から表記を削除
B11: I/F表記をV1連携に変更（V1はV2連携を追記）
B13: ２．チェック仕様の明確化＆統一表記
B15: ３．コンバート仕様の明確化＆統一表記
B18: ■レイアウト資料の参照方法
B19: ・レイアウト／チェック仕様は、 | M19: 送信フォーマット のレイアウト資料を参照
B20: ・コンバート仕様は、 | M20: 受信フォーマット のレイアウト資料を参照
B23: ■検討課題
B24: １．V1レイアウトの必須表記は業務観点で記載、V2レイアウトの必須はシステムチェック観点で記載。
E25: → V2レイアウトに併せた表記変更で良いか？ | V25: 必須欄は業務観点で記載、システム的な必須は別途設ける。 | AP25: 7/26 システム開発委員会
B27: ２．次店コードチェック仕様見直し（緩和）に伴うコンバート仕様変更
E28: ① 次店コードの後方スペースをカット | V28: GLNコードの場合は下８桁、その他は上８桁とする。
E29: ② カット後の値の頭に8桁"0"を付与し、後方8桁をコンバート | V29: V1の項目属性は９タイプのため属性相違のデータ連携が発生するが許容する。 | AP29: 7/26 システム開発委員会
P31: 入力値 | Y31: 出力 | AH31: 出力
G32: 統一取引先コード | P32: １２３４５６７８△△△△△ | Y32: １２３４５６７８ | AH32: １２３４５６７８
G33: プライベート | P33: １２３４△△△△△△△△△ | Y33: ００００１２３４ | AH33: １２３４△△△△
G34: GLN | P34: １２３４５６７８９０１２３ | Y34: ６７８９０１２３ | AH34: ６７８９０１２３
G35: データ異常 | J35: 後方ゼロ埋め | P35: １２３４５００００００００ | Y35: ００００００００ | AH35: １２３４５０００ or ００００００００ | AT35: 取引先区分による
J36: 前方・中間空白有り | P36: △１２３△４５△△△△△△ | Y36: ０△１２３△４５ | AH36: △１２３△４５△ or ４５△△△△△△ | AT36: 〃
J37: 英数字混在 | P37: １２３４５６７８９０ａｂｃ | Y37: ６７８９０ＡＢＣ | AH37: １２３４５６７８ or ６７８９０ＡＢＣ | AT37: 〃
B40: ■その他
B41: １．原本の各レイアウトの左側に現レイアウト(ホームページ掲載資料)をグループ化して配置、検証時に活用下さい。

Sheet 表紙
AE12: ｅ-お菓子ねっと
AE21: ＥＤＩ標準フォーマット
AE41: 第２.７版
AE43: 2023-07-14
AJ50: e-お菓子ねっと
AJ53: 全国菓子卸商業組合連合会
AJ56: 全 日 本 菓 子 協 会

Sheet 更新履歴
E4: 更新履歴
E7: 版数 | I7: 更新年月日 | P7: 更新概要 | CC7: ページ
E8: 1.0 | H8: 2015/10/19 | N8: 新システム化に伴い全面刷新
E9: 1.1 | H9: 2016/11/11 | N9: V2フォーマット見直し（カナ項目新設）対応
O10: V1・02発注、19返品通知、22出荷報告 | AD10: の一次店名カナ、二次店名カナ、届け先名カナ、摘要欄、商品名 | BA10: のV2からのコンバート方法（日本語区分判定により編集元を切替）を変更 | CC10: 3,4,9,10,11,12
O11: V1・11入庫予定、12受領 | AD11: の届け先名カナ、摘要欄、商品名 | BA11: のV2からのコンバート方法（日本語区分判定により編集元を切替）を変更 | CC11: 5,6,7,8
O12: V1・33請求、34支払 | AD12: の請求(支払)先、請求(支払)元、届け先名カナ | BA12: のV2からのコンバート方法（日本語区分判定により編集元を切替）を変更 | CC12: 13,15
O13: V1・42販売報告 | AD13: の一次店名カナ、二次店名カナ、届け先名カナ | BA13: のV2からのコンバート方法（日本語区分判定により編集元を切替）を変更 | CC13: 17
O14: V2・03発注、13入庫予定、14受領、 | CC14: 31,32,34,36,38,40,
O15: V2・18返品通知、23出荷報告 | AD15: に一次店カナ名、二次店カナ名、届け先カナ名、摘要カナ、商品名カナ | BJ15: を追加、項目追加に伴い予備欄の桁数を変更 | CC15: 42,43,45,47
O16: V2・35請求明細、36支払明細 | AD16: に請求先(元)カナ名、一次店カナ名、二次店カナ名、届け先カナ名、摘要カナ、商品名カナ | BJ16: を追加、項目追加に伴い予備欄の桁数を変更 | CC16: 48,49,50,53,54,56
O17: V2・43販売報告 | AD17: に一次店カナ名、二次店カナ名、届け先カナ名、商品名カナ | BJ17: を追加、項目追加に伴い予備欄の桁数を変更 | CC17: 58,59
E18: 1.2 | H18: 2016/11/11 | N18: 請求・支払のV1・V2相互連携対応
O19: V1・33請求､34支払 | AD19: V1→V2連携時のチェック仕様追記､V1←V2連携時のコンバート仕様追記 | CC19: 13,14,15,16
O20: V2・35請求明細、36支払明細 | AD20: V2←V1連携時のコンバート仕様追記、V2・明細型→V1連携不可のチェック仕様追加 | CC20: 48,49,50,51,53,54,55,56
E21: 1.3 | H21: 2016/11/11 | N21: V2→V1連携時の次店コードチェック仕様見直し対応
O22: V1・11入庫予定、12受領 | AD22: の届け先コードのV2からのコンバート方法（GLN時は下8桁、その他は上8桁編集）を変更 | CC22: 5,7
O23: V1・22出荷報告、42販売報告 | AD23: の二次店コード、届け先コードのV2からのコンバート方法（GLN時は下8桁、その他は上8桁編集）を変更 | CC23: 11,17
O24: V2・13入庫予定、14受領 | AD24: の届け先コードのチェック仕様見直し（統一取引先コードのみ可 → 全て可） | CC24: 34,38
O25: V2・23出荷報告、43販売報告 | AD25: の二次店コード、届け先コードのチェック仕様見直し（統一取引先コードのみ可 → 全て可） | CC25: 45,58
E26: 1.4 | H26: 2016/11/25 | N26: 請求・支払のV1・V2相互連携対応
O27: V1・34支払 | AD27: 振込IDのV2フォーマット対応項目を追記 | CC27: 16
O28: V2・35請求明細、36支払明細 | AD28: 請求金額合計､支払金額合計､請求金額､支払金額の変更欄に「1.2」を追記（項目桁数変更のため） | CC28: 49,50,54,55
E29: 1.5 | H29: 2017/04/20 | N29: 請求・支払のV1・V2相互連携対応
O30: V2・35請求明細、36支払明細 | AD30: 集計明細区分＝集計の場合のチェック仕様を変更（明細時：必須＋コード、集計時：属性） | CC30: 42,46
AD31: トレーラレコードの伝票枚数の設定要領を変更 | CC31: 43,47
N32: V2フォーマット見直し対応
O33: V2・43販売報告 | AD33: トレーラレコードの伝票枚数→明細件数変更の変更履歴記載漏れ追記 | CC33: 59
E34: 1.6 | H34: 2017/10/12 | N34: V2・出荷報告 | AD34: 卸発注伝票NOの項目説明を修正 | CC34: 36
E35: 1.7 | H35: 2018/05/08 | N35: トレーラレコードのレコード件数に関する記述修正 | AD35: ﾄﾚｰﾗﾚｺｰﾄﾞの「ﾚｺｰﾄﾞ件数」項目の修正、注記追加 | CC35: 4,6,8,10,12,14,16,18
CC36: 32,36,40,43,47,52,57,59
N37: V１・出荷報告 | AD37: 賞味期限製造年月日の項目説明の誤りを修正 (YMMDD)→(YYMMDD) | CC37: 6
E38: 1.8 | H38: 2018/07/19 | N38: 入庫予定・賞味期限製造年月日のコンバート仕様の変更
O39: V1・入庫予定 | AD39: 賞味期限製造年月日のV2コンバート元を卸最新在庫日付から実入庫製品日付に変更 | CC39: 6
O40: V2・入庫予定 | AD40: 卸最新在庫日付、実入庫製品日付のV1からのコンバート要領を変更 | CC40: 35
E41: 1.9 | H41: 2018/xx/xx | N41: 軽減税率対応
O42: 目次、V1・33請求､V1・34支払 | AD42: V1・33請求､V1・34支払の利用停止期限を追記 | CC42: 13,15
O43: V1・レコード構成 | AD43: V1･51販促金案内・支払､V1・52販促金請求のレコード構成追記 | CC43: 2
O44: V1・51販促金案内・支払 当資料に追加 | AD44: 明細レコードに 請求消費税率､支払消費税率 を追加、項目追加に伴い予備欄の桁数を変更 | CC44: 19～,21
AD45: トレーラレコードに 登録番号と下記項目の税率別内訳繰返（繰返＝３回） を追加、 | CC45: 22
AD46: 項目追加に伴い 符号（請求金額合計）～支払消費税額合計の項目説明を変更、予備桁数を変更
AE47: 請求消費税率､符号（請求金額）､請求金額､符号（請求消費税額）､請求消費税額､
AE48: 支払消費税率､符号（支払金額）､支払金額､符号（支払消費税額）､支払消費税額
O49: V1・52販促金請求 当資料に追加 | AD49: 明細レコードに 請求消費税率､支払消費税率 を追加、項目追加に伴い予備欄の桁数を変更 | CC49: 23～,25
AD50: トレーラレコードに 登録番号と下記項目の税率別内訳繰返（繰返＝３回） を追加、 | CC50: 26
AD51: 項目追加に伴い 符号、請求金額合計の項目説明を変更、予備桁数を変更
AE52: 請求消費税率､符号（請求金額）､請求金額､符号（請求消費税額）､請求消費税額
O53: V1・22出荷報告 | AD53: 明細レコードに 税率区分１､税率区分２ を追加、項目追加に伴い予備桁数を変更 | CC53: 12
O54: V2・23出荷報告 | AD54: ヘッダー/明細レコードの 消費税率のV1からのコンバート要領を変更 | CC54: 45
O55: V2・36支払明細 | AD55: コントロールレコードに 支払確認期限区分､支払確認期限日付､支払確認期限日数 を追加､項目追加に伴い予備桁数を変更 | CC55: 53
O56: V2・35請求明細､36支払明細 | AD56: ヘッダー/明細レコードの 卸最新在庫日付区分､卸最新在庫日付を資産譲渡日付区分､資産譲渡日付 に変更 | CC56: 50,55
AD57: トレーラレコードに 登録番号と下記項目の税率別内訳繰返（繰返＝３回） を追加、 | CC57: 52,57
AD58: 項目追加に伴い 今回請求金額符号～請求金額合計、今回支払金額符号～支払金額合計の項目説明を変更、予備桁数を変更
AE59: 消費税率､今回請求金額符号､今回請求金額､請求基本控除符号､請求基本控除､請求品種控除符号､請求品種控除､請求機能控除符号、
AE60: 請求機能控除、請求控除その他符号、請求控除その他、請求消費税符号、請求消費税､税込請求金額符号､税込請求金額､
AE61: 今回支払金額符号､今回支払金額､支払基本控除符号､支払基本控除､支払品種控除符号､支払品種控除､支払機能控除符号、
AE62: 支払機能控除、支払控除その他符号、支払控除その他、支払消費税符号、支払消費税､税込支払金額符号､税込支払金額､予備
AD63: V1からのコンバート要領に、V1フォーマットの利用停止期限を追記 | CC63: 48,53
AD64: 配信分割機能停止に伴い下記項目のコンバート仕様のセンター設定・集計記述 を削除 | CC64: 51,56
AE65: レコード件数､伝票枚数､請求金額合計符号､請求金額合計､支払金額合計符号､支払金額合計
N66: 全般 | AD66: ｢＋:整数」 ⇒ ｢＋：正数」、「４捨５入」 ⇒ 「四捨五入」の誤記訂正
E67: （次頁に続く）
E72: （前頁の続き）
E73: 版数 | I73: 更新年月日 | P73: 更新概要 | CC73: ページ
E74: 2.0 | H74: 2018/11/29 | N74: 軽減税率対応見直し
O75: V1・22出荷報告 | AD75: 明細レコードの | AL75: 税率区分１、税率区分２ の必須欄に「○」を追記 | CC75: 12
O76: V1・51販促金案内・支払 | AD76: コントロールレコードに | AL76: 支払確認期限区分/日付/日数 の３項目を追加、項目追加に伴い予備桁数を変更 | CC76: 19
O77: V2・23出荷報告 | AD77: ヘッダー/明細レコードの | AL77: 消費税区分、消費税率 の必須欄に「○」を追記 | CC77: 45
O78: V2・35請求明細、36支払明細 | AD78: ヘッダー/明細レコードの | AL78: 消費税区分、消費税率 の必須欄に「○」を追記 | CC78: 49,54
AD79: トレーラレコードの | AL79: 税率別内訳 のV1からのコンバート仕様見直し 「属性初期値」→「ALL SPACE」 | CC79: 52,57
E80: 2.1 | H80: 2019/03/20 | N80: V2→V1コンバート要領の改善
O81: V1・02発注 | AD81: ヘッダーレコードの | AL81: 一次店コード,二次店コード,届け先コード | AZ81: のV2からのコンバート要領改善（属性初期値、8桁未満対応） | CC81: 3
O82: V1・11入庫予定 | AD82: ヘッダーレコードの | AL82: 届け先コード | AZ82: のV2からのコンバート要領改善（属性初期値、8桁未満対応） | CC82: 5
O83: V1・12受領 | AD83: ヘッダーレコードの | AL83: 届け先コード | AZ83: のV2からのコンバート要領改善（属性初期値、8桁未満対応） | CC83: 7
O84: V1・19返品通知 | AD84: ヘッダーレコードの | AL84: 一次店コード,二次店コード,届け先コード | AZ84: のV2からのコンバート要領改善（属性初期値、8桁未満対応） | CC84: 9
O85: V1・22出荷報告 | AD85: ヘッダーレコードの | AL85: 一次店コード,二次店コード,届け先コード | AZ85: のV2からのコンバート要領改善（属性初期値、8桁未満対応） | CC85: 11
O86: V1・42販売報告 | AD86: ヘッダーレコードの | AL86: 一次店コード,二次店コード,届け先コード | AZ86: のV2からのコンバート要領改善（属性初期値、8桁未満対応） | CC86: 17
N87: 出荷報告の集計明細区分のコード値見直し
O88: V2･23出荷報告 | AD88: ヘッダー/明細レコードの | AL88: 集計明細区分のコード 「1:集計」 を 「1:集計（※未使用）」 に変更 | CC88: 44
N89: 軽減税率対応見直し
O90: V1・51販促金案内・支払､52販促金請求 | AD90: トレーラレコードの | AL90: 税率別内訳の繰返部の推奨設定順序を追記 | CC90: 22,26
O91: V2･35請求明細、36支払明細 | AD91: トレーラレコードの | AL91: 税率別内訳の繰返部の推奨設定順序を追記 | CC91: 52,57
O92: V2･36支払明細 | AD92: トレーラレコードの | AL92: 連携エリアのコンバート要領の誤植修正。（V1フォーマット移送元項目誤りを修正） | CC92: 57
E93: 2.2 | H93: 2019/06/07 | N93: 軽減税率対応見直し
O94: V2・35請求明細、36支払明細 | AD94: トレーラレコードの | AL94: 請求合計金額,支払金額合計 | AZ94: の項目説明・計算式の誤植修正。 | CC94: 51,56
E95: 2.3 | H95: 2020/06/30 | N95: 電話番号への設定値の条件追加
O96: Ｖ１・６４取引先コード照会 | AL96: 電話番号 「携帯の電話番号は、登録不可」であることを追記 | CC96: 27
E97: 2.4 | H97: 2021/2/5 | N97: 補記の修正
O98: 51販促金案内・支払、52販促金請求 | AD98: トレーラレコードの | AL98: 項目説明※に記載のある内容を明確に判別できるよう修正 | CC98: 18,22
N99: データ種削除
O100: V1・33請求、V1・34支払 | AL100: データ種利用停止により削除
E101: 2.5 | H101: 2022/07/04 | N101: インボイス対応
O102: V1・19返品通知 | AD102: 明細レコード | AL102: 資産譲渡日付 を追加（項目追加に伴い、予備１ を 資産譲渡日付 に変更） | CC102: 10
O103: V1・22出荷報告 | AD103: 明細レコード | AL103: 資産譲渡日付 を追加（項目追加に伴い、予備１ を 資産譲渡日付 に変更） | CC103: 12
O104: V1・51販促金案内・支払 | AD104: 明細レコード | AL104: 対象期間（開始日）の項目説明を 資産譲渡日付 に変更（資産譲渡日付 として利用） | CC104: 16
AD105: 明細レコード | AL105: 対象期間（終了日）の項目説明を 資産譲渡日付 に変更（資産譲渡日付 として利用） | CC105: 16
AD106: トレーラレコード | AL106: 登録番号2 を追加 | CC106: 18
AD107: トレーラレコード | AL107: 項目追加に伴い、予備 の開始位置と整数桁を変更 | CC107: 18
O108: V1・52販促金請求 | AD108: 明細レコード | AL108: 対象期間（開始日）の項目説明を 資産譲渡日付 に変更（資産譲渡日付 として利用） | CC108: 20
AD109: 明細レコード | AL109: 対象期間（終了日）の項目説明を 資産譲渡日付 に変更（資産譲渡日付 として利用） | CC109: 20
AD110: トレーラレコード | AL110: 登録番号2 を追加 | CC110: 22
AD111: トレーラレコード | AL111: 項目追加に伴い、予備 の開始位置と整数桁を変更 | CC111: 22
O112: V2・18返品通知 | AD112: ヘッダー/明細レコード | AL112: 明細部に 資産譲渡日付 を追加 | CC112: 39
AD113: ヘッダー/明細レコード | AL113: 項目追加に伴い、明細予備 の開始位置と整数桁を変更 | CC113: 39
O114: V2・23出荷報告 | AD114: ヘッダー/明細レコード | AL114: 明細部に 資産譲渡日付 を追加 | CC114: 43
AD115: ヘッダー/明細レコード | AL115: 項目追加に伴い、明細予備 の開始位置と整数桁を変更 | CC115: 43
O116: V2・35請求明細 | AD116: ヘッダー/明細レコード | AL116: 請求番号 を追加 | CC116: 45
AD117: ヘッダー/明細レコード | AL117: 項目追加に伴い、ヘッダー予備 の開始位置と整数桁を変更 | CC117: 45
AD118: ヘッダー/明細レコード | AL118: 明細部の 資産譲渡日付 の項目説明を変更 | CC118: 46
AD119: トレーラレコード | AL119: 登録番号2 を追加 | CC119: 48
AD120: トレーラレコード | AL120: 項目追加に伴い、予備 の開始位置と整数桁を変更 | CC120: 48
O121: V2・36支払明細 | AD121: ヘッダー/明細レコード | AL121: 請求番号 を追加 | CC121: 50
AD122: ヘッダー/明細レコード | AL122: 項目追加に伴い、ヘッダー予備 の開始位置と整数桁を変更 | CC122: 50
AD123: ヘッダー/明細レコード | AL123: 明細部の 資産譲渡日付 の項目説明を変更 | CC123: 51
AD124: トレーラレコード | AL124: 登録番号2 を追加 | CC124: 53
AD125: トレーラレコード | AL125: 項目追加に伴い、予備 の開始位置と整数桁を変更 | CC125: 53
E126: 2.6 | H126: 2023/05/24 | N126: インボイス対応（追加）
O127: V1・02発注 | AD127: ヘッダーレコード | AL127: 取引コード に「81:ﾒｰｶｰ提供の役務」、「91:卸提供の役務」 を追加 | CC127: 3
O128: V1・11入庫予定 | AD128: ヘッダーレコード | AL128: 取引コード に「81:ﾒｰｶｰ提供の役務」、「91:卸提供の役務」 を追加 | CC128: 5
O129: V1・12受領 | AD129: ヘッダーレコード | AL129: 取引コード に「81:ﾒｰｶｰ提供の役務」、「91:卸提供の役務」 を追加 | CC129: 7
O130: V1・19返品通知 | AD130: ヘッダーレコード | AL130: 取引コード に「81:ﾒｰｶｰ提供の役務」、「91:卸提供の役務」 を追加 | CC130: 9
O131: V1・22出荷報告 | AD131: ヘッダーレコード | AL131: 取引コード に「81:ﾒｰｶｰ提供の役務」、「91:卸提供の役務」 を追加 | CC131: 11
O132: V2・03発注 | AD132: ヘッダー/明細レコード | AL132: 取引コード に「81:ﾒｰｶｰ提供の役務」、「91:卸提供の役務」 を追加 | CC132: 26
O133: V2・13入庫予定 | AD133: ヘッダー/明細レコード | AL133: 取引コード に「81:ﾒｰｶｰ提供の役務」、「91:卸提供の役務」 を追加 | CC133: 29
O134: V2・14受領 | AD134: ヘッダー/明細レコード | AL134: 取引コード に「81:ﾒｰｶｰ提供の役務」、「91:卸提供の役務」 を追加 | CC134: 33
O135: V2・18返品通知 | AD135: ヘッダー/明細レコード | AL135: 取引コード に「81:ﾒｰｶｰ提供の役務」、「91:卸提供の役務」 を追加 | CC135: 37
O136: V2・23出荷報告 | AD136: ヘッダー/明細レコード | AL136: 取引コード に「81:ﾒｰｶｰ提供の役務」、「91:卸提供の役務」 を追加 | CC136: 40
O137: V2・35請求明細 | AD137: ヘッダー/明細レコード | AL137: 取引コード に「81:ﾒｰｶｰ提供の役務」、「91:卸提供の役務」 を追加 | CC137: 44
AL138: 資産譲渡日付 の項目説明に「※「資産譲渡日付区分」が『１：年月形式』の場合、「YYYYMM00」を設定」 を追記 | CC138: 46
E140: （次頁に続く）
E145: （前頁の続き）
E146: 版数 | I146: 更新年月日 | P146: 更新概要 | CC146: ページ
O147: V2・36支払明細 | AD147: ヘッダー/明細レコード | AL147: 取引コード に「81:ﾒｰｶｰ提供の役務」、「91:卸提供の役務」 を追加 | CC147: 49
AL148: 資産譲渡日付 の項目説明に「※「資産譲渡日付区分」が『１：年月形式』の場合、「YYYYMM00」を設定」 を追記 | CC148: 51
O149: V2・43販売報告 | AD149: ヘッダー/明細レコード | AL149: 取引コード に「81:ﾒｰｶｰ提供の役務」、「91:卸提供の役務」 を追加 | CC149: 54
E150: 2.7 | H150: 2023/07/14 | N150: インボイス対応（変更）
O151: V1・19返品通知 | AD151: 明細レコード | AL151: 資産譲渡日付 の属性を(9)から(X)に変更、V1→V2センタチェック「日付」を削除 | CC151: 10
O152: V1・22出荷報告 | AD152: 明細レコード | AL152: 資産譲渡日付 の属性を(9)から(X)に変更、V1→V2センタチェック「日付」を削除 | CC152: 12
O153: V2・18返品通知 | AD153: ヘッダー/明細レコード | AL153: 明細部の 資産譲渡日付 の属性を(9)から(X)に変更、V2→V1・V2センタチェック「日付」を削除 | CC153: 39
O154: V2・23出荷報告 | AD154: ヘッダー/明細レコード | AL154: 明細部の 資産譲渡日付 の属性を(9)から(X)に変更、V2→V1・V2センタチェック「日付」を削除 | CC154: 43
O155: V2・35請求明細 | AD155: ヘッダー/明細レコード | AL155: ヘッダー部の 請求番号 のV2→V1・V2センタチェック「属性」を削除 | CC155: 45
O156: V2・36支払明細 | AD156: ヘッダー/明細レコード | AL156: ヘッダー部の 請求番号 のV2→V1・V2センタチェック「属性」を削除 | CC156: 50

Sheet 目次
F4: 目次
F7: １． | I7: Ｖ１・ＥＤＩ標準フォーマット
G9: １．１ | K9: Ｖ１・レコード構成 | X9: ・ | Y9: ・ | Z9: ・ | AA9: ・ | AB9: ・ | AC9: ・ | AD9: ・ | AE9: ・ | AF9: ・ | AG9: ・ | AH9: ・ | AI9: ・ | AJ9: ・ | AK9: ・ | AL9: ・ | AM9: ・ | AN9: ・ | AO9: ・ | AP9: ・ | AQ9: ・ | AR9: ・ | AS9: ・ | AT9: ・ | AU9: ・ | AV9: ・ | AW9: ・ | AX9: ・ | AY9: ・ | AZ9: ・ | BA9: ・ | BB9: ・ | BC9: ・ | BD9: ・ | BE9: ・ | BF9: ・ | BH9: 1
G11: １．２ | K11: Ｖ１・レコードフォーマット
G13: （１） | L13: ０２発注データ | X13: ・ | Y13: ・ | Z13: ・ | AA13: ・ | AB13: ・ | AC13: ・ | AD13: ・ | AE13: ・ | AF13: ・ | AG13: ・ | AH13: ・ | AI13: ・ | AJ13: ・ | AK13: ・ | AL13: ・ | AM13: ・ | AN13: ・ | AO13: ・ | AP13: ・ | AQ13: ・ | AR13: ・ | AS13: ・ | AT13: ・ | AU13: ・ | AV13: ・ | AW13: ・ | AX13: ・ | AY13: ・ | AZ13: ・ | BA13: ・ | BB13: ・ | BC13: ・ | BD13: ・ | BE13: ・ | BF13: ・ | BH13: 3
G15: （２） | L15: １１入庫予定データ | X15: ・ | Y15: ・ | Z15: ・ | AA15: ・ | AB15: ・ | AC15: ・ | AD15: ・ | AE15: ・ | AF15: ・ | AG15: ・ | AH15: ・ | AI15: ・ | AJ15: ・ | AK15: ・ | AL15: ・ | AM15: ・ | AN15: ・ | AO15: ・ | AP15: ・ | AQ15: ・ | AR15: ・ | AS15: ・ | AT15: ・ | AU15: ・ | AV15: ・ | AW15: ・ | AX15: ・ | AY15: ・ | AZ15: ・ | BA15: ・ | BB15: ・ | BC15: ・ | BD15: ・ | BE15: ・ | BF15: ・ | BH15: 5
G17: （３） | L17: １２受領データ | X17: ・ | Y17: ・ | Z17: ・ | AA17: ・ | AB17: ・ | AC17: ・ | AD17: ・ | AE17: ・ | AF17: ・ | AG17: ・ | AH17: ・ | AI17: ・ | AJ17: ・ | AK17: ・ | AL17: ・ | AM17: ・ | AN17: ・ | AO17: ・ | AP17: ・ | AQ17: ・ | AR17: ・ | AS17: ・ | AT17: ・ | AU17: ・ | AV17: ・ | AW17: ・ | AX17: ・ | AY17: ・ | AZ17: ・ | BA17: ・ | BB17: ・ | BC17: ・ | BD17: ・ | BE17: ・ | BF17: ・ | BH17: 7
G19: （４） | L19: １９返品通知データ | X19: ・ | Y19: ・ | Z19: ・ | AA19: ・ | AB19: ・ | AC19: ・ | AD19: ・ | AE19: ・ | AF19: ・ | AG19: ・ | AH19: ・ | AI19: ・ | AJ19: ・ | AK19: ・ | AL19: ・ | AM19: ・ | AN19: ・ | AO19: ・ | AP19: ・ | AQ19: ・ | AR19: ・ | AS19: ・ | AT19: ・ | AU19: ・ | AV19: ・ | AW19: ・ | AX19: ・ | AY19: ・ | AZ19: ・ | BA19: ・ | BB19: ・ | BC19: ・ | BD19: ・ | BE19: ・ | BF19: ・ | BH19: 9
G21: （５） | L21: ２２出荷報告(直送)データ | X21: ・ | Y21: ・ | Z21: ・ | AA21: ・ | AB21: ・ | AC21: ・ | AD21: ・ | AE21: ・ | AF21: ・ | AG21: ・ | AH21: ・ | AI21: ・ | AJ21: ・ | AK21: ・ | AL21: ・ | AM21: ・ | AN21: ・ | AO21: ・ | AP21: ・ | AQ21: ・ | AR21: ・ | AS21: ・ | AT21: ・ | AU21: ・ | AV21: ・ | AW21: ・ | AX21: ・ | AY21: ・ | AZ21: ・ | BA21: ・ | BB21: ・ | BC21: ・ | BD21: ・ | BE21: ・ | BF21: ・ | BH21: 11
G23: （６） | L23: ４２販売報告(店出し)データ | X23: ・ | Y23: ・ | Z23: ・ | AA23: ・ | AB23: ・ | AC23: ・ | AD23: ・ | AE23: ・ | AF23: ・ | AG23: ・ | AH23: ・ | AI23: ・ | AJ23: ・ | AK23: ・ | AL23: ・ | AM23: ・ | AN23: ・ | AO23: ・ | AP23: ・ | AQ23: ・ | AR23: ・ | AS23: ・ | AT23: ・ | AU23: ・ | AV23: ・ | AW23: ・ | AX23: ・ | AY23: ・ | AZ23: ・ | BA23: ・ | BB23: ・ | BC23: ・ | BD23: ・ | BE23: ・ | BF23: ・ | BH23: 13
G25: （７） | L25: ５１販促金案内・支払 | X25: ・ | Y25: ・ | Z25: ・ | AA25: ・ | AB25: ・ | AC25: ・ | AD25: ・ | AE25: ・ | AF25: ・ | AG25: ・ | AH25: ・ | AI25: ・ | AJ25: ・ | AK25: ・ | AL25: ・ | AM25: ・ | AN25: ・ | AO25: ・ | AP25: ・ | AQ25: ・ | AR25: ・ | AS25: ・ | AT25: ・ | AU25: ・ | AV25: ・ | AW25: ・ | AX25: ・ | AY25: ・ | AZ25: ・ | BA25: ・ | BB25: ・ | BC25: ・ | BD25: ・ | BE25: ・ | BF25: ・ | BH25: 15
G27: （８） | L27: ５２販促金請求 | X27: ・ | Y27: ・ | Z27: ・ | AA27: ・ | AB27: ・ | AC27: ・ | AD27: ・ | AE27: ・ | AF27: ・ | AG27: ・ | AH27: ・ | AI27: ・ | AJ27: ・ | AK27: ・ | AL27: ・ | AM27: ・ | AN27: ・ | AO27: ・ | AP27: ・ | AQ27: ・ | AR27: ・ | AS27: ・ | AT27: ・ | AU27: ・ | AV27: ・ | AW27: ・ | AX27: ・ | AY27: ・ | AZ27: ・ | BA27: ・ | BB27: ・ | BC27: ・ | BD27: ・ | BE27: ・ | BF27: ・ | BH27: 19
G29: （９） | L29: ６４取引先コード照会 | X29: ・ | Y29: ・ | Z29: ・ | AA29: ・ | AB29: ・ | AC29: ・ | AD29: ・ | AE29: ・ | AF29: ・ | AG29: ・ | AH29: ・ | AI29: ・ | AJ29: ・ | AK29: ・ | AL29: ・ | AM29: ・ | AN29: ・ | AO29: ・ | AP29: ・ | AQ29: ・ | AR29: ・ | AS29: ・ | AT29: ・ | AU29: ・ | AV29: ・ | AW29: ・ | AX29: ・ | AY29: ・ | AZ29: ・ | BA29: ・ | BB29: ・ | BC29: ・ | BD29: ・ | BE29: ・ | BF29: ・ | BH29: 23
G31: （１０） | L31: ６７取引先コード照会結果 | X31: ・ | Y31: ・ | Z31: ・ | AA31: ・ | AB31: ・ | AC31: ・ | AD31: ・ | AE31: ・ | AF31: ・ | AG31: ・ | AH31: ・ | AI31: ・ | AJ31: ・ | AK31: ・ | AL31: ・ | AM31: ・ | AN31: ・ | AO31: ・ | AP31: ・ | AQ31: ・ | AR31: ・ | AS31: ・ | AT31: ・ | AU31: ・ | AV31: ・ | AW31: ・ | AX31: ・ | AY31: ・ | AZ31: ・ | BA31: ・ | BB31: ・ | BC31: ・ | BD31: ・ | BE31: ・ | BF31: ・ | BH31: 24
F35: ２． | I35: Ｖ２・ＥＤＩ標準フォーマット
G37: ２．１ | K37: Ｖ２・レコード構成 | X37: ・ | Y37: ・ | Z37: ・ | AA37: ・ | AB37: ・ | AC37: ・ | AD37: ・ | AE37: ・ | AF37: ・ | AG37: ・ | AH37: ・ | AI37: ・ | AJ37: ・ | AK37: ・ | AL37: ・ | AM37: ・ | AN37: ・ | AO37: ・ | AP37: ・ | AQ37: ・ | AR37: ・ | AS37: ・ | AT37: ・ | AU37: ・ | AV37: ・ | AW37: ・ | AX37: ・ | AY37: ・ | AZ37: ・ | BA37: ・ | BB37: ・ | BC37: ・ | BD37: ・ | BE37: ・ | BF37: ・ | BH37: 25
G39: ２．２ | K39: Ｖ２・レコードフォーマット
G41: （１） | L41: ０３発注データ | X41: ・ | Y41: ・ | Z41: ・ | AA41: ・ | AB41: ・ | AC41: ・ | AD41: ・ | AE41: ・ | AF41: ・ | AG41: ・ | AH41: ・ | AI41: ・ | AJ41: ・ | AK41: ・ | AL41: ・ | AM41: ・ | AN41: ・ | AO41: ・ | AP41: ・ | AQ41: ・ | AR41: ・ | AS41: ・ | AT41: ・ | AU41: ・ | AV41: ・ | AW41: ・ | AX41: ・ | AY41: ・ | AZ41: ・ | BA41: ・ | BB41: ・ | BC41: ・ | BD41: ・ | BE41: ・ | BF41: ・ | BH41: 26
G43: （２） | L43: １３入庫予定データ | X43: ・ | Y43: ・ | Z43: ・ | AA43: ・ | AB43: ・ | AC43: ・ | AD43: ・ | AE43: ・ | AF43: ・ | AG43: ・ | AH43: ・ | AI43: ・ | AJ43: ・ | AK43: ・ | AL43: ・ | AM43: ・ | AN43: ・ | AO43: ・ | AP43: ・ | AQ43: ・ | AR43: ・ | AS43: ・ | AT43: ・ | AU43: ・ | AV43: ・ | AW43: ・ | AX43: ・ | AY43: ・ | AZ43: ・ | BA43: ・ | BB43: ・ | BC43: ・ | BD43: ・ | BE43: ・ | BF43: ・ | BH43: 29
G45: （３） | L45: １４受領データ | X45: ・ | Y45: ・ | Z45: ・ | AA45: ・ | AB45: ・ | AC45: ・ | AD45: ・ | AE45: ・ | AF45: ・ | AG45: ・ | AH45: ・ | AI45: ・ | AJ45: ・ | AK45: ・ | AL45: ・ | AM45: ・ | AN45: ・ | AO45: ・ | AP45: ・ | AQ45: ・ | AR45: ・ | AS45: ・ | AT45: ・ | AU45: ・ | AV45: ・ | AW45: ・ | AX45: ・ | AY45: ・ | AZ45: ・ | BA45: ・ | BB45: ・ | BC45: ・ | BD45: ・ | BE45: ・ | BF45: ・ | BH45: 33
G47: （４） | L47: １８返品通知データ | X47: ・ | Y47: ・ | Z47: ・ | AA47: ・ | AB47: ・ | AC47: ・ | AD47: ・ | AE47: ・ | AF47: ・ | AG47: ・ | AH47: ・ | AI47: ・ | AJ47: ・ | AK47: ・ | AL47: ・ | AM47: ・ | AN47: ・ | AO47: ・ | AP47: ・ | AQ47: ・ | AR47: ・ | AS47: ・ | AT47: ・ | AU47: ・ | AV47: ・ | AW47: ・ | AX47: ・ | AY47: ・ | AZ47: ・ | BA47: ・ | BB47: ・ | BC47: ・ | BD47: ・ | BE47: ・ | BF47: ・ | BH47: 37
G49: （５） | L49: ２３出荷報告データ | X49: ・ | Y49: ・ | Z49: ・ | AA49: ・ | AB49: ・ | AC49: ・ | AD49: ・ | AE49: ・ | AF49: ・ | AG49: ・ | AH49: ・ | AI49: ・ | AJ49: ・ | AK49: ・ | AL49: ・ | AM49: ・ | AN49: ・ | AO49: ・ | AP49: ・ | AQ49: ・ | AR49: ・ | AS49: ・ | AT49: ・ | AU49: ・ | AV49: ・ | AW49: ・ | AX49: ・ | AY49: ・ | AZ49: ・ | BA49: ・ | BB49: ・ | BC49: ・ | BD49: ・ | BE49: ・ | BF49: ・ | BH49: 40
G51: （６） | L51: ３５請求明細データ | X51: ・ | Y51: ・ | Z51: ・ | AA51: ・ | AB51: ・ | AC51: ・ | AD51: ・ | AE51: ・ | AF51: ・ | AG51: ・ | AH51: ・ | AI51: ・ | AJ51: ・ | AK51: ・ | AL51: ・ | AM51: ・ | AN51: ・ | AO51: ・ | AP51: ・ | AQ51: ・ | AR51: ・ | AS51: ・ | AT51: ・ | AU51: ・ | AV51: ・ | AW51: ・ | AX51: ・ | AY51: ・ | AZ51: ・ | BA51: ・ | BB51: ・ | BC51: ・ | BD51: ・ | BE51: ・ | BF51: ・ | BH51: 44
G53: （７） | L53: ３６支払明細データ | X53: ・ | Y53: ・ | Z53: ・ | AA53: ・ | AB53: ・ | AC53: ・ | AD53: ・ | AE53: ・ | AF53: ・ | AG53: ・ | AH53: ・ | AI53: ・ | AJ53: ・ | AK53: ・ | AL53: ・ | AM53: ・ | AN53: ・ | AO53: ・ | AP53: ・ | AQ53: ・ | AR53: ・ | AS53: ・ | AT53: ・ | AU53: ・ | AV53: ・ | AW53: ・ | AX53: ・ | AY53: ・ | AZ53: ・ | BA53: ・ | BB53: ・ | BC53: ・ | BD53: ・ | BE53: ・ | BF53: ・ | BH53: 49
G55: （８） | L55: ４３販売報告データ | X55: ・ | Y55: ・ | Z55: ・ | AA55: ・ | AB55: ・ | AC55: ・ | AD55: ・ | AE55: ・ | AF55: ・ | AG55: ・ | AH55: ・ | AI55: ・ | AJ55: ・ | AK55: ・ | AL55: ・ | AM55: ・ | AN55: ・ | AO55: ・ | AP55: ・ | AQ55: ・ | AR55: ・ | AS55: ・ | AT55: ・ | AU55: ・ | AV55: ・ | AW55: ・ | AX55: ・ | AY55: ・ | AZ55: ・ | BA55: ・ | BB55: ・ | BC55: ・ | BD55: ・ | BE55: ・ | BF55: ・ | BH55: 54

Sheet V1レコード構成
BA1: =シート別総ページ数 -> 
D4: １． | G4: Ｖ１・ＥＤＩ標準フォーマット
E6: １．１ Ｖ１・レコード構成
E8: （１） | J8: ０２発注／１１入庫予定／１２受領／ | AA8: （２５６バイト／レコード） | AW8: （２） | BB8: ４２販売報告 | BS8: （２５６バイト／レコード）
J9: １９返品通知／２２出荷報告
J11: コントロール レコード | BB11: コントロール レコード
J13: ヘッダー レコード | BB13: ヘッダー レコード
J15: 明細 レコード（２明細分） | Y15: １伝票分 | AF15: １メーカ分 | BB15: 明細 レコード（５商品分） | BQ15: １届け先分 | BX15: １メーカ分
J17: 明細 レコード（２明細分） | BB17: 明細 レコード（５商品分）
BG18: ・
J19: 明細 レコード（２明細分） | BG19: ・
BB20: ヘッダー レコード
J21: ヘッダー レコード
BB22: 明細 レコード（５商品分）
J23: 明細 レコード（２明細分） | BG23: ・
O24: ・ | BG24: ・
O25: ・ | BB25: トレーラ レコード
J26: トレーラ レコード
BB27: コントロール レコード
J28: コントロール レコード
BB29: 明細 レコード（５商品分）
J30: ヘッダー レコード | BG30: ・
BG31: ・
J32: 明細 レコード（２明細分） | BB32: トレーラ レコード
O33: ・
O34: ・ | BB34: ※ 伝票の並び ： 任意
J35: トレーラ レコード | BB35: ※ 明細レコードがショートブロック（レコード中５商品未満）の場合、
BB36: オールスペースを設定する
J37: ※ 伝票の並び ： 任意
J38: ※ 明細レコードがショートブロック（レコード中１明細）の場合、
J39: オールスペースを設定する
E60: （３） | J60: ５１販促金案内・支払／５２販促金請求 | AA60: （２５６バイト／レコード） | AW60: （４） | BB60: ６４取引先コード照会／６７取引先コード照会結果 | BV60: （２５６バイト／レコード）
J63: コントロール レコード | BB63: コントロール レコード
J65: ヘッダー レコード | BB65: 明細 レコード（１件分）
J67: 明細 レコード（１商品分） | BB67: 明細 レコード（１件分） | BQ67: １卸・メーカ分
J69: 明細オブション レコード | Y69: max | AH69: １取引先分 | AN69: １卸・メーカ分 | BB69: 明細 レコード（１件分）
Y70: 明細レコード 999 | BG70: ・
J71: 明細 レコード（１商品分） | BG71: ・
BB72: トレーラ レコード
J73: 明細オブション レコード
J75: ヘッダー レコード
J77: 明細 レコード（１商品分）
J79: 明細 レコード（１商品分）
J81: 明細オブション レコード
J83: トレーラ レコード
J85: コントロール レコード
J87: 明細 レコード（１商品分）
O88: ・
O89: ・
J90: トレーラ レコード
J92: ※ 送信先毎に、先頭にコントロール・レコード１件、最後にトレーラー・レコード１件を作成する
J93: ※ ヘッダー・レコード（取引先情報）の後には、最低１件の明細レコードを作成する
J94: ※ １つのヘッダー・レコード（取引先情報）の後には、最大９９９件の明細レコードを作成する場合がある
J95: ※ 明細オプション・レコードの作成は任意であるが、必ず、明細レコードの後に１件のみ作成する

Sheet ０２発注
A1: １．２ Ｖ１・レコードフォーマット | AE1: =シート別総ページ数 -> 
C2: （１）Ｖ１・０２発注 | AE2: （１）Ｖ２・０３発注
D3: ① コントロールレコード | AF3: ① コントロールレコード
B4: 変更 | C4: 項番 | D4: 項目 | G4: 開始位置 | H4: 属性 | I4: 整数桁 | J4: 小数桁 | K4: 必須 | L4: 項目説明 | R4: コード | T4: Ｖ１ → Ｖ１ | U4: Ｖ１ → Ｖ２ | V4: Ｖ１ ← Ｖ１ | W4: Ｖ１ ← Ｖ２ | X4: Ｖ２フォーマット | AE4: 項番 | AF4: 項目 | AI4: 開始位置 | AJ4: 属性 | AK4: 整数桁 | AL4: 小数桁 | AM4: 必須
T5: センタチェック | U5: センタチェック | V5: コンバート | W5: コンバート | X5: 項番 | Y5: 項目 | Z5: 開始 | AA5: 属性 | AB5: 整数 | AC5: 小数
C6: 1 | D6: データ種別 | G6: 1 | H6: 9 | I6: 2 | K6: ◎ | L6: ０２：受発注データ | R6: 02 | T6: ｺｰﾄﾞ | U6: ｺｰﾄﾞ | V6: ○ | W6: "02”固定 | Y6: =IF($X6="","",VLOOKUP($X6,$AE$6:$AM$20,2,)) ->  | Z6: =IF($X6="","",VLOOKUP($X6,$AE$6:$AM$20,5,)) ->  | AA6: =IF($X6="","",VLOOKUP($X6,$AE$6:$AM$20,6,)) ->  | AB6: =IF($X6="","",VLOOKUP($X6,$AE$6:$AM$20,7,)) ->  | AC6: =IF($X6="","",VLOOKUP($X6,$AE$6:$AM$20,8,)) ->  | AE6: 1 | AF6: データ種別 | AI6: 1 | AJ6: 9 | AK6: 2 | AM6: ○
C7: 2 | D7: 送信先コード | G7: 3 | H7: 9 | I7: 8 | K7: ◎ | L7: 送信先(メーカ) | M7: の統一取引先コード | T7: センター登録 | U7: センター登録 | W7: ○ | X7: 2 | Y7: 送信先コード | Z7: 3 | AA7: 9 | AB7: 8 | AC7: 0 | AE7: 2 | AF7: 送信先コード | AI7: 3 | AJ7: 9 | AK7: 8 | AM7: ○
C8: 3 | D8: 送信元コード | G8: 11 | H8: 9 | I8: 8 | K8: ◎ | L8: 送信元(卸) | M8: の統一取引先コード | T8: センター登録 | U8: センター登録 | W8: ○ | X8: 3 | Y8: 送信元コード | Z8: 11 | AA8: 9 | AB8: 8 | AC8: 0 | AE8: 3 | AF8: 送信元コード | AI8: 11 | AJ8: 9 | AK8: 8 | AM8: ○
C9: 4 | D9: レコード区分 | G9: 19 | H9: 9 | I9: 1 | K9: ◎ | L9: １：コントロールレコード | R9: 1 | T9: ｺｰﾄﾞ | U9: ｺｰﾄﾞ | W9: ○ | X9: 4 | Y9: レコード区分 | Z9: 19 | AA9: 9 | AB9: 1 | AC9: 0 | AE9: 4 | AF9: レコード区分 | AI9: 19 | AJ9: 9 | AK9: 1 | AM9: ○
C10: 5 | D10: データ作成日 | G10: 20 | H10: 9 | I10: 8 | K10: ○ | L10: 本データを作成した日付 | N10: (西暦 YYYYMMDD) | U10: 必須＋日付 | V10: ○ | W10: ○ | X10: 5 | Y10: データ作成日 | Z10: 20 | AA10: 9 | AB10: 8 | AC10: 0 | AE10: 5 | AF10: データ作成日 | AI10: 20 | AJ10: 9 | AK10: 8 | AM10: ○
C11: 6 | D11: 送信先名 | G11: 28 | H11: X | I11: 20 | K11: ○ | L11: 送信先(メーカ) | M11: のカナ名称 | V11: ○ | W11: ○ | X11: 7 | Y11: 送信先名 | Z11: 34 | AA11: X | AB11: 20 | AC11: 0 | AE11: 6 | AF11: データ作成時刻 | AI11: 28 | AJ11: 9 | AK11: 6
C12: 7 | D12: 送信元名 | G12: 48 | H12: X | I12: 20 | K12: ○ | L12: 送信元(卸) | M12: のカナ名称 | U12: 必須 | V12: ○ | W12: ○ | X12: 8 | Y12: 送信元名 | Z12: 54 | AA12: X | AB12: 20 | AC12: 0 | AE12: 7 | AF12: 送信先名 | AI12: 34 | AJ12: X | AK12: 20
C13: 8 | D13: 直接送信先コード | G13: 68 | H13: 9 | I13: 8 | L13: 送信先と異なる場所へ送信する場合にセット。 セット不要の場合"00000000" | T13: センター登録 | U13: センター登録 | V13: ○ | W13: ○ | X13: 9 | Y13: 直接送信先コード | Z13: 74 | AA13: 9 | AB13: 8 | AC13: 0 | AE13: 8 | AF13: 送信元名 | AI13: 54 | AJ13: X | AK13: 20 | AM13: ○
C14: 9 | D14: 直接送信先カナ名 | G14: 76 | H14: X | I14: 20 | L14: 送信先と異なる場所へ送信する場合にセット。 セット不要の場合スペース | V14: ○ | W14: ○ | X14: 10 | Y14: 直接送信先名 | Z14: 82 | AA14: X | AB14: 20 | AC14: 0 | AE14: 9 | AF14: 直接送信先コード | AI14: 74 | AJ14: 9 | AK14: 8
C15: 10 | D15: 予備 | G15: 96 | H15: X | I15: 161 | L15: 新フォーマット連携エリア間のデータ連携 | V15: ○ | W15: ○ | X15: 13 | Y15: 連携エリア | Z15: 1181 | AA15: X | AB15: 20 | AC15: 0 | AE15: 10 | AF15: 直接送信先名 | AI15: 82 | AJ15: X | AK15: 20
AE16: 11 | AF16: 送信ファイルNO | AI16: 102 | AJ16: 9 | AK16: 2
AE17: 12 | AF17: 予備 | AI17: 104 | AJ17: X | AK17: 1077
AE18: 13 | AF18: 連携エリア | AI18: 1181 | AJ18: X | AK18: 20
D21: ② ヘッダーレコード | AF21: ② ヘッダー／明細レコード
B22: 変更 | C22: 項番 | D22: 項目 | G22: 開始位置 | H22: 属性 | I22: 整数桁 | J22: 小数桁 | K22: 必須 | L22: 項目説明 | R22: コード | T22: Ｖ１ → Ｖ１ | U22: Ｖ１ → Ｖ２ | V22: Ｖ１ ← Ｖ１ | W22: Ｖ１ ← Ｖ２ | X22: Ｖ２フォーマット | AE22: 項番 | AF22: 項目 | AI22: 開始位置 | AJ22: 属性 | AK22: 整数桁 | AL22: 小数桁 | AM22: 必須
T23: センタチェック | U23: センタチェック | V23: コンバート | W23: コンバート | X23: 項番 | Y23: 項目 | Z23: 開始 | AA23: 属性 | AB23: 整数 | AC23: 小数
C24: 1 | D24: データ種別 | G24: 1 | H24: 9 | I24: 2 | K24: ◎ | L24: ０２：受発注データ | R24: 02 | T24: 共通部チェック (ｺﾝﾄﾛｰﾙ同値､ 軽症ｴﾗｰ) | U24: 共通部チェック (ｺﾝﾄﾛｰﾙ同値､ 軽症ｴﾗｰ) | V24: ○ | W24: "02”固定 | Y24: =IF($X24="","",VLOOKUP($X24,$AE$24:$AM$125,2,)) ->  | Z24: =IF($X24="","",VLOOKUP($X24,$AE$24:$AM$125,5,)) ->  | AA24: =IF($X24="","",VLOOKUP($X24,$AE$24:$AM$125,6,)) ->  | AB24: =IF($X24="","",VLOOKUP($X24,$AE$24:$AM$125,7,)) ->  | AC24: =IF($X24="","",VLOOKUP($X24,$AE$24:$AM$125,8,)) ->  | AE24: 1 | AF24: データ種別 | AI24: 1 | AJ24: 9 | AK24: 2 | AM24: ○
C25: 2 | D25: 送信先コード | G25: 3 | H25: 9 | I25: 8 | K25: ◎ | L25: 送信先(メーカ) | M25: の統一取引先コード | W25: ○ | X25: 2 | Y25: 送信先コード | Z25: 3 | AA25: 9 | AB25: 8 | AC25: 0 | AE25: 2 | AF25: 送信先コード | AI25: 3 | AJ25: 9 | AK25: 8 | AM25: ○
C26: 3 | D26: 送信元コード | G26: 11 | H26: 9 | I26: 8 | K26: ◎ | L26: 送信元(卸) | M26: の統一取引先コード | W26: ○ | X26: 3 | Y26: 送信元コード | Z26: 11 | AA26: 9 | AB26: 8 | AC26: 0 | AE26: 3 | AF26: 送信元コード | AI26: 11 | AJ26: 9 | AK26: 8 | AM26: ○
C27: 4 | D27: レコード区分 | G27: 19 | H27: 9 | I27: 1 | K27: ◎ | L27: ２：ヘッダレコード | R27: 2 | W27: "2"固定 | AE27: 4 | AF27: レコード区分 | AI27: 19 | AJ27: 9 | AK27: 1 | AM27: ○
C28: 5 | D28: 卸伝票NO | G28: 20 | H28: 9 | I28: 6 | K28: ○ | L28: 発注NO | U28: 必須＋属性(ｽ) | V28: ○ | W28: 下６桁 | X28: 6 | Y28: 卸発注伝票NO | Z28: 21 | AA28: 9 | AB28: 8 | AC28: 0 | AE28: 5 | AF28: 漢字コード区分 | AI28: 20 | AJ28: X | AK28: 1
C29: 6 | D29: 店入直送区分 | G29: 26 | H29: 9 | I29: 1 | K29: ○ | L29: 店(倉)入れまたは直送等の区分 | R29: 1:店入 | S29: 2:直送 | U29: 必須＋ｺｰﾄﾞ | V29: ○ | W29: "1"･"3" → "1" その他 → "2" | X29: 7 | Y29: 店入直送区分 | Z29: 29 | AA29: 9 | AB29: 1 | AC29: 0 | AE29: 6 | AF29: 卸発注伝票NO | AI29: 21 | AJ29: 9 | AK29: 8 | AM29: ○
B30: 2.6 | C30: 7 | D30: 取引コード | G30: 27 | H30: 9 | I30: 2 | K30: ○ | L30: 業界統一取引コード | R30: 11:店入売上 12:店入売上訂正 21:店入返品 22:店入返品訂正 31:直送売上 32:直送売上訂正 | S30: 41:直送返品 42:直送返品訂正 51:割戻し金 52:相殺 81:ﾒｰｶｰ提供の役務 91:卸提供の役務 | U30: 必須＋ｺｰﾄﾞ | V30: ○ | W30: ○ | X30: 8 | Y30: 取引コード | Z30: 30 | AA30: 9 | AB30: 2 | AC30: 0 | AE30: 7 | AF30: 店入直送区分 | AI30: 29 | AJ30: 9 | AK30: 1 | AM30: ○
C31: 8 | D31: 納品日 | G31: 29 | H31: 9 | I31: 8 | K31: ○ | L31: 卸売業が指定した納品日(着荷日) | N31: (西暦 YYYYMMDD) | U31: 必須＋日付 | V31: ○ | W31: ○ | X31: 9 | Y31: 納品日／引取日 | Z31: 32 | AA31: 9 | AB31: 8 | AC31: 0 | AE31: 8 | AF31: 取引コード | AI31: 30 | AJ31: 9 | AK31: 2 | AM31: ○
C32: 9 | D32: 納入時間 | G32: 37 | H32: 9 | I32: 4 | L32: 卸売業が指定した納品時間(時分) | N32: (HHMM) | V32: ○ | W32: ○ | X32: 10 | Y32: 納入時間（自） | Z32: 40 | AA32: 9 | AB32: 4 | AC32: 0 | AE32: 9 | AF32: 納品日／引取日 | AI32: 32 | AJ32: 9 | AK32: 8 | AM32: ○
C33: 10 | D33: 明細行数 | G33: 41 | H33: 9 | I33: 2 | K33: ○ | L33: 伝票内明細数 | U33: 属性(ｽ) | V33: ○ | W33: ○ | X33: 13 | Y33: 明細行数 | Z33: 56 | AA33: 9 | AB33: 2 | AC33: 0 | AE33: 10 | AF33: 納入時間（自） | AI33: 40 | AJ33: 9 | AK33: 4
B34: 2.1 | C34: 11 | D34: 一次店コード | G34: 43 | H34: 9 | I34: 8 | K34: ○ | L34: 該当する統一取引先コード | U34: 必須 | V34: ○ | W34: 8桁以上:上8桁 | X34: 14 | Y34: 一次店コード | Z34: 58 | AA34: X | AB34: 13 | AC34: 0 | AE34: 11 | AF34: 納入時間（至） | AI34: 44 | AJ34: 9 | AK34: 4
B35: 2.1 | C35: 12 | D35: 二次店コード | G35: 51 | H35: 9 | I35: 8 | L35: 該当する統一取引先コード | V35: ○ | W35: 8桁未満:前ゼロ＋有効桁 | X35: 15 | Y35: 二次店コード | Z35: 71 | AA35: X | AB35: 13 | AC35: 0 | AE35: 12 | AF35: 発注日 | AI35: 48 | AJ35: 9 | AK35: 8
B36: 2.1 | C36: 13 | D36: 届け先コード | G36: 59 | H36: 9 | I36: 8 | K36: ○ | L36: 該当する統一取引先コード | N36: (一次店、二次店と重複しても必ずセットする) | V36: ○ | X36: 17 | Y36: 届け先コード | Z36: 97 | AA36: X | AB36: 13 | AC36: 0 | AE36: 13 | AF36: 明細行数 | AI36: 56 | AJ36: 9 | AK36: 2
C37: 14 | D37: 専用伝票日付 | G37: 67 | H37: 9 | I37: 8 | L37: 納品伝票が専用伝票の場合にセット | N37: (西暦 YYYYMMDD、セット不要の場合はゼロ) | U37: 日付 | V37: ○ | W37: ○ | X37: 19 | Y37: 専用伝票日付 | Z37: 123 | AA37: 9 | AB37: 8 | AC37: 0 | AE37: 14 | AF37: 一次店コード | AI37: 58 | AJ37: X | AK37: 13 | AM37: ○
C38: 15 | D38: 専用伝票NO | G38: 75 | H38: 9 | I38: 9 | L38: 納品伝票が専用伝票の場合にセット | N38: (セット不要の場合はゼロ) | U38: 属性(ｽ) | V38: ○ | W38: ○ | X38: 20 | Y38: 専用伝票NO | Z38: 131 | AA38: 9 | AB38: 9 | AC38: 0 | AE38: 15 | AF38: 二次店コード | AI38: 71 | AJ38: X | AK38: 13
C39: 16 | D39: 伝票合計金額符号 | G39: 84 | H39: X | I39: 1 | K39: ○ | L39: 伝票の合計金額の符号 | R39: ＋:正数 | S39: －:負数 | V39: "△" → "+" | W39: "△" → "+" | X39: 21 | Y39: 伝票合計金額符号 | Z39: 140 | AA39: X | AB39: 1 | AC39: 0 | AE39: 16 | AF39: 三次店コード | AI39: 84 | AJ39: X | AK39: 13
C40: 17 | D40: 伝票合計金額 | G40: 85 | H40: 9 | I40: 8 | K40: ○ | L40: 伝票の合計金額 | N40: (卸店入価格) | T40: 属性(ｻ) | U40: 属性(ｽ) | V40: ○ | W40: ○ | X40: 22 | Y40: 伝票合計金額 | Z40: 141 | AA40: 9 | AB40: 8 | AC40: 0 | AE40: 17 | AF40: 届け先コード | AI40: 97 | AJ40: X | AK40: 13
C41: 18 | D41: 二次店納入合計符号 | G41: 93 | H41: X | I41: 1 | L41: 正味納入金額の符号 | R41: ＋:正数 | S41: －:負数 | V41: "△" → "+" | W41: "△" → "+" | X41: 23 | Y41: 二次店納入合計金額符号 | Z41: 149 | AA41: X | AB41: 1 | AC41: 0 | AE41: 18 | AF41: チェーン店コード | AI41: 110 | AJ41: X | AK41: 13
C42: 19 | D42: 二次店納入合計金額 | G42: 94 | H42: 9 | I42: 8 | L42: 正味納入金額 | T42: 属性(ｻ) | U42: 属性(ｽ) | V42: ○ | W42: ○ | X42: 24 | Y42: 二次店納入合計金額 | Z42: 150 | AA42: 9 | AB42: 8 | AC42: 0 | AE42: 19 | AF42: 専用伝票日付 | AI42: 123 | AJ42: 9 | AK42: 8
B43: 1.1 | C43: 20 | D43: 一次店カナ名 | G43: 102 | H43: X | I43: 30 | K43: ○ | L43: 一次店名 | V43: ○ | W43: 日本語区分(一次店)が 漢字 ：一次店カナ名 その他：一次店名 | X43: 25 56 | Y43: 一次店名 一次店カナ名 | Z43: 158 631 | AA43: X/N Ｘ | AB43: 40 30 | AC43: 0 | AE43: 20 | AF43: 専用伝票NO | AI43: 131 | AJ43: 9 | AK43: 9
B44: 1.1 | C44: 21 | D44: 二次店カナ名 | G44: 132 | H44: X | I44: 30 | L44: 二次店名 | V44: ○ | W44: 日本語区分(二次店)が 漢字 ：二次店カナ名 その他：二次店名 | X44: 26 57 | Y44: 二次店名 二次店カナ名 | Z44: 198 661 | AA44: X/N Ｘ | AB44: 40 30 | AC44: 0 | AE44: 21 | AF44: 伝票合計金額符号 | AI44: 140 | AJ44: X | AK44: 1
B45: 1.1 | C45: 22 | D45: 届け先カナ名 | G45: 162 | H45: X | I45: 30 | K45: ○ | L45: 届け先名 | V45: ○ | W45: 日本語区分(届け先)が 漢字 ：届け先カナ名 その他：届け先名 | X45: 28 58 | Y45: 届け先名 届け先カナ名 | Z45: 278 691 | AA45: X/N Ｘ | AB45: 40 30 | AC45: 0 | AE45: 22 | AF45: 伝票合計金額 | AI45: 141 | AJ45: 9 | AK45: 8
C46: 23 | D46: メーカ所属組織名 | G46: 192 | H46: X | I46: 10 | L46: スペース | V46: ○ | W46: ○ | X46: 33 | Y46: =IF($X46="","",VLOOKUP($X46,$AE$24:$AM$125,2,)) -> メーカ所属組織名 | Z46: =IF($X46="","",VLOOKUP($X46,$AE$24:$AM$125,5,)) -> 462 | AA46: =IF($X46="","",VLOOKUP($X46,$AE$24:$AM$125,6,)) -> X | AB46: =IF($X46="","",VLOOKUP($X46,$AE$24:$AM$125,7,)) -> 10 | AC46: =IF($X46="","",VLOOKUP($X46,$AE$24:$AM$125,8,)) -> 0 | AE46: 23 | AF46: 二次店納入合計金額符号 | AI46: 149 | AJ46: X | AK46: 1
C47: 24 | D47: 伝票区分 | G47: 202 | H47: 9 | I47: 1 | K47: ○ | L47: 伝票発行の区分 | O47: 0:菓子統一伝票 1:ﾁｪｰﾝｽﾄｱ統一伝票 (OCR、タイプ用で伝票№が印刷されていないもの) 2:専用伝票 (専用伝票(チェーンストア統一伝票手書用を含む)で 専用伝票No.をレコード中に表示できるもの) 3:専用伝票だが、レコード中に元伝№を表示できないもの 4:チェーンストア統一伝票 （ターンアラウンド用） 8:伝票レス | U47: ｺｰﾄﾞ(新) | V47: ○ | W47: ○ | X47: 34 | Y47: =IF($X47="","",VLOOKUP($X47,$AE$24:$AM$125,2,)) -> 伝票区分 | Z47: =IF($X47="","",VLOOKUP($X47,$AE$24:$AM$125,5,)) -> 472 | AA47: =IF($X47="","",VLOOKUP($X47,$AE$24:$AM$125,6,)) -> 9 | AB47: =IF($X47="","",VLOOKUP($X47,$AE$24:$AM$125,7,)) -> 1 | AC47: =IF($X47="","",VLOOKUP($X47,$AE$24:$AM$125,8,)) -> 0 | AE47: 24 | AF47: 二次店納入合計金額 | AI47: 150 | AJ47: 9 | AK47: 8
C48: 25 | D48: 定番特売区分 | G48: 203 | H48: X | I48: 1 | K48: ○ | L48: 定番発注/特売発注の区分 | R48: 0:定番 | S48: 1:特売 | V48: ○ | W48: "0"･”1”以外→"0" | X48: 35 | Y48: =IF($X48="","",VLOOKUP($X48,$AE$24:$AM$125,2,)) -> 定番特売区分 | Z48: =IF($X48="","",VLOOKUP($X48,$AE$24:$AM$125,5,)) -> 473 | AA48: =IF($X48="","",VLOOKUP($X48,$AE$24:$AM$125,6,)) -> X | AB48: =IF($X48="","",VLOOKUP($X48,$AE$24:$AM$125,7,)) -> 1 | AC48: =IF($X48="","",VLOOKUP($X48,$AE$24:$AM$125,8,)) -> 0 | AE48: 25 | AF48: 一次店名 | AI48: 158 | AJ48: X/N | AK48: 40
B49: 1.1 | C49: 26 | D49: 摘要欄 | G49: 204 | H49: X | I49: 30 | L49: 伝票の摘要欄の内容 | V49: ○ | W49: 日本語区分(摘要)が 漢字 ：摘要カナ その他：摘要 | X49: 43 59 | Y49: 摘要 摘要カナ | Z49: 569 721 | AA49: X/N Ｘ | AB49: 50 30 | AC49: 0 | AE49: 26 | AF49: 二次店名 | AI49: 198 | AJ49: X/N | AK49: 40
C50: 27 | D50: メーカコード | G50: 234 | H50: X | I50: 9 | K50: ○ | L50: 国コード２桁を含むメーカコード | N50: (７桁の場合左詰め後ろスペース) | V50: ○ | W50: ○ | X50: 32 | Y50: =IF($X50="","",VLOOKUP($X50,$AE$24:$AM$125,2,)) -> メーカコード | Z50: =IF($X50="","",VLOOKUP($X50,$AE$24:$AM$125,5,)) -> 453 | AA50: =IF($X50="","",VLOOKUP($X50,$AE$24:$AM$125,6,)) -> X | AB50: =IF($X50="","",VLOOKUP($X50,$AE$24:$AM$125,7,)) -> 9 | AC50: =IF($X50="","",VLOOKUP($X50,$AE$24:$AM$125,8,)) -> 0 | AE50: 27 | AF50: 三次店名 | AI50: 238 | AJ50: X/N | AK50: 40
C51: 28 | D51: 予備 | G51: 243 | H51: X | I51: 14 | L51: 新フォーマット連携エリア間のデータ連携 | N51: (卸伝票NO８桁化対応） | V51: ○ | W51: ヘッダー連携エリア上10桁 + 卸発注伝票NO上2桁 | X51: 61 6 | Y51: ヘッダー連携エリア 卸発注伝票NO | Z51: 781 21 | AA51: X 9 | AB51: 20 8 | AC51: 0 | AE51: 28 | AF51: 届け先名 | AI51: 278 | AJ51: X/N | AK51: 40
AC52: 0
D55: ③ 明細レコード
B56: 変更 | C56: 項番 | D56: 項目 | G56: 開始位置 | H56: 属性 | I56: 整数桁 | J56: 小数桁 | K56: 必須 | L56: 項目説明 | R56: コード | T56: Ｖ１ → Ｖ１ | U56: Ｖ１ → Ｖ２ | V56: Ｖ１ ← Ｖ１ | W56: Ｖ１ ← Ｖ２ | X56: Ｖ２フォーマット | AE56: 29 | AF56: チェーン店名 | AI56: 318 | AJ56: X/N | AK56: 40
T57: センタチェック | U57: センタチェック | V57: コンバート | W57: コンバート | X57: 項番 | Y57: 項目 | Z57: 開始 | AA57: 属性 | AB57: 整数 | AC57: 小数 | AE57: 30 | AF57: 電話番号 | AI57: 358 | AJ57: X | AK57: 15
C58: 1 | D58: データ種別 | G58: 1 | H58: 9 | I58: 2 | K58: ◎ | L58: ０２：受発注データ | R58: 02 | T58: 共通部チェック (ｺﾝﾄﾛｰﾙ同値､ 軽症ｴﾗｰ) | U58: 共通部チェック (ｺﾝﾄﾛｰﾙ同値､ 軽症ｴﾗｰ) | V58: ○ | W58: "02”固定 | Y58: =IF($X58="","",VLOOKUP($X58,$AE$24:$AM$125,2,)) ->  | Z58: =IF($X58="","",VLOOKUP($X58,$AE$24:$AM$125,5,)) ->  | AA58: =IF($X58="","",VLOOKUP($X58,$AE$24:$AM$125,6,)) ->  | AB58: =IF($X58="","",VLOOKUP($X58,$AE$24:$AM$125,7,)) ->  | AC58: =IF($X58="","",VLOOKUP($X58,$AE$24:$AM$125,8,)) ->  | AE58: 31 | AF58: 住所 | AI58: 373 | AJ58: X/N | AK58: 80
C59: 2 | D59: 送信先コード | G59: 3 | H59: 9 | I59: 8 | K59: ◎ | L59: 送信先(メーカ) | M59: の統一取引先コード | W59: ○ | X59: 2 | Y59: =IF($X59="","",VLOOKUP($X59,$AE$24:$AM$125,2,)) -> 送信先コード | Z59: =IF($X59="","",VLOOKUP($X59,$AE$24:$AM$125,5,)) -> 3 | AA59: =IF($X59="","",VLOOKUP($X59,$AE$24:$AM$125,6,)) -> 9 | AB59: =IF($X59="","",VLOOKUP($X59,$AE$24:$AM$125,7,)) -> 8 | AC59: =IF($X59="","",VLOOKUP($X59,$AE$24:$AM$125,8,)) -> 0 | AE59: 32 | AF59: メーカコード | AI59: 453 | AJ59: X | AK59: 9
C60: 3 | D60: 送信元コード | G60: 11 | H60: 9 | I60: 8 | K60: ◎ | L60: 送信元(卸) | M60: の統一取引先コード | W60: ○ | X60: 3 | Y60: =IF($X60="","",VLOOKUP($X60,$AE$24:$AM$125,2,)) -> 送信元コード | Z60: =IF($X60="","",VLOOKUP($X60,$AE$24:$AM$125,5,)) -> 11 | AA60: =IF($X60="","",VLOOKUP($X60,$AE$24:$AM$125,6,)) -> 9 | AB60: =IF($X60="","",VLOOKUP($X60,$AE$24:$AM$125,7,)) -> 8 | AC60: =IF($X60="","",VLOOKUP($X60,$AE$24:$AM$125,8,)) -> 0 | AE60: 33 | AF60: メーカ所属組織名 | AI60: 462 | AJ60: X | AK60: 10
C61: 4 | D61: レコード区分 | G61: 19 | H61: 9 | I61: 1 | K61: ◎ | L61: ４：明細レコード | R61: 4 | W61: "4"固定 | Y61: =IF($X61="","",VLOOKUP($X61,$AE$24:$AM$125,2,)) ->  | Z61: =IF($X61="","",VLOOKUP($X61,$AE$24:$AM$125,5,)) ->  | AA61: =IF($X61="","",VLOOKUP($X61,$AE$24:$AM$125,6,)) ->  | AB61: =IF($X61="","",VLOOKUP($X61,$AE$24:$AM$125,7,)) ->  | AC61: =IF($X61="","",VLOOKUP($X61,$AE$24:$AM$125,8,)) ->  | AE61: 34 | AF61: 伝票区分 | AI61: 472 | AJ61: 9 | AK61: 1
D62: 明細部繰返（１１７バイト × ２明細） ※明細レコードがショートブロック（レコード中１明細）の場合、ALL SPACEを設定する。 | AE62: 35 | AF62: 定番特売区分 | AI62: 473 | AJ62: X | AK62: 1
C63: 5 | E63: 行NO | G63: 20 | H63: 9 | I63: 2 | K63: ○ | L63: 明細行NO | R63: 01～06 | U63: 属性(ｽ) | V63: ○ | W63: ○ | X63: 62 | Y63: =IF($X63="","",VLOOKUP($X63,$AE$24:$AM$125,3,)) -> 明細行NO | Z63: =IF($X63="","",VLOOKUP($X63,$AE$24:$AM$125,5,)) -> 801 | AA63: =IF($X63="","",VLOOKUP($X63,$AE$24:$AM$125,6,)) -> 9 | AB63: =IF($X63="","",VLOOKUP($X63,$AE$24:$AM$125,7,)) -> 2 | AC63: =IF($X63="","",VLOOKUP($X63,$AE$24:$AM$125,8,)) -> 0 | AE63: 36 | AF63: ロット不足運賃負担区分 | AI63: 474 | AJ63: X | AK63: 1
C64: 6 | E64: 専用伝票行NO | G64: 22 | H64: 9 | I64: 2 | L64: 専用伝票の行NO | U64: 属性(ｽ) | V64: ○ | W64: ○ | X64: 63 | Y64: =IF($X64="","",VLOOKUP($X64,$AE$24:$AM$125,3,)) -> 専用伝票行NO | Z64: =IF($X64="","",VLOOKUP($X64,$AE$24:$AM$125,5,)) -> 803 | AA64: =IF($X64="","",VLOOKUP($X64,$AE$24:$AM$125,6,)) -> 9 | AB64: =IF($X64="","",VLOOKUP($X64,$AE$24:$AM$125,7,)) -> 2 | AC64: =IF($X64="","",VLOOKUP($X64,$AE$24:$AM$125,8,)) -> 0 | AE64: 37 | AF64: 下請法 | AH64: 伝票表示区分 | AI64: 475 | AJ64: X | AK64: 1
C65: 7 | E65: 商品コード識別区分 | G65: 24 | H65: X | I65: 1 | K65: ○ | L65: 品番(商品コード)の識別区分 | R65: 0:統一商品コード 1:ＩＴＦコード(14桁) 2:ＩＴＦｺｰﾄﾞ(拡張16桁) 3:JANコード(標準:13桁) 4:JANコード(短縮:8桁) 6:GTINコード(14桁) | U65: 必須＋コード(新) "2"は連携不可 | V65: ○ | W65: ○ | X65: 64 | Y65: =IF($X65="","",VLOOKUP($X65,$AE$24:$AM$125,3,)) -> 商品コード識別区分 | Z65: =IF($X65="","",VLOOKUP($X65,$AE$24:$AM$125,5,)) -> 805 | AA65: =IF($X65="","",VLOOKUP($X65,$AE$24:$AM$125,6,)) -> 9 | AB65: =IF($X65="","",VLOOKUP($X65,$AE$24:$AM$125,7,)) -> 1 | AC65: =IF($X65="","",VLOOKUP($X65,$AE$24:$AM$125,8,)) -> 0 | AE65: 38 | AH65: 伝票表示内容 | AI65: 476 | AJ65: X | AK65: 80
C66: 8 | E66: 品番 | G66: 25 | H66: X | I66: 16 | K66: ○ | L66: 統一商品ｺｰﾄﾞ，ITFｺｰﾄﾞ，JANｺｰﾄﾞまたはGTINｺｰﾄﾞ（左詰め） | V66: ○ | W66: ○ | X66: 65 | Y66: =IF($X66="","",VLOOKUP($X66,$AE$24:$AM$125,3,)) -> 品番 | Z66: =IF($X66="","",VLOOKUP($X66,$AE$24:$AM$125,5,)) -> 806 | AA66: =IF($X66="","",VLOOKUP($X66,$AE$24:$AM$125,6,)) -> X | AB66: =IF($X66="","",VLOOKUP($X66,$AE$24:$AM$125,7,)) -> 16 | AC66: =IF($X66="","",VLOOKUP($X66,$AE$24:$AM$125,8,)) -> 0 | AE66: 39 | AH66: 日本語区分（表示） | AI66: 556 | AJ66: X | AK66: 1
B67: 1.1 | C67: 9 | E67: 商品名 | G67: 41 | H67: X | I67: 25 | K67: ○ | L67: 商品名 | V67: ○ | W67: 日本語区分(商品名)が 漢字 ：商品名カナ その他：商品名 | X67: 66 92 | Y67: 商品名 商品名カナ | Z67: 822 1011 | AA67: X/N Ｘ | AB67: 40 25 | AC67: 0 | AE67: 40 | AH67: 支払期限 | AI67: 557 | AJ67: 9 | AK67: 8
C68: 10 | E68: 包装区分 | G68: 66 | H68: 9 | I68: 1 | K68: ○ | L68: 数量の発注単位の区分 | N68: (1:ケース発注時) | O68: (2:ボール発注時) | P68: (3:バラ発注時) | R68: 1:ケース発注 2:ボール発注 | S68: 3:バラ発注 | V68: ○ | W68: ○ | X68: 67 | Y68: =IF($X68="","",VLOOKUP($X68,$AE$24:$AM$125,3,)) -> 包装区分 | Z68: =IF($X68="","",VLOOKUP($X68,$AE$24:$AM$125,5,)) -> 862 | AA68: =IF($X68="","",VLOOKUP($X68,$AE$24:$AM$125,6,)) -> 9 | AB68: =IF($X68="","",VLOOKUP($X68,$AE$24:$AM$125,7,)) -> 1 | AC68: =IF($X68="","",VLOOKUP($X68,$AE$24:$AM$125,8,)) -> 0 | AE68: 41 | AF68: 消費税区分 | AI68: 565 | AJ68: X | AK68: 1
C69: 11 | E69: 内容 | F69: ボール内バラ数 | G69: 67 | H69: 9 | I69: 4 | J69: 2 | K69: ○ | L69: 包装区分に準じた設定 | N69: (ボール内バラ数 | O69: /ボール内バラ数 | P69: /ゼロ) | U69: 属性(ｽ) | V69: ○ | W69: ○ | X69: 68 | Y69: =IF($X69="","",VLOOKUP($X69,$AE$24:$AM$125,4,)) -> ボール内バラ数 | Z69: 863 | AA69: 9 | AB69: 4 | AC69: 2 | AE69: 42 | AF69: 消費税率 | AI69: 566 | AJ69: 9 | AK69: 2 | AL69: 1
C70: 12 | F70: ケース内ボール数 | G70: 73 | H70: 9 | I70: 2 | K70: ○ | L70: 包装区分に準じた設定 | N70: (ケース内ボール数 | O70: /ゼロ | P70: /ゼロ) | U70: 属性(ｽ) | V70: ○ | W70: ○ | X70: 69 | Y70: =IF($X70="","",VLOOKUP($X70,$AE$24:$AM$125,4,)) -> ケース内ボール数 | Z70: 869 | AA70: 9 | AB70: 2 | AC70: 0 | AE70: 43 | AF70: 摘要 | AI70: 569 | AJ70: X/N | AK70: 50
C71: 13 | E71: 数量符号 | G71: 75 | H71: X | I71: 1 | K71: ○ | L71: 数量の符号 | R71: ＋:正数 | S71: －:負数 | U71: ｺｰﾄﾞ | V71: "△" → "+" (有効明細時) | W71: "△" → "+" | X71: 70 | Y71: =IF($X71="","",VLOOKUP($X71,$AE$24:$AM$125,3,)) -> 数量符号 | Z71: 871 | AA71: X | AB71: 1 | AC71: 0 | AE71: 44 | AF71: 取引先区分（一次店） | AI71: 619 | AJ71: X | AK71: 1
C72: 14 | E72: 数量 | F72: ケース数量 | G72: 76 | H72: 9 | I72: 7 | K72: ○ | L72: 包装区分に準じた設定 | N72: (ケース数量 | O72: /ゼロ | P72: /ゼロ) | U72: 属性(ｽ) | V72: ○ | W72: ○ | X72: 71 | Y72: =IF($X72="","",VLOOKUP($X72,$AE$24:$AM$125,4,)) -> ケース数量 | Z72: 872 | AA72: 9 | AB72: 7 | AC72: 0 | AE72: 45 | AF72: 取引先区分（二次店） | AI72: 620 | AJ72: X | AK72: 1
C73: 15 | F73: ボール数量 | G73: 83 | H73: 9 | I73: 7 | K73: ○ | L73: 包装区分に準じた設定 | N73: (ゼロ | O73: /ボール数量 | P73: /ゼロ) | U73: 属性(ｽ) | V73: ○ | W73: ○ | X73: 72 | Y73: =IF($X73="","",VLOOKUP($X73,$AE$24:$AM$125,4,)) -> ボール数量 | Z73: 879 | AA73: 9 | AB73: 7 | AC73: 0 | AE73: 46 | AF73: 取引先区分（三次店） | AI73: 621 | AJ73: X | AK73: 1
C74: 16 | F74: バラ数量 | G74: 90 | H74: 9 | I74: 7 | J74: 2 | K74: ○ | L74: バラ数量 | U74: 属性(ｽ) | V74: ○ | W74: ○ | X74: 73 | Y74: =IF($X74="","",VLOOKUP($X74,$AE$24:$AM$125,4,)) -> バラ数量 | Z74: 886 | AA74: 9 | AB74: 7 | AC74: 2 | AE74: 47 | AF74: 取引先区分（届け先） | AI74: 622 | AJ74: X | AK74: 1
C75: 17 | E75: 単価 | F75: 卸店入価格 | G75: 99 | H75: 9 | I75: 6 | J75: 2 | K75: ○ | L75: 卸店入価格 | N75: (バラ単価) | U75: 属性(ｽ) | V75: ○ | W75: ○ | X75: 74 | Y75: =IF($X75="","",VLOOKUP($X75,$AE$24:$AM$125,4,)) -> 卸店入価格 | Z75: 895 | AA75: 9 | AB75: 6 | AC75: 2 | AE75: 48 | AF75: 取引先区分（チェーン店） | AI75: 623 | AJ75: X | AK75: 1
C76: 18 | F76: 二次店納入価格 | G76: 107 | H76: 9 | I76: 6 | J76: 2 | L76: 二次卸店等への納入価格 | N76: (バラ単価) | U76: 属性(ｽ) | V76: ○ | W76: ○ | X76: 75 | Y76: =IF($X76="","",VLOOKUP($X76,$AE$24:$AM$125,4,)) -> 二次店納入価格 | Z76: 903 | AA76: 9 | AB76: 6 | AC76: 2 | AE76: 49 | AF76: 日本語区分（一次店） | AI76: 624 | AJ76: X | AK76: 1
C77: 19 | E77: 金額符号 | G77: 115 | H77: X | I77: 1 | K77: ○ | L77: 金額の符号 | R77: ＋:正数 | S77: －:負数 | U77: ｺｰﾄﾞ | V77: "△" → "+" (有効明細時) | W77: "△" → "+" | X77: 76 | Y77: =IF($X77="","",VLOOKUP($X77,$AE$24:$AM$125,3,)) -> 金額符号 | Z77: 911 | AA77: X | AB77: 1 | AC77: 0 | AE77: 50 | AF77: 日本語区分（二次店） | AI77: 625 | AJ77: X | AK77: 1
C78: 20 | E78: 金額 | F78: 卸店入金額 | G78: 116 | H78: 9 | I78: 8 | K78: ○ | L78: 卸店入金額 | T78: 属性(ｻ) | U78: 属性(ｽ) | V78: ○ | W78: ○ | X78: 77 | Y78: =IF($X78="","",VLOOKUP($X78,$AE$24:$AM$125,4,)) -> 卸店入金額 | Z78: 912 | AA78: 9 | AB78: 8 | AC78: 0 | AE78: 51 | AF78: 日本語区分（三次店） | AI78: 626 | AJ78: X | AK78: 1
C79: 21 | F79: 二次店納入金額 | G79: 124 | H79: 9 | I79: 8 | L79: 二次卸店等への納入金額 | T79: 属性(ｻ) | U79: 属性(ｽ) | V79: ○ | W79: ○ | X79: 78 | Y79: =IF($X79="","",VLOOKUP($X79,$AE$24:$AM$125,4,)) -> 二次店納入金額 | Z79: 920 | AA79: 9 | AB79: 8 | AC79: 0 | AE79: 52 | AF79: 日本語区分（届け先） | AI79: 627 | AJ79: X | AK79: 1
C80: 22 | E80: 卸最新在庫日付 | G80: 132 | H80: X | I80: 5 | L80: 賞味期限または製造年月日 | N80: (YMMDD) | V80: ○ | W80: 下5桁 | X80: 84 | Y80: =IF($X80="","",VLOOKUP($X80,$AE$24:$AM$125,3,)) -> 卸最新在庫日付 | Z80: 935 | AA80: 9 | AB80: 8 | AC80: 0 | AE80: 53 | AF80: 日本語区分（チェーン店） | AI80: 628 | AJ80: X | AK80: 1
C81: 23 | D81: 予備２ | G81: 254 | H81: X | I81: 3 | L81: 新フォーマット連携エリア間のデータ連携 | V81: ○ | W81: ○ (１レコード目より設定) | X81: 94 | Y81: =IF($X81="","",VLOOKUP($X81,$AE$24:$AM$125,3,)) -> 明細連携エリア | Z81: 1191 | AA81: X | AB81: 10 | AC81: 0 | AE81: 54 | AF81: 日本語区分（住所） | AI81: 629 | AJ81: X | AK81: 1
Y82: =IF($X82="","",VLOOKUP($X82,$AE$24:$AM$125,3,)) ->  | AE82: 55 | AF82: 日本語区分（摘要） | AI82: 630 | AJ82: X | AK82: 1
Y83: =IF($X83="","",VLOOKUP($X83,$AE$24:$AM$125,3,)) ->  | AE83: 56 | AF83: 一次店カナ名 | AI83: 631 | AJ83: Ｘ | AK83: 30
AE84: 57 | AF84: 二次店カナ名 | AI84: 661 | AJ84: Ｘ | AK84: 30
AE85: 58 | AF85: 届け先カナ名 | AI85: 691 | AJ85: Ｘ | AK85: 30
AE86: 59 | AF86: 摘要カナ | AI86: 721 | AJ86: Ｘ | AK86: 30
D87: ④ トレーラレコード | AE87: 60 | AF87: ヘッダー予備 | AI87: 751 | AJ87: X | AK87: 30
B88: 変更 | C88: 項番 | D88: 項目 | G88: 開始位置 | H88: 属性 | I88: 整数桁 | J88: 小数桁 | K88: 必須 | L88: 項目説明 | R88: コード | T88: Ｖ１ → Ｖ１ | U88: Ｖ１ → Ｖ２ | V88: Ｖ１ ← Ｖ１ | W88: Ｖ１ ← Ｖ２ | X88: Ｖ２フォーマット | AE88: 61 | AF88: ヘッダー連携エリア | AI88: 781 | AJ88: X | AK88: 20
T89: センタチェック | U89: センタチェック | V89: コンバート | W89: コンバート | X89: 項番 | Y89: 項目 | Z89: 開始 | AA89: 属性 | AB89: 整数 | AC89: 小数 | AF89: 明細部（４００バイト）
C90: 1 | D90: データ種別 | G90: 1 | H90: 9 | I90: 2 | K90: ◎ | L90: ０２：受発注データ | R90: 02 | T90: 共通部チェック (ｺﾝﾄﾛｰﾙ同値､ 軽症ｴﾗｰ) | U90: 共通部チェック (ｺﾝﾄﾛｰﾙ同値､ 軽症ｴﾗｰ) | V90: ○ | W90: "02”固定 | Y90: =IF($X90="","",VLOOKUP($X90,$AE$130:$AM$141,2,)) ->  | Z90: =IF($X90="","",VLOOKUP($X90,$AE$130:$AM$141,5,)) ->  | AA90: =IF($X90="","",VLOOKUP($X90,$AE$130:$AM$141,6,)) ->  | AB90: =IF($X90="","",VLOOKUP($X90,$AE$130:$AM$141,7,)) ->  | AC90: =IF($X90="","",VLOOKUP($X90,$AE$130:$AM$141,8,)) ->  | AE90: 62 | AG90: 明細行NO | AI90: 801 | AJ90: 9 | AK90: 2 | AM90: ○
C91: 2 | D91: 送信先コード | G91: 3 | H91: 9 | I91: 8 | K91: ◎ | L91: 送信先(メーカ) | M91: の統一取引先コード | W91: ○ | X91: 2 | Y91: 送信先コード | Z91: 3 | AA91: 9 | AB91: 8 | AC91: 0 | AE91: 63 | AG91: 専用伝票行NO | AI91: 803 | AJ91: 9 | AK91: 2
C92: 3 | D92: 送信元コード | G92: 11 | H92: 9 | I92: 8 | K92: ◎ | L92: 送信元(卸) | M92: の統一取引先コード | W92: ○ | X92: 3 | Y92: 送信元コード | Z92: 11 | AA92: 9 | AB92: 8 | AC92: 0 | AE92: 64 | AG92: 商品コード識別区分 | AI92: 805 | AJ92: 9 | AK92: 1
C93: 4 | D93: レコード区分 | G93: 19 | H93: 9 | I93: 1 | K93: ◎ | L93: ９：トレーラレコード | R93: 9 | W93: ○ | X93: 4 | Y93: レコード区分 | Z93: 19 | AA93: 9 | AB93: 1 | AC93: 0 | AE93: 65 | AG93: 品番 | AI93: 806 | AJ93: X | AK93: 16
B94: 1.7 | C94: 5 | D94: レコード件数 | G94: 20 | H94: 9 | I94: 6 | K94: ○ | L94: コントロールレコードとトレーラレコードで括られたレコードの総件数 (コントロールレコードとトレーラレコードは含まない) ・データ送信側では、自身のフォーマットのレコード件数を設定する。 ・データ受信側では、当項目と実際のレコード件数の整合性チェックには利用しない。※下記【トレーラレコード連携時の留意事項】を参照のこと | T94: 属性 | U94: 属性(ｽ) | V94: ※ センター集計値 | W94: ※ センター集計値 | X94: 5 | Y94: レコード件数 | Z94: 20 | AA94: 9 | AB94: 6 | AC94: 0 | AE94: 66 | AG94: 商品名 | AI94: 822 | AJ94: X/N | AK94: 40
C95: 6 | D95: 伝票枚数 | G95: 26 | H95: 9 | I95: 6 | L95: 伝票枚数 | T95: 属性 | U95: 属性(ｽ) | V95: ※ センター集計値 | W95: ※ センター集計値 | X95: 6 | Y95: 伝票枚数 | Z95: 26 | AA95: 9 | AB95: 6 | AC95: 0 | AE95: 67 | AG95: 包装区分 | AI95: 862 | AJ95: 9 | AK95: 1 | AM95: ○
C96: 7 | D96: 合計金額符号 | G96: 32 | H96: X | I96: 1 | L96: 合計金額の符号 | R96: ＋:正数 | S96: －:負数 | U96: コード | V96: "△" → "+" ※ センター設定 | W96: "△" → "+" ※ センター設定 | X96: 7 | Y96: 合計金額符号 | Z96: 32 | AA96: X | AB96: 1 | AC96: 0 | AE96: 68 | AG96: 内容 | AH96: ボール内バラ数 | AI96: 863 | AJ96: 9 | AK96: 4 | AL96: 2
C97: 8 | D97: 合計金額 | G97: 33 | H97: 9 | I97: 10 | L97: 卸店入価格で全明細行の金額合計 | T97: 属性(ｻ) | U97: 属性(ｽ) | V97: ※ センター集計値 | W97: ※ センター集計値 | X97: 8 | Y97: 合計金額 | Z97: 33 | AA97: 9 | AB97: 10 | AC97: 0 | AE97: 69 | AH97: ケース内ボール数 | AI97: 869 | AJ97: 9 | AK97: 2
C98: 9 | D98: 予備 | G98: 43 | H98: X | I98: 214 | L98: レイアウト拡張時の予備領域 | N98: (利用禁止） | V98: ○ | W98: 属性初期値 | Z98: =IF($X98="","",VLOOKUP($X98,$AE$24:$AM$125,5,)) ->  | AA98: =IF($X98="","",VLOOKUP($X98,$AE$24:$AM$125,6,)) ->  | AB98: =IF($X98="","",VLOOKUP($X98,$AE$24:$AM$125,7,)) ->  | AC98: =IF($X98="","",VLOOKUP($X98,$AE$24:$AM$125,8,)) ->  | AE98: 70 | AG98: 数量符号 | AI98: 871 | AJ98: X | AK98: 1
V99: ※ 配信分割時 | Y99: =IF($U102="","",VLOOKUP($U102,$AD$27:$AN$53,2,)) ->  | Z99: =IF($U102="","",VLOOKUP($U102,$AD$6:$AN$53,5,)) ->  | AA99: =IF($U102="","",VLOOKUP($U102,$AD$6:$AN$53,6,)) ->  | AB99: =IF($U102="","",VLOOKUP($U102,$AD$6:$AN$53,7,)) ->  | AC99: =IF($U102="","",VLOOKUP($U102,$AD$6:$AN$53,8,)) ->  | AE99: 71 | AG99: 数量 | AH99: ケース数量 | AI99: 872 | AJ99: 9 | AK99: 7
Y100: =IF($U103="","",VLOOKUP($U103,$AD$27:$AN$53,2,)) ->  | Z100: =IF($U103="","",VLOOKUP($U103,$AD$6:$AN$53,5,)) ->  | AA100: =IF($U103="","",VLOOKUP($U103,$AD$6:$AN$53,6,)) ->  | AB100: =IF($U103="","",VLOOKUP($U103,$AD$6:$AN$53,7,)) ->  | AC100: =IF($U103="","",VLOOKUP($U103,$AD$6:$AN$53,8,)) ->  | AE100: 72 | AH100: ボール数量 | AI100: 879 | AJ100: 9 | AK100: 7
AE101: 73 | AH101: バラ数量 | AI101: 886 | AJ101: 9 | AK101: 7 | AL101: 2
AE102: 74 | AG102: 単価 | AH102: 卸店入価格 | AI102: 895 | AJ102: 9 | AK102: 6 | AL102: 2
AE103: 75 | AH103: 二次店納入価格 | AI103: 903 | AJ103: 9 | AK103: 6 | AL103: 2
AE104: 76 | AG104: 金額符号 | AI104: 911 | AJ104: X | AK104: 1
AE105: 77 | AG105: 金額 | AH105: 卸店入金額 | AI105: 912 | AJ105: 9 | AK105: 8
AE106: 78 | AH106: 二次店納入金額 | AI106: 920 | AJ106: 9 | AK106: 8
AE107: 79 | AG107: 商品添付区分 | AI107: 928 | AJ107: X | AK107: 1
AE108: 80 | AG108: 入荷単位ケース数 | AI108: 929 | AJ108: 9 | AK108: 2
AE109: 81 | AG109: 卸発注行番号 | AI109: 931 | AJ109: 9 | AK109: 2
AE110: 82 | AG110: 納入単価表示区分 | AI110: 933 | AJ110: X | AK110: 1
AE111: 83 | AG111: 卸最新在庫日付区分 | AI111: 934 | AJ111: X | AK111: 1
AE112: 84 | AG112: 卸最新在庫日付 | AI112: 935 | AJ112: 9 | AK112: 8
AE113: 85 | AG113: 入庫許容日付区分 | AI113: 943 | AJ113: X | AK113: 1
AE114: 86 | AG114: 入庫許容日付 | AI114: 944 | AJ114: 9 | AK114: 8
AE115: 87 | AG115: 温度管理区分 | AI115: 952 | AJ115: X | AK115: 1
AE116: 88 | AG116: 摘要 | AI116: 953 | AJ116: X/N | AK116: 50
AE117: 89 | AG117: 日本語区分（商品名） | AI117: 1003 | AJ117: X | AK117: 1
AE118: 90 | AG118: 日本語区分（摘要） | AI118: 1004 | AJ118: X | AK118: 1
AE119: 91 | AG119: 菓子業界商品分類コード | AI119: 1005 | AJ119: X | AK119: 6
AE120: 92 | AG120: 商品名カナ | AI120: 1011 | AJ120: X | AK120: 25
AE121: 93 | AG121: 明細予備 | AI121: 1036 | AJ121: X | AK121: 155
AE122: 94 | AG122: 明細連携エリア | AI122: 1191 | AJ122: X | AK122: 10
AF127: ③ トレーラレコード
AE128: 項番 | AF128: 項目 | AI128: 開始位置 | AJ128: 属性 | AK128: 整数桁 | AL128: 小数桁 | AM128: 必須
AE130: 1 | AF130: データ種別 | AI130: 1 | AJ130: 9 | AK130: 2 | AM130: ○
AE131: 2 | AF131: 送信先コード | AI131: 3 | AJ131: 9 | AK131: 8 | AM131: ○
AE132: 3 | AF132: 送信元コード | AI132: 11 | AJ132: 9 | AK132: 8 | AM132: ○
AE133: 4 | AF133: レコード区分 | AI133: 19 | AJ133: 9 | AK133: 1 | AM133: ○
AE134: 5 | AF134: レコード件数 | AI134: 20 | AJ134: 9 | AK134: 6
AE135: 6 | AF135: 伝票枚数 | AI135: 26 | AJ135: 9 | AK135: 6
AE136: 7 | AF136: 合計金額符号 | AI136: 32 | AJ136: X | AK136: 1
AE137: 8 | AF137: 合計金額 | AI137: 33 | AJ137: 9 | AK137: 10
AE138: 9 | AF138: 予備 | AI138: 43 | AJ138: X | AK138: 1138
AE139: 10 | AF139: 連携エリア | AI139: 1181 | AJ139: X | AK139: 20

Sheet １１入庫予定
AE1: =シート別総ページ数 -> 
C2: （２）Ｖ１・１１入庫予定 | AE2: （２）Ｖ２・１３入庫予定
D3: ① コントロールレコード | AF3: ① コントロールレコード
B4: 変更 | C4: 項番 | D4: 項目 | G4: 開始位置 | H4: 属性 | I4: 整数桁 | J4: 小数桁 | K4: 必須 | L4: 項目説明 | R4: コード | T4: Ｖ１ → Ｖ１ | U4: Ｖ１ → Ｖ２ | V4: Ｖ１ ← Ｖ１ | W4: Ｖ１ ← Ｖ２ | X4: Ｖ２フォーマット | AE4: 項番 | AF4: 項目 | AI4: 開始位置 | AJ4: 属性 | AK4: 整数桁 | AL4: 小数桁 | AM4: 必須
T5: センタチェック | U5: センタチェック | V5: コンバート | W5: コンバート | X5: 項番 | Y5: 項目 | Z5: 開始 | AA5: 属性 | AB5: 整数 | AC5: 小数
C6: 1 | D6: データ種別 | G6: 1 | H6: 9 | I6: 2 | K6: ◎ | L6: １１：入庫予定データ | R6: 11 | T6: ｺｰﾄﾞ | U6: ｺｰﾄﾞ | V6: ○ | W6: "11"固定 | Y6: =IF($X6="","",VLOOKUP($X6,$AE$6:$AM$20,2,)) ->  | Z6: =IF($X6="","",VLOOKUP($X6,$AE$6:$AM$20,5,)) ->  | AA6: =IF($X6="","",VLOOKUP($X6,$AE$6:$AM$20,6,)) ->  | AB6: =IF($X6="","",VLOOKUP($X6,$AE$6:$AM$20,7,)) ->  | AC6: =IF($X6="","",VLOOKUP($X6,$AE$6:$AM$20,8,)) ->  | AE6: 1 | AF6: データ種別 | AI6: 1 | AJ6: 9 | AK6: 2 | AM6: ○
C7: 2 | D7: 送信先コード | G7: 3 | H7: 9 | I7: 8 | K7: ◎ | L7: 送信先(卸) | M7: の統一取引先コード | T7: センター登録 | U7: センター登録 | W7: ○ | X7: 2 | Y7: 送信先コード | Z7: 3 | AA7: 9 | AB7: 8 | AC7: 0 | AE7: 2 | AF7: 送信先コード | AI7: 3 | AJ7: 9 | AK7: 8 | AM7: ○
C8: 3 | D8: 送信元コード | G8: 11 | H8: 9 | I8: 8 | K8: ◎ | L8: 送信元(メーカ) | M8: の統一取引先コード | T8: センター登録 | U8: センター登録 | W8: ○ | X8: 3 | Y8: 送信元コード | Z8: 11 | AA8: 9 | AB8: 8 | AC8: 0 | AE8: 3 | AF8: 送信元コード | AI8: 11 | AJ8: 9 | AK8: 8 | AM8: ○
C9: 4 | D9: レコード区分 | G9: 19 | H9: 9 | I9: 1 | K9: ◎ | L9: １：コントロールレコード | R9: 1 | T9: ｺｰﾄﾞ | U9: ｺｰﾄﾞ | W9: ○ | X9: 4 | Y9: レコード区分 | Z9: 19 | AA9: 9 | AB9: 1 | AC9: 0 | AE9: 4 | AF9: レコード区分 | AI9: 19 | AJ9: 9 | AK9: 1 | AM9: ○
C10: 5 | D10: データ作成日 | G10: 20 | H10: 9 | I10: 8 | K10: ○ | L10: 本データを作成した日付 | N10: (西暦 YYYYMMDD) | U10: 必須＋日付 | V10: ○ | W10: ○ | X10: 5 | Y10: データ作成日 | Z10: 20 | AA10: 9 | AB10: 8 | AC10: 0 | AE10: 5 | AF10: データ作成日 | AI10: 20 | AJ10: 9 | AK10: 8 | AM10: ○
C11: 6 | D11: 送信先名 | G11: 28 | H11: X | I11: 20 | K11: ○ | L11: 送信元(卸) | M11: のカナ名称 | V11: ○ | W11: ○ | X11: 7 | Y11: 送信先名 | Z11: 34 | AA11: X | AB11: 20 | AC11: 0 | AE11: 6 | AF11: データ作成時刻 | AI11: 28 | AJ11: 9 | AK11: 6
C12: 7 | D12: 送信元名 | G12: 48 | H12: X | I12: 20 | K12: ○ | L12: 送信先(メーカ) | M12: のカナ名称 | U12: 必須 | V12: ○ | W12: ○ | X12: 8 | Y12: 送信元名 | Z12: 54 | AA12: X | AB12: 20 | AC12: 0 | AE12: 7 | AF12: 送信先名 | AI12: 34 | AJ12: X | AK12: 20
C13: 8 | D13: 直接送信先コード | G13: 68 | H13: 9 | I13: 8 | L13: 送信先と異なる場所へ送信する場合にセット。 セット不要の場合"00000000" | T13: センター登録 | U13: センター登録 | V13: ○ | W13: ○ | X13: 9 | Y13: 直接送信先コード | Z13: 74 | AA13: 9 | AB13: 8 | AC13: 0 | AE13: 8 | AF13: 送信元名 | AI13: 54 | AJ13: X | AK13: 20 | AM13: ○
C14: 9 | D14: 直接送信先カナ名 | G14: 76 | H14: X | I14: 20 | L14: 送信先と異なる場所へ送信する場合にセット。 セット不要の場合スペース | V14: ○ | W14: ○ | X14: 10 | Y14: 直接送信先名 | Z14: 82 | AA14: X | AB14: 20 | AC14: 0 | AE14: 9 | AF14: 直接送信先コード | AI14: 74 | AJ14: 9 | AK14: 8
C15: 10 | D15: 予備 | G15: 96 | H15: X | I15: 161 | L15: レイアウト拡張時の予備領域 | N15: (利用禁止） | V15: ○ | W15: 属性初期値 | AE15: 10 | AF15: 直接送信先名 | AI15: 82 | AJ15: X | AK15: 20
AE16: 11 | AF16: 送信ファイルNO | AI16: 102 | AJ16: 9 | AK16: 2
AE17: 12 | AF17: 予備 | AI17: 104 | AJ17: X | AK17: 1077
AE18: 13 | AF18: 連携エリア | AI18: 1181 | AJ18: X | AK18: 20
D21: ② ヘッダーレコード | AF21: ② ヘッダー／明細レコード
B22: 変更 | C22: 項番 | D22: 項目 | G22: 開始位置 | H22: 属性 | I22: 整数桁 | J22: 小数桁 | K22: 必須 | L22: 項目説明 | R22: コード | T22: Ｖ１ → Ｖ１ | U22: Ｖ１ → Ｖ２ | V22: Ｖ１ ← Ｖ１ | W22: Ｖ１ ← Ｖ２ | X22: Ｖ２フォーマット | AE22: 項番 | AF22: 項目 | AI22: 開始位置 | AJ22: 属性 | AK22: 整数桁 | AL22: 小数桁 | AM22: 必須
T23: センタチェック | U23: センタチェック | V23: コンバート | W23: コンバート | X23: 項番 | Y23: 項目 | Z23: 開始 | AA23: 属性 | AB23: 整数 | AC23: 小数
C24: 1 | D24: データ種別 | G24: 1 | H24: 9 | I24: 2 | K24: ◎ | L24: １１：入庫予定データ | R24: 11 | T24: 共通部チェック (ｺﾝﾄﾛｰﾙ同値､ 軽症ｴﾗｰ) | U24: 共通部チェック (ｺﾝﾄﾛｰﾙ同値､ 軽症ｴﾗｰ) | V24: ○ | W24: "11"固定 | Y24: =IF($X24="","",VLOOKUP($X24,$AE$24:$AM$154,2,)) ->  | Z24: =IF($X24="","",VLOOKUP($X24,$AE$24:$AM$154,5,)) ->  | AA24: =IF($X24="","",VLOOKUP($X24,$AE$24:$AM$154,6,)) ->  | AB24: =IF($X24="","",VLOOKUP($X24,$AE$24:$AM$154,7,)) ->  | AC24: =IF($X24="","",VLOOKUP($X24,$AE$24:$AM$154,8,)) ->  | AE24: 1 | AF24: データ種別 | AI24: 1 | AJ24: 9 | AK24: 2 | AM24: ◎
C25: 2 | D25: 送信先コード | G25: 3 | H25: 9 | I25: 8 | K25: ◎ | L25: 送信先(卸) | M25: の統一取引先コード | W25: ○ | X25: 2 | Y25: 送信先コード | Z25: 3 | AA25: 9 | AB25: 8 | AC25: 0 | AE25: 2 | AF25: 送信先コード | AI25: 3 | AJ25: 9 | AK25: 8 | AM25: ◎
C26: 3 | D26: 送信元コード | G26: 11 | H26: 9 | I26: 8 | K26: ◎ | L26: 送信元(メーカ) | M26: の統一取引先コード | W26: ○ | X26: 3 | Y26: 送信元コード | Z26: 11 | AA26: 9 | AB26: 8 | AC26: 0 | AE26: 3 | AF26: 送信元コード | AI26: 11 | AJ26: 9 | AK26: 8 | AM26: ◎
C27: 4 | D27: レコード区分 | G27: 19 | H27: 9 | I27: 1 | K27: ◎ | L27: ２：ヘッダーレコード | R27: 2 | W27: "2"固定 | AE27: 4 | AF27: レコード区分 | AI27: 19 | AJ27: 9 | AK27: 1 | AM27: ◎
C28: 5 | D28: 卸伝票NO | G28: 20 | H28: 9 | I28: 6 | K28: ○ | L28: 発注NO | U28: 属性(ｽ) | V28: ○ | W28: 下６桁 | X28: 6 | Y28: 卸発注伝票NO | Z28: 21 | AA28: 9 | AB28: 8 | AC28: 0 | AE28: 5 | AF28: 漢字コード区分 | AI28: 20 | AJ28: X | AK28: 1
C29: 6 | D29: メーカ伝票NO | G29: 26 | H29: 9 | I29: 6 | L29: メーカ伝票NO | U29: 属性(ｽ) | V29: ○ | W29: 下６桁 | X29: 7 | Y29: メーカ伝票NO | Z29: 29 | AA29: 9 | AB29: 8 | AC29: 0 | AE29: 6 | AF29: 卸発注伝票NO | AI29: 21 | AJ29: 9 | AK29: 8 | AM29: ○
C30: 7 | D30: 元伝NO | G30: 32 | H30: 9 | I30: 6 | L30: 元伝NO | V30: ○ | W30: 下６桁 | X30: 30 | Y30: 元伝NO | Z30: 187 | AA30: 9 | AB30: 8 | AC30: 0 | AE30: 7 | AF30: メーカ伝票NO | AI30: 29 | AJ30: 9 | AK30: 8
B31: 2.6 | C31: 8 | D31: 取引コード | G31: 38 | H31: 9 | I31: 2 | K31: ○ | L31: 業界統一取引コード | R31: 11:店入売上 12:店入売上訂正 21:店入返品 22:店入返品訂正 31:直送売上 32:直送売上訂正 | S31: 41:直送返品 42:直送返品訂正 51:割戻し金 52:相殺 81:ﾒｰｶｰ提供の役務 91:卸提供の役務 | U31: 必須＋ｺｰﾄﾞ | V31: ○ | W31: ○ | X31: 9 | Y31: 取引コード | Z31: 38 | AA31: 9 | AB31: 2 | AC31: 0 | AE31: 8 | AF31: 店入直送区分 | AI31: 37 | AJ31: 9 | AK31: 1 | AM31: ◎
C32: 9 | D32: 納品日 | G32: 40 | H32: 9 | I32: 8 | K32: ○ | L32: 発注伝票の納品日 | N32: (西暦 YYYYMMDD) | U32: 日付 | V32: ○ | W32: ○ | X32: 10 | Y32: 納品日 | Z32: 40 | AA32: 9 | AB32: 8 | AC32: 0 | AE32: 9 | AF32: 取引コード | AI32: 38 | AJ32: 9 | AK32: 2 | AM32: ◎
C33: 10 | D33: 出荷日 | G33: 48 | H33: 9 | I33: 8 | K33: ○ | L33: 出荷日 | N33: (西暦 YYYYMMDD) | U33: 日付 | V33: ○ | W33: ○ | X33: 11 | Y33: 出荷日 | Z33: 48 | AA33: 9 | AB33: 8 | AC33: 0 | AE33: 10 | AF33: 納品日 | AI33: 40 | AJ33: 9 | AK33: 8 | AM33: ○
C34: 11 | D34: 着荷日 | G34: 56 | H34: 9 | I34: 8 | K34: ○ | L34: 納品予定日 | N34: (西暦 YYYYMMDD) | U34: 日付 | V34: ○ | W34: ○ | X34: 12 | Y34: 着荷日 | Z34: 56 | AA34: 9 | AB34: 8 | AC34: 0 | AE34: 11 | AF34: 出荷日 | AI34: 48 | AJ34: 9 | AK34: 8 | AM34: ○
C35: 12 | D35: 納入時間 | G35: 64 | H35: 9 | I35: 4 | L35: 納入予定時間 | N35: (HHMM) | U35: 時刻 | V35: ○ | W35: ○ | X35: 13 | Y35: 納入予定時間 | Z35: 64 | AA35: 9 | AB35: 4 | AC35: 0 | AE35: 12 | AF35: 着荷日 | AI35: 56 | AJ35: 9 | AK35: 8 | AM35: ○
C36: 13 | D36: 明細行数 | G36: 68 | H36: 9 | I36: 2 | K36: ○ | L36: 伝票内明細数 | U36: 属性(ｽ) | V36: ○ | W36: ○ | X36: 21 | Y36: 明細行数 | Z36: 95 | AA36: 9 | AB36: 2 | AC36: 0 | AE36: 13 | AF36: 納入予定時間 | AI36: 64 | AJ36: 9 | AK36: 4
B37: 2.1 1.3 | C37: 14 | D37: 届け先コード | G37: 70 | H37: 9 | I37: 8 | K37: ○ | L37: 該当する統一取引先コード | V37: ○ | W37: GLN時:下８桁 GLN以外8桁以上:上８桁 GLN以外8桁未満:前ｾﾞﾛ+ 有効桁 | X37: 25 | Y37: 届け先コード | Z37: 136 | AA37: X | AB37: 13 | AC37: 0 | AE37: 14 | AF37: 倉庫コード | AI37: 68 | AJ37: X | AK37: 4
B38: 1.1 | C38: 15 | D38: 届け先カナ名 | G38: 78 | H38: X | I38: 30 | K38: ○ | L38: 届け先名 | V38: ○ | W38: 日本語区分(届け先)が 漢字 ：届け先カナ その他：届け先名 | X38: 38 65 | Y38: 届け先名 届け先カナ名 | Z38: 333 597 | AA38: X/N X | AB38: 40 30 | AC38: 0 | AE38: 15 | AF38: 伝送区分 | AI38: 72 | AJ38: X | AK38: 1
C39: 16 | D39: 伝票合計金額符号 | G39: 108 | H39: X | I39: 1 | K39: ○ | L39: 伝票の合計金額の符号 | R39: ＋:正数 | S39: －:負数 | U39: ｺｰﾄﾞ | V39: ○ | W39: "△" → "+" | X39: 31 | Y39: =IF($X39="","",VLOOKUP($X39,$AE$24:$AM$154,2,)) -> 伝票合計金額符号 | Z39: =IF($X39="","",VLOOKUP($X39,$AE$24:$AM$154,5,)) -> 195 | AA39: =IF($X39="","",VLOOKUP($X39,$AE$24:$AM$154,6,)) -> X | AB39: =IF($X39="","",VLOOKUP($X39,$AE$24:$AM$154,7,)) -> 1 | AC39: =IF($X39="","",VLOOKUP($X39,$AE$24:$AM$154,8,)) -> 0 | AE39: 16 | AF39: 出荷報告以外区分 | AI39: 73 | AJ39: X | AK39: 1
C40: 17 | D40: 伝票合計金額 | G40: 109 | H40: 9 | I40: 8 | K40: ○ | L40: 伝票の合計金額 | N40: (卸店入価格) | T40: 属性(ｻ) | U40: 属性(ｽ) | V40: ○ | W40: ○ | X40: 32 | Y40: =IF($X40="","",VLOOKUP($X40,$AE$24:$AM$154,2,)) -> 伝票合計金額 | Z40: =IF($X40="","",VLOOKUP($X40,$AE$24:$AM$154,5,)) -> 196 | AA40: =IF($X40="","",VLOOKUP($X40,$AE$24:$AM$154,6,)) -> 9 | AB40: =IF($X40="","",VLOOKUP($X40,$AE$24:$AM$154,7,)) -> 8 | AC40: =IF($X40="","",VLOOKUP($X40,$AE$24:$AM$154,8,)) -> 0 | AE40: 17 | AF40: 集計明細区分 | AI40: 74 | AJ40: X | AK40: 1
C41: 18 | D41: 定番特売区分 | G41: 117 | H41: X | I41: 1 | K41: ○ | L41: 定番発注/特売発注の区分 | R41: 0:定番 | S41: 1:特売 | V41: ○ | W41: "0"･”1”以外→"0" | X41: 47 | Y41: =IF($X41="","",VLOOKUP($X41,$AE$24:$AM$154,2,)) -> 定番特売区分 | Z41: =IF($X41="","",VLOOKUP($X41,$AE$24:$AM$154,5,)) -> 579 | AA41: =IF($X41="","",VLOOKUP($X41,$AE$24:$AM$154,6,)) -> X | AB41: =IF($X41="","",VLOOKUP($X41,$AE$24:$AM$154,7,)) -> 1 | AC41: =IF($X41="","",VLOOKUP($X41,$AE$24:$AM$154,8,)) -> 0 | AE41: 18 | AF41: 請求締日 | AI41: 75 | AJ41: 9 | AK41: 8
B42: 1.1 | C42: 19 | D42: 摘要欄 | G42: 118 | H42: X | I42: 30 | L42: 伝票の摘要欄の内容 | V42: ○ | W42: 日本語区分(摘要)が 漢字 ：摘要カナ その他：摘要 | X42: 42 66 | Y42: 摘要 摘要カナ | Z42: 508 627 | AA42: X/N X | AB42: 50 30 | AC42: 0 | AE42: 19 | AF42: 請求口座 | AI42: 83 | AJ42: X | AK42: 10
C43: 20 | D43: メーカコード | G43: 148 | H43: X | I43: 9 | K43: ○ | L43: 国コード２桁を含むメーカコード | N43: (７桁の場合左詰め後ろスペース) | V43: ○ | W43: ○ | X43: 43 | Y43: =IF($X43="","",VLOOKUP($X43,$AE$24:$AM$154,2,)) -> メーカコード | Z43: =IF($X43="","",VLOOKUP($X43,$AE$24:$AM$154,5,)) -> 558 | AA43: =IF($X43="","",VLOOKUP($X43,$AE$24:$AM$154,6,)) -> X | AB43: =IF($X43="","",VLOOKUP($X43,$AE$24:$AM$154,7,)) -> 9 | AC43: =IF($X43="","",VLOOKUP($X43,$AE$24:$AM$154,8,)) -> 0 | AE43: 20 | AF43: 請求支払区分 | AI43: 93 | AJ43: 9 | AK43: 2
C44: 21 | D44: 予備 | G44: 157 | H44: X | I44: 100 | L44: レイアウト拡張時の予備領域 | N44: (卸発注伝票NO８桁化対応） | V44: ○ | W44: 卸発注伝票NO上２桁 | X44: 6 | Y44: =IF($X44="","",VLOOKUP($X44,$AE$24:$AM$154,2,)) -> 卸発注伝票NO | Z44: =IF($X44="","",VLOOKUP($X44,$AE$24:$AM$154,5,)) -> 21 | AA44: =IF($X44="","",VLOOKUP($X44,$AE$24:$AM$154,6,)) -> 9 | AB44: =IF($X44="","",VLOOKUP($X44,$AE$24:$AM$154,7,)) -> 8 | AC44: =IF($X44="","",VLOOKUP($X44,$AE$24:$AM$154,8,)) -> 0 | AE44: 21 | AF44: 明細行数 | AI44: 95 | AJ44: 9 | AK44: 2 | AM44: ○
Y45: =IF($X45="","",VLOOKUP($X45,$AE$24:$AM$154,2,)) ->  | Z45: =IF($X45="","",VLOOKUP($X45,$AE$24:$AM$154,5,)) ->  | AA45: =IF($X45="","",VLOOKUP($X45,$AE$24:$AM$154,6,)) ->  | AB45: =IF($X45="","",VLOOKUP($X45,$AE$24:$AM$154,7,)) ->  | AC45: =IF($X45="","",VLOOKUP($X45,$AE$24:$AM$154,8,)) ->  | AE45: 22 | AF45: 一次店コード | AI45: 97 | AJ45: X | AK45: 13 | AM45: ◎
Y46: =IF($X46="","",VLOOKUP($X46,$AE$24:$AM$154,2,)) ->  | Z46: =IF($X46="","",VLOOKUP($X46,$AE$24:$AM$154,5,)) ->  | AA46: =IF($X46="","",VLOOKUP($X46,$AE$24:$AM$154,6,)) ->  | AB46: =IF($X46="","",VLOOKUP($X46,$AE$24:$AM$154,7,)) ->  | AC46: =IF($X46="","",VLOOKUP($X46,$AE$24:$AM$154,8,)) ->  | AE46: 23 | AF46: 二次店コード | AI46: 110 | AJ46: X | AK46: 13
AE47: 24 | AF47: 三次店コード | AI47: 123 | AJ47: X | AK47: 13
AE48: 25 | AF48: 届け先コード | AI48: 136 | AJ48: X | AK48: 13 | AM48: ○
AF49: チェーン店コード | AI49: 149 | AJ49: X | AK49: 13
AF50: 専用伝票日付 | AI50: 162 | AJ50: 9 | AK50: 8
AE51: 28 | AF51: 専用伝票NO | AI51: 170 | AJ51: 9 | AK51: 9
AE52: 29 | AF52: 元伝年月日 | AI52: 179 | AJ52: 9 | AK52: 8
AE53: 30 | AF53: 元伝NO | AI53: 187 | AJ53: 9 | AK53: 8
AE54: 31 | AF54: 伝票合計金額符号 | AI54: 195 | AJ54: X | AK54: 1 | AM54: ○
AE55: 32 | AF55: 伝票合計金額 | AI55: 196 | AJ55: 9 | AK55: 8 | AM55: ○
AE56: 33 | AF56: 二次店納入合計金額符号 | AI56: 204 | AJ56: X | AK56: 1
AE57: 34 | AF57: 二次店納入合計金額 | AI57: 205 | AJ57: 9 | AK57: 8
AE58: 35 | AF58: 一次店名 | AI58: 213 | AJ58: X/N | AK58: 40
AE59: 36 | AF59: 二次店名 | AI59: 253 | AJ59: X/N | AK59: 40
AE60: 37 | AF60: 三次店名 | AI60: 293 | AJ60: X/N | AK60: 40
AE61: 38 | AF61: 届け先名 | AI61: 333 | AJ61: X/N | AK61: 40 | AM61: ○
AE62: 39 | AF62: チェーン店名 | AI62: 373 | AJ62: X/N | AK62: 40
AE63: 40 | AF63: 電話番号 | AI63: 413 | AJ63: X | AK63: 15
AE64: 41 | AF64: 住所 | AI64: 428 | AJ64: X/N | AK64: 80
AE65: 42 | AF65: 摘要 | AI65: 508 | AJ65: X/N | AK65: 50
AE66: 43 | AF66: メーカコード | AI66: 558 | AJ66: X | AK66: 9 | AM66: ○
AE67: 44 | AF67: メーカ所属組織名 | AI67: 567 | AJ67: X | AK67: 10
AE68: 45 | AF68: 伝票区分 | AI68: 577 | AJ68: 9 | AK68: 1
D69: ③ 明細レコード | AE69: 46 | AF69: 登録店区分 | AI69: 578 | AJ69: X | AK69: 1
B70: 変更 | C70: 項番 | D70: 項目 | G70: 開始位置 | H70: 属性 | I70: 整数桁 | J70: 小数桁 | K70: 必須 | L70: 項目説明 | R70: コード | T70: Ｖ１ → Ｖ１ | U70: Ｖ１ → Ｖ２ | V70: Ｖ１ ← Ｖ１ | W70: Ｖ１ ← Ｖ２ | X70: Ｖ２フォーマット | AE70: 47 | AF70: 定番特売区分 | AI70: 579 | AJ70: X | AK70: 1 | AM70: ○
T71: センタチェック | U71: センタチェック | V71: コンバート | W71: コンバート | X71: 項番 | Y71: 項目 | Z71: 開始 | AA71: 属性 | AB71: 整数 | AC71: 小数 | AE71: 48 | AF71: 消費税区分 | AI71: 580 | AJ71: X | AK71: 1
C72: 1 | D72: データ種別 | G72: 1 | H72: 9 | I72: 2 | K72: ◎ | L72: １１：入庫予定データ | R72: 11 | T72: 共通部チェック (ｺﾝﾄﾛｰﾙ同値､ 軽症ｴﾗｰ) | U72: 共通部チェック (ｺﾝﾄﾛｰﾙ同値､ 軽症ｴﾗｰ) | V72: ○ | W72: "11"固定 | Y72: =IF($X72="","",VLOOKUP($X72,$AE$24:$AM$154,2,)) ->  | Z72: =IF($X72="","",VLOOKUP($X72,$AE$24:$AM$154,5,)) ->  | AA72: =IF($X72="","",VLOOKUP($X72,$AE$24:$AM$154,6,)) ->  | AB72: =IF($X72="","",VLOOKUP($X72,$AE$24:$AM$154,7,)) ->  | AC72: =IF($X72="","",VLOOKUP($X72,$AE$24:$AM$154,8,)) ->  | AE72: 49 | AF72: 消費税率 | AI72: 581 | AJ72: 9 | AK72: 2 | AL72: 1
C73: 2 | D73: 送信先コード | G73: 3 | H73: 9 | I73: 8 | K73: ◎ | L73: 送信先(卸) | M73: の統一取引先コード | W73: ○ | X73: 2 | Y73: =IF($X73="","",VLOOKUP($X73,$AE$24:$AM$154,2,)) -> 送信先コード | Z73: 3 | AA73: 9 | AB73: 8 | AC73: 0 | AE73: 50 | AF73: ロット不足運賃負担区分 | AI73: 584 | AJ73: X | AK73: 1
C74: 3 | D74: 送信元コード | G74: 11 | H74: 9 | I74: 8 | K74: ◎ | L74: 送信元(メーカ) | M74: の統一取引先コード | W74: ○ | X74: 3 | Y74: =IF($X74="","",VLOOKUP($X74,$AE$24:$AM$154,2,)) -> 送信元コード | Z74: 11 | AA74: 9 | AB74: 8 | AC74: 0 | AE74: 51 | AF74: 取引先区分（一次店） | AI74: 585 | AJ74: X | AK74: 1
C75: 4 | D75: レコード区分 | G75: 19 | H75: 9 | I75: 1 | K75: ◎ | L75: ４：明細レコード | R75: 4 | W75: "4"固定 | Y75: =IF($X75="","",VLOOKUP($X75,$AE$24:$AM$154,2,)) ->  | AE75: 52 | AF75: 取引先区分（二次店） | AI75: 586 | AJ75: X | AK75: 1
D76: 明細部繰返（１１８バイト × ２明細） ※明細レコードがショートブロック（レコード中１明細）の場合、ALL SPACEを設定する。 | Y76: =IF($X76="","",VLOOKUP($X76,$AE$24:$AM$154,2,)) ->  | AE76: 53 | AF76: 取引先区分（三次店） | AI76: 587 | AJ76: X | AK76: 1
C77: 5 | E77: 行NO | G77: 20 | H77: 9 | I77: 2 | K77: ○ | L77: 明細行NO | R77: 01～06 | V77: ○ | W77: ○ | X77: 69 | Y77: =IF($X77="","",VLOOKUP($X77,$AE$24:$AM$154,3,)) -> 明細行NO | Z77: 801 | AA77: 9 | AB77: 2 | AC77: 0 | AE77: 54 | AF77: 取引先区分（届け先） | AI77: 588 | AJ77: X | AK77: 1
C78: ６ | E78: 商品コード識別区分 | G78: 22 | H78: X | I78: 1 | K78: ○ | L78: 品番(商品コード)の識別区分 | R78: 0:統一商品コード 1:ＩＴＦコード(14桁) 2:ＩＴＦｺｰﾄﾞ(拡張16桁) 3:JANコード(標準:13桁) 4:JANコード(短縮:8桁) 6:GTINコード(14桁) | U78: 必須＋コード(新) "2"は連携不可 | V78: ○ | W78: ○ | X78: 71 | Y78: =IF($X78="","",VLOOKUP($X78,$AE$24:$AM$154,3,)) -> 商品コード識別区分 | Z78: 805 | AA78: 9 | AB78: 1 | AC78: 0 | AE78: 55 | AF78: 取引先区分（チェーン店） | AI78: 589 | AJ78: X | AK78: 1
C79: 7 | E79: 品番 | G79: 23 | H79: X | I79: 16 | K79: ○ | L79: 統一商品ｺｰﾄﾞ，ITFｺｰﾄﾞ，JANｺｰﾄﾞまたはGTINｺｰﾄﾞ（左詰め） | V79: ○ | W79: ○ | X79: 72 | Y79: =IF($X79="","",VLOOKUP($X79,$AE$24:$AM$154,3,)) -> 品番 | Z79: 806 | AA79: X | AB79: 16 | AC79: 0 | AE79: 56 | AF79: 日本語区分（一次店） | AI79: 590 | AJ79: X | AK79: 1
B80: 1.1 | C80: 8 | E80: 商品名 | G80: 39 | H80: X | I80: 25 | K80: ○ | L80: 商品名 | V80: ○ | W80: 日本語区分(商品名)が 漢字 ：商品名カナ その他：商品名 | X80: 73 126 | Y80: 商品名 商品名カナ | Z80: 822 1116 | AA80: X/N X | AB80: 40 25 | AC80: 0 | AE80: 57 | AF80: 日本語区分（二次店） | AI80: 591 | AJ80: X | AK80: 1
C81: 9 | E81: 包装区分 | G81: 64 | H81: 9 | I81: 1 | K81: ○ | L81: 数量の発注単位の区分 | N81: (1:ケース発注時) | O81: (2:ボール発注時) | P81: (3:バラ発注時) | R81: 1:ケース発注 2:ボール発注 | S81: 3:バラ発注 | V81: ○ | W81: ○ | X81: 74 | Y81: =IF($X81="","",VLOOKUP($X81,$AE$24:$AM$154,3,)) -> 包装区分 | Z81: =IF($X81="","",VLOOKUP($X81,$AE$24:$AM$154,5,)) -> 862 | AA81: =IF($X81="","",VLOOKUP($X81,$AE$24:$AM$154,6,)) -> 9 | AB81: =IF($X81="","",VLOOKUP($X81,$AE$24:$AM$154,7,)) -> 1 | AC81: =IF($X81="","",VLOOKUP($X81,$AE$24:$AM$154,8,)) -> 0 | AE81: 58 | AF81: 日本語区分（三次店） | AI81: 592 | AJ81: X | AK81: 1
C82: 10 | E82: 内容 | F82: ボール内バラ数 | G82: 65 | H82: 9 | I82: 4 | J82: 2 | K82: ○ | L82: 包装区分に準じた設定 | N82: (ボール内バラ数 | O82: /ボール内バラ数 | P82: /ゼロ) | U82: 属性(ｽ) | V82: ○ | W82: ○ | X82: 75 | Y82: =IF($X82="","",VLOOKUP($X82,$AE$24:$AM$154,4,)) -> ボール内バラ数 | Z82: 863 | AA82: 9 | AB82: 4 | AC82: 2 | AE82: 59 | AF82: 日本語区分（届け先） | AI82: 593 | AJ82: X | AK82: 1
C83: 11 | F83: ケース内ボール数 | G83: 71 | H83: 9 | I83: 2 | K83: ○ | L83: 包装区分に準じた設定 | N83: (ケース内ボール数 | O83: /ゼロ | P83: /ゼロ) | U83: 属性(ｽ) | V83: ○ | W83: ○ | X83: 76 | Y83: =IF($X83="","",VLOOKUP($X83,$AE$24:$AM$154,4,)) -> ケース内ボール数 | Z83: 869 | AA83: 9 | AB83: 2 | AC83: 0 | AE83: 60 | AF83: 日本語区分（チェーン店） | AI83: 594 | AJ83: X | AK83: 1
C84: 12 | E84: 数量符号 | G84: 73 | H84: X | I84: 1 | K84: ○ | L84: 数量の符号 | R84: ＋:正数 | S84: －:負数 | U84: ｺｰﾄﾞ | V84: ○ | W84: "△" → "+" | X84: 77 | Y84: =IF($X84="","",VLOOKUP($X84,$AE$24:$AM$154,3,)) -> 数量符号 | Z84: 871 | AA84: X | AB84: 1 | AC84: 0 | AE84: 61 | AF84: 日本語区分（住所） | AI84: 595 | AJ84: X | AK84: 1
C85: 13 | E85: 数量 | F85: ケース数量 | G85: 74 | H85: 9 | I85: 7 | K85: ○ | L85: 包装区分に準じた設定 | N85: (ケース数量 | O85: /ゼロ | P85: /ゼロ) | U85: 属性(ｽ) | V85: ○ | W85: ○ | X85: 78 | Y85: =IF($X85="","",VLOOKUP($X85,$AE$24:$AM$154,4,)) -> ケース数量 | Z85: 872 | AA85: 9 | AB85: 7 | AC85: 0 | AE85: 62 | AF85: 日本語区分（摘要） | AI85: 596 | AJ85: X | AK85: 1
C86: 14 | F86: ボール数量 | G86: 81 | H86: 9 | I86: 7 | K86: ○ | L86: 包装区分に準じた設定 | N86: (ゼロ | O86: /ボール数量 | P86: /ゼロ) | U86: 属性(ｽ) | V86: ○ | W86: ○ | X86: 79 | Y86: =IF($X86="","",VLOOKUP($X86,$AE$24:$AM$154,4,)) -> ボール数量 | Z86: 879 | AA86: 9 | AB86: 7 | AC86: 0 | AE86: 63 | AF86: 一次店カナ名 | AI86: 597 | AJ86: X | AK86: 30
C87: 15 | F87: バラ数量 | G87: 88 | H87: 9 | I87: 7 | J87: 2 | K87: ○ | L87: バラ数量 | U87: 属性(ｽ) | V87: ○ | W87: ○ | X87: 80 | Y87: =IF($X87="","",VLOOKUP($X87,$AE$24:$AM$154,4,)) -> バラ数量 | Z87: 886 | AA87: 9 | AB87: 7 | AC87: 2 | AE87: 64 | AF87: 二次店カナ名 | AI87: 627 | AJ87: X | AK87: 30
C88: 16 | E88: 単価 | F88: 卸店入価格 | G88: 97 | H88: 9 | I88: 6 | J88: 2 | K88: ○ | L88: 卸店入価格 | N88: (バラ単価) | U88: 属性(ｽ) | V88: ○ | W88: ○ | X88: 81 | Y88: =IF($X88="","",VLOOKUP($X88,$AE$24:$AM$154,4,)) -> 卸店入価格 | Z88: 895 | AA88: 9 | AB88: 6 | AC88: 2 | AE88: 65 | AF88: 届け先カナ名 | AI88: 657 | AJ88: Ｘ | AK88: 30
C89: 17 | F89: 二次店納入価格 | G89: 105 | H89: 9 | I89: 6 | J89: 2 | L89: 二次卸店等への納入価格 | N89: (バラ単価) | U89: 属性(ｽ) | V89: ○ | W89: ○ | X89: 82 | Y89: =IF($X89="","",VLOOKUP($X89,$AE$24:$AM$154,4,)) -> 二次店納入価格 | Z89: 903 | AA89: 9 | AB89: 6 | AC89: 2 | AE89: 66 | AF89: 摘要カナ | AI89: 687 | AJ89: Ｘ | AK89: 30
C90: 18 | E90: 金額符号 | G90: 113 | H90: X | I90: 1 | K90: ○ | L90: 金額の符号 | R90: ＋:正数 | S90: －:負数 | U90: ｺｰﾄﾞ | V90: ○ | W90: "△" → "+" | X90: 83 | Y90: =IF($X90="","",VLOOKUP($X90,$AE$24:$AM$154,3,)) -> 金額符号 | Z90: 911 | AA90: X | AB90: 1 | AC90: 0 | AE90: 67 | AF90: ヘッダー予備 | AI90: 717 | AJ90: X | AK90: 64
C91: 19 | E91: 金額 | F91: 卸店入金額 | G91: 114 | H91: 9 | I91: 8 | K91: ○ | L91: 卸店入金額 | T91: 属性(ｻ) | U91: 属性(ｽ) | V91: ○ | W91: ○ | X91: 84 | Y91: =IF($X91="","",VLOOKUP($X91,$AE$24:$AM$154,4,)) -> 卸店入金額 | Z91: 912 | AA91: 9 | AB91: 8 | AC91: 0 | AE91: 68 | AF91: ヘッダー連携エリア | AI91: 781 | AJ91: X | AK91: 20
C92: 20 | F92: 二次店納入金額 | G92: 122 | H92: 9 | I92: 8 | L92: 二次卸店等への納入金額 | T92: 属性(ｻ) | U92: 属性(ｽ) | V92: ○ | W92: ○ | X92: 85 | Y92: =IF($X92="","",VLOOKUP($X92,$AE$24:$AM$154,4,)) -> 二次店納入金額 | Z92: 920 | AA92: 9 | AB92: 8 | AC92: 0 | AF92: 明細部（４００バイト）
C93: 21 | E93: 欠品区分 | G93: 130 | H93: 9 | I93: 1 | K93: ○ | L93: 商品欠品区分 | R93: 0:正常 1:品切れ 2:終売 | S93: 3:未発売 4:商品ｺｰﾄﾞ訂正 | U93: ｺｰﾄﾞ(旧) | V93: ○ | W93: ○ | X93: 87 | Y93: =IF($X93="","",VLOOKUP($X93,$AE$24:$AM$154,3,)) -> 欠品区分 | Z93: 929 | AA93: 9 | AB93: 2 | AC93: 0 | AE93: 69 | AG93: 明細行NO | AI93: 801 | AJ93: 9 | AK93: 2 | AM93: ◎
C94: 22 | E94: 商品添付区分 | G94: 131 | H94: X | I94: 1 | K94: ○ | L94: 添付商品扱いの区分 | N94: (相対運用) | R94: △:売上 1:現物添付 | S94: 2:見本 3:景品 | U94: ｺｰﾄﾞ(旧) | V94: ○ | W94: ○ | X94: 86 | Y94: =IF($X94="","",VLOOKUP($X94,$AE$24:$AM$154,3,)) -> 商品添付区分 | Z94: 928 | AA94: X | AB94: 1 | AC94: 0 | AE94: 70 | AG94: 専用伝票行NO | AI94: 803 | AJ94: 9 | AK94: 2
B95: 1.8 | C95: 23 | E95: 賞味期限製造年月日 | G95: 132 | H95: X | I95: 6 | L95: 賞味期限または製造年月日 | N95: (YYMMDD) | U95: 日付 | V95: ○ | W95: 実入庫製品日付下６桁 | X95: 96 | Y95: =IF($X95="","",VLOOKUP($X95,$AE$24:$AM$154,3,)) -> 実入庫製品日付 | Z95: 955 | AA95: 9 | AB95: 8 | AC95: 0 | AE95: 71 | AG95: 商品コード識別区分 | AI95: 805 | AJ95: 9 | AK95: 1 | AM95: ○
C96: 24 | D96: 予備２ | G96: 256 | H96: X | I96: 1 | L96: レイアウト拡張時の予備領域 | N96: (利用禁止） | V96: ○ | W96: 属性初期値 | AE96: 72 | AG96: 品番 | AI96: 806 | AJ96: X | AK96: 16 | AM96: ○
AE97: 73 | AG97: 商品名 | AI97: 822 | AJ97: X/N | AK97: 40 | AM97: ○
AE98: 74 | AG98: 包装区分 | AI98: 862 | AJ98: 9 | AK98: 1 | AM98: ◎
AE99: 75 | AG99: 内容 | AH99: ボール内バラ数 | AI99: 863 | AJ99: 9 | AK99: 4 | AL99: 2 | AM99: ○
AE100: 76 | AH100: ケース内ボール数 | AI100: 869 | AJ100: 9 | AK100: 2 | AM100: ○
AE101: 77 | AG101: 数量符号 | AI101: 871 | AJ101: X | AK101: 1 | AM101: ○
D102: ④ トレーラレコード | AE102: 78 | AG102: 数量 | AH102: ケース数量 | AI102: 872 | AJ102: 9 | AK102: 7 | AM102: ○
B103: 変更 | C103: 項番 | D103: 項目 | G103: 開始位置 | H103: 属性 | I103: 整数桁 | J103: 小数桁 | K103: 必須 | L103: 項目説明 | R103: コード | T103: Ｖ１ → Ｖ１ | U103: Ｖ１ → Ｖ２ | V103: Ｖ１ ← Ｖ１ | W103: Ｖ１ ← Ｖ２ | X103: Ｖ２フォーマット | AE103: 79 | AH103: ボール数量 | AI103: 879 | AJ103: 9 | AK103: 7 | AM103: ○
T104: センタチェック | U104: センタチェック | V104: コンバート | W104: コンバート | X104: 項番 | Y104: 項目 | Z104: 開始 | AA104: 属性 | AB104: 整数 | AC104: 小数 | AE104: 80 | AH104: バラ数量 | AI104: 886 | AJ104: 9 | AK104: 7 | AL104: 2 | AM104: ○
C105: 1 | D105: データ種別 | G105: 1 | H105: 9 | I105: 2 | K105: ◎ | L105: １１：入庫予定データ | R105: 11 | T105: 共通部チェック (ｺﾝﾄﾛｰﾙ同値､ 軽症ｴﾗｰ) | U105: 共通部チェック (ｺﾝﾄﾛｰﾙ同値､ 軽症ｴﾗｰ) | V105: ○ | W105: "11"固定 | Y105: =IF($X105="","",VLOOKUP($X105,$AE$160:$AM$171,2,)) ->  | Z105: =IF($X105="","",VLOOKUP($X105,$AE$160:$AM$171,5,)) ->  | AA105: =IF($X105="","",VLOOKUP($X105,$AE$160:$AM$171,6,)) ->  | AB105: =IF($X105="","",VLOOKUP($X105,$AE$160:$AM$171,7,)) ->  | AC105: =IF($X105="","",VLOOKUP($X105,$AE$160:$AM$171,8,)) ->  | AE105: 81 | AG105: 単価 | AH105: 卸店入価格 | AI105: 895 | AJ105: 9 | AK105: 6 | AL105: 2 | AM105: ○
C106: 2 | D106: 送信先コード | G106: 3 | H106: 9 | I106: 8 | K106: ◎ | L106: 送信先(卸) | M106: の統一取引先コード | W106: ○ | X106: 2 | Y106: 送信先コード | Z106: 3 | AA106: 9 | AB106: 8 | AC106: 0 | AE106: 82 | AH106: 二次店納入価格 | AI106: 903 | AJ106: 9 | AK106: 6 | AL106: 2
C107: 3 | D107: 送信元コード | G107: 11 | H107: 9 | I107: 8 | K107: ◎ | L107: 送信元(メーカ) | M107: の統一取引先コード | W107: ○ | X107: 3 | Y107: 送信元コード | Z107: 11 | AA107: 9 | AB107: 8 | AC107: 0 | AE107: 83 | AG107: 金額符号 | AI107: 911 | AJ107: X | AK107: 1 | AM107: ○
C108: 4 | D108: レコード区分 | G108: 19 | H108: 9 | I108: 1 | K108: ◎ | L108: ９：トレーラレコード | R108: 9 | W108: ○ | X108: 4 | Y108: レコード区分 | Z108: 19 | AA108: 9 | AB108: 1 | AC108: 0 | AE108: 84 | AG108: 金額 | AH108: 卸店入金額 | AI108: 912 | AJ108: 9 | AK108: 8 | AM108: ○
B109: 1.7 | C109: 5 | D109: レコード件数 | G109: 20 | H109: 9 | I109: 6 | K109: ○ | L109: コントロールレコードとトレーラレコードで括られたレコードの総件数 (コントロールレコードとトレーラレコードは含まない) ・データ送信側では、自身のフォーマットのレコード件数を設定する。 ・データ受信側では、当項目と実際のレコード件数の整合性チェックには利用しない。※下記【トレーラレコード連携時の留意事項】を参照のこと | T109: 属性 | U109: 属性(ｽ) | V109: ※ センター集計値 | W109: ※ センター集計値 | X109: 5 | Y109: レコード件数 | Z109: 20 | AA109: 9 | AB109: 6 | AC109: 0 | AE109: 85 | AH109: 二次店納入金額 | AI109: 920 | AJ109: 9 | AK109: 8
C110: 6 | D110: 伝票枚数 | G110: 26 | H110: 9 | I110: 6 | L110: 伝票枚数 | T110: 属性 | U110: 属性(ｽ) | V110: ※ センター集計値 | W110: ※ センター集計値 | X110: 6 | Y110: 伝票枚数 | Z110: 26 | AA110: 9 | AB110: 6 | AC110: 0 | AE110: 86 | AG110: 商品添付区分 | AI110: 928 | AJ110: X | AK110: 1 | AM110: ○
C111: 7 | D111: 合計金額符号 | G111: 32 | H111: X | I111: 1 | L111: 合計金額の符号 | R111: ＋:正数 | S111: －:負数 | U111: ｺｰﾄﾞ | V111: ※ センター設定 | W111: "△" → "+" ※ センター設定 | X111: 7 | Y111: 合計金額符号 | Z111: 32 | AA111: X | AB111: 1 | AC111: 0 | AE111: 87 | AG111: 欠品区分 | AI111: 929 | AJ111: 9 | AK111: 2 | AM111: ○
C112: 8 | D112: 合計金額 | G112: 33 | H112: 9 | I112: 10 | L112: 卸店入価格で全明細行の金額合計 | T112: 属性(ｻ) | U112: 属性(ｽ) | V112: ※ センター集計値 | W112: ※ センター集計値 | X112: 8 | Y112: 合計金額 | Z112: 33 | AA112: 9 | AB112: 10 | AC112: 0 | AE112: 88 | AG112: 入荷単位ケース数 | AI112: 931 | AJ112: 9 | AK112: 2
C113: 9 | D113: 予備 | G113: 43 | H113: X | I113: 214 | L113: レイアウト拡張時の予備領域 | N113: (利用禁止） | V113: ○ | W113: 属性初期値 | AE113: 89 | AG113: 単価計算区分 | AI113: 933 | AJ113: X | AK113: 1
V114: ※ 配信分割時 | AE114: 90 | AG114: 卸発注行番号 | AI114: 934 | AJ114: 9 | AK114: 2
AE115: 91 | AG115: 卸最新在庫日付区分 | AI115: 936 | AJ115: X | AK115: 1
AE116: 92 | AG116: 卸最新在庫日付 | AI116: 937 | AJ116: 9 | AK116: 8
AE117: 93 | AG117: 入庫許容日付区分 | AI117: 945 | AJ117: X | AK117: 1
AE118: 94 | AG118: 入庫許容日付 | AI118: 946 | AJ118: 9 | AK118: 8
AE119: 95 | AG119: 実入庫製品日付区分 | AI119: 954 | AJ119: X | AK119: 1
AE120: 96 | AG120: 実入庫製品日付 | AI120: 955 | AJ120: 9 | AK120: 8
AE121: 97 | AG121: 製造ロット番号 | AI121: 963 | AJ121: X | AK121: 10
AE122: 98 | AG122: 温度管理区分 | AI122: 973 | AJ122: X | AK122: 1
AE123: 99 | AF123: ③ トレーラレコード | AG123: 製品容器区分 | AI123: 974 | AJ123: 9 | AK123: 1
AE124: 100 | AG124: 外箱GTIN(ITF)コード | AI124: 975 | AJ124: X | AK124: 14
AE125: 101 | AG125: 摘要 | AI125: 989 | AJ125: X/N | AK125: 50
AE126: 102 | AG126: 日本語区分（商品名） | AI126: 1039 | AJ126: X | AK126: 1
AE127: 103 | AG127: 日本語区分（摘要） | AI127: 1040 | AJ127: X | AK127: 1
AE128: 104 | AG128: 菓子業界商品分類コード | AI128: 1041 | AJ128: X | AK128: 6
AE129: 105 | AG129: 割戻1 | AH129: 割戻計算区分 | AI129: 1047 | AJ129: X | AK129: 1
AE130: 106 | AH130: 割戻区分 | AI130: 1048 | AJ130: X | AK130: 1
AE131: 107 | AH131: 割戻基準 | AI131: 1049 | AJ131: X | AK131: 1
AE132: 108 | AH132: 割戻率／単価 | AI132: 1050 | AJ132: 9 | AK132: 4 | AL132: 2
AE133: 109 | AH133: 割戻金額符号 | AI133: 1056 | AJ133: X | AK133: 1
AE134: 110 | AH134: 割戻金額 | AI134: 1057 | AJ134: 9 | AK134: 8
AE135: 111 | AH135: 割戻コード | AI135: 1065 | AJ135: X | AK135: 5
AE136: 112 | AG136: 割戻2 | AH136: 割戻計算区分 | AI136: 1070 | AJ136: X | AK136: 1
AE137: 113 | AH137: 割戻区分 | AI137: 1071 | AJ137: X | AK137: 1
AE138: 114 | AH138: 割戻基準 | AI138: 1072 | AJ138: X | AK138: 1
AE139: 115 | AH139: 割戻率／単価 | AI139: 1073 | AJ139: 9 | AK139: 4 | AL139: 2
AE140: 116 | AH140: 割戻金額符号 | AI140: 1079 | AJ140: X | AK140: 1
AE141: 117 | AH141: 割戻金額 | AI141: 1080 | AJ141: 9 | AK141: 8
AE142: 118 | AH142: 割戻コード | AI142: 1088 | AJ142: X | AK142: 5
AE143: 119 | AG143: 割戻3 | AH143: 割戻計算区分 | AI143: 1093 | AJ143: X | AK143: 1
AE144: 120 | AH144: 割戻区分 | AI144: 1094 | AJ144: X | AK144: 1
AE145: 121 | AH145: 割戻基準 | AI145: 1095 | AJ145: X | AK145: 1
AE146: 122 | AH146: 割戻率／単価 | AI146: 1096 | AJ146: 9 | AK146: 4 | AL146: 2
AE147: 123 | AH147: 割戻金額符号 | AI147: 1102 | AJ147: X | AK147: 1
AE148: 124 | AH148: 割戻金額 | AI148: 1103 | AJ148: 9 | AK148: 8
AE149: 125 | AH149: 割戻コード | AI149: 1111 | AJ149: X | AK149: 5
AE150: 126 | AG150: 商品名カナ | AI150: 1116 | AJ150: X | AK150: 25
AE151: 127 | AG151: 明細予備 | AI151: 1141 | AJ151: X | AK151: 50
AE152: 128 | AG152: 明細連携エリア | AI152: 1191 | AJ152: X | AK152: 10
AF157: ③ トレーラレコード
AE158: 項番 | AF158: 項目 | AI158: 開始位置 | AJ158: 属性 | AK158: 整数桁 | AL158: 小数桁 | AM158: 必須
AE160: 1 | AF160: データ種別 | AI160: 1 | AJ160: 9 | AK160: 2 | AM160: ○
AE161: 2 | AF161: 送信先コード | AI161: 3 | AJ161: 9 | AK161: 8 | AM161: ○
AE162: 3 | AF162: 送信元コード | AI162: 11 | AJ162: 9 | AK162: 8 | AM162: ○
AE163: 4 | AF163: レコード区分 | AI163: 19 | AJ163: 9 | AK163: 1 | AM163: ○
AE164: 5 | AF164: レコード件数 | AI164: 20 | AJ164: 9 | AK164: 6
AE165: 6 | AF165: 伝票枚数 | AI165: 26 | AJ165: 9 | AK165: 6
AE166: 7 | AF166: 合計金額符号 | AI166: 32 | AJ166: X | AK166: 1
AE167: 8 | AF167: 合計金額 | AI167: 33 | AJ167: 9 | AK167: 10
AE168: 9 | AF168: 予備 | AI168: 43 | AJ168: X | AK168: 1138
AE169: 10 | AF169: 連携エリア | AI169: 1181 | AJ169: X | AK169: 20

Sheet １２受領
AE1: =シート別総ページ数 -> 
C2: （３）Ｖ１・１２受領 | AE2: （３）Ｖ２・１４受領
D3: ① コントロールレコード | AF3: ① コントロールレコード
B4: 変更 | C4: 項番 | D4: 項目 | G4: 開始位置 | H4: 属性 | I4: 整数桁 | J4: 小数桁 | K4: 必須 | L4: 項目説明 | R4: コード | T4: Ｖ１ → Ｖ１ | U4: Ｖ１ → Ｖ２ | V4: Ｖ１ ← Ｖ１ | W4: Ｖ１ ← Ｖ２ | X4: Ｖ２フォーマット | AE4: 項番 | AF4: 項目 | AI4: 開始位置 | AJ4: 属性 | AK4: 整数桁 | AL4: 小数桁 | AM4: 必須
T5: センタチェック | U5: センタチェック | V5: コンバート | W5: コンバート | X5: 項番 | Y5: 項目 | Z5: 開始 | AA5: 属性 | AB5: 整数 | AC5: 小数
C6: 1 | D6: データ種別 | G6: 1 | H6: 9 | I6: 2 | K6: ◎ | L6: １２：受領データ | R6: 12 | T6: ｺｰﾄﾞ | U6: ｺｰﾄﾞ | V6: ○ | W6: "12"固定 | Y6: =IF($X6="","",VLOOKUP($X6,$AE$6:$AM$20,2,)) ->  | Z6: =IF($X6="","",VLOOKUP($X6,$AE$6:$AM$20,5,)) ->  | AA6: =IF($X6="","",VLOOKUP($X6,$AE$6:$AM$20,6,)) ->  | AB6: =IF($X6="","",VLOOKUP($X6,$AE$6:$AM$20,7,)) ->  | AC6: =IF($X6="","",VLOOKUP($X6,$AE$6:$AM$20,8,)) ->  | AE6: 1 | AF6: データ種別 | AI6: 1 | AJ6: 9 | AK6: 2 | AM6: ○
C7: 2 | D7: 送信先コード | G7: 3 | H7: 9 | I7: 8 | K7: ◎ | L7: 送信先(メーカ) | M7: の統一取引先コード | T7: センター登録 | U7: センター登録 | W7: ○ | X7: 2 | Y7: 送信先コード | Z7: 3 | AA7: 9 | AB7: 8 | AC7: 0 | AE7: 2 | AF7: 送信先コード | AI7: 3 | AJ7: 9 | AK7: 8 | AM7: ○
C8: 3 | D8: 送信元コード | G8: 11 | H8: 9 | I8: 8 | K8: ◎ | L8: 送信元(卸) | M8: の統一取引先コード | T8: センター登録 | U8: センター登録 | W8: ○ | X8: 3 | Y8: 送信元コード | Z8: 11 | AA8: 9 | AB8: 8 | AC8: 0 | AE8: 3 | AF8: 送信元コード | AI8: 11 | AJ8: 9 | AK8: 8 | AM8: ○
C9: 4 | D9: レコード区分 | G9: 19 | H9: 9 | I9: 1 | K9: ◎ | L9: １：コントロールレコード | R9: 1 | T9: ｺｰﾄﾞ | U9: ｺｰﾄﾞ | W9: ○ | X9: 4 | Y9: レコード区分 | Z9: 19 | AA9: 9 | AB9: 1 | AC9: 0 | AE9: 4 | AF9: レコード区分 | AI9: 19 | AJ9: 9 | AK9: 1 | AM9: ○
C10: 5 | D10: データ作成日 | G10: 20 | H10: 9 | I10: 8 | K10: ○ | L10: 本データを作成した日付 | N10: (西暦 YYYYMMDD) | U10: 必須 | V10: ○ | W10: ○ | X10: 5 | Y10: データ作成日 | Z10: 20 | AA10: 9 | AB10: 8 | AC10: 0 | AE10: 5 | AF10: データ作成日 | AI10: 20 | AJ10: 9 | AK10: 8 | AM10: ○
C11: 6 | D11: 送信先名 | G11: 28 | H11: X | I11: 20 | K11: ○ | L11: 送信先(メーカ) | M11: のカナ名称 | V11: ○ | W11: ○ | X11: 7 | Y11: 送信先名 | Z11: 34 | AA11: X | AB11: 20 | AC11: 0 | AE11: 6 | AF11: データ作成時刻 | AI11: 28 | AJ11: 9 | AK11: 6
C12: 7 | D12: 送信元名 | G12: 48 | H12: X | I12: 20 | K12: ○ | L12: 送信元(卸) | M12: のカナ名称 | U12: 必須 | V12: ○ | W12: ○ | X12: 8 | Y12: 送信元名 | Z12: 54 | AA12: X | AB12: 20 | AC12: 0 | AE12: 7 | AF12: 送信先名 | AI12: 34 | AJ12: X | AK12: 20
C13: 8 | D13: 直接送信先コード | G13: 68 | H13: 9 | I13: 8 | L13: 送信先と異なる場所へ送信する場合にセット。 セット不要の場合"00000000" | T13: センター登録 | U13: センター登録 | V13: ○ | W13: ○ | X13: 9 | Y13: 直接送信先コード | Z13: 74 | AA13: 9 | AB13: 8 | AC13: 0 | AE13: 8 | AF13: 送信元名 | AI13: 54 | AJ13: X | AK13: 20 | AM13: ○
C14: 9 | D14: 直接送信先カナ名 | G14: 76 | H14: X | I14: 20 | L14: 送信先と異なる場所へ送信する場合にセット。 セット不要の場合スペース | V14: ○ | W14: ○ | X14: 10 | Y14: 直接送信先名 | Z14: 82 | AA14: X | AB14: 20 | AC14: 0 | AE14: 9 | AF14: 直接送信先コード | AI14: 74 | AJ14: 9 | AK14: 8
C15: 10 | D15: 予備 | G15: 96 | H15: X | I15: 161 | L15: レイアウト拡張時の予備領域 | N15: (利用禁止） | V15: ○ | W15: 属性初期値 | AE15: 10 | AF15: 直接送信先名 | AI15: 82 | AJ15: X | AK15: 20
AE16: 11 | AF16: 送信ファイルNO | AI16: 102 | AJ16: 9 | AK16: 2
AE17: 12 | AF17: 予備 | AI17: 104 | AJ17: X | AK17: 1077
AE18: 13 | AF18: 連携エリア | AI18: 1181 | AJ18: X | AK18: 20
D21: ② ヘッダーレコード | AF21: ② ヘッダー／明細レコード
B22: 変更 | C22: 項番 | D22: 項目 | G22: 開始位置 | H22: 属性 | I22: 整数桁 | J22: 小数桁 | K22: 必須 | L22: 項目説明 | R22: コード | T22: Ｖ１ → Ｖ１ | U22: Ｖ１ → Ｖ２ | V22: Ｖ１ ← Ｖ１ | W22: Ｖ１ ← Ｖ２ | X22: Ｖ２フォーマット | AE22: 項番 | AF22: 項目 | AI22: 開始位置 | AJ22: 属性 | AK22: 整数桁 | AL22: 小数桁 | AM22: 必須
T23: センタチェック | U23: センタチェック | V23: コンバート | W23: コンバート | X23: 項番 | Y23: 項目 | Z23: 開始 | AA23: 属性 | AB23: 整数 | AC23: 小数
C24: 1 | D24: データ種別 | G24: 1 | H24: 9 | I24: 2 | K24: ◎ | L24: １２：受領データ | R24: 12 | T24: 共通部チェック (ｺﾝﾄﾛｰﾙ同値､ 軽症ｴﾗｰ) | U24: 共通部チェック (ｺﾝﾄﾛｰﾙ同値､ 軽症ｴﾗｰ) | V24: ○ | W24: "12"固定 | Y24: =IF($X24="","",VLOOKUP($X24,$AE$24:$AM$152,2,)) ->  | Z24: =IF($X24="","",VLOOKUP($X24,$AE$24:$AM$152,5,)) ->  | AA24: =IF($X24="","",VLOOKUP($X24,$AE$24:$AM$152,6,)) ->  | AB24: =IF($X24="","",VLOOKUP($X24,$AE$24:$AM$152,7,)) ->  | AC24: =IF($X24="","",VLOOKUP($X24,$AE$24:$AM$152,8,)) ->  | AE24: 1 | AF24: データ種別 | AI24: 1 | AJ24: 9 | AK24: 2 | AM24: ○
C25: 2 | D25: 送信先コード | G25: 3 | H25: 9 | I25: 8 | K25: ◎ | L25: 送信先(メーカ) | M25: の統一取引先コード | W25: ○ | X25: 2 | Y25: 送信先コード | Z25: 3 | AA25: 9 | AB25: 8 | AC25: 0 | AE25: 2 | AF25: 送信先コード | AI25: 3 | AJ25: 9 | AK25: 8 | AM25: ○
C26: 3 | D26: 送信元コード | G26: 11 | H26: 9 | I26: 8 | K26: ◎ | L26: 送信元(卸) | M26: の統一取引先コード | W26: ○ | X26: 3 | Y26: 送信元コード | Z26: 11 | AA26: 9 | AB26: 8 | AC26: 0 | AE26: 3 | AF26: 送信元コード | AI26: 11 | AJ26: 9 | AK26: 8 | AM26: ○
C27: 4 | D27: レコード区分 | G27: 19 | H27: 9 | I27: 1 | K27: ◎ | L27: ２：ヘッダーレコード | R27: 2 | W27: "2"固定 | AE27: 4 | AF27: レコード区分 | AI27: 19 | AJ27: 9 | AK27: 1 | AM27: ○
C28: 5 | D28: 卸伝票NO | G28: 20 | H28: 9 | I28: 6 | K28: ○ | L28: 発注NO | U28: 属性(ｽ) | V28: ○ | W28: 下６桁 | X28: 6 | Y28: 卸発注伝票NO | Z28: 21 | AA28: 9 | AB28: 8 | AC28: 0 | AE28: 5 | AF28: 漢字コード区分 | AI28: 20 | AJ28: X | AK28: 1
C29: 6 | D29: メーカ伝票NO | G29: 26 | H29: 9 | I29: 6 | L29: メーカ伝票NO | U29: 属性(ｽ) | V29: ○ | W29: 下６桁 | X29: 7 | Y29: メーカ伝票NO | Z29: 29 | AA29: 9 | AB29: 8 | AC29: 0 | AE29: 6 | AF29: 卸発注伝票NO | AI29: 21 | AJ29: 9 | AK29: 8
C30: 7 | D30: 元伝NO | G30: 32 | H30: 9 | I30: 6 | L30: 元伝NO | V30: ○ | W30: 下６桁 | X30: 30 | Y30: 元伝NO | Z30: 187 | AA30: 9 | AB30: 8 | AC30: 0 | AE30: 7 | AF30: メーカ伝票NO | AI30: 29 | AJ30: 9 | AK30: 8
B31: 2.6 | C31: 8 | D31: 取引コード | G31: 38 | H31: 9 | I31: 2 | K31: ○ | L31: 業界統一取引コード | R31: 11:店入売上 12:店入売上訂正 21:店入返品 22:店入返品訂正 31:直送売上 32:直送売上訂正 | S31: 41:直送返品 42:直送返品訂正 51:割戻し金 52:相殺 81:ﾒｰｶｰ提供の役務 91:卸提供の役務 | U31: ｺｰﾄﾞ | V31: ○ | W31: ○ | X31: 9 | Y31: 取引コード | Z31: 38 | AA31: 9 | AB31: 2 | AC31: 0 | AE31: 8 | AF31: 店入直送区分 | AI31: 37 | AJ31: 9 | AK31: 1
C32: 9 | D32: 納品日 | G32: 40 | H32: 9 | I32: 8 | K32: ○ | L32: 発注伝票の納品日 | N32: (西暦 YYYYMMDD) | U32: 日付 | V32: ○ | W32: ○ | X32: 10 | Y32: 納品日 | Z32: 40 | AA32: 9 | AB32: 8 | AC32: 0 | AE32: 9 | AF32: 取引コード | AI32: 38 | AJ32: 9 | AK32: 2
C33: 10 | D33: 出荷日 | G33: 48 | H33: 9 | I33: 8 | K33: ○ | L33: 出荷日 | N33: (西暦 YYYYMMDD) | U33: 日付 | V33: ○ | W33: ○ | X33: 11 | Y33: 出荷日 | Z33: 48 | AA33: 9 | AB33: 8 | AC33: 0 | AE33: 10 | AF33: 納品日 | AI33: 40 | AJ33: 9 | AK33: 8
C34: 11 | D34: 受領日 | G34: 56 | H34: 9 | I34: 8 | K34: ○ | L34: 受領した日付 | N34: (西暦 YYYYMMDD) | U34: 日付 | V34: ○ | W34: ○ | X34: 12 | Y34: 受領日 | Z34: 56 | AA34: 9 | AB34: 8 | AC34: 0 | AE34: 11 | AF34: 出荷日 | AI34: 48 | AJ34: 9 | AK34: 8
C35: 12 | D35: 受領時間 | G35: 64 | H35: 9 | I35: 4 | L35: 受領した時間 | N35: (HHMM) | U35: 時刻 | V35: ○ | W35: ○ | X35: 13 | Y35: 受領時間 | Z35: 64 | AA35: 9 | AB35: 4 | AC35: 0 | AE35: 12 | AF35: 受領日 | AI35: 56 | AJ35: 9 | AK35: 8
C36: 13 | D36: 明細行数 | G36: 68 | H36: 9 | I36: 2 | K36: ○ | L36: 伝票内明細数 | U36: 属性(ｽ) | V36: ○ | W36: ○ | X36: 21 | Y36: 明細行数 | Z36: 95 | AA36: 9 | AB36: 2 | AC36: 0 | AE36: 13 | AF36: 受領時間 | AI36: 64 | AJ36: 9 | AK36: 4
B37: 2.1 1.3 | C37: 14 | D37: 届け先コード | G37: 70 | H37: 9 | I37: 8 | K37: ○ | L37: 該当する統一取引先コード | V37: ○ | W37: GLN時:下８桁 GLN以外8桁以上:上８桁 GLN以外8桁未満:前ｾﾞﾛ+ 有効桁 | X37: 25 | Y37: 届け先コード | Z37: 136 | AA37: X | AB37: 13 | AC37: 0 | AE37: 14 | AF37: 倉庫コード | AI37: 68 | AJ37: X | AK37: 4
B38: 1.1 | C38: 15 | D38: 届け先カナ名 | G38: 78 | H38: X | I38: 30 | K38: ○ | L38: 届け先名 | V38: ○ | W38: 日本語区分(届け先)が 漢字 ：届け先カナ その他：届け先名 | X38: 38 63 | Y38: 届け先名 届け先名カナ | Z38: 333 597 | AA38: X/N X | AB38: 40 30 | AC38: 0 | AE38: 15 | AF38: 伝送区分 | AI38: 72 | AJ38: X | AK38: 1
C39: 16 | D39: 伝票合計金額符号 | G39: 108 | H39: X | I39: 1 | K39: ○ | L39: 伝票の合計金額の符号 | R39: ＋:正数 | S39: －:負数 | U39: ｺｰﾄﾞ | V39: ○ | W39: "△" → "+" | X39: 31 | Y39: 伝票合計金額符号 | Z39: 195 | AA39: X | AB39: 1 | AC39: 0 | AE39: 16 | AF39: 出荷報告以外区分 | AI39: 73 | AJ39: X | AK39: 1
C40: 17 | D40: 伝票合計金額 | G40: 109 | H40: 9 | I40: 8 | K40: ○ | L40: 伝票の合計金額 | N40: (卸店入価格) | T40: 属性(ｻ) | U40: 属性(ｽ) | V40: ○ | W40: ○ | X40: 32 | Y40: 伝票合計金額 | Z40: 196 | AA40: 9 | AB40: 8 | AC40: 0 | AE40: 17 | AF40: 集計明細区分 | AI40: 74 | AJ40: X | AK40: 1
C41: 18 | D41: 定番特売区分 | G41: 117 | H41: X | I41: 1 | K41: ○ | L41: 定番発注/特売発注の区分 | R41: 0:定番 | S41: 1:特売 | V41: ○ | W41: "0"･”1”以外→"0" | X41: 47 | Y41: 定番特売区分 | Z41: 579 | AA41: X | AB41: 1 | AC41: 0 | AE41: 18 | AF41: 請求締日 | AI41: 75 | AJ41: 9 | AK41: 8
B42: 1.1 | C42: 19 | D42: 摘要欄 | G42: 118 | H42: X | I42: 30 | L42: 伝票の摘要欄の内容 | V42: ○ | W42: 日本語区分(摘要)が 漢字 ：摘要カナ その他：摘要 | X42: 42 64 | Y42: 摘要 摘要カナ | Z42: 508 627 | AA42: X/N X | AB42: 50 30 | AC42: 0 | AE42: 19 | AF42: 請求口座 | AI42: 83 | AJ42: X | AK42: 10
C43: 20 | D43: メーカコード | G43: 148 | H43: X | I43: 9 | K43: ○ | L43: 国コード２桁を含むメーカコード | N43: (７桁の場合左詰め後ろスペース) | V43: ○ | W43: ○ | X43: 43 | Y43: メーカコード | Z43: 558 | AA43: X | AB43: 9 | AC43: 0 | AE43: 20 | AF43: 請求支払区分 | AI43: 93 | AJ43: 9 | AK43: 2
C44: 21 | D44: 予備 | G44: 157 | H44: X | I44: 100 | L44: レイアウト拡張時の予備領域 | N44: (卸発注伝票NO８桁化対応） | V44: ○ | W44: 卸発注伝票NO上２桁 | X44: 6 | Y44: 卸発注伝票NO | Z44: 21 | AA44: 9 | AB44: 8 | AC44: 0 | AE44: 21 | AF44: 明細行数 | AI44: 95 | AJ44: 9 | AK44: 2
AE45: 22 | AF45: 一次店コード | AI45: 97 | AJ45: X | AK45: 13 | AM45: ○
AE46: 23 | AF46: 二次店コード | AI46: 110 | AJ46: X | AK46: 13
AE47: 24 | AF47: 三次店コード | AI47: 123 | AJ47: X | AK47: 13
AE48: 25 | AF48: 届け先コード | AI48: 136 | AJ48: X | AK48: 13
AE49: 26 | AF49: チェーン店コード | AI49: 149 | AJ49: X | AK49: 13
AE50: 27 | AF50: 専用伝票日付 | AI50: 162 | AJ50: 9 | AK50: 8
AE51: 28 | AF51: 専用伝票NO | AI51: 170 | AJ51: 9 | AK51: 9
AE52: 29 | AF52: 元伝年月日 | AI52: 179 | AJ52: 9 | AK52: 8
AE53: 30 | AF53: 元伝NO | AI53: 187 | AJ53: 9 | AK53: 8
AE54: 31 | AF54: 伝票合計金額符号 | AI54: 195 | AJ54: X | AK54: 1
AE55: 32 | AF55: 伝票合計金額 | AI55: 196 | AJ55: 9 | AK55: 8
AE56: 33 | AF56: 二次店納入合計金額符号 | AI56: 204 | AJ56: X | AK56: 1
AE57: 34 | AF57: 二次店納入合計金額 | AI57: 205 | AJ57: 9 | AK57: 8
AE58: 35 | AF58: 一次店名 | AI58: 213 | AJ58: X/N | AK58: 40
AE59: 36 | AF59: 二次店名 | AI59: 253 | AJ59: X/N | AK59: 40
AE60: 37 | AF60: 三次店名 | AI60: 293 | AJ60: X/N | AK60: 40
AE61: 38 | AF61: 届け先名 | AI61: 333 | AJ61: X/N | AK61: 40
AE62: 39 | AF62: チェーン店名 | AI62: 373 | AJ62: X/N | AK62: 40
AE63: 40 | AF63: 電話番号 | AI63: 413 | AJ63: X | AK63: 15
AE64: 41 | AF64: 住所 | AI64: 428 | AJ64: X/N | AK64: 80
AE65: 42 | AF65: 摘要 | AI65: 508 | AJ65: X/N | AK65: 50
AE66: 43 | AF66: メーカコード | AI66: 558 | AJ66: X | AK66: 9
AE67: 44 | AF67: メーカ所属組織名 | AI67: 567 | AJ67: X | AK67: 10
AE68: 45 | AF68: 伝票区分 | AI68: 577 | AJ68: 9 | AK68: 1
D69: ③ 明細レコード | AE69: 46 | AF69: 登録店区分 | AI69: 578 | AJ69: X | AK69: 1
B70: 変更 | C70: 項番 | D70: 項目 | G70: 開始位置 | H70: 属性 | I70: 整数桁 | J70: 小数桁 | K70: 必須 | L70: 項目説明 | R70: コード | T70: Ｖ１ → Ｖ１ | U70: Ｖ１ → Ｖ２ | V70: Ｖ１ ← Ｖ１ | W70: Ｖ１ ← Ｖ２ | X70: Ｖ２フォーマット | AE70: 47 | AF70: 定番特売区分 | AI70: 579 | AJ70: X | AK70: 1
T71: センタチェック | U71: センタチェック | V71: コンバート | W71: コンバート | X71: 項番 | Y71: 項目 | Z71: 開始 | AA71: 属性 | AB71: 整数 | AC71: 小数 | AE71: 48 | AF71: 消費税区分 | AI71: 580 | AJ71: X | AK71: 1
C72: 1 | D72: データ種別 | G72: 1 | H72: 9 | I72: 2 | K72: ◎ | L72: １２：受領データ | R72: 12 | T72: 共通部チェック (ｺﾝﾄﾛｰﾙ同値､ 軽症ｴﾗｰ) | U72: 共通部チェック (ｺﾝﾄﾛｰﾙ同値､ 軽症ｴﾗｰ) | V72: ○ | W72: "12"固定 | Y72: =IF($X72="","",VLOOKUP($X72,$AE$24:$AM$152,2,)) ->  | Z72: =IF($X72="","",VLOOKUP($X72,$AE$24:$AM$152,5,)) ->  | AA72: =IF($X72="","",VLOOKUP($X72,$AE$24:$AM$152,6,)) ->  | AB72: =IF($X72="","",VLOOKUP($X72,$AE$24:$AM$152,7,)) ->  | AC72: =IF($X72="","",VLOOKUP($X72,$AE$24:$AM$152,8,)) ->  | AE72: 49 | AF72: 消費税率 | AI72: 581 | AJ72: 9 | AK72: 2 | AL72: 1
C73: 2 | D73: 送信先コード | G73: 3 | H73: 9 | I73: 8 | K73: ◎ | L73: 送信先(メーカ) | M73: の統一取引先コード | W73: ○ | X73: 2 | Y73: =IF($X73="","",VLOOKUP($X73,$AE$24:$AM$152,2,)) -> 送信先コード | Z73: 3 | AA73: 9 | AB73: 8 | AC73: 0 | AE73: 50 | AF73: ロット不足運賃負担区分 | AI73: 584 | AJ73: X | AK73: 1
C74: 3 | D74: 送信元コード | G74: 11 | H74: 9 | I74: 8 | K74: ◎ | L74: 送信元(卸) | M74: の統一取引先コード | W74: ○ | X74: 3 | Y74: =IF($X74="","",VLOOKUP($X74,$AE$24:$AM$152,2,)) -> 送信元コード | Z74: 11 | AA74: 9 | AB74: 8 | AC74: 0 | AE74: 51 | AF74: 取引先区分（一次店） | AI74: 585 | AJ74: X | AK74: 1
C75: 4 | D75: レコード区分 | G75: 19 | H75: 9 | I75: 1 | K75: ◎ | L75: ４：明細レコード | R75: 4 | W75: "4"固定 | Y75: =IF($X75="","",VLOOKUP($X75,$AE$24:$AM$152,2,)) ->  | AE75: 52 | AF75: 取引先区分（二次店） | AI75: 586 | AJ75: X | AK75: 1
D76: 明細部繰返（１１７バイト × ２明細） ※明細レコードがショートブロック（レコード中１明細）の場合、ALL SPACEを設定する。 | Y76: =IF($X76="","",VLOOKUP($X76,$AE$24:$AM$152,2,)) ->  | AE76: 53 | AF76: 取引先区分（三次店） | AI76: 587 | AJ76: X | AK76: 1
C77: 5 | E77: 行NO | G77: 20 | H77: 9 | I77: 2 | K77: ○ | L77: 明細行NO | R77: 01～06 | U77: 必須＋コード | V77: ○ | W77: ○ | X77: 67 | Y77: =IF($X77="","",VLOOKUP($X77,$AE$24:$AM$152,3,)) -> 明細行NO | Z77: 801 | AA77: 9 | AB77: 2 | AC77: 0 | AE77: 54 | AF77: 取引先区分（届け先） | AI77: 588 | AJ77: X | AK77: 1
C78: 6 | E78: 専用伝票行NO | G78: 22 | H78: 9 | I78: 2 | L78: 専用伝票の行NO | U78: 属性(ｽ) | V78: ○ | W78: ○ | X78: 68 | Y78: 専用伝票行NO | Z78: 803 | AA78: 9 | AB78: 2 | AC78: 0 | AE78: 55 | AF78: 取引先区分（チェーン店） | AI78: 589 | AJ78: X | AK78: 1
C79: 7 | E79: 商品コード識別区分 | G79: 24 | H79: X | I79: 1 | K79: ○ | L79: 業界統一取引コード | R79: 0:統一商品コード 1:ＩＴＦコード(14桁) 2:ＩＴＦｺｰﾄﾞ(拡張16桁) 3:JANコード(標準:13桁) 4:JANコード(短縮:8桁) 6:GTINコード(14桁) | U79: 必須＋コード(新) "2"は連携不可 | V79: ○ | W79: ○ | X79: 69 | Y79: 商品コード識別区分 | Z79: 805 | AA79: 9 | AB79: 1 | AC79: 0 | AE79: 56 | AF79: 日本語区分（一次店） | AI79: 590 | AJ79: X | AK79: 1
C80: 8 | E80: 品番 | G80: 25 | H80: X | I80: 16 | K80: ○ | L80: 統一商品ｺｰﾄﾞ，ITFｺｰﾄﾞ，JANｺｰﾄﾞまたはGTINｺｰﾄﾞ（左詰め） | V80: ○ | W80: ○ | X80: 70 | Y80: 品番 | Z80: 806 | AA80: X | AB80: 16 | AC80: 0 | AE80: 57 | AF80: 日本語区分（二次店） | AI80: 591 | AJ80: X | AK80: 1
B81: 1.1 | C81: 9 | E81: 商品名 | G81: 41 | H81: X | I81: 25 | K81: ○ | L81: 商品名 | V81: ○ | W81: 日本語区分(商品名)が 漢字 ：商品名カナ その他：商品名 | X81: 71 124 | Y81: 商品名 商品名カナ | Z81: 822 1116 | AA81: X/N X | AB81: 40 25 | AC81: 0 | AE81: 58 | AF81: 日本語区分（三次店） | AI81: 592 | AJ81: X | AK81: 1
C82: 10 | E82: 包装区分 | G82: 66 | H82: 9 | I82: 1 | K82: ○ | L82: 数量の発注単位の区分 | N82: (1:ケース発注時) | O82: (2:ボール発注時) | P82: (3:バラ発注時) | R82: 1:ケース発注 2:ボール発注 | S82: 3:バラ発注 | U82: 必須＋コード | V82: ○ | W82: ○ | X82: 72 | Y82: 包装区分 | Z82: 862 | AA82: 9 | AB82: 1 | AC82: 0 | AE82: 59 | AF82: 日本語区分（届け先） | AI82: 593 | AJ82: X | AK82: 1
C83: 11 | E83: 内容 | F83: ボール内バラ数 | G83: 67 | H83: 9 | I83: 4 | J83: 2 | K83: ○ | L83: 包装区分に準じた設定 | N83: (ボール内バラ数 | O83: /ボール内バラ数 | P83: /ゼロ) | U83: 属性(ｽ) | V83: ○ | W83: ○ | X83: 73 | Y83: =IF($X83="","",VLOOKUP($X83,$AE$24:$AM$152,4,)) -> ボール内バラ数 | Z83: 863 | AA83: 9 | AB83: 4 | AC83: 2 | AE83: 60 | AF83: 日本語区分（チェーン店） | AI83: 594 | AJ83: X | AK83: 1
C84: 12 | F84: ケース内ボール数 | G84: 73 | H84: 9 | I84: 2 | K84: ○ | L84: 包装区分に準じた設定 | N84: (ケース内ボール数 | O84: /ゼロ | P84: /ゼロ) | U84: 属性(ｽ) | V84: ○ | W84: ○ | X84: 74 | Y84: =IF($X84="","",VLOOKUP($X84,$AE$24:$AM$152,4,)) -> ケース内ボール数 | Z84: 869 | AA84: 9 | AB84: 2 | AC84: 0 | AE84: 61 | AF84: 日本語区分（住所） | AI84: 595 | AJ84: X | AK84: 1
C85: 13 | E85: 数量符号 | G85: 75 | H85: X | I85: 1 | K85: ○ | L85: 数量の符号 | R85: ＋:正数 | S85: －:負数 | U85: ｺｰﾄﾞ | V85: ○ | W85: "△" → "+" | X85: 75 | Y85: =IF($X85="","",VLOOKUP($X85,$AE$24:$AM$152,3,)) -> 数量符号 | Z85: 871 | AA85: X | AB85: 1 | AC85: 0 | AE85: 62 | AF85: 日本語区分（摘要） | AI85: 596 | AJ85: X | AK85: 1
C86: 14 | E86: 数量 | F86: ケース数量 | G86: 76 | H86: 9 | I86: 7 | K86: ○ | L86: 包装区分に準じた設定 | N86: (ケース数量 | O86: /ゼロ | P86: /ゼロ) | U86: 属性(ｽ) | V86: ○ | W86: ○ | X86: 76 | Y86: =IF($X86="","",VLOOKUP($X86,$AE$24:$AM$152,4,)) -> ケース数量 | Z86: 872 | AA86: 9 | AB86: 7 | AC86: 0 | AE86: 63 | AF86: 届け先カナ名 | AI86: 597 | AJ86: Ｘ | AK86: 30
C87: 15 | F87: ボール数量 | G87: 83 | H87: 9 | I87: 7 | K87: ○ | L87: 包装区分に準じた設定 | N87: (ゼロ | O87: /ボール数量 | P87: /ゼロ) | U87: 属性(ｽ) | V87: ○ | W87: ○ | X87: 77 | Y87: =IF($X87="","",VLOOKUP($X87,$AE$24:$AM$152,4,)) -> ボール数量 | Z87: 879 | AA87: 9 | AB87: 7 | AC87: 0 | AE87: 64 | AF87: 摘要カナ | AI87: 627 | AJ87: Ｘ | AK87: 30
C88: 16 | F88: バラ数量 | G88: 90 | H88: 9 | I88: 7 | J88: 2 | K88: ○ | L88: バラ数量 | U88: 属性(ｽ) | V88: ○ | W88: ○ | X88: 78 | Y88: =IF($X88="","",VLOOKUP($X88,$AE$24:$AM$152,4,)) -> バラ数量 | Z88: 886 | AA88: 9 | AB88: 7 | AC88: 2 | AE88: 65 | AF88: ヘッダー予備 | AI88: 657 | AJ88: X | AK88: 124
C89: 17 | E89: 単価 | F89: 卸店入価格 | G89: 99 | H89: 9 | I89: 6 | J89: 2 | K89: ○ | L89: 卸店入価格 | N89: (バラ単価) | U89: 属性(ｽ) | V89: ○ | W89: ○ | X89: 79 | Y89: =IF($X89="","",VLOOKUP($X89,$AE$24:$AM$152,4,)) -> 卸店入価格 | Z89: 895 | AA89: 9 | AB89: 6 | AC89: 2 | AE89: 66 | AF89: ヘッダー連携エリア | AI89: 781 | AJ89: X | AK89: 20
C90: 18 | F90: 二次店納入価格 | G90: 107 | H90: 9 | I90: 6 | J90: 2 | L90: 二次卸店等への納入価格 | N90: (バラ単価) | U90: 属性(ｽ) | V90: ○ | W90: ○ | X90: 80 | Y90: =IF($X90="","",VLOOKUP($X90,$AE$24:$AM$152,4,)) -> 二次店納入価格 | Z90: 903 | AA90: 9 | AB90: 6 | AC90: 2 | AF90: 明細部（４００バイト）
C91: 19 | E91: 金額符号 | G91: 115 | H91: X | I91: 1 | K91: ○ | L91: 金額の符号 | R91: ＋:正数 | S91: －:負数 | U91: ｺｰﾄﾞ | V91: ○ | W91: "△" → "+" | X91: 81 | Y91: =IF($X91="","",VLOOKUP($X91,$AE$24:$AM$152,3,)) -> 金額符号 | Z91: 911 | AA91: X | AB91: 1 | AC91: 0 | AE91: 67 | AG91: 明細行NO | AI91: 801 | AJ91: 9 | AK91: 2 | AM91: ○
C92: 20 | E92: 金額 | F92: 卸店入金額 | G92: 116 | H92: 9 | I92: 8 | K92: ○ | L92: 卸店入金額 | T92: 属性(ｻ) | U92: 属性(ｽ) | V92: ○ | W92: ○ | X92: 82 | Y92: =IF($X92="","",VLOOKUP($X92,$AE$24:$AM$152,4,)) -> 卸店入金額 | Z92: 912 | AA92: 9 | AB92: 8 | AC92: 0 | AE92: 68 | AG92: 専用伝票行NO | AI92: 803 | AJ92: 9 | AK92: 2
C93: 21 | F93: 二次店納入金額 | G93: 124 | H93: 9 | I93: 8 | L93: 二次卸店等への納入金額 | T93: 属性(ｻ) | U93: 属性(ｽ) | V93: ○ | W93: ○ | X93: 83 | Y93: =IF($X93="","",VLOOKUP($X93,$AE$24:$AM$152,4,)) -> 二次店納入金額 | Z93: 920 | AA93: 9 | AB93: 8 | AC93: 0 | AE93: 69 | AG93: 商品コード識別区分 | AI93: 805 | AJ93: 9 | AK93: 1
C94: 22 | E94: 数量違いフラグ | G94: 132 | H94: 9 | I94: 1 | K94: ○ | L94: 数量違い有無フラグ | R94: 1:数量違い有り | S94: 0:無し | U94: ｺｰﾄﾞ(旧) | V94: ○ | W94: 受領区分 | X94: 85 | Y94: =IF($X94="","",VLOOKUP($X94,$AE$24:$AM$152,3,)) -> 受領区分 | Z94: 929 | AA94: 9 | AB94: 2 | AC94: 0 | AE94: 70 | AG94: 品番 | AI94: 806 | AJ94: X | AK94: 16
C95: 23 | E95: 商品添付区分 | G95: 133 | H95: X | I95: 1 | K95: ○ | L95: 添付商品扱いの区分 | N95: (相対運用) | R95: △:売上 1:現物添付 | S95: 2:見本 3:景品 | U95: ｺｰﾄﾞ(旧) | V95: ○ | W95: ○ | X95: 84 | Y95: =IF($X95="","",VLOOKUP($X95,$AE$24:$AM$152,3,)) -> 商品添付区分 | Z95: 928 | AA95: X | AB95: 1 | AC95: 0 | AE95: 71 | AG95: 商品名 | AI95: 822 | AJ95: X/N | AK95: 40
C96: 24 | E96: 予備１ | G96: 134 | H96: X | I96: 3 | L96: 新フォーマット連携エリア間のデータ連携 | V96: ○ | W96: ○ | X96: 126 | Y96: =IF($X96="","",VLOOKUP($X96,$AE$24:$AM$152,3,)) -> 明細連携エリア | Z96: 1191 | AA96: X | AB96: 10 | AC96: 0 | AE96: 72 | AG96: 包装区分 | AI96: 862 | AJ96: 9 | AK96: 1 | AM96: ○
C97: 25 | D97: 予備２ | G97: 254 | H97: X | I97: 3 | L97: レイアウト拡張時の予備領域 | N97: (利用禁止） | V97: ○ | W97: 属性初期値 | Y97: =IF($X97="","",VLOOKUP($X97,$AE$24:$AM$152,2,)) ->  | AE97: 73 | AG97: 内容 | AH97: ボール内バラ数 | AI97: 863 | AJ97: 9 | AK97: 4 | AL97: 2
AE98: 74 | AH98: ケース内ボール数 | AI98: 869 | AJ98: 9 | AK98: 2
AE99: 75 | AG99: 数量符号 | AI99: 871 | AJ99: X | AK99: 1
AE100: 76 | AG100: 数量 | AH100: ケース数量 | AI100: 872 | AJ100: 9 | AK100: 7
AE101: 77 | AH101: ボール数量 | AI101: 879 | AJ101: 9 | AK101: 7
AE102: 78 | AH102: バラ数量 | AI102: 886 | AJ102: 9 | AK102: 7 | AL102: 2
D103: ④ トレーラレコード | AE103: 79 | AG103: 単価 | AH103: 卸店入価格 | AI103: 895 | AJ103: 9 | AK103: 6 | AL103: 2
B104: 変更 | C104: 項番 | D104: 項目 | G104: 開始位置 | H104: 属性 | I104: 整数桁 | J104: 小数桁 | K104: 必須 | L104: 項目説明 | R104: コード | T104: Ｖ１ → Ｖ１ | U104: Ｖ１ → Ｖ２ | V104: Ｖ１ ← Ｖ１ | W104: Ｖ１ ← Ｖ２ | X104: Ｖ２フォーマット | AE104: 80 | AH104: 二次店納入価格 | AI104: 903 | AJ104: 9 | AK104: 6 | AL104: 2
T105: センタチェック | U105: センタチェック | V105: コンバート | W105: コンバート | X105: 項番 | Y105: 項目 | Z105: 開始 | AA105: 属性 | AB105: 整数 | AC105: 小数 | AE105: 81 | AG105: 金額符号 | AI105: 911 | AJ105: X | AK105: 1
C106: 1 | D106: データ種別 | G106: 1 | H106: 9 | I106: 2 | K106: ◎ | L106: １２：受領データ | R106: 12 | T106: 共通部チェック (ｺﾝﾄﾛｰﾙ同値､ 軽症ｴﾗｰ) | U106: 共通部チェック (ｺﾝﾄﾛｰﾙ同値､ 軽症ｴﾗｰ) | V106: ○ | W106: "12"固定 | Y106: =IF($X106="","",VLOOKUP($X106,$AE$156:$AM$167,2,)) ->  | Z106: =IF($X106="","",VLOOKUP($X106,$AE$156:$AM$167,5,)) ->  | AA106: =IF($X106="","",VLOOKUP($X106,$AE$156:$AM$167,6,)) ->  | AB106: =IF($X106="","",VLOOKUP($X106,$AE$156:$AM$167,7,)) ->  | AC106: =IF($X106="","",VLOOKUP($X106,$AE$156:$AM$167,8,)) ->  | AE106: 82 | AG106: 金額 | AH106: 卸店入金額 | AI106: 912 | AJ106: 9 | AK106: 8
C107: 2 | D107: 送信先コード | G107: 3 | H107: 9 | I107: 8 | K107: ◎ | L107: 送信先(メーカ) | M107: の統一取引先コード | W107: ○ | X107: 2 | Y107: 送信先コード | Z107: 3 | AA107: 9 | AB107: 8 | AC107: 0 | AE107: 83 | AH107: 二次店納入金額 | AI107: 920 | AJ107: 9 | AK107: 8
C108: 3 | D108: 送信元コード | G108: 11 | H108: 9 | I108: 8 | K108: ◎ | L108: 送信元(卸) | M108: の統一取引先コード | W108: ○ | X108: 3 | Y108: 送信元コード | Z108: 11 | AA108: 9 | AB108: 8 | AC108: 0 | AE108: 84 | AG108: 商品添付区分 | AI108: 928 | AJ108: X | AK108: 1
C109: 4 | D109: レコード区分 | G109: 19 | H109: 9 | I109: 1 | K109: ◎ | L109: ９：トレーラレコード | R109: 9 | W109: ○ | X109: 4 | Y109: レコード区分 | Z109: 19 | AA109: 9 | AB109: 1 | AC109: 0 | AE109: 85 | AG109: 受領区分 | AI109: 929 | AJ109: 9 | AK109: 2
B110: 1.7 | C110: 5 | D110: レコード件数 | G110: 20 | H110: 9 | I110: 6 | K110: ○ | L110: コントロールレコードとトレーラレコードで括られたレコードの総件数 (コントロールレコードとトレーラレコードは含まない) ・データ送信側では、自身のフォーマットのレコード件数を設定する。 ・データ受信側では、当項目と実際のレコード件数の整合性チェックには利用しない。※下記【トレーラレコード連携時の留意事項】を参照のこと | T110: 属性 | U110: 属性(ｽ) | V110: ※ センター集計値 | W110: ※ センター集計値 | X110: 5 | Y110: レコード件数 | Z110: 20 | AA110: 9 | AB110: 6 | AC110: 0 | AE110: 86 | AG110: 入荷単位ケース数 | AI110: 931 | AJ110: 9 | AK110: 2
C111: 6 | D111: 伝票枚数 | G111: 26 | H111: 9 | I111: 6 | L111: 伝票枚数 | T111: 属性 | U111: 属性(ｽ) | V111: ※ センター集計値 | W111: ※ センター集計値 | X111: 6 | Y111: 伝票枚数 | Z111: 26 | AA111: 9 | AB111: 6 | AC111: 0 | AE111: 87 | AG111: 単価計算区分 | AI111: 933 | AJ111: X | AK111: 1
C112: 7 | D112: 合計金額符号 | G112: 32 | H112: X | I112: 1 | L112: 合計金額の符号 | R112: ＋:正数 | S112: －:負数 | U112: ｺｰﾄﾞ | V112: ※ センター設定 | W112: "△" → "+" ※ センター設定 | X112: 7 | Y112: 合計金額符号 | Z112: 32 | AA112: X | AB112: 1 | AC112: 0 | AE112: 88 | AG112: 卸発注行番号 | AI112: 934 | AJ112: 9 | AK112: 2
C113: 8 | D113: 合計金額 | G113: 33 | H113: 9 | I113: 10 | L113: 卸店入価格で全明細行の金額合計 | T113: 属性(ｻ) | U113: 属性(ｽ) | V113: ※ センター集計値 | W113: ※ センター集計値 | X113: 8 | Y113: 合計金額 | Z113: 33 | AA113: 9 | AB113: 10 | AC113: 0 | AE113: 89 | AG113: 卸最新在庫日付区分 | AI113: 936 | AJ113: X | AK113: 1
C114: 9 | D114: 予備 | G114: 43 | H114: X | I114: 214 | L114: レイアウト拡張時の予備領域 | N114: (利用禁止） | V114: ○ | W114: 属性初期値 | AE114: 90 | AG114: 卸最新在庫日付 | AI114: 937 | AJ114: 9 | AK114: 8
V115: ※ 配信分割時 | AE115: 91 | AG115: 入庫許容日付区分 | AI115: 945 | AJ115: X | AK115: 1
AE116: 92 | AG116: 入庫許容日付 | AI116: 946 | AJ116: 9 | AK116: 8
AE117: 93 | AG117: 実入庫製品日付区分 | AI117: 954 | AJ117: X | AK117: 1
AE118: 94 | AG118: 実入庫製品日付 | AI118: 955 | AJ118: 9 | AK118: 8
AE119: 95 | AG119: 製造ロット番号 | AI119: 963 | AJ119: X | AK119: 10
AE120: 96 | AG120: 温度管理区分 | AI120: 973 | AJ120: X | AK120: 1
AE121: 97 | AG121: 製品容器区分 | AI121: 974 | AJ121: 9 | AK121: 1
AE122: 98 | AF122: ③ トレーラレコード | AG122: 外箱GTIN(ITF)コード | AI122: 975 | AJ122: X | AK122: 14
AE123: 99 | AG123: 摘要 | AI123: 989 | AJ123: X/N | AK123: 50
AE124: 100 | AG124: 日本語区分（商品名） | AI124: 1039 | AJ124: X | AK124: 1
AE125: 101 | AG125: 日本語区分（摘要） | AI125: 1040 | AJ125: X | AK125: 1
AE126: 102 | AG126: 菓子業界商品分類コード | AI126: 1041 | AJ126: X | AK126: 6
AE127: 103 | AG127: 割戻1 | AH127: 割戻計算区分 | AI127: 1047 | AJ127: X | AK127: 1
AE128: 104 | AH128: 割戻区分 | AI128: 1048 | AJ128: X | AK128: 1
AE129: 105 | AH129: 割戻基準 | AI129: 1049 | AJ129: X | AK129: 1
AE130: 106 | AH130: 割戻率／単価 | AI130: 1050 | AJ130: 9 | AK130: 4 | AL130: 2
AE131: 107 | AH131: 割戻金額符号 | AI131: 1056 | AJ131: X | AK131: 1
AE132: 108 | AH132: 割戻金額 | AI132: 1057 | AJ132: 9 | AK132: 8
AE133: 109 | AH133: 割戻コード | AI133: 1065 | AJ133: X | AK133: 5
AE134: 110 | AG134: 割戻2 | AH134: 割戻計算区分 | AI134: 1070 | AJ134: X | AK134: 1
AE135: 111 | AH135: 割戻区分 | AI135: 1071 | AJ135: X | AK135: 1
AE136: 112 | AH136: 割戻基準 | AI136: 1072 | AJ136: X | AK136: 1
AE137: 113 | AH137: 割戻率／単価 | AI137: 1073 | AJ137: 9 | AK137: 4 | AL137: 2
AE138: 114 | AH138: 割戻金額符号 | AI138: 1079 | AJ138: X | AK138: 1
AE139: 115 | AH139: 割戻金額 | AI139: 1080 | AJ139: 9 | AK139: 8
AE140: 116 | AH140: 割戻コード | AI140: 1088 | AJ140: X | AK140: 5
AE141: 117 | AG141: 割戻3 | AH141: 割戻計算区分 | AI141: 1093 | AJ141: X | AK141: 1
AE142: 118 | AH142: 割戻区分 | AI142: 1094 | AJ142: X | AK142: 1
AE143: 119 | AH143: 割戻基準 | AI143: 1095 | AJ143: X | AK143: 1
AE144: 120 | AH144: 割戻率／単価 | AI144: 1096 | AJ144: 9 | AK144: 4 | AL144: 2
AE145: 121 | AH145: 割戻金額符号 | AI145: 1102 | AJ145: X | AK145: 1
AE146: 122 | AH146: 割戻金額 | AI146: 1103 | AJ146: 9 | AK146: 8
AE147: 123 | AH147: 割戻コード | AI147: 1111 | AJ147: X | AK147: 5
AE148: 124 | AG148: 商品名カナ | AI148: 1116 | AJ148: X | AK148: 25
AE149: 125 | AG149: 明細予備 | AI149: 1141 | AJ149: X | AK149: 50
AE150: 126 | AG150: 明細連携エリア | AI150: 1191 | AJ150: X | AK150: 10
AF153: ③ トレーラレコード
AE154: 項番 | AF154: 項目 | AI154: 開始位置 | AJ154: 属性 | AK154: 整数桁 | AL154: 小数桁 | AM154: 必須
AE156: 1 | AF156: データ種別 | AI156: 1 | AJ156: 9 | AK156: 2 | AM156: ○
AE157: 2 | AF157: 送信先コード | AI157: 3 | AJ157: 9 | AK157: 8 | AM157: ○
AE158: 3 | AF158: 送信元コード | AI158: 11 | AJ158: 9 | AK158: 8 | AM158: ○
AE159: 4 | AF159: レコード区分 | AI159: 19 | AJ159: 9 | AK159: 1 | AM159: ○
AE160: 5 | AF160: レコード件数 | AI160: 20 | AJ160: 9 | AK160: 6
AE161: 6 | AF161: 伝票枚数 | AI161: 26 | AJ161: 9 | AK161: 6
AE162: 7 | AF162: 合計金額符号 | AI162: 32 | AJ162: X | AK162: 1
AE163: 8 | AF163: 合計金額 | AI163: 33 | AJ163: 9 | AK163: 10
AE164: 9 | AF164: 予備 | AI164: 43 | AJ164: X | AK164: 1138
AE165: 10 | AF165: 連携エリア | AI165: 1181 | AJ165: X | AK165: 20

Sheet １９返品通知
AE1: =シート別総ページ数 -> 
C2: （４）Ｖ１・１９返品通知 | AE2: （４）Ｖ２・１８返品通知
D3: ① コントロールレコード | AF3: ① コントロールレコード
B4: 変更 | C4: 項番 | D4: 項目 | G4: 開始位置 | H4: 属性 | I4: 整数桁 | J4: 小数桁 | K4: 必須 | L4: 項目説明 | R4: コード | T4: Ｖ１ → Ｖ１ | U4: Ｖ１ → Ｖ２ | V4: Ｖ１ ← Ｖ１ | W4: Ｖ１ ← Ｖ２ | X4: Ｖ２フォーマット | AE4: 項番 | AF4: 項目 | AI4: 開始位置 | AJ4: 属性 | AK4: 整数桁 | AL4: 小数桁 | AM4: 必須
T5: センタチェック | U5: センタチェック | V5: コンバート | W5: コンバート | X5: 項番 | Y5: 項目 | Z5: 開始 | AA5: 属性 | AB5: 整数 | AC5: 小数
C6: 1 | D6: データ種別 | G6: 1 | H6: 9 | I6: 2 | K6: ◎ | L6: １９：返品通知データ | R6: 19 | T6: ｺｰﾄﾞ | U6: ｺｰﾄﾞ | V6: ○ | W6: "19"固定 | Y6: =IF($X6="","",VLOOKUP($X6,$AE$6:$AM$20,2,)) ->  | Z6: =IF($X6="","",VLOOKUP($X6,$AE$6:$AM$20,5,)) ->  | AA6: =IF($X6="","",VLOOKUP($X6,$AE$6:$AM$20,6,)) ->  | AB6: =IF($X6="","",VLOOKUP($X6,$AE$6:$AM$20,7,)) ->  | AC6: =IF($X6="","",VLOOKUP($X6,$AE$6:$AM$20,8,)) ->  | AE6: 1 | AF6: データ種別 | AI6: 1 | AJ6: 9 | AK6: 2 | AM6: ○
C7: 2 | D7: 送信先コード | G7: 3 | H7: 9 | I7: 8 | K7: ◎ | L7: 送信先(メーカ) | M7: の統一取引先コード | T7: センター登録 | U7: センター登録 | W7: ○ | X7: 2 | Y7: 送信先コード | Z7: 3 | AA7: 9 | AB7: 8 | AC7: 0 | AE7: 2 | AF7: 送信先コード | AI7: 3 | AJ7: 9 | AK7: 8 | AM7: ○
C8: 3 | D8: 送信元コード | G8: 11 | H8: 9 | I8: 8 | K8: ◎ | L8: 送信元(卸) | M8: の統一取引先コード | T8: センター登録 | U8: センター登録 | W8: ○ | X8: 3 | Y8: 送信元コード | Z8: 11 | AA8: 9 | AB8: 8 | AC8: 0 | AE8: 3 | AF8: 送信元コード | AI8: 11 | AJ8: 9 | AK8: 8 | AM8: ○
C9: 4 | D9: レコード区分 | G9: 19 | H9: 9 | I9: 1 | K9: ◎ | L9: １：コントロールレコード | R9: 1 | T9: ｺｰﾄﾞ | U9: ｺｰﾄﾞ | W9: ○ | X9: 4 | Y9: レコード区分 | Z9: 19 | AA9: 9 | AB9: 1 | AC9: 0 | AE9: 4 | AF9: レコード区分 | AI9: 19 | AJ9: 9 | AK9: 1 | AM9: ○
C10: 5 | D10: データ作成日 | G10: 20 | H10: 9 | I10: 8 | K10: ○ | L10: 本データを作成した日付 | N10: (西暦 YYYYMMDD) | U10: 必須＋日付 | V10: ○ | W10: ○ | X10: 5 | Y10: データ作成日 | Z10: 20 | AA10: 9 | AB10: 8 | AC10: 0 | AE10: 5 | AF10: データ作成日 | AI10: 20 | AJ10: 9 | AK10: 8 | AM10: ○
C11: 6 | D11: 送信先名 | G11: 28 | H11: X | I11: 20 | K11: ○ | L11: 送信先(メーカ) | M11: のカナ名称 | V11: ○ | W11: ○ | X11: 7 | Y11: 送信先名 | Z11: 34 | AA11: X | AB11: 20 | AC11: 0 | AE11: 6 | AF11: データ作成時刻 | AI11: 28 | AJ11: 9 | AK11: 6
C12: 7 | D12: 送信元名 | G12: 48 | H12: X | I12: 20 | K12: ○ | L12: 送信元(卸) | M12: のカナ名称 | U12: 必須 | V12: ○ | W12: ○ | X12: 8 | Y12: 送信元名 | Z12: 54 | AA12: X | AB12: 20 | AC12: 0 | AE12: 7 | AF12: 送信先名 | AI12: 34 | AJ12: X | AK12: 20
C13: 8 | D13: 直接送信先コード | G13: 68 | H13: 9 | I13: 8 | L13: 送信先と異なる場所へ送信する場合にセット。 セット不要の場合"00000000" | T13: センター登録 | U13: センター登録 | V13: ○ | W13: ○ | X13: 9 | Y13: 直接送信先コード | Z13: 74 | AA13: 9 | AB13: 8 | AC13: 0 | AE13: 8 | AF13: 送信元名 | AI13: 54 | AJ13: X | AK13: 20 | AM13: ○
C14: 9 | D14: 直接送信先カナ名 | G14: 76 | H14: X | I14: 20 | L14: 送信先と異なる場所へ送信する場合にセット。 セット不要の場合スペース | V14: ○ | W14: ○ | X14: 10 | Y14: 直接送信先名 | Z14: 82 | AA14: X | AB14: 20 | AC14: 0 | AE14: 9 | AF14: 直接送信先コード | AI14: 74 | AJ14: 9 | AK14: 8
C15: 10 | D15: 予備 | G15: 96 | H15: X | I15: 161 | L15: レイアウト拡張時の予備領域 | N15: (利用禁止） | V15: ○ | W15: 属性初期値 | AE15: 10 | AF15: 直接送信先名 | AI15: 82 | AJ15: X | AK15: 20
AE16: 11 | AF16: 送信ファイルNO | AI16: 102 | AJ16: 9 | AK16: 2
AE17: 12 | AF17: 予備 | AI17: 104 | AJ17: X | AK17: 1077
AE18: 13 | AF18: 連携エリア | AI18: 1181 | AJ18: X | AK18: 20
D21: ② ヘッダーレコード | AF21: ② ヘッダー／明細レコード
B22: 変更 | C22: 項番 | D22: 項目 | G22: 開始位置 | H22: 属性 | I22: 整数桁 | J22: 小数桁 | K22: 必須 | L22: 項目説明 | R22: コード | T22: Ｖ１ → Ｖ１ | U22: Ｖ１ → Ｖ２ | V22: Ｖ１ ← Ｖ１ | W22: Ｖ１ ← Ｖ２ | X22: Ｖ２フォーマット | AE22: 項番 | AF22: 項目 | AI22: 開始位置 | AJ22: 属性 | AK22: 整数桁 | AL22: 小数桁 | AM22: 必須
T23: センタチェック | U23: センタチェック | V23: コンバート | W23: コンバート | X23: 項番 | Y23: 項目 | Z23: 開始 | AA23: 属性 | AB23: 整数 | AC23: 小数
C24: 1 | D24: データ種別 | G24: 1 | H24: 9 | I24: 2 | K24: ◎ | L24: １９：返品通知データ | R24: 19 | T24: 共通部チェック (ｺﾝﾄﾛｰﾙ同値､ 軽症ｴﾗｰ) | U24: 共通部チェック (ｺﾝﾄﾛｰﾙ同値､ 軽症ｴﾗｰ) | V24: ○ | W24: "19"固定 | Y24: =IF($X24="","",VLOOKUP($X24,$AE$24:$AM$127,2,)) ->  | Z24: =IF($X24="","",VLOOKUP($X24,$AE$24:$AM$127,5,)) ->  | AA24: =IF($X24="","",VLOOKUP($X24,$AE$24:$AM$127,6,)) ->  | AB24: =IF($X24="","",VLOOKUP($X24,$AE$24:$AM$127,7,)) ->  | AC24: =IF($X24="","",VLOOKUP($X24,$AE$24:$AM$127,8,)) ->  | AE24: 1 | AF24: データ種別 | AI24: 1 | AJ24: 9 | AK24: 2 | AM24: ○
C25: 2 | D25: 送信先コード | G25: 3 | H25: 9 | I25: 8 | K25: ◎ | L25: 送信先(メーカ) | M25: の統一取引先コード | W25: ○ | X25: 2 | Y25: 送信先コード | Z25: 3 | AA25: 9 | AB25: 8 | AC25: 0 | AE25: 2 | AF25: 送信先コード | AI25: 3 | AJ25: 9 | AK25: 8 | AM25: ○
C26: 3 | D26: 送信元コード | G26: 11 | H26: 9 | I26: 8 | K26: ◎ | L26: 送信元(卸) | M26: の統一取引先コード | W26: ○ | X26: 3 | Y26: 送信元コード | Z26: 11 | AA26: 9 | AB26: 8 | AC26: 0 | AE26: 3 | AF26: 送信元コード | AI26: 11 | AJ26: 9 | AK26: 8 | AM26: ○
C27: 4 | D27: レコード区分 | G27: 19 | H27: 9 | I27: 1 | K27: ◎ | L27: ２：ヘッダーレコード | R27: 2 | W27: "2"固定 | AE27: 4 | AF27: レコード区分 | AI27: 19 | AJ27: 9 | AK27: 1 | AM27: ○
C28: 5 | D28: 卸伝票NO | G28: 20 | H28: 9 | I28: 6 | K28: ○ | L28: 返品伝票NO | U28: 属性(ｽ) | V28: ○ | W28: 下６桁 | X28: 6 | Y28: 卸発注伝票NO | Z28: 21 | AA28: 9 | AB28: 8 | AC28: 0 | AE28: 5 | AF28: 漢字コード区分 | AI28: 20 | AJ28: X | AK28: 1
C29: 6 | D29: 店入直送区分 | G29: 26 | H29: 9 | I29: 1 | L29: 店(倉)入れまたは直送等の区分 | R29: 1:店入 | U29: ｺｰﾄﾞ | V29: ○ | W29: "1"･"3" → "1" その他 → "2" | X29: 7 | Y29: 店入直送区分 | Z29: 29 | AA29: 9 | AB29: 1 | AC29: 0 | AE29: 6 | AF29: 卸発注伝票NO | AI29: 21 | AJ29: 9 | AK29: 8
B30: 2.6 | C30: 7 | D30: 取引コード | G30: 27 | H30: 9 | I30: 2 | K30: ○ | L30: 業界統一取引コード | R30: 11:店入売上 12:店入売上訂正 21:店入返品 22:店入返品訂正 31:直送売上 32:直送売上訂正 | S30: 41:直送返品 42:直送返品訂正 51:割戻し金 52:相殺 81:ﾒｰｶｰ提供の役務 91:卸提供の役務 | U30: ｺｰﾄﾞ | V30: ○ | W30: ○ | X30: 8 | Y30: 取引コード | Z30: 30 | AA30: 9 | AB30: 2 | AC30: 0 | AE30: 7 | AF30: 店入直送区分 | AI30: 29 | AJ30: 9 | AK30: 1
C31: 8 | D31: 返品日 | G31: 29 | H31: 9 | I31: 8 | K31: ○ | L31: 返品日 | N31: (西暦 YYYYMMDD) | U31: 必須＋日付 | V31: ○ | W31: ○ | X31: 9 | Y31: 返品日 | Z31: 32 | AA31: 9 | AB31: 8 | AC31: 0 | AE31: 8 | AF31: 取引コード | AI31: 30 | AJ31: 9 | AK31: 2
C32: 9 | D32: 明細行数 | G32: 37 | H32: 9 | I32: 2 | K32: ○ | L32: 伝票内明細数 | U32: 属性(ｽ) | V32: ○ | W32: ○ | X32: 13 | Y32: 明細行数 | Z32: 56 | AA32: 9 | AB32: 2 | AC32: 0 | AE32: 9 | AF32: 返品日 | AI32: 32 | AJ32: 9 | AK32: 8 | AM32: ○
B33: 2.1 | C33: 10 | D33: 一次店コード | G33: 39 | H33: 9 | I33: 8 | L33: ゼロ | V33: ○ | W33: 8桁以上:上8桁 | X33: 14 | Y33: 一次店コード | Z33: 58 | AA33: X | AB33: 13 | AC33: 0 | AE33: 10 | AF33: 納入時間（自） | AI33: 40 | AJ33: 9 | AK33: 4
B34: 2.1 | C34: 11 | D34: 二次店コード | G34: 47 | H34: 9 | I34: 8 | L34: ゼロ | V34: ○ | W34: 8桁未満:前ゼロ＋有効桁 | X34: 15 | Y34: 二次店コード | Z34: 71 | AA34: X | AB34: 13 | AC34: 0 | AE34: 11 | AF34: 納入時間（至） | AI34: 44 | AJ34: 9 | AK34: 4
B35: 2.1 | C35: 12 | D35: 届け先コード | G35: 55 | H35: 9 | I35: 8 | L35: ゼロ | V35: ○ | X35: 17 | Y35: 届け先コード | Z35: 97 | AA35: X | AB35: 13 | AC35: 0 | AE35: 12 | AF35: 発注日 | AI35: 48 | AJ35: 9 | AK35: 8
C36: 13 | D36: 専用伝票日付 | G36: 63 | H36: 9 | I36: 8 | L36: 返品伝票が専用伝票の場合にセット | N36: (西暦 YYYYMMDD、セット不要の場合はゼロ) | U36: 日付 | V36: ○ | W36: ○ | X36: 19 | Y36: 専用伝票日付 | Z36: 123 | AA36: 9 | AB36: 8 | AC36: 0 | AE36: 13 | AF36: 明細行数 | AI36: 56 | AJ36: 9 | AK36: 2
C37: 14 | D37: 専用伝票NO | G37: 71 | H37: 9 | I37: 9 | L37: 返品伝票が専用伝票の場合にセット | N37: (セット不要の場合はゼロ) | U37: 属性(ｽ) | V37: ○ | W37: ○ | X37: 20 | Y37: 専用伝票NO | Z37: 131 | AA37: 9 | AB37: 9 | AC37: 0 | AE37: 14 | AF37: 一次店コード | AI37: 58 | AJ37: X | AK37: 13 | AM37: ○
C38: 15 | D38: 伝票合計金額符号 | G38: 80 | H38: X | I38: 1 | K38: ○ | L38: 伝票の合計金額の符号 | R38: ＋:正数 | S38: －:負数 | U38: ｺｰﾄﾞ | V38: ○ | W38: "△" → "+" | X38: 21 | Y38: 伝票合計金額符号 | Z38: 140 | AA38: X | AB38: 1 | AC38: 0 | AE38: 15 | AF38: 二次店コード | AI38: 71 | AJ38: X | AK38: 13
C39: 16 | D39: 伝票合計金額 | G39: 81 | H39: 9 | I39: 8 | K39: ○ | L39: 伝票の合計金額 | N39: (卸店入価格) | T39: 属性(ｻ) | U39: 属性(ｽ) | V39: ○ | W39: ○ | X39: 22 | Y39: 伝票合計金額 | Z39: 141 | AA39: 9 | AB39: 8 | AC39: 0 | AE39: 16 | AF39: 三次店コード | AI39: 84 | AJ39: X | AK39: 13
B40: 1.1 | C40: 17 | D40: 一次店カナ名 | G40: 89 | H40: X | I40: 30 | L40: スペース | V40: ○ | W40: 日本語区分(一次店)が 漢字 ：一次店カナ名 その他：一次店名 | X40: 25 56 | Y40: 一次店名 一次店カナ名 | Z40: 158 631 | AA40: X/N Ｘ | AB40: 40 30 | AC40: 0 | AE40: 17 | AF40: 届け先コード | AI40: 97 | AJ40: X | AK40: 13
B41: 1.1 | C41: 18 | D41: 二次店カナ名 | G41: 119 | H41: X | I41: 30 | L41: スペース | V41: ○ | W41: 日本語区分(二次店)が 漢字 ：二次店カナ名 その他：二次店名 | X41: 26 57 | Y41: 二次店名 二次店カナ名 | Z41: 198 661 | AA41: X/N Ｘ | AB41: 40 30 | AC41: 0 | AE41: 18 | AF41: チェーン店コード | AI41: 110 | AJ41: X | AK41: 13
B42: 1.1 | C42: 19 | D42: 届け先カナ名 | G42: 149 | H42: X | I42: 30 | L42: スペース | V42: ○ | W42: 日本語区分(届け先)が 漢字 ：届け先カナ名 その他：届け先名 | X42: 28 58 | Y42: 届け先名 届け先カナ名 | Z42: 278 691 | AA42: X/N Ｘ | AB42: 40 30 | AC42: 0 | AE42: 19 | AF42: 専用伝票日付 | AI42: 123 | AJ42: 9 | AK42: 8
C43: 20 | D43: メーカ所属組織名 | G43: 179 | H43: X | I43: 10 | L43: スペース | V43: ○ | W43: ○ | X43: 33 | Y43: メーカ所属組織名 | Z43: 462 | AA43: X | AB43: 10 | AC43: 0 | AE43: 20 | AF43: 専用伝票NO | AI43: 131 | AJ43: 9 | AK43: 9
B44: 1.1 | C44: 21 | D44: 摘要欄 | G44: 189 | H44: X | I44: 30 | L44: 伝票の摘要欄の内容 | V44: ○ | W44: 日本語区分(摘要)が 漢字 ：摘要カナ その他：摘要 | X44: 43 59 | Y44: 摘要 摘要カナ | Z44: 569 721 | AA44: X/N Ｘ | AB44: 50 30 | AC44: 0 | AE44: 21 | AF44: 伝票合計金額符号 | AI44: 140 | AJ44: X | AK44: 1
C45: 22 | D45: メーカコード | G45: 219 | H45: X | I45: 9 | K45: ○ | L45: 国コード２桁を含むメーカコード | N45: (７桁の場合左詰め後ろスペース) | V45: ○ | W45: ○ | X45: 32 | Y45: メーカコード | Z45: 453 | AA45: X | AB45: 9 | AC45: 0 | AE45: 22 | AF45: 伝票合計金額 | AI45: 141 | AJ45: 9 | AK45: 8
C46: 23 | D46: 予備 | G46: 228 | H46: X | I46: 29 | L46: 新フォーマット連携エリア間のデータ連携 | N46: (卸発注伝票NO８桁化対応） | V46: ○ | W46: 卸発注伝票NO上２桁 | X46: 6 | Y46: 卸発注伝票NO | Z46: 21 | AA46: 9 | AB46: 8 | AC46: 0 | AE46: 23 | AF46: 二次店納入合計金額符号 | AI46: 149 | AJ46: X | AK46: 1
AE47: 24 | AF47: 二次店納入合計金額 | AI47: 150 | AJ47: 9 | AK47: 8
AE48: 25 | AF48: 一次店名 | AI48: 158 | AJ48: X/N | AK48: 40
AE49: 26 | AF49: 二次店名 | AI49: 198 | AJ49: X/N | AK49: 40
AE50: 27 | AF50: 三次店名 | AI50: 238 | AJ50: X/N | AK50: 40
AE51: 28 | AF51: 届け先名 | AI51: 278 | AJ51: X/N | AK51: 40
AE52: 29 | AF52: チェーン店名 | AI52: 318 | AJ52: X/N | AK52: 40
AE53: 30 | AF53: 電話番号 | AI53: 358 | AJ53: X | AK53: 15
AE54: 31 | AF54: 住所 | AI54: 373 | AJ54: X/N | AK54: 80
AE55: 32 | AF55: メーカコード | AI55: 453 | AJ55: X | AK55: 9
AE56: 33 | AF56: メーカ所属組織名 | AI56: 462 | AJ56: X | AK56: 10
AE57: 34 | AF57: 伝票区分 | AI57: 472 | AJ57: 9 | AK57: 1
AE58: 35 | AF58: 定番特売区分 | AI58: 473 | AJ58: X | AK58: 1
AE59: 36 | AF59: ロット不足運賃負担区分 | AI59: 474 | AJ59: X | AK59: 1
AE60: 37 | AF60: 下請法 | AH60: 伝票表示区分 | AI60: 475 | AJ60: X | AK60: 1
AE61: 38 | AH61: 伝票表示内容 | AI61: 476 | AJ61: X | AK61: 80
AE62: 39 | AH62: 日本語区分（表示） | AI62: 556 | AJ62: X | AK62: 1
AE63: 40 | AH63: 支払期限 | AI63: 557 | AJ63: 9 | AK63: 8
AE64: 41 | AF64: 消費税区分 | AI64: 565 | AJ64: X | AK64: 1
D65: ③ 明細レコード | AE65: 42 | AF65: 消費税率 | AI65: 566 | AJ65: 9 | AK65: 2 | AL65: 1
B66: 変更 | C66: 項番 | D66: 項目 | G66: 開始位置 | H66: 属性 | I66: 整数桁 | J66: 小数桁 | K66: 必須 | L66: 項目説明 | R66: コード | T66: Ｖ１ → Ｖ１ | U66: Ｖ１ → Ｖ２ | V66: Ｖ１ ← Ｖ１ | W66: Ｖ１ ← Ｖ２ | X66: Ｖ２フォーマット | AE66: 43 | AF66: 摘要 | AI66: 569 | AJ66: X/N | AK66: 50
T67: センタチェック | U67: センタチェック | V67: コンバート | W67: コンバート | X67: 項番 | Y67: 項目 | Z67: 開始 | AA67: 属性 | AB67: 整数 | AC67: 小数 | AE67: 44 | AF67: 取引先区分（一次店） | AI67: 619 | AJ67: X | AK67: 1
C68: 1 | D68: データ種別 | G68: 1 | H68: 9 | I68: 2 | K68: ◎ | L68: １９：返品通知データ | R68: 19 | T68: 共通部チェック (ｺﾝﾄﾛｰﾙ同値､ 軽症ｴﾗｰ) | U68: 共通部チェック (ｺﾝﾄﾛｰﾙ同値､ 軽症ｴﾗｰ) | V68: ○ | W68: "19"固定 | Y68: =IF($X68="","",VLOOKUP($X68,$AE$24:$AM$125,2,)) ->  | Z68: =IF($X68="","",VLOOKUP($X68,$AE$24:$AM$125,5,)) ->  | AA68: =IF($X68="","",VLOOKUP($X68,$AE$24:$AM$125,6,)) ->  | AB68: =IF($X68="","",VLOOKUP($X68,$AE$24:$AM$125,7,)) ->  | AC68: =IF($X68="","",VLOOKUP($X68,$AE$24:$AM$125,8,)) ->  | AE68: 45 | AF68: 取引先区分（二次店） | AI68: 620 | AJ68: X | AK68: 1
C69: 2 | D69: 送信先コード | G69: 3 | H69: 9 | I69: 8 | K69: ◎ | L69: 送信先(メーカ) | M69: の統一取引先コード | W69: ○ | X69: 2 | Y69: =IF($X69="","",VLOOKUP($X69,$AE$24:$AM$125,2,)) -> 送信先コード | Z69: 3 | AA69: 9 | AB69: 8 | AC69: 0 | AE69: 46 | AF69: 取引先区分（三次店） | AI69: 621 | AJ69: X | AK69: 1
C70: 3 | D70: 送信元コード | G70: 11 | H70: 9 | I70: 8 | K70: ◎ | L70: 送信元(卸) | M70: の統一取引先コード | W70: ○ | X70: 3 | Y70: =IF($X70="","",VLOOKUP($X70,$AE$24:$AM$125,2,)) -> 送信元コード | Z70: 11 | AA70: 9 | AB70: 8 | AC70: 0 | AE70: 47 | AF70: 取引先区分（届け先） | AI70: 622 | AJ70: X | AK70: 1
C71: 4 | D71: レコード区分 | G71: 19 | H71: 9 | I71: 1 | K71: ◎ | L71: ４：明細レコード | R71: 4 | W71: "4"固定 | Y71: =IF($X71="","",VLOOKUP($X71,$AE$24:$AM$125,2,)) ->  | AE71: 48 | AF71: 取引先区分（チェーン店） | AI71: 623 | AJ71: X | AK71: 1
D72: 明細部繰返（１１７バイト × ２明細） ※明細レコードがショートブロック（レコード中１明細）の場合、ALL SPACEを設定する。 | Y72: =IF($X72="","",VLOOKUP($X72,$AE$24:$AM$125,2,)) ->  | AE72: 49 | AF72: 日本語区分（一次店） | AI72: 624 | AJ72: X | AK72: 1
C73: 5 | E73: 行NO | G73: 20 | H73: 9 | I73: 2 | K73: ○ | L73: 明細行NO | R73: 01～06 | U73: 必須＋ｺｰﾄﾞ | V73: ○ | W73: ○ | X73: 62 | Y73: =IF($X73="","",VLOOKUP($X73,$AE$24:$AM$125,3,)) -> 明細行NO | Z73: 801 | AA73: 9 | AB73: 2 | AC73: 0 | AE73: 50 | AF73: 日本語区分（二次店） | AI73: 625 | AJ73: X | AK73: 1
C74: 6 | E74: 専用伝票行NO | G74: 22 | H74: 9 | I74: 2 | L74: 専用伝票の行NO | R74: 00～99 | U74: ｺｰﾄﾞ | V74: ○ | W74: ○ | X74: 63 | Y74: 専用伝票行NO | Z74: 803 | AA74: 9 | AB74: 2 | AC74: 0 | AE74: 51 | AF74: 日本語区分（三次店） | AI74: 626 | AJ74: X | AK74: 1
C75: 7 | E75: 商品コード識別区分 | G75: 24 | H75: X | I75: 1 | K75: ○ | L75: 業界統一取引コード | R75: 0:統一商品コード 1:ＩＴＦコード(14桁) 2:ＩＴＦｺｰﾄﾞ(拡張16桁) 3:JANコード(標準:13桁) 4:JANコード(短縮:8桁) 6:GTINコード(14桁) | U75: 必須＋コード(新) "2"は連携不可 | V75: ○ | W75: ○ | X75: 64 | Y75: 商品コード識別区分 | Z75: 805 | AA75: 9 | AB75: 1 | AC75: 0 | AE75: 52 | AF75: 日本語区分（届け先） | AI75: 627 | AJ75: X | AK75: 1
C76: 8 | E76: 品番 | G76: 25 | H76: X | I76: 16 | K76: ○ | L76: 統一商品ｺｰﾄﾞ，ITFｺｰﾄﾞ，JANｺｰﾄﾞまたはGTINｺｰﾄﾞ（左詰め） | V76: ○ | W76: ○ | X76: 65 | Y76: 品番 | Z76: 806 | AA76: X | AB76: 16 | AC76: 0 | AE76: 53 | AF76: 日本語区分（チェーン店） | AI76: 628 | AJ76: X | AK76: 1
B77: 1.1 | C77: 9 | E77: 商品名 | G77: 41 | H77: X | I77: 25 | K77: ○ | L77: 商品名をセット | V77: ○ | W77: 日本語区分(商品名)が 漢字 ：商品名カナ その他：商品名 | X77: 66 92 | Y77: 商品名 商品名カナ | Z77: 822 1011 | AA77: X/N X | AB77: 40 25 | AC77: 0 | AE77: 54 | AF77: 日本語区分（住所） | AI77: 629 | AJ77: X | AK77: 1
C78: 10 | E78: 包装区分 | G78: 66 | H78: 9 | I78: 1 | K78: ○ | L78: 数量の発注単位の区分 | N78: (1:ケース発注時) | O78: (2:ボール発注時) | P78: (3:バラ発注時) | R78: 1:ケース発注 2:ボール発注 | S78: 3:バラ発注 | U78: 必須＋ｺｰﾄﾞ | V78: ○ | W78: ○ | X78: 67 | Y78: 包装区分 | Z78: 862 | AA78: 9 | AB78: 1 | AC78: 0 | AE78: 55 | AF78: 日本語区分（摘要） | AI78: 630 | AJ78: X | AK78: 1
C79: 11 | E79: 内容 | F79: ボール内バラ数 | G79: 67 | H79: 9 | I79: 4 | J79: 2 | K79: ○ | L79: 包装区分に準じた設定 | N79: (ボール内バラ数 | O79: /ボール内バラ数 | P79: /ゼロ) | U79: 属性(ｽ) | V79: ○ | W79: ○ | X79: 68 | Y79: =IF($X79="","",VLOOKUP($X79,$AE$24:$AM$125,4,)) -> ボール内バラ数 | Z79: 863 | AA79: 9 | AB79: 4 | AC79: 2 | AE79: 56 | AF79: 一次店カナ名 | AI79: 631 | AJ79: Ｘ | AK79: 30
C80: 12 | F80: ケース内ボール数 | G80: 73 | H80: 9 | I80: 2 | K80: ○ | L80: 包装区分に準じた設定 | N80: (ケース内ボール数 | O80: /ゼロ | P80: /ゼロ) | U80: 属性(ｽ) | V80: ○ | W80: ○ | X80: 69 | Y80: =IF($X80="","",VLOOKUP($X80,$AE$24:$AM$125,4,)) -> ケース内ボール数 | Z80: 869 | AA80: 9 | AB80: 2 | AC80: 0 | AE80: 57 | AF80: 二次店カナ名 | AI80: 661 | AJ80: Ｘ | AK80: 30
C81: 13 | E81: 数量符号 | G81: 75 | H81: X | I81: 1 | K81: ○ | L81: 数量の符号 | R81: ＋:正数 | S81: －:負数 | U81: ｺｰﾄﾞ | V81: ○ | W81: "△" → "+" | X81: 70 | Y81: =IF($X81="","",VLOOKUP($X81,$AE$24:$AM$125,3,)) -> 数量符号 | Z81: 871 | AA81: X | AB81: 1 | AC81: 0 | AE81: 58 | AF81: 届け先カナ名 | AI81: 691 | AJ81: Ｘ | AK81: 30
C82: 14 | E82: 数量 | F82: ケース数量 | G82: 76 | H82: 9 | I82: 7 | K82: ○ | L82: 包装区分に準じた設定 | N82: (ケース数量 | O82: /ゼロ | P82: /ゼロ) | U82: 属性(ｽ) | V82: ○ | W82: ○ | X82: 71 | Y82: =IF($X82="","",VLOOKUP($X82,$AE$24:$AM$125,4,)) -> ケース数量 | Z82: 872 | AA82: 9 | AB82: 7 | AC82: 0 | AE82: 59 | AF82: 摘要カナ | AI82: 721 | AJ82: Ｘ | AK82: 30
C83: 15 | F83: ボール数量 | G83: 83 | H83: 9 | I83: 7 | K83: ○ | L83: 包装区分に準じた設定 | N83: (ゼロ | O83: /ボール数量 | P83: /ゼロ) | U83: 属性(ｽ) | V83: ○ | W83: ○ | X83: 72 | Y83: =IF($X83="","",VLOOKUP($X83,$AE$24:$AM$125,4,)) -> ボール数量 | Z83: 879 | AA83: 9 | AB83: 7 | AC83: 0 | AE83: 60 | AF83: ヘッダー予備 | AI83: 631 | AJ83: X | AK83: 150
C84: 16 | F84: バラ数量 | G84: 90 | H84: 9 | I84: 7 | J84: 2 | K84: ○ | L84: バラ数量 | U84: 属性(ｽ) | V84: ○ | W84: ○ | X84: 73 | Y84: =IF($X84="","",VLOOKUP($X84,$AE$24:$AM$125,4,)) -> バラ数量 | Z84: 886 | AA84: 9 | AB84: 7 | AC84: 2 | AE84: 61 | AF84: ヘッダー連携エリア | AI84: 781 | AJ84: X | AK84: 20
C85: 17 | E85: 単価 | F85: 卸店入価格 | G85: 99 | H85: 9 | I85: 6 | J85: 2 | K85: ○ | L85: 卸店入価格 | N85: (バラ単価) | U85: 属性(ｽ) | V85: ○ | W85: ○ | X85: 74 | Y85: =IF($X85="","",VLOOKUP($X85,$AE$24:$AM$125,4,)) -> 卸店入価格 | Z85: 895 | AA85: 9 | AB85: 6 | AC85: 2 | AF85: 明細部（４００バイト）
C86: 18 | F86: 二次店納入価格 | G86: 107 | H86: 9 | I86: 6 | J86: 2 | L86: 二次卸店等への納入価格 | N86: (バラ単価) | U86: 属性(ｽ) | V86: ○ | W86: ○ | X86: 75 | Y86: =IF($X86="","",VLOOKUP($X86,$AE$24:$AM$125,4,)) -> 二次店納入価格 | Z86: 903 | AA86: 9 | AB86: 6 | AC86: 2 | AE86: 62 | AG86: 明細行NO | AI86: 801 | AJ86: 9 | AK86: 2 | AM86: ○
C87: 19 | E87: 金額符号 | G87: 115 | H87: X | I87: 1 | K87: ○ | L87: 金額の符号 | R87: ＋:正数 | S87: －:負数 | U87: ｺｰﾄﾞ | V87: ○ | W87: "△" → "+" | X87: 76 | Y87: =IF($X87="","",VLOOKUP($X87,$AE$24:$AM$125,3,)) -> 金額符号 | Z87: 911 | AA87: X | AB87: 1 | AC87: 0 | AE87: 63 | AG87: 専用伝票行NO | AI87: 803 | AJ87: 9 | AK87: 2
C88: 20 | E88: 金額 | F88: 卸店入金額 | G88: 116 | H88: 9 | I88: 8 | K88: ○ | L88: 卸店入金額 | T88: 属性(ｻ) | U88: 属性(ｽ) | V88: ○ | W88: ○ | X88: 77 | Y88: =IF($X88="","",VLOOKUP($X88,$AE$24:$AM$125,4,)) -> 卸店入金額 | Z88: 912 | AA88: 9 | AB88: 8 | AC88: 0 | AE88: 64 | AG88: 商品コード識別区分 | AI88: 805 | AJ88: 9 | AK88: 1
C89: 21 | F89: 二次店納入金額 | G89: 124 | H89: 9 | I89: 8 | L89: 二次卸店等への納入金額 | T89: 属性(ｻ) | U89: 属性(ｽ) | V89: ○ | W89: ○ | X89: 78 | Y89: =IF($X89="","",VLOOKUP($X89,$AE$24:$AM$125,4,)) -> 二次店納入金額 | Z89: 920 | AA89: 9 | AB89: 8 | AC89: 0 | AE89: 65 | AG89: 品番 | AI89: 806 | AJ89: X | AK89: 16
C90: 22 | E90: 返品区分 | G90: 132 | H90: X | I90: 1 | L90: 当面使用しない | R90: △ | U90: ｺｰﾄﾞ | V90: ○ | W90: ○ | X90: 79 | Y90: =IF($X90="","",VLOOKUP($X90,$AE$24:$AM$125,3,)) -> 返品区分 | Z90: 928 | AA90: X | AB90: 1 | AC90: 0 | AE90: 66 | AG90: 商品名 | AI90: 822 | AJ90: X/N | AK90: 40
B91: 2.5 2.7 | C91: 23 | E91: 資産譲渡日付 | G91: 133 | H91: X | I91: 4 | L91: 資産譲渡日付 | N91: (西暦 YYMM） | V91: ○ | W91: ○ | X91: 93 | Y91: =IF($X91="","",VLOOKUP($X91,$AE$24:$AM$125,3,)) -> 資産譲渡日付 | Z91: 1036 | AA91: X | AB91: 4 | AC91: 0 | AE91: 67 | AG91: 包装区分 | AI91: 862 | AJ91: 9 | AK91: 1 | AM91: ○
C92: 24 | D92: 予備２ | G92: 254 | H92: X | I92: 3 | L92: レイアウト拡張時の予備領域 | N92: (利用禁止） | V92: ○ | W92: 属性初期値 | Y92: =IF($X92="","",VLOOKUP($X92,$AE$24:$AM$125,2,)) ->  | AE92: 68 | AG92: 内容 | AH92: ボール内バラ数 | AI92: 863 | AJ92: 9 | AK92: 4 | AL92: 2
AE93: 69 | AH93: ケース内ボール数 | AI93: 869 | AJ93: 9 | AK93: 2
AE94: 70 | AG94: 数量符号 | AI94: 871 | AJ94: X | AK94: 1
AE95: 71 | AG95: 数量 | AH95: ケース数量 | AI95: 872 | AJ95: 9 | AK95: 7
AE96: 72 | AH96: ボール数量 | AI96: 879 | AJ96: 9 | AK96: 7
AE97: 73 | AH97: バラ数量 | AI97: 886 | AJ97: 9 | AK97: 7 | AL97: 2
D98: ④ トレーラレコード | AE98: 74 | AG98: 単価 | AH98: 卸店入価格 | AI98: 895 | AJ98: 9 | AK98: 6 | AL98: 2
B99: 変更 | C99: 項番 | D99: 項目 | G99: 開始位置 | H99: 属性 | I99: 整数桁 | J99: 小数桁 | K99: 必須 | L99: 項目説明 | R99: コード | T99: Ｖ１ → Ｖ１ | U99: Ｖ１ → Ｖ２ | V99: Ｖ１ ← Ｖ１ | W99: Ｖ１ ← Ｖ２ | X99: Ｖ２フォーマット | AE99: 75 | AH99: 二次店納入価格 | AI99: 903 | AJ99: 9 | AK99: 6 | AL99: 2
T100: センタチェック | U100: センタチェック | V100: コンバート | W100: コンバート | X100: 項番 | Y100: 項目 | Z100: 開始 | AA100: 属性 | AB100: 整数 | AC100: 小数 | AE100: 76 | AG100: 金額符号 | AI100: 911 | AJ100: X | AK100: 1
C101: 1 | D101: データ種別 | G101: 1 | H101: 9 | I101: 2 | K101: ◎ | L101: １９：返品通知データ | R101: 19 | T101: 共通部チェック (ｺﾝﾄﾛｰﾙ同値､ 軽症ｴﾗｰ) | U101: 共通部チェック (ｺﾝﾄﾛｰﾙ同値､ 軽症ｴﾗｰ) | V101: ○ | W101: "19"固定 | Y101: =IF($X101="","",VLOOKUP($X101,$AE$131:$AM$142,2,)) ->  | Z101: =IF($X101="","",VLOOKUP($X101,$AE$131:$AM$142,5,)) ->  | AA101: =IF($X101="","",VLOOKUP($X101,$AE$131:$AM$142,6,)) ->  | AB101: =IF($X101="","",VLOOKUP($X101,$AE$131:$AM$142,7,)) ->  | AC101: =IF($X101="","",VLOOKUP($X101,$AE$131:$AM$142,8,)) ->  | AE101: 77 | AG101: 金額 | AH101: 卸店入金額 | AI101: 912 | AJ101: 9 | AK101: 8
C102: 2 | D102: 送信先コード | G102: 3 | H102: 9 | I102: 8 | K102: ◎ | L102: 送信先(メーカ) | M102: の統一取引先コード | W102: ○ | X102: 2 | Y102: 送信先コード | Z102: 3 | AA102: 9 | AB102: 8 | AC102: 0 | AE102: 78 | AH102: 二次店納入金額 | AI102: 920 | AJ102: 9 | AK102: 8
C103: 3 | D103: 送信元コード | G103: 11 | H103: 9 | I103: 8 | K103: ◎ | L103: 送信元(卸) | M103: の統一取引先コード | W103: ○ | X103: 3 | Y103: 送信元コード | Z103: 11 | AA103: 9 | AB103: 8 | AC103: 0 | AE103: 79 | AG103: 返品区分 | AI103: 928 | AJ103: X | AK103: 1
C104: 4 | D104: レコード区分 | G104: 19 | H104: 9 | I104: 1 | K104: ◎ | L104: ９：トレーラレコード | R104: 9 | W104: ○ | X104: 4 | Y104: レコード区分 | Z104: 19 | AA104: 9 | AB104: 1 | AC104: 0 | AE104: 80 | AG104: 入荷単位ケース数 | AI104: 929 | AJ104: 9 | AK104: 2
B105: 1.7 | C105: 5 | D105: レコード件数 | G105: 20 | H105: 9 | I105: 6 | K105: ○ | L105: コントロールレコードとトレーラレコードで括られたレコードの総件数 (コントロールレコードとトレーラレコードは含まない) ・データ送信側では、自身のフォーマットのレコード件数を設定する。 ・データ受信側では、当項目と実際のレコード件数の整合性チェックには利用しない。※下記【トレーラレコード連携時の留意事項】を参照のこと | T105: 属性 | U105: 属性(ｽ) | V105: ※ センター集計値 | W105: ※ センター集計値 | X105: 5 | Y105: レコード件数 | Z105: 20 | AA105: 9 | AB105: 6 | AC105: 0 | AE105: 81 | AG105: 卸発注行番号 | AI105: 931 | AJ105: 9 | AK105: 2
C106: 6 | D106: 伝票枚数 | G106: 26 | H106: 9 | I106: 6 | L106: 伝票枚数 | T106: 属性 | U106: 属性(ｽ) | V106: ※ センター集計値 | W106: ※ センター集計値 | X106: 6 | Y106: 伝票枚数 | Z106: 26 | AA106: 9 | AB106: 6 | AC106: 0 | AE106: 82 | AG106: 納入単価表示区分 | AI106: 933 | AJ106: X | AK106: 1
C107: 7 | D107: 合計金額符号 | G107: 32 | H107: X | I107: 1 | L107: 合計金額の符号 | R107: ＋:正数 | S107: －:負数 | U107: ｺｰﾄﾞ | V107: ※ センター設定 | W107: "△" → "+" ※ センター設定 | X107: 7 | Y107: 合計金額符号 | Z107: 32 | AA107: X | AB107: 1 | AC107: 0 | AE107: 83 | AG107: 卸最新在庫日付区分 | AI107: 934 | AJ107: X | AK107: 1
C108: 8 | D108: 合計金額 | G108: 33 | H108: 9 | I108: 10 | L108: 卸店入価格で全明細行の金額合計 | T108: 属性(ｻ) | U108: 属性(ｽ) | V108: ※ センター集計値 | W108: ※ センター集計値 | X108: 8 | Y108: 合計金額 | Z108: 33 | AA108: 9 | AB108: 10 | AC108: 0 | AE108: 84 | AG108: 卸最新在庫日付 | AI108: 935 | AJ108: 9 | AK108: 8
C109: 9 | D109: 予備 | G109: 43 | H109: X | I109: 214 | L109: レイアウト拡張時の予備領域 | N109: (利用禁止） | V109: ○ | W109: 属性初期値 | AE109: 85 | AG109: 入庫許容日付区分 | AI109: 943 | AJ109: X | AK109: 1
V110: ※ 配信分割時 | AE110: 86 | AG110: 入庫許容日付 | AI110: 944 | AJ110: 9 | AK110: 8
AE111: 87 | AG111: 温度管理区分 | AI111: 952 | AJ111: X | AK111: 1
AE112: 88 | AG112: 摘要 | AI112: 953 | AJ112: X/N | AK112: 50
AE113: 89 | AG113: 日本語区分（商品名） | AI113: 1003 | AJ113: X | AK113: 1
AE114: 90 | AG114: 日本語区分（摘要） | AI114: 1004 | AJ114: X | AK114: 1
AE115: 91 | AF115: ③ トレーラレコード | AG115: 菓子業界商品分類コード | AI115: 1005 | AJ115: X | AK115: 6
AE116: 92 | AG116: 商品名カナ | AI116: 1011 | AJ116: X | AK116: 25
AE117: 93 | AG117: 資産譲渡日付 | AI117: 1036 | AJ117: X | AK117: 4
AE118: 94 | AG118: 明細予備 | AI118: 1040 | AJ118: X | AK118: 151
AE119: 95 | AG119: 明細連携エリア | AI119: 1191 | AJ119: X | AK119: 10
AF128: ③ トレーラレコード
AE129: 項番 | AF129: 項目 | AI129: 開始位置 | AJ129: 属性 | AK129: 整数桁 | AL129: 小数桁 | AM129: 必須
AE131: 1 | AF131: データ種別 | AI131: 1 | AJ131: 9 | AK131: 2 | AM131: ○
AE132: 2 | AF132: 送信先コード | AI132: 3 | AJ132: 9 | AK132: 8 | AM132: ○
AE133: 3 | AF133: 送信元コード | AI133: 11 | AJ133: 9 | AK133: 8 | AM133: ○
AE134: 4 | AF134: レコード区分 | AI134: 19 | AJ134: 9 | AK134: 1 | AM134: ○
AE135: 5 | AF135: レコード件数 | AI135: 20 | AJ135: 9 | AK135: 6
AE136: 6 | AF136: 伝票枚数 | AI136: 26 | AJ136: 9 | AK136: 6
AE137: 7 | AF137: 合計金額符号 | AI137: 32 | AJ137: X | AK137: 1
AE138: 8 | AF138: 合計金額 | AI138: 33 | AJ138: 9 | AK138: 10
AE139: 9 | AF139: 予備 | AI139: 43 | AJ139: X | AK139: 1138
AE140: 10 | AF140: 連携エリア | AI140: 1181 | AJ140: X | AK140: 20

Sheet ２２出荷報告
AE1: =シート別総ページ数 -> 
C2: （５）Ｖ１・２２出荷報告 | AE2: （５）Ｖ２・２３出荷報告
D3: ① コントロールレコード | AF3: ① コントロールレコード
B4: 変更 | C4: 項番 | D4: 項目 | G4: 開始位置 | H4: 属性 | I4: 整数桁 | J4: 小数桁 | K4: 必須 | L4: 項目説明 | R4: コード | T4: Ｖ１ → Ｖ１ | U4: Ｖ１ → Ｖ２ | V4: Ｖ１ ← Ｖ１ | W4: Ｖ１ ← Ｖ２ | X4: Ｖ２フォーマット | AE4: 項番 | AF4: 項目 | AI4: 開始位置 | AJ4: 属性 | AK4: 整数桁 | AL4: 小数桁 | AM4: 必須
T5: センタチェック | U5: センタチェック | V5: コンバート | W5: コンバート | X5: 項番 | Y5: 項目 | Z5: 開始 | AA5: 属性 | AB5: 整数 | AC5: 小数
C6: 1 | D6: データ種別 | G6: 1 | H6: 9 | I6: 2 | K6: ◎ | L6: ２２：出荷報告(直送)データ | R6: 22 | T6: ｺｰﾄﾞ | U6: ｺｰﾄﾞ | V6: ○ | W6: "22"固定 | Y6: =IF($X6="","",VLOOKUP($X6,$AE$6:$AM$20,2,)) ->  | Z6: =IF($X6="","",VLOOKUP($X6,$AE$6:$AM$20,5,)) ->  | AA6: =IF($X6="","",VLOOKUP($X6,$AE$6:$AM$20,6,)) ->  | AB6: =IF($X6="","",VLOOKUP($X6,$AE$6:$AM$20,7,)) ->  | AC6: =IF($X6="","",VLOOKUP($X6,$AE$6:$AM$20,8,)) ->  | AE6: 1 | AF6: データ種別 | AI6: 1 | AJ6: 9 | AK6: 2 | AM6: ○
C7: 2 | D7: 送信先コード | G7: 3 | H7: 9 | I7: 8 | K7: ◎ | L7: 送信先(卸) | M7: の統一取引先コード | T7: センター登録 | U7: センター登録 | W7: ○ | X7: 2 | Y7: 送信先コード | Z7: 3 | AA7: 9 | AB7: 8 | AC7: 0 | AE7: 2 | AF7: 送信先コード | AI7: 3 | AJ7: 9 | AK7: 8 | AM7: ○
C8: 3 | D8: 送信元コード | G8: 11 | H8: 9 | I8: 8 | K8: ◎ | L8: 送信元(メーカ) | M8: の統一取引先コード | T8: センター登録 | U8: センター登録 | W8: ○ | X8: 3 | Y8: 送信元コード | Z8: 11 | AA8: 9 | AB8: 8 | AC8: 0 | AE8: 3 | AF8: 送信元コード | AI8: 11 | AJ8: 9 | AK8: 8 | AM8: ○
C9: 4 | D9: レコード区分 | G9: 19 | H9: 9 | I9: 1 | K9: ◎ | L9: １：コントロールレコード | R9: 1 | T9: ｺｰﾄﾞ | U9: ｺｰﾄﾞ | W9: ○ | X9: 4 | Y9: レコード区分 | Z9: 19 | AA9: 9 | AB9: 1 | AC9: 0 | AE9: 4 | AF9: レコード区分 | AI9: 19 | AJ9: 9 | AK9: 1 | AM9: ○
C10: 5 | D10: データ作成日 | G10: 20 | H10: 9 | I10: 8 | K10: ○ | L10: 本データを作成した日付 | N10: (西暦 YYYYMMDD) | U10: 必須＋日付 | V10: ○ | W10: ○ | X10: 5 | Y10: データ作成日 | Z10: 20 | AA10: 9 | AB10: 8 | AC10: 0 | AE10: 5 | AF10: データ作成日 | AI10: 20 | AJ10: 9 | AK10: 8 | AM10: ○
C11: 6 | D11: 送信先名 | G11: 28 | H11: X | I11: 20 | K11: ○ | L11: 送信元(卸) | M11: のカナ名称 | V11: ○ | W11: ○ | X11: 7 | Y11: 送信先名 | Z11: 34 | AA11: X | AB11: 20 | AC11: 0 | AE11: 6 | AF11: データ作成時刻 | AI11: 28 | AJ11: 9 | AK11: 6
C12: 7 | D12: 送信元名 | G12: 48 | H12: X | I12: 20 | K12: ○ | L12: 送信先(メーカ) | M12: のカナ名称 | U12: 必須 | V12: ○ | W12: ○ | X12: 8 | Y12: 送信元名 | Z12: 54 | AA12: X | AB12: 20 | AC12: 0 | AE12: 7 | AF12: 送信先名 | AI12: 34 | AJ12: X | AK12: 20
C13: 8 | D13: 直接送信先コード | G13: 68 | H13: 9 | I13: 8 | L13: 送信先と異なる場所へ送信する場合にセット。 セット不要の場合"00000000" | T13: センター登録 | U13: センター登録 | V13: ○ | W13: ○ | X13: 9 | Y13: 直接送信先コード | Z13: 74 | AA13: 9 | AB13: 8 | AC13: 0 | AE13: 8 | AF13: 送信元名 | AI13: 54 | AJ13: X | AK13: 20 | AM13: ○
C14: 9 | D14: 直接送信先カナ名 | G14: 76 | H14: X | I14: 20 | L14: 送信先と異なる場所へ送信する場合にセット。 セット不要の場合スペース | V14: ○ | W14: ○ | X14: 10 | Y14: 直接送信先名 | Z14: 82 | AA14: X | AB14: 20 | AC14: 0 | AE14: 9 | AF14: 直接送信先コード | AI14: 74 | AJ14: 9 | AK14: 8
C15: 10 | D15: 予備 | G15: 96 | H15: X | I15: 161 | L15: レイアウト拡張時の予備領域 | N15: (利用禁止） | V15: ○ | W15: 属性初期値 | AE15: 10 | AF15: 直接送信先名 | AI15: 82 | AJ15: X | AK15: 20
Y16: =IF($U16="","",VLOOKUP($U16,$AD$6:$AN$20,2,)) ->  | Z16: =IF($U16="","",VLOOKUP($U16,$AD$6:$AN$20,5,)) ->  | AA16: =IF($U16="","",VLOOKUP($U16,$AD$6:$AN$20,6,)) ->  | AB16: =IF($U16="","",VLOOKUP($U16,$AD$6:$AN$20,7,)) ->  | AC16: =IF($U16="","",VLOOKUP($U16,$AD$6:$AN$20,8,)) ->  | AE16: 11 | AF16: 送信ファイルNO | AI16: 102 | AJ16: 9 | AK16: 2
Y17: =IF($U17="","",VLOOKUP($U17,$AD$6:$AN$20,2,)) ->  | Z17: =IF($U17="","",VLOOKUP($U17,$AD$6:$AN$20,5,)) ->  | AA17: =IF($U17="","",VLOOKUP($U17,$AD$6:$AN$20,6,)) ->  | AB17: =IF($U17="","",VLOOKUP($U17,$AD$6:$AN$20,7,)) ->  | AC17: =IF($U17="","",VLOOKUP($U17,$AD$6:$AN$20,8,)) ->  | AE17: 12 | AF17: 予備 | AI17: 104 | AJ17: X | AK17: 1077
AE18: 13 | AF18: 連携エリア | AI18: 1181 | AJ18: X | AK18: 20
D21: ② ヘッダーレコード | AF21: ② ヘッダーレコード
B22: 変更 | C22: 項番 | D22: 項目 | G22: 開始位置 | H22: 属性 | I22: 整数桁 | J22: 小数桁 | K22: 必須 | L22: 項目説明 | R22: コード | T22: Ｖ１ → Ｖ１ | U22: Ｖ１ → Ｖ２ | V22: Ｖ１ ← Ｖ１ | W22: Ｖ１ ← Ｖ２ | X22: Ｖ２フォーマット | AE22: 項番 | AF22: 項目 | AI22: 開始位置 | AJ22: 属性 | AK22: 整数桁 | AL22: 小数桁 | AM22: 必須
T23: センタチェック | U23: センタチェック | V23: コンバート | W23: コンバート | X23: 項番 | Y23: 項目 | Z23: 開始 | AA23: 属性 | AB23: 整数 | AC23: 小数
C24: 1 | D24: データ種別 | G24: 1 | H24: 9 | I24: 2 | K24: ◎ | L24: ２２：出荷報告(直送)データ | R24: 22 | T24: 共通部チェック (ｺﾝﾄﾛｰﾙ同値､ 軽症ｴﾗｰ) | U24: 共通部チェック (ｺﾝﾄﾛｰﾙ同値､ 軽症ｴﾗｰ) | V24: ○ | W24: "22”固定 | Y24: =IF($X24="","",VLOOKUP($X24,$AE$24:$AM$131,2,)) ->  | Z24: =IF($X24="","",VLOOKUP($X24,$AE$24:$AM$131,5,)) ->  | AA24: =IF($X24="","",VLOOKUP($X24,$AE$24:$AM$131,6,)) ->  | AB24: =IF($X24="","",VLOOKUP($X24,$AE$24:$AM$131,7,)) ->  | AC24: =IF($X24="","",VLOOKUP($X24,$AE$24:$AM$131,8,)) ->  | AE24: 1 | AF24: データ種別 | AI24: 1 | AJ24: 9 | AK24: 2 | AM24: ○
C25: 2 | D25: 送信先コード | G25: 3 | H25: 9 | I25: 8 | K25: ◎ | L25: 送信先(卸) | M25: の統一取引先コード | W25: ○ | X25: 2 | Y25: =IF($X25="","",VLOOKUP($X25,$AE$24:$AM$154,2,)) -> 送信先コード | Z25: =IF($X25="","",VLOOKUP($X25,$AE$24:$AM$154,5,)) -> 3 | AA25: =IF($X25="","",VLOOKUP($X25,$AE$24:$AM$154,6,)) -> 9 | AB25: =IF($X25="","",VLOOKUP($X25,$AE$24:$AM$154,7,)) -> 8 | AC25: =IF($X25="","",VLOOKUP($X25,$AE$24:$AM$154,8,)) -> 0 | AE25: 2 | AF25: 送信先コード | AI25: 3 | AJ25: 9 | AK25: 8 | AM25: ○
C26: 3 | D26: 送信元コード | G26: 11 | H26: 9 | I26: 8 | K26: ◎ | L26: 送信元(メーカ) | M26: の統一取引先コード | W26: ○ | X26: 3 | Y26: 送信元コード | Z26: 11 | AA26: 9 | AB26: 8 | AC26: 0 | AE26: 3 | AF26: 送信元コード | AI26: 11 | AJ26: 9 | AK26: 8 | AM26: ○
C27: 4 | D27: レコード区分 | G27: 19 | H27: 9 | I27: 1 | K27: ◎ | L27: ２：ヘッダーレコード | R27: 2 | W27: "2"固定 | AE27: 4 | AF27: レコード区分 | AI27: 19 | AJ27: 9 | AK27: 1 | AM27: ○
C28: 5 | D28: 伝票NO | G28: 20 | H28: 9 | I28: 6 | K28: ○ | L28: メーカ発行伝票NO | U28: 属性(ｽ) | V28: ○ | W28: 下６桁 | X28: 7 | Y28: メーカ伝票NO | Z28: 29 | AA28: 9 | AB28: 8 | AC28: 0 | AE28: 5 | AF28: 漢字コード区分 | AI28: 20 | AJ28: X | AK28: 1
C29: 6 | D29: 店入直送区分 | G29: 26 | H29: 9 | I29: 1 | K29: ○ | L29: 店(倉)入れまたは直送等の区分 | R29: 1:店入 | S29: 2:直送 | U29: 必須＋ｺｰﾄﾞ | V29: ○ | W29: "1"･"3" → "1" その他 → "2" | X29: 8 | Y29: 店入直送区分 | Z29: 37 | AA29: 9 | AB29: 1 | AC29: 0 | AE29: 6 | AF29: 卸発注伝票NO | AI29: 21 | AJ29: 9 | AK29: 8
B30: 2.6 | C30: 7 | D30: 取引コード | G30: 27 | H30: 9 | I30: 2 | K30: ○ | L30: 業界統一取引コード | R30: 11:店入売上 12:店入売上訂正 21:店入返品 22:店入返品訂正 31:直送売上 32:直送売上訂正 | S30: 41:直送返品 42:直送返品訂正 51:割戻し金 52:相殺 81:ﾒｰｶｰ提供の役務 91:卸提供の役務 | U30: 必須＋ｺｰﾄﾞ | V30: ○ | W30: ○ | X30: 9 | Y30: 取引コード | Z30: 38 | AA30: 9 | AB30: 2 | AC30: 0 | AE30: 7 | AF30: メーカ伝票NO | AI30: 29 | AJ30: 9 | AK30: 8
C31: 8 | D31: 取引年月日 | G31: 29 | H31: 9 | I31: 8 | K31: ○ | L31: 納品年月日 | N31: (西暦 YYYYMMDD) | U31: 日付 | V31: ○ | W31: ○ | X31: 10 | Y31: 取引年月日 | Z31: 40 | AA31: 9 | AB31: 8 | AC31: 0 | AE31: 8 | AF31: 店入直送区分 | AI31: 37 | AJ31: 9 | AK31: 1 | AM31: ○
C32: 9 | D32: 予備 | G32: 37 | H32: X | I32: 4 | L32: スペース | N32: (未使用) | V32: ○ | W32: 属性初期値 | AE32: 9 | AF32: 取引コード | AI32: 38 | AJ32: 9 | AK32: 2 | AM32: ○
C33: 10 | D33: 明細行数 | G33: 41 | H33: 9 | I33: 2 | K33: ○ | L33: 伝票内明細数 | U33: 属性(ｽ) | V33: ○ | W33: ○ | X33: 21 | Y33: 明細行数 | Z33: 95 | AA33: 9 | AB33: 2 | AC33: 0 | AE33: 10 | AF33: 取引年月日 | AI33: 40 | AJ33: 9 | AK33: 8
B34: 2.1 | C34: 11 | D34: 一次店コード | G34: 43 | H34: 9 | I34: 8 | K34: ○ | L34: 該当する統一取引先コード | U34: 必須 | V34: ○ | W34: 8桁以上:上8桁 8桁未満:前ゼロ＋有効桁 | X34: 22 | Y34: 一次店コード | Z34: 97 | AA34: X | AB34: 13 | AC34: 0 | AE34: 11 | AF34: 出荷年月日 | AI34: 48 | AJ34: 9 | AK34: 8
B35: 2.1 1.3 | C35: 12 | D35: 二次店コード | G35: 51 | H35: 9 | I35: 8 | L35: 該当する統一取引先コード | V35: ○ | W35: GLN時:下８桁 GLN以外8桁以上:上８桁 GLN以外8桁未満:前ｾﾞﾛ+ 有効桁 | X35: 23 | Y35: 二次店コード | Z35: 110 | AA35: X | AB35: 13 | AC35: 0 | AE35: 12 | AF35: 着荷予定日 | AI35: 56 | AJ35: 9 | AK35: 8
B36: 2.1 1.3 | C36: 13 | D36: 届け先コード | G36: 59 | H36: 9 | I36: 8 | K36: ○ | L36: 該当する統一取引先コード | N36: (一次店・二次店と重複の場合も必須) | V36: ○ | X36: 25 | Y36: 届け先コード | Z36: 136 | AA36: X | AB36: 13 | AC36: 0 | AE36: 13 | AF36: 納入予定時間 | AI36: 64 | AJ36: 9 | AK36: 4
C37: 14 | D37: 専用伝票日付 | G37: 67 | H37: 9 | I37: 8 | L37: 納品伝票が専用伝票の場合にセット | N37: (西暦 YYYYMMDD、セット不要の場合はゼロ) | U37: 日付 | V37: ○ | W37: ○ | X37: 27 | Y37: 専用伝票日付 | Z37: 162 | AA37: 9 | AB37: 8 | AC37: 0 | AE37: 14 | AF37: 倉庫コード | AI37: 68 | AJ37: X | AK37: 4
C38: 15 | D38: 専用伝票NO | G38: 75 | H38: 9 | I38: 9 | L38: 納品伝票が専用伝票の場合にセット | N38: (セット不要の場合はゼロ) | U38: 属性(ｽ) | V38: ○ | W38: ○ | X38: 28 | Y38: 専用伝票NO | Z38: 170 | AA38: 9 | AB38: 9 | AC38: 0 | AE38: 15 | AF38: 伝送区分 | AI38: 72 | AJ38: X | AK38: 1
C39: 16 | D39: 伝票合計金額符号 | G39: 84 | H39: X | I39: 1 | K39: ○ | L39: 伝票合計金額の符号 | R39: ＋:正数 | S39: －:負数 | U39: ｺｰﾄﾞ | V39: "△" → "+" | W39: "△" → "+" | X39: 31 | Y39: 伝票合計金額符号 | Z39: 195 | AA39: X | AB39: 1 | AC39: 0 | AE39: 16 | AF39: 出荷報告以外区分 | AI39: 73 | AJ39: X | AK39: 1
C40: 17 | D40: 伝票合計金額 | G40: 85 | H40: 9 | I40: 8 | K40: ○ | L40: 伝票の合計金額 | N40: (卸店入価格) | T40: 属性(ｻ) | U40: 属性(ｽ) | V40: ○ | W40: ○ | X40: 32 | Y40: 伝票合計金額 | Z40: 196 | AA40: 9 | AB40: 8 | AC40: 0 | AE40: 17 | AF40: 集計明細区分 | AI40: 74 | AJ40: X | AK40: 1
C41: 18 | D41: 二次店納入金額符号 | G41: 93 | H41: X | I41: 1 | L41: 正味納入金額の符号 | R41: ＋:正数 | S41: －:負数 | U41: ｺｰﾄﾞ | V41: "△" → "+" | W41: "△" → "+" | X41: 33 | Y41: 二次店納入合計金額符号 | Z41: 204 | AA41: X | AB41: 1 | AC41: 0 | AE41: 18 | AF41: 請求締日 | AI41: 75 | AJ41: 9 | AK41: 8
C42: 19 | D42: 二次店納入合計金額 | G42: 94 | H42: 9 | I42: 8 | L42: 正味納入金額 | N42: (二次店が量販店等) | T42: 属性(ｻ) | U42: 属性(ｽ) | V42: ○ | W42: ○ | X42: 34 | Y42: 二次店納入合計金額 | Z42: 205 | AA42: 9 | AB42: 8 | AC42: 0 | AE42: 19 | AF42: 請求口座 | AI42: 83 | AJ42: X | AK42: 10
B43: 1.1 | C43: 20 | D43: 一次店カナ名 | G43: 102 | H43: X | I43: 30 | K43: ○ | L43: 一次店名 | V43: ○ | W43: 日本語区分(一次店)が 漢字 ：一次店カナ名 その他：一次店名 | X43: 35 63 | Y43: 一次店名 一次店カナ名 | Z43: 213 597 | AA43: X/N Ｘ | AB43: 40 30 | AC43: 0 | AE43: 20 | AF43: 請求支払区分 | AI43: 93 | AJ43: 9 | AK43: 2
B44: 1.1 | C44: 21 | D44: 二次店カナ名 | G44: 132 | H44: X | I44: 30 | L44: 二次店名 | V44: ○ | W44: 日本語区分(二次店)が 漢字 ：二次店カナ名 その他：二次店名 | X44: 36 64 | Y44: 二次店名 二次店カナ名 | Z44: 253 627 | AA44: X/N Ｘ | AB44: 40 30 | AC44: 0 | AE44: 21 | AF44: 明細行数 | AI44: 95 | AJ44: 9 | AK44: 2
B45: 1.1 | C45: 22 | D45: 届け先カナ名 | G45: 162 | H45: X | I45: 30 | K45: ○ | L45: 届け先名 | V45: ○ | W45: 日本語区分(届け先)が 漢字 ：届け先カナ名 その他：届け先名 | X45: 38 65 | Y45: 届け先名 届け先カナ名 | Z45: 38 657 | AA45: X/N Ｘ | AB45: 40 30 | AC45: 0 | AE45: 22 | AF45: 一次店コード | AI45: 97 | AJ45: X | AK45: 13 | AM45: ○
C46: 23 | D46: 元伝日付 | G46: 192 | H46: 9 | I46: 8 | L46: メーカで訂正した場合に元伝票の納品日をセット | O46: (西暦 YYYYMMDD) | U46: 日付 | V46: ○ | W46: ○ | X46: 29 | Y46: =IF($X46="","",VLOOKUP($X46,$AE$24:$AM$154,2,)) -> 元伝年月日 | Z46: =IF($X46="","",VLOOKUP($X46,$AE$24:$AM$154,5,)) -> 179 | AA46: =IF($X46="","",VLOOKUP($X46,$AE$24:$AM$154,6,)) -> 9 | AB46: =IF($X46="","",VLOOKUP($X46,$AE$24:$AM$154,7,)) -> 8 | AC46: =IF($X46="","",VLOOKUP($X46,$AE$24:$AM$154,8,)) -> 0 | AE46: 23 | AF46: 二次店コード | AI46: 110 | AJ46: X | AK46: 13
C47: 24 | D47: 元伝NO | G47: 200 | H47: 9 | I47: 6 | L47: メーカで訂正した場合に元伝票の伝票NOをセット | O47: (前ゼロ) | U47: 属性(ｽ) | V47: ○ | W47: 下６桁 | X47: 30 | Y47: =IF($X47="","",VLOOKUP($X47,$AE$24:$AM$154,2,)) -> 元伝NO | Z47: =IF($X47="","",VLOOKUP($X47,$AE$24:$AM$154,5,)) -> 187 | AA47: =IF($X47="","",VLOOKUP($X47,$AE$24:$AM$154,6,)) -> 9 | AB47: =IF($X47="","",VLOOKUP($X47,$AE$24:$AM$154,7,)) -> 8 | AC47: =IF($X47="","",VLOOKUP($X47,$AE$24:$AM$154,8,)) -> 0 | AE47: 24 | AF47: 三次店コード | AI47: 123 | AJ47: X | AK47: 13
B48: 1.1 | C48: 25 | D48: 摘要欄 | G48: 206 | H48: X | I48: 30 | L48: 伝票の摘要欄の内容 | V48: ○ | W48: 日本語区分(摘要)が 漢字 ：摘要カナ その他：摘要 | X48: 42 66 | Y48: 摘要 摘要カナ | Z48: 508 687 | AA48: X/N Ｘ | AB48: 50 30 | AC48: 0 | AE48: 25 | AF48: 届け先コード | AI48: 136 | AJ48: X | AK48: 13
C49: 26 | D49: メーカ所属組織名 | G49: 236 | H49: X | I49: 10 | L49: メーカの伝発組織名 | V49: ○ | W49: ○ | X49: 44 | Y49: =IF($X49="","",VLOOKUP($X49,$AE$24:$AM$154,2,)) -> メーカ所属組織名 | Z49: =IF($X49="","",VLOOKUP($X49,$AE$24:$AM$154,5,)) -> 567 | AA49: =IF($X49="","",VLOOKUP($X49,$AE$24:$AM$154,6,)) -> X | AB49: =IF($X49="","",VLOOKUP($X49,$AE$24:$AM$154,7,)) -> 10 | AC49: =IF($X49="","",VLOOKUP($X49,$AE$24:$AM$154,8,)) -> 0 | AE49: 26 | AF49: チェーン店コード | AI49: 149 | AJ49: X | AK49: 13
C50: 27 | D50: 伝票区分 | G50: 246 | H50: 9 | I50: 1 | K50: ○ | L50: 伝票発行の区分 | O50: 0:菓子統一伝票 1:ﾁｪｰﾝｽﾄｱ統一伝票 (OCR、タイプ用で伝票№が印刷されていないもの) 2:専用伝票 (専用伝票(チェーンストア統一伝票手書用を含む)で 専用伝票No.をレコード中に表示できるもの) 3:専用伝票だが、レコード中に元伝№を表示できないもの 4:チェーンストア統一伝票 （ターンアラウンド用） 8:伝票レス | U50: ｺｰﾄﾞ(新) | V50: ○ | W50: ○ | X50: 45 | Y50: 伝票区分 | Z50: 577 | AA50: 9 | AB50: 1 | AC50: 0 | AE50: 27 | AF50: 専用伝票日付 | AI50: 162 | AJ50: 9 | AK50: 8
C51: 28 | D51: 卸伝票ＮＯ | G51: 247 | H51: 9 | I51: 6 | L51: 受発注データの伝票ＮＯ 直送返品時は返品ＮＯ 受発注データで受けた場合は必ずセット | U51: 属性(ｽ) | V51: ○ | W51: 下６桁 | X51: 6 | Y51: 卸発注伝票NO | Z51: 21 | AA51: 9 | AB51: 8 | AC51: 0 | AE51: 28 | AF51: 専用伝票NO | AI51: 170 | AJ51: 9 | AK51: 9
C52: 29 | D52: 定番特売区分 | G52: 253 | H52: X | I52: 1 | K52: ○ | L52: 定番発注/特売発注の区分 | R52: 0:定番 | S52: 1:特売 | V52: ○ | W52: "0"･”1”以外→"0" | X52: 47 | Y52: 定番特売区分 | Z52: 579 | AA52: X | AB52: 1 | AC52: 0 | AE52: 29 | AF52: 元伝年月日 | AI52: 179 | AJ52: 9 | AK52: 8
C53: 30 | D53: 登録店区分 | G53: 254 | H53: X | I53: 1 | K53: ○ | L53: メーカの登録店区分 | R53: 0:登録店以外 | S53: 1:登録店 | U53: ｺｰﾄﾞ | V53: ○ | W53: ○ | X53: 46 | Y53: 登録店区分 | Z53: 578 | AA53: X | AB53: 1 | AC53: 0 | AE53: 30 | AF53: 元伝NO | AI53: 187 | AJ53: 9 | AK53: 8
C54: 31 | D54: 予備 | G54: 255 | H54: X | I54: 2 | L54: レイアウト拡張時の予備領域 | N54: (卸発注伝票NO８桁化対応） | V54: ○ | W54: 卸発注伝票NO上2桁 | X54: 6 | Y54: 卸発注伝票NO | Z54: 21 | AA54: 9 | AB54: 8 | AC54: 0 | AE54: 31 | AF54: 伝票合計金額符号 | AI54: 195 | AJ54: X | AK54: 1
Y55: =IF($U57="","",VLOOKUP($U57,$AD$27:$AN$54,2,)) ->  | Z55: =IF($U57="","",VLOOKUP($U57,$AD$6:$AN$54,5,)) ->  | AA55: =IF($U57="","",VLOOKUP($U57,$AD$6:$AN$54,6,)) ->  | AB55: =IF($U57="","",VLOOKUP($U57,$AD$6:$AN$54,7,)) ->  | AC55: =IF($U57="","",VLOOKUP($U57,$AD$6:$AN$54,8,)) ->  | AE55: 32 | AF55: 伝票合計金額 | AI55: 196 | AJ55: 9 | AK55: 8 | AM55: ○
AE56: 33 | AF56: 二次店納入合計金額符号 | AI56: 204 | AJ56: X | AK56: 1
D57: ③ 明細レコード | AE57: 34 | AF57: 二次店納入合計金額 | AI57: 205 | AJ57: 9 | AK57: 8
B58: 変更 | C58: 項番 | D58: 項目 | G58: 開始位置 | H58: 属性 | I58: 整数桁 | J58: 小数桁 | K58: 必須 | L58: 項目説明 | R58: コード | T58: Ｖ１ → Ｖ１ | U58: Ｖ１ → Ｖ２ | V58: Ｖ１ ← Ｖ１ | W58: Ｖ１ ← Ｖ２ | X58: Ｖ２フォーマット | AE58: 35 | AF58: 一次店名 | AI58: 213 | AJ58: X/N | AK58: 40
T59: センタチェック | U59: センタチェック | V59: コンバート | W59: コンバート | X59: 項番 | Y59: 項目 | Z59: 開始 | AA59: 属性 | AB59: 整数 | AC59: 小数 | AE59: 36 | AF59: 二次店名 | AI59: 253 | AJ59: X/N | AK59: 40
C60: 1 | D60: データ種別 | G60: 1 | H60: 9 | I60: 2 | K60: ◎ | L60: ２２：出荷報告(直送)データ | R60: 22 | T60: 共通部チェック (ｺﾝﾄﾛｰﾙ同値､ 軽症ｴﾗｰ) | U60: 共通部チェック (ｺﾝﾄﾛｰﾙ同値､ 軽症ｴﾗｰ) | V60: ○ | W60: "22"固定 | Y60: =IF($X60="","",VLOOKUP($X60,$AE$24:$AM$154,2,)) ->  | Z60: =IF($X60="","",VLOOKUP($X60,$AE$24:$AM$154,5,)) ->  | AA60: =IF($X60="","",VLOOKUP($X60,$AE$24:$AM$154,6,)) ->  | AB60: =IF($X60="","",VLOOKUP($X60,$AE$24:$AM$154,7,)) ->  | AC60: =IF($X60="","",VLOOKUP($X60,$AE$24:$AM$154,8,)) ->  | AE60: 37 | AF60: 三次店名 | AI60: 293 | AJ60: X/N | AK60: 40
C61: 2 | D61: 送信先コード | G61: 3 | H61: 9 | I61: 8 | K61: ◎ | L61: 送信先(卸) | M61: の統一取引先コード | W61: ○ | X61: 2 | Y61: =IF($X61="","",VLOOKUP($X61,$AE$24:$AM$154,2,)) -> 送信先コード | Z61: =IF($X61="","",VLOOKUP($X61,$AE$24:$AM$154,5,)) -> 3 | AA61: =IF($X61="","",VLOOKUP($X61,$AE$24:$AM$154,6,)) -> 9 | AB61: =IF($X61="","",VLOOKUP($X61,$AE$24:$AM$154,7,)) -> 8 | AC61: =IF($X61="","",VLOOKUP($X61,$AE$24:$AM$154,8,)) -> 0 | AE61: 38 | AF61: 届け先名 | AI61: 333 | AJ61: X/N | AK61: 40
C62: 3 | D62: 送信元コード | G62: 11 | H62: 9 | I62: 8 | K62: ◎ | L62: 送信元(メーカ) | M62: の統一取引先コード | W62: ○ | X62: 3 | Y62: =IF($X62="","",VLOOKUP($X62,$AE$24:$AM$154,2,)) -> 送信元コード | Z62: =IF($X62="","",VLOOKUP($X62,$AE$24:$AM$154,5,)) -> 11 | AA62: =IF($X62="","",VLOOKUP($X62,$AE$24:$AM$154,6,)) -> 9 | AB62: =IF($X62="","",VLOOKUP($X62,$AE$24:$AM$154,7,)) -> 8 | AC62: =IF($X62="","",VLOOKUP($X62,$AE$24:$AM$154,8,)) -> 0 | AE62: 39 | AF62: チェーン店名 | AI62: 373 | AJ62: X/N | AK62: 40
C63: 4 | D63: レコード区分 | G63: 19 | H63: 9 | I63: 1 | K63: ◎ | L63: ４：明細レコード | R63: 4 | W63: "4"固定 | Y63: =IF($X63="","",VLOOKUP($X63,$AE$24:$AM$154,2,)) ->  | Z63: =IF($X63="","",VLOOKUP($X63,$AE$24:$AM$154,5,)) ->  | AA63: =IF($X63="","",VLOOKUP($X63,$AE$24:$AM$154,6,)) ->  | AB63: =IF($X63="","",VLOOKUP($X63,$AE$24:$AM$154,7,)) ->  | AC63: =IF($X63="","",VLOOKUP($X63,$AE$24:$AM$154,8,)) ->  | AE63: 40 | AF63: 電話番号 | AI63: 413 | AJ63: X | AK63: 15
D64: 明細部繰返（１１７バイト × ２明細） ※明細レコードがショートブロック（レコード中１明細）の場合、ALL SPACEを設定する。 | AE64: 41 | AF64: 住所 | AI64: 428 | AJ64: X/N | AK64: 80
C65: 5 | E65: 行ＮＯ | G65: 20 | H65: 9 | I65: 2 | K65: ○ | L65: 明細行ＮＯ | R65: 01～06 | U65: 属性(ｽ) | V65: ○ | W65: ○ | X65: 69 | Y65: =IF($X65="","",VLOOKUP($X65,$AE$24:$AM$154,3,)) -> 明細行NO | Z65: =IF($X65="","",VLOOKUP($X65,$AE$24:$AM$154,5,)) -> 801 | AA65: =IF($X65="","",VLOOKUP($X65,$AE$24:$AM$154,6,)) -> 9 | AB65: =IF($X65="","",VLOOKUP($X65,$AE$24:$AM$154,7,)) -> 2 | AC65: =IF($X65="","",VLOOKUP($X65,$AE$24:$AM$154,8,)) -> 0 | AE65: 42 | AF65: 摘要 | AI65: 508 | AJ65: X/N | AK65: 50
C66: 6 | E66: 専用伝票行ＮＯ | G66: 22 | H66: 9 | I66: 2 | L66: 専用伝票の行ＮＯ | U66: 属性(ｽ) | V66: ○ | W66: ○ | X66: 70 | Y66: =IF($X66="","",VLOOKUP($X66,$AE$24:$AM$154,3,)) -> 専用伝票行NO | Z66: =IF($X66="","",VLOOKUP($X66,$AE$24:$AM$154,5,)) -> 803 | AA66: =IF($X66="","",VLOOKUP($X66,$AE$24:$AM$154,6,)) -> 9 | AB66: =IF($X66="","",VLOOKUP($X66,$AE$24:$AM$154,7,)) -> 2 | AC66: =IF($X66="","",VLOOKUP($X66,$AE$24:$AM$154,8,)) -> 0 | AE66: 43 | AF66: メーカコード | AI66: 558 | AJ66: X | AK66: 9
C67: 7 | E67: 商品コード識別区分 | G67: 24 | H67: X | I67: 1 | K67: ○ | L67: 業界統一取引コード | R67: 0:統一商品コード 1:ＩＴＦコード(14桁) 2:ＩＴＦｺｰﾄﾞ(拡張16桁) 3:JANコード(標準:13桁) 4:JANコード(短縮:8桁) 6:GTINコード(14桁) | U67: 必須＋コード(新) "2"は連携不可 | V67: ○ | W67: ○ | X67: 71 | Y67: =IF($X67="","",VLOOKUP($X67,$AE$24:$AM$154,3,)) -> 商品コード識別区分 | Z67: =IF($X67="","",VLOOKUP($X67,$AE$24:$AM$154,5,)) -> 805 | AA67: =IF($X67="","",VLOOKUP($X67,$AE$24:$AM$154,6,)) -> 9 | AB67: =IF($X67="","",VLOOKUP($X67,$AE$24:$AM$154,7,)) -> 1 | AC67: =IF($X67="","",VLOOKUP($X67,$AE$24:$AM$154,8,)) -> 0 | AE67: 44 | AF67: メーカ所属組織名 | AI67: 567 | AJ67: X | AK67: 10
C68: 8 | E68: 品番 | G68: 25 | H68: X | I68: 16 | K68: ○ | L68: 統一商品ｺｰﾄﾞ，ITFｺｰﾄﾞ，JANｺｰﾄﾞまたはGTINｺｰﾄﾞ（左詰め） | V68: ○ | W68: ○ | X68: 72 | Y68: =IF($X68="","",VLOOKUP($X68,$AE$24:$AM$154,3,)) -> 品番 | Z68: =IF($X68="","",VLOOKUP($X68,$AE$24:$AM$154,5,)) -> 806 | AA68: =IF($X68="","",VLOOKUP($X68,$AE$24:$AM$154,6,)) -> X | AB68: =IF($X68="","",VLOOKUP($X68,$AE$24:$AM$154,7,)) -> 16 | AC68: =IF($X68="","",VLOOKUP($X68,$AE$24:$AM$154,8,)) -> 0 | AE68: 45 | AF68: 伝票区分 | AI68: 577 | AJ68: 9 | AK68: 1
B69: 1.1 | C69: 9 | E69: 商品名 | G69: 41 | H69: X | I69: 25 | K69: ○ | L69: 商品名 | V69: ○ | W69: 日本語区分(商品名)が 漢字 ：商品名カナ その他：商品名 | X69: 73 126 | Y69: 商品名 商品名カナ | Z69: 822 1116 | AA69: X/N Ｘ | AB69: 40 25 | AC69: 0 | AE69: 46 | AF69: 登録店区分 | AI69: 578 | AJ69: X | AK69: 1
C70: 10 | E70: 包装区分 | G70: 66 | H70: 9 | I70: 1 | K70: ○ | L70: 数量の発注単位の区分 | N70: (1:ケース発注時) | O70: (2:ボール発注時) | P70: (3:バラ発注時) | R70: 1:ケース発注 2:ボール発注 | S70: 3:バラ発注 | U70: 必須＋ｺｰﾄﾞ | V70: ○ | W70: ○ | X70: 74 | Y70: =IF($X70="","",VLOOKUP($X70,$AE$24:$AM$154,3,)) -> 包装区分 | Z70: =IF($X70="","",VLOOKUP($X70,$AE$24:$AM$154,5,)) -> 862 | AA70: =IF($X70="","",VLOOKUP($X70,$AE$24:$AM$154,6,)) -> 9 | AB70: =IF($X70="","",VLOOKUP($X70,$AE$24:$AM$154,7,)) -> 1 | AC70: =IF($X70="","",VLOOKUP($X70,$AE$24:$AM$154,8,)) -> 0 | AE70: 47 | AF70: 定番特売区分 | AI70: 579 | AJ70: X | AK70: 1
C71: 11 | E71: 内容 | F71: ボール内バラ数 | G71: 67 | H71: 9 | I71: 4 | J71: 2 | K71: ○ | L71: 包装区分に準じた設定 | N71: (ボール内バラ数 | O71: /ボール内バラ数 | P71: /ゼロ) | U71: 属性(ｽ) | V71: ○ | W71: ○ | X71: 75 | Y71: =IF($X71="","",VLOOKUP($X71,$AE$24:$AM$154,4,)) -> ボール内バラ数 | Z71: 863 | AA71: 9 | AB71: 4 | AC71: 2 | AE71: 48 | AF71: 消費税区分 | AI71: 580 | AJ71: X | AK71: 1
C72: 12 | F72: ケース内ボール数 | G72: 73 | H72: 9 | I72: 2 | K72: ○ | L72: 包装区分に準じた設定 | N72: (ケース内ボール数 | O72: /ゼロ | P72: /ゼロ) | U72: 属性(ｽ) | V72: ○ | W72: ○ | X72: 76 | Y72: =IF($X72="","",VLOOKUP($X72,$AE$24:$AM$154,4,)) -> ケース内ボール数 | Z72: 869 | AA72: 9 | AB72: 2 | AC72: 0 | AE72: 49 | AF72: 消費税率 | AI72: 581 | AJ72: 9 | AK72: 2 | AL72: 1
C73: 13 | E73: 数量符号 | G73: 75 | H73: X | I73: 1 | K73: ○ | L73: 数量の符号 | R73: ＋:正数 | S73: －:負数 | U73: ｺｰﾄﾞ | V73: "△" → "+" (有効明細時) | W73: "△" → "+" | X73: 77 | Y73: =IF($X73="","",VLOOKUP($X73,$AE$24:$AM$154,3,)) -> 数量符号 | Z73: 871 | AA73: X | AB73: 1 | AC73: 0 | AE73: 50 | AF73: ロット不足運賃負担区分 | AI73: 584 | AJ73: X | AK73: 1
C74: 14 | E74: 数量 | F74: ケース数量 | G74: 76 | H74: 9 | I74: 7 | K74: ○ | L74: 包装区分に準じた設定 | N74: (ケース数量 | O74: /ゼロ | P74: /ゼロ) | U74: 属性(ｽ) | V74: ○ | W74: ○ | X74: 78 | Y74: =IF($X74="","",VLOOKUP($X74,$AE$24:$AM$154,4,)) -> ケース数量 | Z74: 872 | AA74: 9 | AB74: 7 | AC74: 0 | AE74: 51 | AF74: 取引先区分（一次店） | AI74: 585 | AJ74: X | AK74: 1
C75: 15 | F75: ボール数量 | G75: 83 | H75: 9 | I75: 7 | K75: ○ | L75: 包装区分に準じた設定 | N75: (ゼロ | O75: /ボール数量 | P75: /ゼロ) | U75: 属性(ｽ) | V75: ○ | W75: ○ | X75: 79 | Y75: =IF($X75="","",VLOOKUP($X75,$AE$24:$AM$154,4,)) -> ボール数量 | Z75: 879 | AA75: 9 | AB75: 7 | AC75: 0 | AE75: 52 | AF75: 取引先区分（二次店） | AI75: 586 | AJ75: X | AK75: 1
C76: 16 | F76: バラ数量 | G76: 90 | H76: 9 | I76: 7 | J76: 2 | K76: ○ | L76: バラ数量 | U76: 属性(ｽ) | V76: ○ | W76: ○ | X76: 80 | Y76: =IF($X76="","",VLOOKUP($X76,$AE$24:$AM$154,4,)) -> バラ数量 | Z76: 886 | AA76: 9 | AB76: 7 | AC76: 2 | AE76: 53 | AF76: 取引先区分（三次店） | AI76: 587 | AJ76: X | AK76: 1
C77: 17 | E77: 単価 | F77: 卸店入価格 | G77: 99 | H77: 9 | I77: 6 | J77: 2 | K77: ○ | L77: 卸店入価格 | N77: (バラ単価､商品添付区分が1,2,3の場合はゼロ) | U77: 属性(ｽ) | V77: ○ | W77: ○ | X77: 81 | Y77: =IF($X77="","",VLOOKUP($X77,$AE$24:$AM$154,4,)) -> 卸店入価格 | Z77: 895 | AA77: 9 | AB77: 6 | AC77: 2 | AE77: 54 | AF77: 取引先区分（届け先） | AI77: 588 | AJ77: X | AK77: 1
C78: 18 | F78: 二次店納入価格 | G78: 107 | H78: 9 | I78: 6 | J78: 2 | K78: ○ | L78: 二次卸店等への納入価格 | N78: (バラ単価､商品添付区分が1,2,3の場合はゼロ) | U78: 属性(ｽ) | V78: ○ | W78: ○ | X78: 82 | Y78: =IF($X78="","",VLOOKUP($X78,$AE$24:$AM$154,4,)) -> 二次店納入価格 | Z78: 903 | AA78: 9 | AB78: 6 | AC78: 2 | AE78: 55 | AF78: 取引先区分（チェーン店） | AI78: 589 | AJ78: X | AK78: 1
C79: 19 | E79: 金額符号 | G79: 115 | H79: X | I79: 1 | K79: ○ | L79: 金額の符号 | R79: ＋:正数 | S79: －:負数 | U79: ｺｰﾄﾞ | V79: "△" → "+" (有効明細時) | W79: "△" → "+" | X79: 83 | Y79: =IF($X79="","",VLOOKUP($X79,$AE$24:$AM$154,3,)) -> 金額符号 | Z79: 911 | AA79: X | AB79: 1 | AC79: 0 | AE79: 56 | AF79: 日本語区分（一次店） | AI79: 590 | AJ79: X | AK79: 1
C80: 20 | E80: 金額 | F80: 卸店入金額 | G80: 116 | H80: 9 | I80: 8 | K80: ○ | L80: 卸店入金額 | N80: (商品添付区分が1,2,3の場合はゼロ) | T80: 属性(ｻ) | U80: 属性(ｽ) | V80: ○ | W80: ○ | X80: 84 | Y80: =IF($X80="","",VLOOKUP($X80,$AE$24:$AM$154,4,)) -> 卸店入金額 | Z80: 912 | AA80: 9 | AB80: 8 | AC80: 0 | AE80: 57 | AF80: 日本語区分（二次店） | AI80: 591 | AJ80: X | AK80: 1
C81: 21 | F81: 二次店納入金額 | G81: 124 | H81: 9 | I81: 8 | K81: ○ | L81: 二次卸店等への納入金額 | N81: (商品添付区分が1,2,3の場合はゼロ) | T81: 属性(ｻ) | U81: 属性(ｽ) | V81: ○ | W81: ○ | X81: 85 | Y81: =IF($X81="","",VLOOKUP($X81,$AE$24:$AM$154,4,)) -> 二次店納入金額 | Z81: 920 | AA81: 9 | AB81: 8 | AC81: 0 | AE81: 58 | AF81: 日本語区分（三次店） | AI81: 592 | AJ81: X | AK81: 1
C82: 22 | E82: 商品添付区分 | G82: 132 | H82: X | I82: 1 | K82: ○ | L82: 添付商品扱いの区分 | N82: (相対運用) | R82: △:売上 1:現物添付 | S82: 2:見本 3:景品 | U82: ｺｰﾄﾞ(旧) | V82: ○ | W82: ○ | X82: 86 | Y82: =IF($X82="","",VLOOKUP($X82,$AE$24:$AM$154,3,)) -> 商品添付区分 | Z82: 928 | AA82: X | AB82: 1 | AC82: 0 | AE82: 59 | AF82: 日本語区分（届け先） | AI82: 593 | AJ82: X | AK82: 1
B83: 2.5 2.7 | C83: 23 | E83: 資産譲渡日付 | G83: 133 | H83: X | I83: 4 | L83: 資産譲渡日付 | N83: (西暦 YYMM) | V83: ○ | W83: ○ | X83: 127 | Y83: =IF($X83="","",VLOOKUP($X83,$AE$24:$AM$154,3,)) -> 資産譲渡日付 | Z83: =IF($X83="","",VLOOKUP($X83,$AE$24:$AM$154,5,)) -> 1141 | AA83: =IF($X83="","",VLOOKUP($X83,$AE$24:$AM$154,6,)) -> X | AB83: =IF($X83="","",VLOOKUP($X83,$AE$24:$AM$154,7,)) -> 4 | AC83: =IF($X83="","",VLOOKUP($X83,$AE$24:$AM$154,8,)) -> 0 | AE83: 60 | AF83: 日本語区分（チェーン店） | AI83: 594 | AJ83: X | AK83: 1
B84: 2.0 1.9 | C84: 24 | D84: 税率区分１ | G84: 254 | H84: X | I84: 1 | K84: ○ | L84: １明細目の税率区分 | R84: △/0:軽減税率 | S84: 1:標準税率 | U84: ｺｰﾄﾞ | V84: ○ | W84: 100 → "1"､その他 → "△" | X84: 49 | Y84: =IF($X84="","",VLOOKUP($X84,$AE$24:$AM$152,2,)) -> 消費税率 | Z84: =IF($X84="","",VLOOKUP($X84,$AE$24:$AM$152,5,)) -> 581 | AA84: =IF($X84="","",VLOOKUP($X84,$AE$24:$AM$152,6,)) -> 9 | AB84: =IF($X84="","",VLOOKUP($X84,$AE$24:$AM$152,7,)) -> 2 | AC84: =IF($X84="","",VLOOKUP($X84,$AE$24:$AM$152,8,)) -> 1 | AE84: 61 | AF84: 日本語区分（住所） | AI84: 595 | AJ84: X | AK84: 1
B85: 2.0 1.9 | C85: 25 | D85: 税率区分２ | G85: 255 | H85: X | I85: 1 | K85: ○ | L85: ２明細目の税率区分 | R85: △/0:軽減税率 | S85: 1:標準税率 | U85: ｺｰﾄﾞ | V85: ○ | W85: 100 → "1"､その他 → "△" | AE85: 61 | AF85: 日本語区分（住所） | AI85: 595 | AJ85: X | AK85: 1
B86: 1.9 | C86: 26 | D86: 予備２ | G86: 256 | H86: X | I86: 1 | L86: レイアウト拡張時の予備領域 | N86: (利用禁止） | V86: ○ | W86: 属性初期値 | Y86: =IF($X86="","",VLOOKUP($X86,$AE$24:$AM$152,2,)) ->  | Z86: =IF($X86="","",VLOOKUP($X86,$AE$24:$AM$152,5,)) ->  | AA86: =IF($X86="","",VLOOKUP($X86,$AE$24:$AM$152,6,)) ->  | AB86: =IF($X86="","",VLOOKUP($X86,$AE$24:$AM$152,7,)) ->  | AC86: =IF($X86="","",VLOOKUP($X86,$AE$24:$AM$152,8,)) ->  | AE86: 61 | AF86: 日本語区分（住所） | AI86: 595 | AJ86: X | AK86: 1
Y87: =IF($U90="","",VLOOKUP($U90,$AD$27:$AN$54,2,)) ->  | Z87: =IF($U90="","",VLOOKUP($U90,$AD$6:$AN$54,5,)) ->  | AA87: =IF($U90="","",VLOOKUP($U90,$AD$6:$AN$54,6,)) ->  | AB87: =IF($U90="","",VLOOKUP($U90,$AD$6:$AN$54,7,)) ->  | AC87: =IF($U90="","",VLOOKUP($U90,$AD$6:$AN$54,8,)) ->  | AE87: 61 | AF87: 日本語区分（住所） | AI87: 595 | AJ87: X | AK87: 1
Y88: =IF($U91="","",VLOOKUP($U91,$AD$27:$AN$54,2,)) ->  | Z88: =IF($U91="","",VLOOKUP($U91,$AD$6:$AN$54,5,)) ->  | AA88: =IF($U91="","",VLOOKUP($U91,$AD$6:$AN$54,6,)) ->  | AB88: =IF($U91="","",VLOOKUP($U91,$AD$6:$AN$54,7,)) ->  | AC88: =IF($U91="","",VLOOKUP($U91,$AD$6:$AN$54,8,)) ->  | AE88: 62 | AF88: 日本語区分（摘要） | AI88: 596 | AJ88: X | AK88: 1
AE89: 63 | AF89: 一次店カナ名 | AI89: 597 | AJ89: Ｘ | AK89: 30
AE90: 64 | AF90: 二次店カナ名 | AI90: 627 | AJ90: Ｘ | AK90: 30
AE91: 65 | AF91: 届け先カナ名 | AI91: 657 | AJ91: Ｘ | AK91: 30
D92: ④ トレーラレコード | AE92: 66 | AF92: 摘要カナ | AI92: 687 | AJ92: Ｘ | AK92: 30
B93: 変更 | C93: 項番 | D93: 項目 | G93: 開始位置 | H93: 属性 | I93: 整数桁 | J93: 小数桁 | K93: 必須 | L93: 項目説明 | R93: コード | T93: Ｖ１ → Ｖ１ | U93: Ｖ１ → Ｖ２ | V93: Ｖ１ ← Ｖ１ | W93: Ｖ１ ← Ｖ２ | X93: Ｖ２フォーマット | AE93: 67 | AF93: ヘッダー予備 | AI93: 717 | AJ93: X | AK93: 64
T94: センタチェック | U94: センタチェック | V94: コンバート | W94: コンバート | X94: 項番 | Y94: 項目 | Z94: 開始 | AA94: 属性 | AB94: 整数 | AC94: 小数 | AE94: 68 | AF94: ヘッダー連携エリア | AI94: 781 | AJ94: X | AK94: 20
C95: 1 | D95: データ種別 | G95: 1 | H95: 9 | I95: 2 | K95: ◎ | L95: ２２：出荷報告(直送)データ | R95: 22 | T95: 共通部チェック (ｺﾝﾄﾛｰﾙ同値､ 軽症ｴﾗｰ) | U95: 共通部チェック (ｺﾝﾄﾛｰﾙ同値､ 軽症ｴﾗｰ) | V95: ○ | W95: "22”固定 | Y95: =IF($U98="","",VLOOKUP($U98,$AD$27:$AN$54,2,)) ->  | Z95: =IF($U98="","",VLOOKUP($U98,$AD$6:$AN$54,5,)) ->  | AA95: =IF($U98="","",VLOOKUP($U98,$AD$6:$AN$54,6,)) ->  | AB95: =IF($U98="","",VLOOKUP($U98,$AD$6:$AN$54,7,)) ->  | AC95: =IF($U98="","",VLOOKUP($U98,$AD$6:$AN$54,8,)) ->  | AF95: 明細部（４００バイト）
C96: 2 | D96: 送信先コード | G96: 3 | H96: 9 | I96: 8 | K96: ◎ | L96: 送信先(卸) | M96: の統一取引先コード | W96: ○ | X96: 2 | Y96: =IF($X96="","",VLOOKUP($X96,$AE$164:$AM$173,2,)) -> 送信先コード | Z96: =IF($X96="","",VLOOKUP($X96,$AE$164:$AM$173,5,)) -> 3 | AA96: =IF($X96="","",VLOOKUP($X96,$AE$164:$AM$173,6,)) -> 9 | AB96: =IF($X96="","",VLOOKUP($X96,$AE$164:$AM$173,7,)) -> 8 | AC96: =IF($X96="","",VLOOKUP($X96,$AE$164:$AM$173,8,)) -> 0 | AE96: 69 | AG96: 明細行NO | AI96: 801 | AJ96: 9 | AK96: 2 | AM96: ○
C97: 3 | D97: 送信元コード | G97: 11 | H97: 9 | I97: 8 | K97: ◎ | L97: 送信元(メーカ) | M97: の統一取引先コード | W97: ○ | X97: 3 | Y97: 送信元コード | Z97: 11 | AA97: 9 | AB97: 8 | AC97: 0 | AE97: 70 | AG97: 専用伝票行NO | AI97: 803 | AJ97: 9 | AK97: 2
C98: 4 | D98: レコード区分 | G98: 19 | H98: 9 | I98: 1 | K98: ◎ | L98: ９：トレーラレコード | R98: 9 | W98: ○ | X98: 4 | Y98: レコード区分 | Z98: 19 | AA98: 9 | AB98: 1 | AC98: 0 | AE98: 71 | AG98: 商品コード識別区分 | AI98: 805 | AJ98: 9 | AK98: 1
B99: 1.7 | C99: 5 | D99: レコード件数 | G99: 20 | H99: 9 | I99: 6 | K99: ○ | L99: コントロールレコードとトレーラレコードで括られたレコードの総件数 (コントロールレコードとトレーラレコードは含まない) ・データ送信側では、自身のフォーマットのレコード件数を設定する。 ・データ受信側では、当項目と実際のレコード件数の整合性チェックには利用しない。※下記【トレーラレコード連携時の留意事項】を参照のこと | T99: 属性 | U99: 属性(ｽ) | V99: ※ センター集計値 | W99: ※ センター集計値 | X99: 5 | Y99: レコード件数 | Z99: 20 | AA99: 9 | AB99: 6 | AC99: 0 | AE99: 72 | AG99: 品番 | AI99: 806 | AJ99: X | AK99: 16
C100: 6 | D100: 伝票枚数 | G100: 26 | H100: 9 | I100: 6 | L100: 伝票枚数 | T100: 属性 | U100: 属性(ｽ) | V100: ※ センター集計値 | W100: ※ センター集計値 | X100: 6 | Y100: 伝票枚数 | Z100: 26 | AA100: 9 | AB100: 6 | AC100: 0 | AE100: 73 | AG100: 商品名 | AI100: 822 | AJ100: X/N | AK100: 40
C101: 7 | D101: 合計金額符号 | G101: 32 | H101: X | I101: 1 | L101: 合計金額の符号 | R101: ＋:正数 | S101: －:負数 | U101: ｺｰﾄﾞ | V101: "△" → "+" ※ センター設定 | W101: "△" → "+" ※ センター設定 | X101: 7 | Y101: 合計金額符号 | Z101: 32 | AA101: X | AB101: 1 | AC101: 0 | AE101: 74 | AG101: 包装区分 | AI101: 862 | AJ101: 9 | AK101: 1 | AM101: ○
C102: 8 | D102: 合計金額 | G102: 33 | H102: 9 | I102: 10 | L102: 卸店入価格で全明細行の金額合計 | T102: 属性(ｻ) | U102: 属性(ｽ) | V102: ※ センター集計値 | W102: ※ センター集計値 | X102: 8 | Y102: 合計金額 | Z102: 33 | AA102: 9 | AB102: 10 | AC102: 0 | AE102: 75 | AG102: 内容 | AH102: ボール内バラ数 | AI102: 863 | AJ102: 9 | AK102: 4 | AL102: 2
C103: 9 | D103: 予備 | G103: 43 | H103: X | I103: 214 | L103: レイアウト拡張時の予備領域 | N103: (利用禁止） | V103: ○ | W103: 属性初期値 | AE103: 76 | AH103: ケース内ボール数 | AI103: 869 | AJ103: 9 | AK103: 2
V104: ※ 配信分割時 | Y104: =IF($U107="","",VLOOKUP($U107,$AD$27:$AN$54,2,)) ->  | Z104: =IF($U107="","",VLOOKUP($U107,$AD$6:$AN$54,5,)) ->  | AA104: =IF($U107="","",VLOOKUP($U107,$AD$6:$AN$54,6,)) ->  | AB104: =IF($U107="","",VLOOKUP($U107,$AD$6:$AN$54,7,)) ->  | AC104: =IF($U107="","",VLOOKUP($U107,$AD$6:$AN$54,8,)) ->  | AE104: 77 | AG104: 数量符号 | AI104: 871 | AJ104: X | AK104: 1
Y105: =IF($U108="","",VLOOKUP($U108,$AD$27:$AN$54,2,)) ->  | Z105: =IF($U108="","",VLOOKUP($U108,$AD$6:$AN$54,5,)) ->  | AA105: =IF($U108="","",VLOOKUP($U108,$AD$6:$AN$54,6,)) ->  | AB105: =IF($U108="","",VLOOKUP($U108,$AD$6:$AN$54,7,)) ->  | AC105: =IF($U108="","",VLOOKUP($U108,$AD$6:$AN$54,8,)) ->  | AE105: 78 | AG105: 数量 | AH105: ケース数量 | AI105: 872 | AJ105: 9 | AK105: 7
AE106: 79 | AH106: ボール数量 | AI106: 879 | AJ106: 9 | AK106: 7
AE107: 80 | AH107: バラ数量 | AI107: 886 | AJ107: 9 | AK107: 7 | AL107: 2
AE108: 81 | AG108: 単価 | AH108: 卸店入価格 | AI108: 895 | AJ108: 9 | AK108: 6 | AL108: 2
AE109: 82 | AH109: 二次店納入価格 | AI109: 903 | AJ109: 9 | AK109: 6 | AL109: 2
AE110: 83 | AG110: 金額符号 | AI110: 911 | AJ110: X | AK110: 1
AE111: 84 | AG111: 金額 | AH111: 卸店入金額 | AI111: 912 | AJ111: 9 | AK111: 8
AE112: 85 | AH112: 二次店納入金額 | AI112: 920 | AJ112: 9 | AK112: 8
AE113: 86 | AG113: 商品添付区分 | AI113: 928 | AJ113: X | AK113: 1
AE114: 87 | AG114: 欠品区分 | AI114: 929 | AJ114: 9 | AK114: 2
AE115: 88 | AG115: 入荷単位ケース数 | AI115: 931 | AJ115: 9 | AK115: 2
AE116: 89 | AG116: 単価計算区分 | AI116: 933 | AJ116: X | AK116: 1
AE117: 90 | AG117: 卸発注行番号 | AI117: 934 | AJ117: 9 | AK117: 2
AE118: 91 | AG118: 卸最新在庫日付区分 | AI118: 936 | AJ118: X | AK118: 1
AE119: 92 | AG119: 卸最新在庫日付 | AI119: 937 | AJ119: 9 | AK119: 8
AE120: 93 | AG120: 入庫許容日付区分 | AI120: 945 | AJ120: X | AK120: 1
AE121: 94 | AG121: 入庫許容日付 | AI121: 946 | AJ121: 9 | AK121: 8
AE122: 95 | AG122: 実入庫製品日付区分 | AI122: 954 | AJ122: X | AK122: 1
AE123: 96 | AG123: 実入庫製品日付 | AI123: 955 | AJ123: 9 | AK123: 8
AE124: 97 | AG124: 製造ロット番号 | AI124: 963 | AJ124: X | AK124: 10
AE125: 98 | AG125: 温度管理区分 | AI125: 973 | AJ125: X | AK125: 1
AE126: 99 | AG126: 製品容器区分 | AI126: 974 | AJ126: 9 | AK126: 1
AE127: 100 | AG127: 外箱ＧＴＩＮ（ＩＴＦ）コード | AI127: 975 | AJ127: X | AK127: 14
AE128: 101 | AG128: 摘要 | AI128: 989 | AJ128: X/N | AK128: 50
AE129: 102 | AG129: 日本語区分（商品名） | AI129: 1039 | AJ129: X | AK129: 1
AE130: 103 | AG130: 日本語区分（摘要） | AI130: 1040 | AJ130: X | AK130: 1
AE131: 104 | AG131: 菓子業界商品分類コード | AI131: 1041 | AJ131: X | AK131: 6
AE132: 105 | AG132: 割戻1 | AH132: 割戻計算区分 | AI132: 1047 | AJ132: X | AK132: 1
AE133: 106 | AH133: 割戻区分 | AI133: 1048 | AJ133: X | AK133: 1
AE134: 107 | AH134: 割戻基準 | AI134: 1049 | AJ134: X | AK134: 1
AE135: 108 | AH135: 割戻率／単価 | AI135: 1050 | AJ135: 9 | AK135: 4 | AL135: 2
AE136: 109 | AH136: 割戻金額符号 | AI136: 1056 | AJ136: X | AK136: 1
AE137: 110 | AH137: 割戻金額 | AI137: 1057 | AJ137: 9 | AK137: 8
AE138: 111 | AH138: 割戻コード | AI138: 1065 | AJ138: X | AK138: 5
AE139: 112 | AG139: 割戻2 | AH139: 割戻計算区分 | AI139: 1070 | AJ139: X | AK139: 1
AE140: 113 | AH140: 割戻区分 | AI140: 1071 | AJ140: X | AK140: 1
AE141: 114 | AH141: 割戻基準 | AI141: 1072 | AJ141: X | AK141: 1
AE142: 115 | AH142: 割戻率／単価 | AI142: 1073 | AJ142: 9 | AK142: 4 | AL142: 2
AE143: 116 | AH143: 割戻金額符号 | AI143: 1079 | AJ143: X | AK143: 1
AE144: 117 | AH144: 割戻金額 | AI144: 1080 | AJ144: 9 | AK144: 8
AE145: 118 | AH145: 割戻コード | AI145: 1088 | AJ145: X | AK145: 5
AE146: 119 | AG146: 割戻3 | AH146: 割戻計算区分 | AI146: 1093 | AJ146: X | AK146: 1
AE147: 120 | AH147: 割戻区分 | AI147: 1094 | AJ147: X | AK147: 1
AE148: 121 | AH148: 割戻基準 | AI148: 1095 | AJ148: X | AK148: 1
AE149: 122 | AH149: 割戻率／単価 | AI149: 1096 | AJ149: 9 | AK149: 4 | AL149: 2
AE150: 123 | AH150: 割戻金額符号 | AI150: 1102 | AJ150: X | AK150: 1
AE151: 124 | AH151: 割戻金額 | AI151: 1103 | AJ151: 9 | AK151: 8
AE152: 125 | AH152: 割戻コード | AI152: 1111 | AJ152: X | AK152: 5
AE153: 126 | AG153: 商品名カナ | AI153: 1116 | AJ153: X | AK153: 25
AE154: 127 | AG154: 資産譲渡日付 | AI154: 1141 | AJ154: X | AK154: 4
AE155: 128 | AG155: 明細予備 | AI155: 1145 | AJ155: X | AK155: 46
AE156: 129 | AG156: 明細連携エリア | AI156: 1191 | AJ156: X | AK156: 10
AF161: ③ トレーラレコード
AE162: 項番 | AF162: 項目 | AI162: 開始位置 | AJ162: 属性 | AK162: 整数桁 | AL162: 小数桁 | AM162: 必須
AE164: 1 | AF164: データ種別 | AI164: 1 | AJ164: 9 | AK164: 2 | AM164: ○
AE165: 2 | AF165: 送信先コード | AI165: 3 | AJ165: 9 | AK165: 8 | AM165: ○
AE166: 3 | AF166: 送信元コード | AI166: 11 | AJ166: 9 | AK166: 8 | AM166: ○
AE167: 4 | AF167: レコード区分 | AI167: 19 | AJ167: 9 | AK167: 1 | AM167: ○
AE168: 5 | AF168: レコード件数 | AI168: 20 | AJ168: 9 | AK168: 6
AE169: 6 | AF169: 伝票枚数 | AI169: 26 | AJ169: 9 | AK169: 6
AE170: 7 | AF170: 合計金額符号 | AI170: 32 | AJ170: X | AK170: 1
AE171: 8 | AF171: 合計金額 | AI171: 33 | AJ171: 9 | AK171: 10
AE172: 9 | AF172: 予備 | AI172: 43 | AJ172: X | AK172: 1138
AE173: 10 | AF173: 連携エリア | AI173: 1181 | AJ173: X | AK173: 20

Sheet ４２販売報告
AE1: =シート別総ページ数 -> 
C2: （６）Ｖ１・４２販売報告 | AE2: （８）Ｖ２・４３販売報告
D3: ① コントロールレコード | AF3: ① コントロールレコード
B4: 変更 | C4: 項番 | D4: 項目 | G4: 開始位置 | H4: 属性 | I4: 整数桁 | J4: 小数桁 | K4: 必須 | L4: 項目説明 | R4: コード | T4: Ｖ１ → Ｖ１ | U4: Ｖ１ → Ｖ２ | V4: Ｖ１ ← Ｖ１ | W4: Ｖ１ ← Ｖ２ | X4: Ｖ２フォーマット | AE4: 項番 | AF4: 項目 | AI4: 開始位置 | AJ4: 属性 | AK4: 整数桁 | AL4: 小数桁 | AM4: 必須
T5: センタチェック | U5: センタチェック | V5: コンバート | W5: コンバート | X5: 項番 | Y5: 項目 | Z5: 開始 | AA5: 属性 | AB5: 整数 | AC5: 小数
C6: 1 | D6: データ種別 | G6: 1 | H6: 9 | I6: 2 | K6: ◎ | L6: ４２：販売報告(店出)データ | R6: 42 | T6: ｺｰﾄﾞ | U6: ｺｰﾄﾞ | V6: ○ | W6: "42"固定 | Y6: =IF($X6="","",VLOOKUP($X6,$AE$6:$AM$20,2,)) ->  | Z6: =IF($X6="","",VLOOKUP($X6,$AE$6:$AM$20,5,)) ->  | AA6: =IF($X6="","",VLOOKUP($X6,$AE$6:$AM$20,6,)) ->  | AB6: =IF($X6="","",VLOOKUP($X6,$AE$6:$AM$20,7,)) ->  | AC6: =IF($X6="","",VLOOKUP($X6,$AE$6:$AM$20,8,)) ->  | AE6: 1 | AF6: データ種別 | AI6: 1 | AJ6: 9 | AK6: 2 | AM6: ○
C7: 2 | D7: 送信先コード | G7: 3 | H7: 9 | I7: 8 | K7: ◎ | L7: 送信先(メーカ) | M7: の統一取引先コード | T7: センター登録 | U7: センター登録 | W7: ○ | X7: 2 | Y7: 送信先コード | Z7: 3 | AA7: 9 | AB7: 8 | AC7: 0 | AE7: 2 | AF7: 送信先コード | AI7: 3 | AJ7: 9 | AK7: 8 | AM7: ○
C8: 3 | D8: 送信元コード | G8: 11 | H8: 9 | I8: 8 | K8: ◎ | L8: 送信元(卸) | M8: の統一取引先コード | T8: センター登録 | U8: センター登録 | W8: ○ | X8: 3 | Y8: 送信元コード | Z8: 11 | AA8: 9 | AB8: 8 | AC8: 0 | AE8: 3 | AF8: 送信元コード | AI8: 11 | AJ8: 9 | AK8: 8 | AM8: ○
C9: 4 | D9: レコード区分 | G9: 19 | H9: 9 | I9: 1 | K9: ◎ | L9: １：コントロールレコード | R9: 1 | T9: ｺｰﾄﾞ | U9: ｺｰﾄﾞ | W9: ○ | X9: 4 | Y9: レコード区分 | Z9: 19 | AA9: 9 | AB9: 1 | AC9: 0 | AE9: 4 | AF9: レコード区分 | AI9: 19 | AJ9: 9 | AK9: 1 | AM9: ○
C10: 5 | D10: データ作成日 | G10: 20 | H10: 9 | I10: 8 | K10: ○ | L10: 本データを作成した日付 | N10: (西暦 YYYYMMDD) | U10: 必須＋日付 | V10: ○ | W10: ○ | X10: 5 | Y10: データ作成日 | Z10: 20 | AA10: 9 | AB10: 8 | AC10: 0 | AE10: 5 | AF10: データ作成日 | AI10: 20 | AJ10: 9 | AK10: 8 | AM10: ○
C11: 6 | D11: 送信先名 | G11: 28 | H11: X | I11: 20 | K11: ○ | L11: 送信先(メーカ) | M11: のカナ名称 | V11: ○ | W11: ○ | X11: 7 | Y11: 送信先名 | Z11: 34 | AA11: X | AB11: 20 | AC11: 0 | AE11: 6 | AF11: データ作成時刻 | AI11: 28 | AJ11: 9 | AK11: 6
C12: 7 | D12: 送信元名 | G12: 48 | H12: X | I12: 20 | K12: ○ | L12: 送信元(卸) | M12: のカナ名称 | U12: 必須 | V12: ○ | W12: ○ | X12: 8 | Y12: 送信元名 | Z12: 54 | AA12: X | AB12: 20 | AC12: 0 | AE12: 7 | AF12: 送信先名 | AI12: 34 | AJ12: X | AK12: 20
C13: 8 | D13: 直接送信先コード | G13: 68 | H13: 9 | I13: 8 | L13: 送信先と異なる場所へ送信する場合にセット。 セット不要の場合"00000000" | T13: センター登録 | U13: センター登録 | V13: ○ | W13: ○ | X13: 9 | Y13: 直接送信先コード | Z13: 74 | AA13: 9 | AB13: 8 | AC13: 0 | AE13: 8 | AF13: 送信元名 | AI13: 54 | AJ13: X | AK13: 20 | AM13: ○
C14: 9 | D14: 直接送信先カナ名 | G14: 76 | H14: X | I14: 20 | L14: 送信先と異なる場所へ送信する場合にセット。 セット不要の場合スペース | V14: ○ | W14: ○ | X14: 10 | Y14: 直接送信先カナ名 | Z14: 82 | AA14: X | AB14: 20 | AC14: 0 | AE14: 9 | AF14: 直接送信先コード | AI14: 74 | AJ14: 9 | AK14: 8
C15: 10 | D15: 予備 | G15: 96 | H15: X | I15: 161 | L15: レイアウト拡張時の予備領域 | N15: (利用禁止） | V15: ○ | W15: 属性初期値 | AE15: 10 | AF15: 直接送信先カナ名 | AI15: 82 | AJ15: X | AK15: 20
AE16: 11 | AF16: 送信ファイルNO | AI16: 102 | AJ16: 9 | AK16: 2
AE17: 12 | AF17: 予備 | AI17: 104 | AJ17: X | AK17: 1077
AE18: 13 | AF18: 連携エリア | AI18: 1181 | AJ18: X | AK18: 20
D21: ② ヘッダーレコード | AF21: ② ヘッダー／明細レコード
B22: 変更 | C22: 項番 | D22: 項目 | G22: 開始位置 | H22: 属性 | I22: 整数桁 | J22: 小数桁 | K22: 必須 | L22: 項目説明 | R22: コード | T22: Ｖ１ → Ｖ１ | U22: Ｖ１ → Ｖ２ | V22: Ｖ１ ← Ｖ１ | W22: Ｖ１ ← Ｖ２ | X22: Ｖ２フォーマット | AE22: 項番 | AF22: 項目 | AI22: 開始位置 | AJ22: 属性 | AK22: 整数桁 | AL22: 小数桁 | AM22: 必須
T23: センタチェック | U23: センタチェック | V23: コンバート | W23: コンバート | X23: 項番 | Y23: 項目 | Z23: 開始 | AA23: 属性 | AB23: 整数 | AC23: 小数
C24: 1 | D24: データ種別 | G24: 1 | H24: 9 | I24: 2 | K24: ◎ | L24: ４２：販売報告(店出)データ | R24: 42 | T24: 共通部チェック (ｺﾝﾄﾛｰﾙ同値､ 軽症ｴﾗｰ) | U24: 共通部チェック (ｺﾝﾄﾛｰﾙ同値､ 軽症ｴﾗｰ) | V24: ○ | W24: "42"固定 | Y24: =IF($X24="","",VLOOKUP($X24,$AE$24:$AM$76,2,)) ->  | Z24: =IF($X24="","",VLOOKUP($X24,$AE$24:$AM$76,5,)) ->  | AA24: =IF($X24="","",VLOOKUP($X24,$AE$24:$AM$76,6,)) ->  | AB24: =IF($X24="","",VLOOKUP($X24,$AE$24:$AM$76,7,)) ->  | AC24: =IF($X24="","",VLOOKUP($X24,$AE$24:$AM$76,8,)) ->  | AE24: 1 | AF24: データ種別 | AI24: 1 | AJ24: 9 | AK24: 2 | AM24: ○
C25: 2 | D25: 送信先コード | G25: 3 | H25: 9 | I25: 8 | K25: ◎ | L25: 送信先(メーカ) | M25: の統一取引先コード | W25: ○ | X25: 2 | Y25: 送信先コード | Z25: 3 | AA25: 9 | AB25: 8 | AC25: 0 | AE25: 2 | AF25: 送信先コード | AI25: 3 | AJ25: 9 | AK25: 8 | AM25: ○
C26: 3 | D26: 送信元コード | G26: 11 | H26: 9 | I26: 8 | K26: ◎ | L26: 送信元(卸) | M26: の統一取引先コード | W26: ○ | X26: 3 | Y26: 送信元コード | Z26: 11 | AA26: 9 | AB26: 8 | AC26: 0 | AE26: 3 | AF26: 送信元コード | AI26: 11 | AJ26: 9 | AK26: 8 | AM26: ○
C27: 4 | D27: レコード区分 | G27: 19 | H27: 9 | I27: 1 | K27: ◎ | L27: ２：ヘッダーレコード | R27: 2 | W27: "2"固定 | AE27: 4 | AF27: レコード区分 | AI27: 19 | AJ27: 9 | AK27: 1 | AM27: ○
C28: 5 | D28: 対象期日(自) | G28: 20 | H28: 9 | I28: 8 | K28: ○ | L28: 販売実績の該当年月日(開始日) | N28: (西暦 YYYYMMDD) | U28: 必須＋日付 | V28: ○ | W28: ○ | X28: 6 | Y28: 対象期日（自） | Z28: 21 | AA28: 9 | AB28: 8 | AC28: 0 | AE28: 5 | AF28: 漢字コード区分 | AI28: 20 | AJ28: X | AK28: 1
C29: 6 | D29: 対象期日(至) | G29: 28 | H29: 9 | I29: 8 | K29: ○ | L29: 販売実績の該当年月日(終了日) | N29: (西暦 YYYYMMDD) | U29: 日付 | V29: ○ | W29: ○ | X29: 7 | Y29: 対象期日（至） | Z29: 29 | AA29: 9 | AB29: 8 | AC29: 0 | AE29: 6 | AF29: 対象期日（自） | AI29: 21 | AJ29: 9 | AK29: 8 | AM29: ○
C30: 7 | D30: 取引コード | G30: 36 | H30: 9 | I30: 2 | K30: ○ | L30: 業界統一取引コード | R30: 11:店入売上 | S30: 21:店入返品 | U30: ｺｰﾄﾞ | V30: ○ | W30: ○ | X30: 8 | Y30: 取引コード | Z30: 37 | AA30: 9 | AB30: 2 | AC30: 0 | AE30: 7 | AF30: 対象期日（至） | AI30: 29 | AJ30: 9 | AK30: 8
B31: 2.1 | C31: 8 | D31: 一次店コード | G31: 38 | H31: 9 | I31: 8 | K31: ○ | L31: 該当する統一取引先コード | V31: ○ | W31: 8桁以上:上8桁 8桁未満:前ゼロ＋有効桁 | X31: 9 | Y31: 一次店コード | Z31: 39 | AA31: X | AB31: 13 | AC31: 0 | AE31: 8 | AF31: 取引コード | AI31: 37 | AJ31: 9 | AK31: 2
B32: 2.1 1.3 | C32: 9 | D32: 二次店コード | G32: 46 | H32: 9 | I32: 8 | L32: 該当する統一取引先コード | V32: ○ | W32: GLN時:下８桁 GLN以外8桁以上:上８桁 GLN以外8桁未満:前ｾﾞﾛ+ 有効桁 | X32: 10 | Y32: 二次店コード | Z32: 52 | AA32: X | AB32: 13 | AC32: 0 | AE32: 9 | AF32: 一次店コード | AI32: 39 | AJ32: X | AK32: 13
B33: 2.1 1.3 | C33: 10 | D33: 届け先コード | G33: 54 | H33: 9 | I33: 8 | K33: ○ | L33: 該当する統一取引先コード 一次店、二次店と重複しても必ずセットする | V33: ○ | X33: 12 | Y33: 届け先コード | Z33: 78 | AA33: X | AB33: 13 | AC33: 0 | AE33: 10 | AF33: 二次店コード | AI33: 52 | AJ33: X | AK33: 13
B34: 1.1 | C34: 11 | D34: 一次店カナ名 | G34: 62 | H34: X | I34: 30 | K34: ○ | L34: 一次店名 | V34: ○ | W34: 日本語区分(一次店)が 漢字 ：一次店カナ名 その他：一次店名 | X34: 14 31 | Y34: 一次店名 一次店カナ名 | Z34: 104 318 | AA34: X/N X | AB34: 40 30 | AC34: 0 | AE34: 11 | AF34: 三次店コード | AI34: 65 | AJ34: X | AK34: 13
B35: 1.1 | C35: 12 | D35: 二次店カナ名 | G35: 92 | H35: X | I35: 30 | L35: 二次店名 | V35: ○ | W35: 日本語区分(二次店)が 漢字 ：二次店カナ名 その他：二次店名 | X35: 15 32 | Y35: 二次店名 二次店カナ名 | Z35: 144 348 | AA35: X/N X | AB35: 40 30 | AC35: 0 | AE35: 12 | AF35: 届け先コード | AI35: 78 | AJ35: X | AK35: 13
B36: 1.1 | C36: 13 | D36: 届け先カナ名 | G36: 122 | H36: X | I36: 30 | K36: ○ | L36: 届け先名 | V36: ○ | W36: 日本語区分(届け先)が 漢字 ：届け先カナ名 その他：届け先名 | X36: 17 33 | Y36: 届け先名 届け先カナ名 | Z36: 224 378 | AA36: X/N X | AB36: 40 30 | AC36: 0 | AE36: 13 | AF36: チェーン店コード | AI36: 91 | AJ36: X | AK36: 13
C37: 14 | D37: 税区分 | G37: 152 | H37: X | I37: 1 | L37: スペースの場合はメーカ・卸企業間の個別判断とする | R37: 1:外税 | S37: 2:内税 | V37: ○ | W37: ○ | X37: 19 | Y37: =IF($X37="","",VLOOKUP($X37,$AE$24:$AM$76,2,)) -> 消費税区分 | Z37: =IF($X37="","",VLOOKUP($X37,$AE$24:$AM$76,5,)) -> 304 | AA37: =IF($X37="","",VLOOKUP($X37,$AE$24:$AM$76,6,)) -> X | AB37: =IF($X37="","",VLOOKUP($X37,$AE$24:$AM$76,7,)) -> 1 | AC37: =IF($X37="","",VLOOKUP($X37,$AE$24:$AM$76,8,)) -> 0 | AE37: 14 | AF37: 一次店名 | AI37: 104 | AJ37: X/N | AK37: 40
C38: 15 | D38: 税率 | G38: 153 | H38: 9 | I38: 2 | J38: 1 | L38: 消費税率 | N38: (スペースの場合はメーカ・卸企業間の個別判断とする) | V38: ○ | W38: ○ | X38: 20 | Y38: =IF($X38="","",VLOOKUP($X38,$AE$24:$AM$76,2,)) -> 消費税率 | Z38: =IF($X38="","",VLOOKUP($X38,$AE$24:$AM$76,5,)) -> 305 | AA38: =IF($X38="","",VLOOKUP($X38,$AE$24:$AM$76,6,)) -> 9 | AB38: =IF($X38="","",VLOOKUP($X38,$AE$24:$AM$76,7,)) -> 2 | AC38: =IF($X38="","",VLOOKUP($X38,$AE$24:$AM$76,8,)) -> 1 | AE38: 15 | AF38: 二次店名 | AI38: 144 | AJ38: X/N | AK38: 40
C39: 16 | D39: 予備 | G39: 156 | H39: X | I39: 101 | L39: 新フォーマット連携エリア間のデータ連携 | V39: ○ | W39: ○ | X39: 35 | Y39: =IF($X39="","",VLOOKUP($X39,$AE$24:$AM$76,2,)) -> ヘッダー連携エリア | Z39: =IF($X39="","",VLOOKUP($X39,$AE$24:$AM$76,5,)) -> 431 | AA39: =IF($X39="","",VLOOKUP($X39,$AE$24:$AM$76,6,)) -> X | AB39: =IF($X39="","",VLOOKUP($X39,$AE$24:$AM$76,7,)) -> 20 | AC39: =IF($X39="","",VLOOKUP($X39,$AE$24:$AM$76,8,)) -> 0 | AE39: 16 | AF39: 三次店名 | AI39: 184 | AJ39: X/N | AK39: 40
Y40: =IF($U40="","",VLOOKUP($U40,$AD$27:$AN$54,2,)) ->  | Z40: =IF($U40="","",VLOOKUP($U40,$AD$6:$AN$54,5,)) ->  | AA40: =IF($U40="","",VLOOKUP($U40,$AD$6:$AN$54,6,)) ->  | AB40: =IF($U40="","",VLOOKUP($U40,$AD$6:$AN$54,7,)) ->  | AC40: =IF($U40="","",VLOOKUP($U40,$AD$6:$AN$54,8,)) ->  | AE40: 17 | AF40: 届け先名 | AI40: 224 | AJ40: X/N | AK40: 40
Y41: =IF($U41="","",VLOOKUP($U41,$AD$27:$AN$54,2,)) ->  | Z41: =IF($U41="","",VLOOKUP($U41,$AD$6:$AN$54,5,)) ->  | AA41: =IF($U41="","",VLOOKUP($U41,$AD$6:$AN$54,6,)) ->  | AB41: =IF($U41="","",VLOOKUP($U41,$AD$6:$AN$54,7,)) ->  | AC41: =IF($U41="","",VLOOKUP($U41,$AD$6:$AN$54,8,)) ->  | AE41: 18 | AF41: チェーン店名 | AI41: 264 | AJ41: X/N | AK41: 40
AE42: 19 | AF42: 消費税区分 | AI42: 304 | AJ42: X | AK42: 1
AE43: 20 | AF43: 消費税率 | AI43: 305 | AJ43: 9 | AK43: 2 | AL43: 1
AE44: 21 | AF44: 取引先区分（一次店） | AI44: 308 | AJ44: X | AK44: 1
AE45: 22 | AF45: 取引先区分（二次店） | AI45: 309 | AJ45: X | AK45: 1
AE46: 23 | AF46: 取引先区分（三次店） | AI46: 310 | AJ46: X | AK46: 1
AE47: 24 | AF47: 取引先区分（届け先） | AI47: 311 | AJ47: X | AK47: 1
AE48: 25 | AF48: 取引先区分（チェーン店） | AI48: 312 | AJ48: X | AK48: 1
AE49: 26 | AF49: 日本語区分（一次店） | AI49: 313 | AJ49: X | AK49: 1
AE50: 27 | AF50: 日本語区分（二次店） | AI50: 314 | AJ50: X | AK50: 1
AE51: 28 | AF51: 日本語区分（三次店） | AI51: 315 | AJ51: X | AK51: 1
AE52: 29 | AF52: 日本語区分（届け先） | AI52: 316 | AJ52: X | AK52: 1
AE53: 30 | AF53: 日本語区分（チェーン店） | AI53: 317 | AJ53: X | AK53: 1
AE54: 31 | AF54: 一次店カナ名 | AI54: 318 | AJ54: Ｘ | AK54: 30
AE55: 32 | AF55: 二次店カナ名 | AI55: 348 | AJ55: Ｘ | AK55: 30
AE56: 33 | AF56: 届け先カナ名 | AI56: 378 | AJ56: Ｘ | AK56: 30
AE57: 34 | AF57: ヘッダー予備 | AI57: 408 | AJ57: X | AK57: 23
AE58: 35 | AF58: ヘッダー連携エリア | AI58: 431 | AJ58: X | AK58: 20
AF59: 明細部繰返（１５０バイト × ５明細）
AE60: 36 | AG60: 明細行NO | AI60: 451 | AJ60: 9 | AK60: 3 | AM60: ○
AE61: 37 | AG61: 商品コード識別区分 | AI61: 454 | AJ61: 9 | AK61: 1
AE62: 42 | AG62: ケース(ボール)当り入数 | AI62: 521 | AJ62: 9 | AK62: 4
AE63: 43 | AG63: ケース(ボール)数 | AI63: 525 | AJ63: 9 | AK63: 7
AE64: 44 | AG64: 販売単価区分 | AI64: 532 | AJ64: X | AK64: 1
AE65: 45 | AG65: 単 価 | AI65: 533 | AJ65: 9 | AK65: 7 | AL65: 2 | AM65: ○
AE66: 46 | AG66: 金額符号 | AI66: 542 | AJ66: X | AK66: 1 | AM66: ○
D67: ③ 明細レコード | AE67: 47 | AG67: 金額 | AI67: 543 | AJ67: 9 | AK67: 10
B68: 変更 | C68: 項番 | D68: 項目 | G68: 開始位置 | H68: 属性 | I68: 整数桁 | J68: 小数桁 | K68: 必須 | L68: 項目説明 | R68: コード | T68: Ｖ１ → Ｖ１ | U68: Ｖ１ → Ｖ２ | V68: Ｖ１ ← Ｖ１ | W68: Ｖ１ ← Ｖ２ | X68: Ｖ２フォーマット | AE68: 48 | AG68: 特売区分 | AI68: 553 | AJ68: X | AK68: 1
T69: センタチェック | U69: センタチェック | V69: コンバート | W69: コンバート | X69: 項番 | Y69: 項目 | Z69: 開始 | AA69: 属性 | AB69: 整数 | AC69: 小数 | AE69: 49 | AG69: 納品日 | AI69: 554 | AJ69: 9 | AK69: 8
C70: 1 | D70: データ種別 | G70: 1 | H70: 9 | I70: 2 | K70: ◎ | L70: ４２：販売報告(店出)データ | R70: 42 | T70: 共通部チェック (ｺﾝﾄﾛｰﾙ同値､ 軽症ｴﾗｰ) | U70: 共通部チェック (ｺﾝﾄﾛｰﾙ同値､ 軽症ｴﾗｰ) | V70: ○ | W70: "42"固定 | Y70: =IF($X70="","",VLOOKUP($X70,$AE$24:$AM$76,2,)) ->  | Z70: =IF($X70="","",VLOOKUP($X70,$AE$24:$AM$76,5,)) ->  | AA70: =IF($X70="","",VLOOKUP($X70,$AE$24:$AM$76,6,)) ->  | AB70: =IF($X70="","",VLOOKUP($X70,$AE$24:$AM$76,7,)) ->  | AC70: =IF($X70="","",VLOOKUP($X70,$AE$24:$AM$76,8,)) ->  | AE70: 50 | AG70: 倉出・合計区分 | AI70: 562 | AJ70: X | AK70: 1
C71: 2 | D71: 送信先コード | G71: 3 | H71: 9 | I71: 8 | K71: ◎ | L71: 送信先(メーカ) | M71: の統一取引先コード | W71: ○ | X71: 2 | Y71: =IF($X71="","",VLOOKUP($X71,$AE$24:$AM$76,2,)) -> 送信先コード | Z71: =IF($X71="","",VLOOKUP($X71,$AE$24:$AM$76,5,)) -> 3 | AA71: =IF($X71="","",VLOOKUP($X71,$AE$24:$AM$76,6,)) -> 9 | AB71: =IF($X71="","",VLOOKUP($X71,$AE$24:$AM$76,7,)) -> 8 | AC71: =IF($X71="","",VLOOKUP($X71,$AE$24:$AM$76,8,)) -> 0 | AE71: 51 | AG71: 日本語区分（商品名） | AI71: 563 | AJ71: X | AK71: 1
C72: 3 | D72: 送信元コード | G72: 11 | H72: 9 | I72: 8 | K72: ◎ | L72: 送信元(卸) | M72: の統一取引先コード | W72: ○ | X72: 3 | Y72: =IF($X72="","",VLOOKUP($X72,$AE$24:$AM$76,2,)) -> 送信元コード | Z72: =IF($X72="","",VLOOKUP($X72,$AE$24:$AM$76,5,)) -> 11 | AA72: =IF($X72="","",VLOOKUP($X72,$AE$24:$AM$76,6,)) -> 9 | AB72: =IF($X72="","",VLOOKUP($X72,$AE$24:$AM$76,7,)) -> 8 | AC72: =IF($X72="","",VLOOKUP($X72,$AE$24:$AM$76,8,)) -> 0 | AE72: 52 | AG72: 菓子業界商品分類コード | AI72: 564 | AJ72: X | AK72: 6
C73: 4 | D73: レコード区分 | G73: 19 | H73: 9 | I73: 1 | K73: ◎ | L73: ４：明細レコード | R73: 4 | W73: "4"固定 | Y73: =IF($X73="","",VLOOKUP($X73,$AE$24:$AM$76,2,)) ->  | Z73: =IF($X73="","",VLOOKUP($X73,$AE$24:$AM$76,5,)) ->  | AA73: =IF($X73="","",VLOOKUP($X73,$AE$24:$AM$76,6,)) ->  | AB73: =IF($X73="","",VLOOKUP($X73,$AE$24:$AM$76,7,)) ->  | AC73: =IF($X73="","",VLOOKUP($X73,$AE$24:$AM$76,8,)) ->  | AE73: 53 | AG73: 商品名カナ | AI73: 570 | AJ73: X | AK73: 25
D74: 明細部繰返（４７バイト × ５明細） ※明細レコードがショートブロック（レコード中５商品未満）の場合、ALL SPACEを設定する。 | Y74: =IF($U74="","",VLOOKUP($U74,$AD$27:$AN$54,2,)) ->  | Z74: =IF($U74="","",VLOOKUP($U74,$AD$6:$AN$54,5,)) ->  | AA74: =IF($U74="","",VLOOKUP($U74,$AD$6:$AN$54,6,)) ->  | AB74: =IF($U74="","",VLOOKUP($U74,$AD$6:$AN$54,7,)) ->  | AC74: =IF($U74="","",VLOOKUP($U74,$AD$6:$AN$54,8,)) ->  | AE74: 54 | AG74: 明細予備 | AI74: 595 | AJ74: X | AK74: 4
C75: 5 | E75: 商品コード識別区分 | G75: 20 | H75: X | I75: 1 | K75: ○ | L75: 品番(商品コード)の識別区分 | R75: 0:統一商品コード 1:ＩＴＦコード(14桁) 2:ＩＴＦｺｰﾄﾞ(拡張16桁) 3:JANコード(標準:13桁) 4:JANコード(短縮:8桁) 6:GTINコード(14桁) | U75: 必須＋コード(新) "2"は連携不可 | V75: ○ | W75: ○ | X75: 37 | Y75: =IF($X75="","",VLOOKUP($X75,$AE$24:$AM$76,3,)) -> 商品コード識別区分 | Z75: =IF($X75="","",VLOOKUP($X75,$AE$24:$AM$76,5,)) -> 454 | AA75: =IF($X75="","",VLOOKUP($X75,$AE$24:$AM$76,6,)) -> 9 | AB75: =IF($X75="","",VLOOKUP($X75,$AE$24:$AM$76,7,)) -> 1 | AC75: =IF($X75="","",VLOOKUP($X75,$AE$24:$AM$76,8,)) -> 0 | AE75: 55 | AG75: 明細連携エリア | AI75: 599 | AJ75: X | AK75: 2
C76: 6 | E76: 品番 | G76: 21 | H76: X | I76: 16 | K76: ○ | L76: 統一商品ｺｰﾄﾞ，ITFｺｰﾄﾞ，JANｺｰﾄﾞまたはGTINｺｰﾄﾞ（左詰め） | V76: ○ | W76: ○ | X76: 38
C77: 7 | E77: バラ総数符号 | G77: 37 | H77: X | I77: 1 | K77: ○ | L77: バラ総数の符号 | R77: ＋:正数 | S77: －:負数 | U77: ｺｰﾄﾞ | V77: "△"→"+" (有効明細時) | W77: "△"→"+" | X77: 40
C78: 8 | E78: バラ総数 | G78: 38 | H78: 9 | I78: 9 | K78: ○ | L78: ヘッダレコードの届け先への | N78: 販売数量合計 | U78: 属性(ｽ) | V78: ○ | W78: ○ | X78: 41
C79: 9 | E79: 単価 | G79: 47 | H79: 9 | I79: 6 | J79: 2 | K79: ○ | L79: ヘッダレコードの届け先への | N79: 販売単価 | U79: 属性(ｽ) | V79: ○ | W79: ○ | X79: 45 | Y79: 単 価 | Z79: 533 | AA79: 9 | AB79: 7 | AC79: 2
C80: 10 | E80: 金額符号 | G80: 55 | H80: X | I80: 1 | K80: ○ | L80: 金額の符号 | R80: ＋:正数 | S80: －:負数 | U80: ｺｰﾄﾞ | V80: "△"→"+" (有効明細時) | W80: "△"→"+" | X80: 46 | Y80: 金額符号 | Z80: 542 | AA80: X | AB80: 1 | AC80: 0
C81: 11 | E81: 金額 | G81: 56 | H81: 9 | I81: 10 | K81: ○ | L81: ヘッダレコードの届け先への | N81: 販売金額合計 | T81: 属性(ｻ) | U81: 属性(ｽ) | V81: ○ | W81: ○ | X81: 47 | Y81: 金額 | Z81: 543 | AA81: 9 | AB81: 10 | AC81: 0
C82: 12 | E82: 予備１ | G82: 66 | H82: X | I82: 1 | L82: レイアウト拡張時の予備領域 | N82: (利用禁止） | V82: ○ | W82: 属性初期値
C83: 13 | D83: 予備２ | G83: 255 | H83: X | I83: 2 | L83: レイアウト拡張時の予備領域 | N83: (利用禁止） | V83: ○ | W83: 属性初期値 | Y83: =IF($X83="","",VLOOKUP($X83,$AE$6:$AM$20,2,)) ->  | Z83: =IF($X83="","",VLOOKUP($X83,$AE$6:$AM$20,5,)) ->  | AA83: =IF($X83="","",VLOOKUP($X83,$AE$6:$AM$20,6,)) ->  | AB83: =IF($X83="","",VLOOKUP($X83,$AE$6:$AM$20,7,)) ->  | AC83: =IF($X83="","",VLOOKUP($X83,$AE$6:$AM$20,8,)) -> 
D89: ④ トレーラレコード
B90: 変更 | C90: 項番 | D90: 項目 | G90: 開始位置 | H90: 属性 | I90: 整数桁 | J90: 小数桁 | K90: 必須 | L90: 項目説明 | R90: コード | T90: Ｖ１ → Ｖ１ | U90: Ｖ１ → Ｖ２ | V90: Ｖ１ ← Ｖ１ | W90: Ｖ１ ← Ｖ２ | X90: Ｖ２フォーマット
T91: センタチェック | U91: センタチェック | V91: コンバート | W91: コンバート | X91: 項番 | Y91: 項目 | Z91: 開始 | AA91: 属性 | AB91: 整数 | AC91: 小数
C92: 1 | D92: データ種別 | G92: 1 | H92: 9 | I92: 2 | K92: ◎ | L92: ４２：販売報告(店出)データ | R92: 42 | T92: 共通部チェック (ｺﾝﾄﾛｰﾙ同値､ 軽症ｴﾗｰ) | U92: 共通部チェック (ｺﾝﾄﾛｰﾙ同値､ 軽症ｴﾗｰ) | V92: ○ | W92: "42"固定 | Y92: =IF($X92="","",VLOOKUP($X92,$AE$101:$AM$112,2,)) ->  | Z92: =IF($X92="","",VLOOKUP($X92,$AE$101:$AM$112,5,)) ->  | AA92: =IF($X92="","",VLOOKUP($X92,$AE$101:$AM$112,6,)) ->  | AB92: =IF($X92="","",VLOOKUP($X92,$AE$101:$AM$112,7,)) ->  | AC92: =IF($X92="","",VLOOKUP($X92,$AE$101:$AM$112,8,)) -> 
C93: 2 | D93: 送信先コード | G93: 3 | H93: 9 | I93: 8 | K93: ◎ | L93: 送信先(メーカ) | M93: の統一取引先コード | W93: ○ | X93: 2 | Y93: 送信先コード | Z93: 3 | AA93: 9 | AB93: 8 | AC93: 0
C94: 3 | D94: 送信元コード | G94: 11 | H94: 9 | I94: 8 | K94: ◎ | L94: 送信元(卸) | M94: の統一取引先コード | W94: ○ | X94: 3 | Y94: 送信元コード | Z94: 11 | AA94: 9 | AB94: 8 | AC94: 0
C95: 4 | D95: レコード区分 | G95: 19 | H95: 9 | I95: 1 | K95: ◎ | L95: ９：トレーラレコード | R95: 9 | W95: ○ | X95: 4 | Y95: レコード区分 | Z95: 19 | AA95: 9 | AB95: 1 | AC95: 0
B96: 1.7 | C96: 5 | D96: レコード件数 | G96: 20 | H96: 9 | I96: 6 | K96: ○ | L96: コントロールレコードとトレーラレコードで括られたレコードの総件数 (コントロールレコードとトレーラレコードは含まない) ・データ送信側では、自身のフォーマットのレコード件数を設定する。 ・データ受信側では、当項目と実際のレコード件数の整合性チェックには利用しない。※下記【トレーラレコード連携時の留意事項】を参照のこと | T96: 属性 | U96: 属性(ｽ) | V96: センター集計値 | W96: センター集計値 | X96: 5 | Y96: レコード件数 | Z96: 20 | AA96: 9 | AB96: 6 | AC96: 0
C97: 6 | D97: 明細件数 | G97: 26 | H97: 9 | I97: 6 | L97: 商品明細数 | T97: 属性 | U97: 属性(ｽ) | V97: センター集計値 | W97: センター集計値 | X97: 6 | Y97: 伝票枚数 | Z97: 26 | AA97: 9 | AB97: 6 | AC97: 0
C98: 7 | D98: 合計金額符号 | G98: 32 | H98: X | I98: 1 | L98: 合計金額の符号 | R98: ＋:正数 | S98: －:負数 | U98: ｺｰﾄﾞ | V98: センター設定 | W98: センター設定 | X98: 7 | Y98: 合計金額符号 | Z98: 32 | AA98: X | AB98: 1 | AC98: 0 | AF98: ③ トレーラレコード
C99: 8 | D99: 合計金額 | G99: 33 | H99: 9 | I99: 10 | L99: 卸店入価格で全明細行の金額合計 | T99: 属性(ｻ) | U99: 属性(ｽ) | V99: センター集計値 | W99: センター集計値 | X99: 8 | Y99: 合計金額 | Z99: 33 | AA99: 9 | AB99: 10 | AC99: 0 | AE99: 項番 | AF99: 項目 | AI99: 開始位置 | AJ99: 属性 | AK99: 整数桁 | AL99: 小数桁 | AM99: 必須
C100: 9 | D100: 予備 | G100: 43 | H100: X | I100: 214 | L100: レイアウト拡張時の予備領域 | N100: (利用禁止） | V100: ○ | W100: 属性初期値
Y101: =IF($U101="","",VLOOKUP($U101,$AD$6:$AN$20,2,)) ->  | Z101: =IF($U101="","",VLOOKUP($U101,$AD$6:$AN$20,5,)) ->  | AA101: =IF($U101="","",VLOOKUP($U101,$AD$6:$AN$20,6,)) ->  | AB101: =IF($U101="","",VLOOKUP($U101,$AD$6:$AN$20,7,)) ->  | AC101: =IF($U101="","",VLOOKUP($U101,$AD$6:$AN$20,8,)) ->  | AE101: 1 | AF101: データ種別 | AI101: 1 | AJ101: 9 | AK101: 2 | AM101: ○
Y102: =IF($U102="","",VLOOKUP($U102,$AD$6:$AN$20,2,)) ->  | Z102: =IF($U102="","",VLOOKUP($U102,$AD$6:$AN$20,5,)) ->  | AA102: =IF($U102="","",VLOOKUP($U102,$AD$6:$AN$20,6,)) ->  | AB102: =IF($U102="","",VLOOKUP($U102,$AD$6:$AN$20,7,)) ->  | AC102: =IF($U102="","",VLOOKUP($U102,$AD$6:$AN$20,8,)) ->  | AE102: 2 | AF102: 送信先コード | AI102: 3 | AJ102: 9 | AK102: 8 | AM102: ○
AE103: 3 | AF103: 送信元コード | AI103: 11 | AJ103: 9 | AK103: 8 | AM103: ○
AE104: 4 | AF104: レコード区分 | AI104: 19 | AJ104: 9 | AK104: 1 | AM104: ○
AE105: 5 | AF105: レコード件数 | AI105: 20 | AJ105: 9 | AK105: 6
AE106: 6 | AF106: 伝票枚数 | AI106: 26 | AJ106: 9 | AK106: 6
AE107: 7 | AF107: 合計金額符号 | AI107: 32 | AJ107: X | AK107: 1
AE108: 8 | AF108: 合計金額 | AI108: 33 | AJ108: 9 | AK108: 10
AE109: 9 | AF109: 予備 | AI109: 43 | AJ109: X | AK109: 1138
AE110: 10 | AF110: 連携エリア | AI110: 1181 | AJ110: X | AK110: 20
AF127: ③ 明細レコード
AE128: 項番 | AF128: 項目 | AI128: 開始位置 | AJ128: 属性 | AK128: 整数桁 | AL128: 小数桁 | AM128: 必須
AE130: 1 | AF130: データ種別 | AI130: 1 | AJ130: 9 | AK130: 2 | AM130: ○
AE131: 2 | AF131: 送信先コード | AI131: 3 | AJ131: 9 | AK131: 8 | AM131: ○
AE132: 3 | AF132: 送信元コード | AI132: 11 | AJ132: 9 | AK132: 8 | AM132: ○
AE133: 4 | AF133: レコード区分 | AI133: 19 | AJ133: 9 | AK133: 1 | AM133: ○
AF134: 明細部繰返（１１７バイト × ２明細）
AE135: 5 | AG135: 行NO | AI135: 20 | AJ135: 9 | AK135: 2 | AM135: ○
AE136: 6 | AG136: 専用伝票行NO | AI136: 22 | AJ136: 9 | AK136: 2
AE137: 7 | AG137: 商品コード識別区分 | AI137: 24 | AJ137: X | AK137: 1 | AM137: ○
AE138: 8 | AG138: 品番 | AI138: 25 | AJ138: X | AK138: 16 | AM138: ○
AE139: 9 | AG139: 商品名 | AI139: 41 | AJ139: X | AK139: 25 | AM139: ○
AE140: 10 | AG140: 包装区分 | AI140: 66 | AJ140: 9 | AK140: 1 | AM140: ○
AE141: 11 | AG141: 内容 | AH141: ボール内バラ数 | AI141: 67 | AJ141: 9 | AK141: 4 | AL141: 2 | AM141: ○
AE142: 12 | AH142: ケース内ボール数 | AI142: 73 | AJ142: 9 | AK142: 2 | AM142: ○
AE143: 13 | AG143: 数量符号 | AI143: 75 | AJ143: X | AK143: 1 | AM143: ○
AE144: 14 | AG144: 数量 | AH144: ケース数量 | AI144: 76 | AJ144: 9 | AK144: 7 | AM144: ○
AE145: 15 | AH145: ボール数量 | AI145: 83 | AJ145: 9 | AK145: 7 | AM145: ○
AE146: 16 | AH146: バラ数量 | AI146: 90 | AJ146: 9 | AK146: 7 | AL146: 2 | AM146: ○
AE147: 17 | AG147: 単価 | AH147: 卸店入価格 | AI147: 99 | AJ147: 9 | AK147: 6 | AL147: 2 | AM147: ○
AE148: 18 | AH148: 二次店納入価格 | AI148: 107 | AJ148: 9 | AK148: 6 | AL148: 2
AE149: 19 | AG149: 金額符号 | AI149: 115 | AJ149: X | AK149: 1 | AM149: ○
AE150: 20 | AG150: 金額 | AH150: 卸店入金額 | AI150: 116 | AJ150: 9 | AK150: 8 | AM150: ○
AE151: 21 | AH151: 二次店納入金額 | AI151: 124 | AJ151: 9 | AK151: 8
AE152: 22 | AG152: 卸最新在庫日付 | AI152: 132 | AJ152: X | AK152: 5
AE153: 23 | AF153: 予備２ | AI153: 254 | AJ153: X | AK153: 3
AF168: ④ トレーラレコード
AE169: 項番 | AF169: 項目 | AI169: 開始位置 | AJ169: 属性 | AK169: 整数桁 | AL169: 小数桁 | AM169: 必須
AE171: 1 | AF171: データ種別 | AI171: 1 | AJ171: 9 | AK171: 2 | AM171: ○
AE172: 2 | AF172: 送信先コード | AI172: 3 | AJ172: 9 | AK172: 8 | AM172: ○
AE173: 3 | AF173: 送信元コード | AI173: 11 | AJ173: 9 | AK173: 8 | AM173: ○
AE174: 4 | AF174: レコード区分 | AI174: 19 | AJ174: 9 | AK174: 1 | AM174: ○
AE175: 5 | AF175: レコード件数 | AI175: 20 | AJ175: 9 | AK175: 6 | AM175: ○
AE176: 6 | AF176: 伝票枚数 | AI176: 26 | AJ176: 9 | AK176: 6
AE177: 7 | AF177: 合計金額符号 | AI177: 32 | AJ177: X | AK177: 1
AE178: 8 | AF178: 合計金額 | AI178: 33 | AJ178: 9 | AK178: 10
AE179: 9 | AF179: 予備 | AI179: 43 | AJ179: X | AK179: 214

Sheet ５１販促金案内・支払
AE1: =シート別総ページ数 ->  | AF1: 1
C2: （７）Ｖ１・５１販促金案内・支払 | X2: 入力チェック仕様
D3: ① コントロールレコード | X3: V1連携時
B4: 変更 | C4: 項番 | D4: 項目 | G4: 開始位置 | H4: 属性 | I4: 整数桁 | J4: 小数桁 | K4: 必須 | M4: 項目説明 | S4: コード | U4: Ｖ１ → Ｖ１ | X4: 必須 | AB4: コード値 | AO4: 属性チェック | AT4: 単項目
K5: 案内 | L5: 支払 | U5: センタチェック | AB5: 固定値 | AF5: 範囲 | AJ5: 区分マスタ | AT5: 日付 | AW5: 時間
C6: =C5+1 -> 1 | D6: ﾃﾞｰﾀ種別 | G6: 1 | H6: 9 | I6: 2 | K6: ◎ | M6: ５１：販促金案内・支払データ | O6: 〈メーカ ⇒ 卸売業へ販促金の案内・支払を通知する〉 | S6: 51 | U6: ｺｰﾄﾞ | BB6: =SUM(I6:J24) -> 186
C7: 2 | D7: 送信先ｺｰﾄﾞ | G7: =G6+I6+J6 -> 3 | H7: 9 | I7: 8 | K7: ◎ | M7: 送信先(卸) | N7: の統一取引先コード | U7: センター登録
C8: 3 | D8: 送信元ｺｰﾄﾞ | G8: 11 | H8: 9 | I8: 8 | K8: ◎ | M8: 送信元(メーカ) | N8: の統一取引先コード | U8: センター登録
C9: 4 | D9: ﾚｺｰﾄﾞ区分 | G9: 19 | H9: 9 | I9: 1 | K9: ◎ | M9: １：コントロールレコード | S9: 1 | U9: ｺｰﾄﾞ
C10: 5 | D10: ﾃﾞｰﾀ作成日 | G10: 20 | H10: 9 | I10: 8 | K10: ○ | L10: ○ | M10: データ作成日付 | O10: (西暦 YYYYMMDD)
C11: 6 | D11: 送信先カナ名 | G11: 28 | H11: X | I11: 20 | K11: ○ | L11: ○ | M11: 送信先(卸)名 | O11: (英数カナのみ)
C12: 7 | D12: 送信元カナ名 | G12: 48 | H12: X | I12: 20 | K12: ○ | L12: ○ | M12: 送信元(メーカ)名 | O12: (英数カナのみ)
C13: 8 | D13: 直接送信先ｺｰﾄﾞ | G13: 68 | H13: 9 | I13: 8 | M13: 送信先と異なる場所へ送信する場合にセット。 セット不要の場合"00000000"
C14: 9 | D14: 直接送信先名 | G14: 76 | H14: X | I14: 20 | M14: 送信先と異なる場所へ送信する場合にセット。 セット不要の場合スペース
C15: 10 | D15: データ区分 | G15: 96 | H15: X | I15: 1 | K15: ○ | L15: ○ | M15: データ区分 | S15: 1:案内データ | T15: 2:支払データ
C16: 11 | D16: 卸売業企業コード区分 | G16: 97 | H16: X | I16: 1 | M16: 卸売業企業コード区分 | S16: 1:統一取引先(8桁） 6:GLN(13桁） | T16: 7:卸PVコード 8:メーカPVコード
C17: 12 | D17: 卸売業企業コード | G17: 98 | H17: X | I17: 13 | M17: 卸店企業コード (13桁以内、左詰め) 統一取引先(8桁)／GLN(13桁)／プライベートコード(13桁以内)
C18: 13 | D18: 卸売業企業名 | G18: 111 | H18: X/N | I18: 30 | K18: ○ | L18: ○ | M18: 卸店企業社名 | O18: (英数カナは30文字、漢字は15文字)
C19: 14 | D19: 卸売業企業名漢字区分 | G19: 141 | H19: X | I19: 1 | M19: 該当項目の漢字区分 | S19: △/0:英数カナ 1: S-JIS漢字 2: IBM漢字 | T19: 3: JEF漢字 9: その他漢字
C20: 15 | D20: メーカ企業コード区分 | G20: 142 | H20: X | I20: 1 | M20: メーカ企業コード区分 | S20: 1:統一取引先(8桁） 6:GLN(13桁） | T20: 7:卸PVコード 8:メーカPVコード
C21: 16 | D21: メーカ企業コード | G21: 143 | H21: X | I21: 13 | M21: メーカ企業コード (13桁以内、左詰め) 統一取引先(8桁)／GLN(13桁)／プライベートコード(13桁以内)
C22: 17 | D22: メーカ企業名 | G22: 156 | H22: X/N | I22: 30 | K22: ○ | L22: ○ | M22: メーカ社名 | O22: (英数カナは30文字、漢字は15文字)
C23: 18 | D23: メーカ企業名漢字区分 | G23: 186 | H23: X | I23: 1 | M23: 該当項目の漢字区分 | S23: △/0:英数カナ 1: S-JIS漢字 2: IBM漢字 | T23: 3: JEF漢字 9: その他漢字
B24: 2.0 | C24: 19 | D24: 支払確認期限区分 | G24: 187 | H24: X | I24: 1 | M24: 支払確認期限の区分 | S24: △:日付指定 | T24: １:日数指定
B25: 2.0 | C25: 20 | D25: 支払確認期限日付 | G25: 188 | H25: 9 | I25: 8 | M25: 支払確認期限日付（YYYYMMDD）
B26: 2.0 | C26: 21 | D26: 支払確認期限日数 | G26: 196 | H26: 9 | I26: 2 | M26: 支払確認期限日数
B27: 2.0 | C27: 22 | D27: 予備 | G27: 198 | H27: X | I27: 59 | M27: レイアウト拡張時の予備領域 | O27: (利用禁止）
D32: ② ヘッダーレコード | X32: V1連携時
B33: 変更 | C33: 項番 | D33: 項目 | G33: 開始位置 | H33: 属性 | I33: 整数桁 | J33: 小数桁 | K33: 必須 | M33: 項目説明 | S33: コード | U33: Ｖ１ → Ｖ１ | X33: 必須 | AB33: コード値 | AO33: 属性チェック | AT33: 単項目
K34: 案内 | L34: 支払 | U34: センタチェック | AB34: 固定値 | AF34: 範囲 | AJ34: 区分マスタ | AT34: 日付 | AW34: 時間
C35: =C34+1 -> 1 | D35: ﾃﾞｰﾀ種別 | G35: 1 | H35: 9 | I35: 2 | K35: ◎ | M35: ５１：販促金案内・支払データ | O35: 〈メーカ ⇒ 卸売業へ販促金の案内・支払を通知する〉 | S35: 51 | U35: 共通部チェック (ｺﾝﾄﾛｰﾙ同値､ 軽症ｴﾗｰ) | BB35: =SUM(I35:J70) -> 238
C36: 2 | D36: 送信先ｺｰﾄﾞ | G36: =G35+I35+J35 -> 3 | H36: 9 | I36: 8 | K36: ◎ | M36: 送信先(卸) | N36: の統一取引先コード
C37: 3 | D37: 送信元ｺｰﾄﾞ | G37: 11 | H37: 9 | I37: 8 | K37: ◎ | M37: 送信元(メーカ) | N37: の統一取引先コード
C38: 4 | D38: ﾚｺｰﾄﾞ区分 | G38: 19 | H38: 9 | I38: 1 | K38: ◎ | M38: ２：ヘッダーレコード | S38: 2
C39: 5 | D39: データ区分 | G39: 20 | H39: X | I39: 1 | K39: ○ | L39: ○ | M39: データ区分 | S39: 1:案内データ | T39: 2:支払データ
C40: 6 | D40: 事業所／帳合先 コード区分 | G40: 21 | H40: X | I40: 1 | M40: 事業所／帳合先 コード区分 | S40: 1:統一取引先(8桁） 6:GLN(13桁） | T40: 7:卸PVコード 8:メーカPVコード △:無指定
C41: 7 | D41: 事業所／帳合先コード | G41: 22 | H41: X | I41: 13 | M41: 卸店事業所／帳合先コード (13桁以内、左詰め) 統一取引先(8桁)／GLN(13桁)／プライベートコード(13桁以内)
C42: 8 | D42: 事業所／帳合先名 | G42: 35 | H42: X/N | I42: 30 | K42: ○ | L42: ○ | M42: 卸店事業所／帳合先名 | O42: (英数カナは30文字、漢字は15文字、無指定時はスペース)
C43: 9 | D43: 事業所／帳合先名漢字区分 | G43: 65 | H43: X | I43: 1 | M43: 該当項目の漢字区分 | S43: △/0:英数カナ 1: S-JIS漢字 2: IBM漢字 | T43: 3: JEF漢字 9: その他漢字
C44: 10 | D44: 得意先コード区分 | G44: 66 | H44: X | I44: 1 | M44: 得意先コード区分 | S44: 1:統一取引先(8桁） 6:GLN(13桁） | T44: 7:卸PVコード 8:メーカPVコード △:無指定
C45: 11 | D45: 得意先コード | G45: 67 | H45: X | I45: 13 | M45: 卸店得意先コード (13桁以内、左詰め) 統一取引先(8桁)／GLN(13桁)／プライベートコード(13桁以内)
C46: 12 | D46: 得意先名 | G46: 80 | H46: X/N | I46: 30 | K46: ○ | L46: ○ | M46: 卸店得意先名 | O46: (英数カナは30文字、漢字は15文字、無指定時はスペース)
C47: 13 | D47: 得意先名漢字区分 | G47: 110 | H47: X | I47: 1 | M47: 該当項目の漢字区分 | S47: △/0:英数カナ 1: S-JIS漢字 2: IBM漢字 | T47: 3: JEF漢字 9: その他漢字
C48: 14 | D48: 届け先コード区分 | G48: 111 | H48: X | I48: 1 | M48: 届け先コード区分 | S48: 1:統一取引先(8桁） 6:GLN(13桁） | T48: 7:卸PVコード 8:メーカPVコード △:無指定
C49: （次頁に続く）
C53: （前頁の続き）
B54: 変更 | C54: 項番 | D54: 項目 | G54: 開始位置 | H54: 属性 | I54: 整数桁 | J54: 小数桁 | K54: 必須 | M54: 項目説明 | S54: コード | U54: Ｖ１ → Ｖ１ | X54: 必須 | AB54: コード値 | AO54: 属性チェック | AT54: 単項目
K55: 案内 | L55: 支払 | U55: センタチェック | AB55: 固定値 | AF55: 範囲 | AJ55: 区分マスタ | AT55: 日付 | AW55: 時間
C56: =C48+1 -> 15 | D56: 届け先／店舗コード | G56: =G48+I48+J48 -> 112 | H56: X | I56: 13 | M56: 届け先／店舗コード （13桁以内、左詰め) 統一取引先(8桁)／GLN(13桁)／プライベートコード(13桁以内)
C57: =C56+1 -> 16 | D57: 届け先名／店舗名 | G57: =G56+I56+J56 -> 125 | H57: X/N | I57: 30 | K57: ○ | L57: ○ | M57: 届け先／店名 | O57: (英数カナは30文字、漢字は15文字、無指定時はスペース)
C58: 17 | D58: 届け先名漢字区分 | G58: 155 | H58: X | I58: 1 | M58: 該当項目の漢字区分 | S58: △/0:英数カナ 1: S-JIS漢字 2: IBM漢字 | T58: 3: JEF漢字 9: その他漢字
C59: 18 | D59: 得意先区分 | G59: 156 | H59: X | I59: 1 | M59: 対象となる得意先を表す | S59: 1:全店 2:地域 | T59: 3:店舗 △:無指定
C60: 19 | D60: 卸売業担当者コード区分 | G60: 157 | H60: X | I60: 1 | K60: － | M60: 卸売業担当者コード区分 | S60: 1:統一取引先(8桁） 6:GLN(13桁） | T60: 7:卸PVコード 8:メーカPVコード △:無指定
C61: 20 | D61: 卸売業担当者コード | G61: 158 | H61: X | I61: 13 | K61: － | M61: 卸売業の営業担当者／営業担当組織コード（左詰め） 統一取引先(8桁)／GLN(13桁)／プライベートコード(13桁以内)
C62: 21 | D62: 卸売業担当者名 | G62: 171 | H62: X/N | I62: 20 | K62: － | M62: 卸売業の営業担当者名／営業担当組織名 (英数カナは20文字、漢字は10文字、無指定時はスペース)
C63: 22 | D63: 卸売業担当者名漢字区分 | G63: 191 | H63: X | I63: 1 | K63: － | M63: 該当項目の漢字区分 | S63: △/0:英数カナ 1: S-JIS漢字 2: IBM漢字 | T63: 3: JEF漢字 9: その他漢字
C64: 23 | D64: 請求書№ | G64: 192 | H64: X | I64: 10 | K64: － | L64: ○ | M64: 卸店からの請求書における請求番号 | P64: (英数字10桁以内、左詰め）
C65: 24 | D65: 請求伝票番号 | G65: 202 | H65: X | I65: 10 | K65: － | M65: 請求番号が得意先毎に設定される場合に使用する | P65: (英数字10桁以内、左詰め）
C66: 25 | D66: 請求締日 | G66: 212 | H66: X | I66: 8 | K66: － | M66: 卸店からの請求締最終年月日 | P66: (西暦 YYYYMMDD)
C67: 26 | D67: 計上日 | G67: 220 | H67: 9 | I67: 8 | K67: － | L67: ○ | M67: 請求計上日 | P67: (西暦 YYYYMMDD)
C68: 27 | D68: 請求支払返信区分 | G68: 228 | H68: X | I68: 1 | K68: － | M68: 請求データに対する支払データの返信区分 | S68: 1:全件返信 2:差分返信 | T68: 3:追加返信 △:無指定
C69: 28 | D69: 販売促進企画番号 | G69: 229 | H69: X | I69: 10 | M69: 販売促進企画を提案する際の管理上の番号 | P69: (英数字10桁以内、左詰め)
C70: =C69+1 -> 29 | D70: 予備 | G70: =G69+I69+J69 -> 239 | H70: X | I70: 18 | M70: レイアウト拡張時の予備領域 | O70: (利用禁止）
D75: ③ 明細レコード | X75: V1連携時
B76: 変更 | C76: 項番 | D76: 項目 | G76: 開始位置 | H76: 属性 | I76: 整数桁 | J76: 小数桁 | K76: 必須 | M76: 項目説明 | S76: コード | U76: Ｖ１ → Ｖ１ | X76: 必須 | AB76: コード値 | AO76: 属性チェック | AT76: 単項目
K77: 案内 | L77: 支払 | U77: センタチェック | AB77: 固定値 | AF77: 範囲 | AJ77: 区分マスタ | AT77: 日付 | AW77: 時間
C78: =C77+1 -> 1 | D78: ﾃﾞｰﾀ種別 | G78: 1 | H78: 9 | I78: 2 | K78: ◎ | M78: ５１：販促金案内・支払データ | O78: 〈メーカ ⇒ 卸売業へ販促金の案内・支払を通知する〉 | S78: 51 | U78: 共通部チェック (ｺﾝﾄﾛｰﾙ同値､ 軽症ｴﾗｰ) | BB78: =SUM(I78:J130) -> 256
C79: 2 | D79: 送信先ｺｰﾄﾞ | G79: =G78+I78+J78 -> 3 | H79: 9 | I79: 8 | K79: ◎ | M79: 送信先(卸) | N79: の統一取引先コード
C80: 3 | D80: 送信元ｺｰﾄﾞ | G80: 11 | H80: 9 | I80: 8 | K80: ◎ | M80: 送信元(メーカ) | N80: の統一取引先コード
C81: 4 | D81: ﾚｺｰﾄﾞ区分 | G81: 19 | H81: 9 | I81: 1 | K81: ◎ | M81: ４：明細レコード | S81: 4
C82: 5 | D82: データ区分 | G82: 20 | H82: X | I82: 1 | K82: ○ | L82: ○ | M82: データ区分 | S82: 1:案内データ | T82: 2:支払データ
C83: 6 | D83: 明細行№ | G83: 21 | H83: X | I83: 3 | K83: ○ | L83: ○ | M83: 請求書№／請求伝票番号毎の明細行№ （001～999、999超過時は別の請求書№とする） | U83: 属性 | AO83: 半角数字
C84: 7 | D84: 計上№ | G84: 24 | H84: X | I84: 10 | K84: － | M84: 明細の管理番号 (英数字10桁以内、左詰め) 請求書№・請求伝票番号と合わせて支払照合のキーとなる
B85: 2.5 | C85: 8 | D85: 対象期間（開始日） | G85: 34 | H85: X | I85: 8 | M85: 資産譲渡日付 | O85: (西暦 YYYYMMDD)
B86: 2.5 | C86: 9 | D86: 対象期間（終了日） | G86: 42 | H86: X | I86: 8 | M86: 資産譲渡日付 | O86: (西暦 YYYYMMDD)
C87: 10 | D87: 特売区分 | G87: 50 | H87: X | I87: 1 | M87: 販促金の特売等の区分を表す | S87: 0:分類不能 1:定番 2:特売 | T87: 8:その他 △:無指定
C88: 11 | D88: 商品コード使用区分 | G88: 51 | H88: X | I88: 1 | M88: 商品コードの使用区分 | S88: 0:統一商品コード 1:ITFコード 2:JAN＋荷姿コード 3:JANコード | T88: 6:GTINコード 7:メーカPVコード 8:卸PVコード △:商品特定なし
C89: 12 | D89: 商品コード | G89: 52 | H89: X | I89: 16 | K89: ○ | L89: ○ | M89: 上記商品コード設定／ﾌﾟﾗｲﾍﾞｰﾄｺｰﾄﾞ | O89: (左詰め16桁以内、無指定時はスペース)
C90: 13 | D90: 商品名／規格 | G90: 68 | H90: X/N | I90: 40 | K90: ○ | L90: ○ | M90: 商品名、通常30桁／規格、通常10桁 (英数カナ文字／漢字、無指定時はスペース)
C91: 14 | D91: 商品名（漢字区分） | G91: 108 | H91: X | I91: 1 | M91: 該当項目の漢字区分 | S91: △/0:英数カナ 1: S-JIS漢字 2: IBM漢字 | T91: 3: JEF漢字 9: その他漢字
C92: 15 | D92: 入数１ | G92: 109 | H92: 9 | I92: 3 | M92: 商品のボール内バラ数 | O92: (商品特定なし：000)
C93: 16 | D93: 入数２ | G93: 112 | H93: 9 | I93: 2 | M93: 商品のケース内ボール数 | O93: (商品特定なし：00)
C94: 17 | D94: 請求対象数量／金額単位 | G94: 114 | H94: X | I94: 1 | K94: － | M94: 計上対象数量の単位を表す | S94: 0:円 1:ケース 3:バラ | T94: 5:Ｋg 7:g △:無指定
C95: 18 | D95: 請求計上対象数量／金額 | G95: 115 | H95: 9 | I95: 8 | J95: 2 | K95: － | L95: ○ | M95: 請求の対象となる数量／金額 | O95: (小数点以下２桁) | U95: 属性 | AO95: 半角数字
C96: 19 | D96: 請求計上計算区分 | G96: 125 | H96: X | I96: 1 | M96: 請求計上の計算区分を表す | S96: 0:仕入価(建値)金額換算 1:納品価金額換算 3:バラ数量換算 5:ケース数量換算 △:無指定
C97: （次頁に続く）
C99: （前頁の続き）
B100: 変更 | C100: 項番 | D100: 項目 | G100: 開始位置 | H100: 属性 | I100: 整数桁 | J100: 小数桁 | K100: 必須 | M100: 項目説明 | S100: コード | U100: Ｖ１ → Ｖ１ | X100: 必須 | AB100: コード値 | AO100: 属性チェック | AT100: 単項目
K101: 案内 | L101: 支払 | U101: センタチェック | AB101: 固定値 | AF101: 範囲 | AJ101: 区分マスタ | AT101: 日付 | AW101: 時間
C102: =C96+1 -> 20 | D102: 請求計上条件区分 | G102: =G96+I96+J96 -> 126 | H102: X | I102: 1 | K102: ○ | L102: ○ | M102: 請求計上の条件区分を表す | S102: 0:％ 1:ケース 3:バラ | T102: 5:Ｋg 6:g 8:金額 △:無指定
C103: =C102+1 -> 21 | D103: 請求計上条件 | G103: =G102+I102+J102 -> 127 | H103: 9 | I103: 6 | J103: 2 | K103: ○ | L103: ○ | M103: 請求計上対象数量に対する条件 条件区分＝０(％)以外の時は金額 | P103: (小数点以下２桁) | U103: 属性 | AO103: 半角数字
C104: =C103+1 -> 22 | D104: 符号（請求計上金額） | G104: =G103+I103+J103 -> 135 | H104: X | I104: 1 | K104: － | M104: 請求計上金額の符号 | S104: ＋:正数 －:負数 | T104: △:無指定
C105: 23 | D105: 請求計上金額 | G105: 136 | H105: 9 | I105: 8 | J105: 2 | K105: － | L105: ○ | M105: 請求金額 計算式＝（請求計上対象数量Ｘ請求計上条件 | P105: (小数点以下２桁) | U105: 属性(ｻ) | AO105: 半角数字（サイン付）
C106: 24 | D106: 請求区分 | G106: 146 | H106: X | I106: 1 | K106: － | M106: 請求区分 | S106: 1:通常(当月請求) 2:再請求 | T106: △:無指定
C107: 25 | D107: 店入直送区分 | G107: 147 | H107: X | I107: 1 | K107: － | M107: 店(倉)入れまたは直送等の区分 | S107: 1:店入 2:直送 | T107: △:無指定
C108: 26 | D108: 支払日 | G108: 148 | H108: X | I108: 8 | K108: － | M108: 販売促進金支払日 | P108: (西暦 YYYYMMDD)
C109: 27 | D109: 支払計上対象数量／金額単位 | G109: 156 | H109: X | I109: 1 | K109: － | M109: 支払対象数量の単位を表す | S109: 0:円 1:ケース 3:バラ | T109: 5:Ｋg 7:g △:無指定
C110: 28 | D110: 支払計上対象数量／金額 | G110: 157 | H110: 9 | I110: 8 | J110: 2 | K110: － | L110: ○ | M110: 支払の根拠対象となる数量／金額 | P110: (小数点以下２桁) | U110: 属性 | AO110: 半角数字
C111: 29 | D111: 支払計上条件区分 | G111: 167 | H111: X | I111: 1 | K111: － | L111: ○ | M111: 支払計上の条件区分を表す | S111: 0:％引 1:ケース引 3:バラ引 | T111: 5:Ｋg引 6:g引 8:金額引 △:無指定
C112: 30 | D112: 支払計上条件 | G112: 168 | H112: 9 | I112: 6 | J112: 2 | K112: － | L112: ○ | M112: 支払計上対象数量に対する条件 条件区分＝０(％)以外の時は金額 | P112: (小数点以下２桁) | U112: 属性 | AO112: 半角数字
C113: 31 | D113: 符号（支払計上金額） | G113: 176 | H113: X | I113: 1 | K113: － | M113: 支払計上金額の符号 | S113: ＋:正数 －:負数 | T113: △:無指定
C114: 32 | D114: 支払計上金額 | G114: 177 | H114: 9 | I114: 8 | J114: 2 | K114: － | L114: ○ | M114: 支払金額 支払側が照合した結果、請求額通り支払う場合は 請求計上金額をそのままセットする | P114: (小数点以下２桁) | U114: 属性(ｻ) | AO114: 半角数字（サイン付）
C115: 33 | D115: 支払金額計算区分 | G115: 187 | H115: X | I115: 1 | K115: － | M115: 小数点以下が発生した場合の正数化する計算方法 | S115: 1:切捨て 2:切上げ | T115: 3:四捨五入 △:無指定
C116: 34 | D116: 支払消費税額 | G116: 188 | H116: 9 | I116: 8 | K116: － | M116: 支払金額に対する消費税額
C117: 35 | D117: 支払消費税区分 | G117: 196 | H117: X | I117: 1 | K117: － | M117: 税区分 | S117: 1:外税 2:内税 | T117: 3:非課税 △:無指定
C118: 36 | D118: 支払照合区分 | G118: 197 | H118: X | I118: 1 | K118: － | L118: ○ | M118: 請求金額に対する照合した際の照合結果を表す | S118: 0:照合支払 1:数量違い 2:条件違い 3:条件・数量違い 4:保留 | T118: 5:約束無し 6:支払済み 7:別途支払済み △:無指定
C119: 37 | D119: 決済方法 | G119: 198 | H119: X | I119: 1 | M119: 決済方法 | S119: 1:振込 △:無指定 2:売掛金相殺 （メーカから卸店への売掛金で相殺）
C120: 38 | D120: 摘要コード | G120: 199 | H120: X | I120: 3 | M120: 商品に紐づかない販売時等のコメントを表記する | S120: △△△／000:コメントなし 001～030:別項 090～098:任意利用 099～999:その他
C121: 39 | D121: 摘要１（補足情報） | G121: 202 | H121: X | I121: 20 | M121: 摘要コード内容／補足コメント | O121: (20桁以内､ｺﾒﾝﾄ無し時はスペース)
C122: 40 | D122: 摘要２（補足情報） | G122: 222 | H122: X | I122: 20 | M122: 摘要コード内容／補足コメント | O122: (20桁以内､ｺﾒﾝﾄ無し時はスペース)
C123: 41 | D123: 摘要１（漢字区分） | G123: 242 | H123: X | I123: 1 | M123: 該当項目の漢字区分 | S123: △/0:英数カナ 1: S-JIS漢字 2: IBM漢字 | T123: 3: JEF漢字 9: その他漢字
C124: 42 | D124: 摘要２（漢字区分） | G124: 243 | H124: X | I124: 1 | M124: 該当項目の漢字区分 | S124: △/0:英数カナ 1: S-JIS漢字 2: IBM漢字 | T124: 3: JEF漢字 9: その他漢字
C125: 43 | D125: 付加情報１（１桁） | G125: 244 | H125: X | I125: 1 | M125: 相対での設定情報（１桁）
C126: 44 | D126: 付加情報２（２桁） | G126: 245 | H126: X | I126: 2 | M126: 相対での設定情報（２桁）
C127: 45 | D127: 付加情報３（３桁） | G127: 247 | H127: X | I127: 3 | M127: 相対での設定情報（３桁）
B128: 1.9 | C128: 46 | D128: 請求消費税率 | G128: 250 | H128: 9 | I128: 2 | J128: 1 | K128: － | L128: ○ | M128: 請求の消費税率(99.9％)、ゼロ:個別判断 | P128: (小数点以下1桁) | U128: 属性
B129: 1.9 | C129: 47 | D129: 支払消費税率 | G129: 253 | H129: 9 | I129: 2 | J129: 1 | K129: － | L129: ○ | M129: 支払の消費税率(99.9％)、ゼロ:個別判断 | P129: (小数点以下1桁) | U129: 属性
B130: 1.9 | C130: =C129+1 -> 48 | D130: 予備 | G130: 256 | H130: X | I130: 1 | M130: レイアウト拡張時の予備領域 | O130: (利用禁止）
D138: ④ 明細オプションレコード（※任意） | X138: V1連携時
B139: 変更 | C139: 項番 | D139: 項目 | G139: 開始位置 | H139: 属性 | I139: 整数桁 | J139: 小数桁 | K139: 必須 | M139: 項目説明 | S139: コード | U139: Ｖ１ → Ｖ１ | X139: 必須 | AB139: コード値 | AO139: 属性チェック | AT139: 単項目
K140: 案内 | L140: 支払 | U140: センタチェック | AB140: 固定値 | AF140: 範囲 | AJ140: 区分マスタ | AT140: 日付 | AW140: 時間
C141: =C140+1 -> 1 | D141: ﾃﾞｰﾀ種別 | G141: 1 | H141: 9 | I141: 2 | K141: ◎ | M141: ５１：販促金案内・支払データ | O141: 〈メーカ ⇒ 卸売業へ販促金の案内・支払を通知する〉 | S141: 51 | U141: 共通部チェック (ｺﾝﾄﾛｰﾙ同値､ 軽症ｴﾗｰ) | BB141: =SUM(I141:J155) -> 256
C142: 2 | D142: 送信先ｺｰﾄﾞ | G142: =G141+I141+J141 -> 3 | H142: 9 | I142: 8 | K142: ◎ | M142: 送信先(卸) | N142: の統一取引先コード
C143: 3 | D143: 送信元ｺｰﾄﾞ | G143: 11 | H143: 9 | I143: 8 | K143: ◎ | M143: 送信元(メーカ) | N143: の統一取引先コード
C144: 4 | D144: ﾚｺｰﾄﾞ区分 | G144: 19 | H144: 9 | I144: 1 | K144: ◎ | M144: ５：明細オプションレコード | S144: 5
C145: 5 | D145: データ区分 | G145: 20 | H145: X | I145: 1 | K145: ○ | L145: ○ | M145: データ区分 | S145: 1:案内データ | T145: 2:支払データ
C146: 6 | D146: 明細行№ | G146: 21 | H146: X | I146: 3 | K146: ○ | L146: ○ | M146: 請求書№／請求伝票番号毎の明細行№ （001～999、999超過時は別の請求書№とする）
C147: 7 | D147: 計上№ | G147: 24 | H147: X | I147: 10 | M147: 明細の管理番号 (英数字10桁以内、左詰め) 請求書№・請求伝票番号と合わせて支払照合のキーとなる
C148: 8 | D148: 摘要３（補足） | G148: 34 | H148: X | I148: 80 | M148: 適用コード内容／補足コメント | O148: (80桁以内、ｺﾒﾝﾄ無し時はスペース）
C149: 9 | D149: 摘要３（漢字区分） | G149: 114 | H149: X | I149: 1 | M149: 該当項目の漢字区分 | S149: △/0:英数カナ 1: S-JIS漢字 2: IBM漢字 | T149: 3: JEF漢字 9: その他漢字
C150: 10 | D150: 付加情報４（５桁） | G150: 115 | H150: X | I150: 5 | M150: 相対での設定情報（5桁）
C151: 11 | D151: 付加情報５（７桁） | G151: 120 | H151: X | I151: 7 | M151: 相対での設定情報（７桁）
C152: 12 | D152: 付加情報６（１０桁） | G152: 127 | H152: X | I152: 10 | M152: 相対での設定情報（10桁）
C153: 13 | D153: 付加情報７（１６桁） | G153: 137 | H153: X | I153: 16 | M153: 相対での設定情報（16桁）
C154: 14 | D154: 付加情報８（２０桁） | G154: 153 | H154: X | I154: 20 | M154: 相対での設定情報（20桁）
C155: 15 | D155: 予備 | G155: 173 | H155: X | I155: 84 | M155: レイアウト拡張時の予備領域 | O155: (利用禁止）
D160: ⑤ トレーラレコード | X160: V1連携時
B161: 変更 | C161: 項番 | D161: 項目 | G161: 開始位置 | H161: 属性 | I161: 整数桁 | J161: 小数桁 | K161: 必須 | M161: 項目説明 | S161: コード | U161: Ｖ１ → Ｖ１ | X161: 必須 | AB161: コード値 | AO161: 属性チェック | AT161: 単項目
K162: 案内 | L162: 支払 | U162: センタチェック | AB162: 固定値 | AF162: 範囲 | AJ162: 区分マスタ | AT162: 日付 | AW162: 時間
C163: =C162+1 -> 1 | D163: ﾃﾞｰﾀ種別 | G163: 1 | H163: 9 | I163: 2 | K163: ◎ | M163: ５１：販促金案内・支払データ | O163: 〈メーカ ⇒ 卸売業へ販促金の案内・支払を通知する〉 | S163: 51 | U163: 共通部チェック (ｺﾝﾄﾛｰﾙ同値､ 軽症ｴﾗｰ) | BB163: =SUM(I163:J174)+SUM(I177:J187)*3+SUM(I189:J189) -> 228
C164: 2 | D164: 送信先ｺｰﾄﾞ | G164: =G163+I163+J163 -> 3 | H164: 9 | I164: 8 | K164: ◎ | M164: 照会データの送信元コード
C165: 3 | D165: 送信元ｺｰﾄﾞ | G165: 11 | H165: 9 | I165: 8 | K165: ◎ | M165: ゼロ
C166: 4 | D166: ﾚｺｰﾄﾞ区分 | G166: 19 | H166: 9 | I166: 1 | K166: ◎ | M166: ９：トレーラレコード | S166: 9
C167: 5 | D167: データ区分 | G167: 20 | H167: X | I167: 1 | K167: ○ | L167: ○ | M167: データ区分 | S167: 1:案内データ | T167: 2:支払データ
C168: 6 | D168: ﾚｺｰﾄﾞ件数 | G168: 21 | H168: 9 | I168: 6 | K168: ○ | L168: ○ | M168: コントロールレコードとトレーラレコードで括られたレコードの総件数 (コントロールレコードとトレーラレコードは含まない) | U168: 属性 | AO168: 半角数字
B169: 1.9 | C169: 7 | D169: 符号（請求金額合計） | G169: 27 | H169: X | I169: 1 | K169: － | M169: 請求金額合計の符号 | R169: ※税率別内訳項番16の集計結果 | S169: ＋:正数 －:負数 | T169: △:無指定
B170: 1.9 | C170: 8 | D170: 請求金額合計 | G170: 28 | H170: ９ | I170: 9 | J170: 2 | K170: － | M170: 請求金額の合計 | O170: (小数点以下２桁) | R170: ※税率別内訳項番16の集計値 | U170: 属性(ｻ) | AO170: 半角数字（サイン付）
B171: 1.9 | C171: 9 | D171: 符号（支払金額合計） | G171: 39 | H171: X | I171: 1 | K171: － | L171: ○ | M171: 支払金額合計の符号 | R171: ※税率別内訳項番21の集計結果 | S171: ＋:正数 －:負数 | T171: △:無指定
B172: 1.9 | C172: 10 | D172: 支払金額合計 | G172: 40 | H172: ９ | I172: 9 | J172: 2 | K172: － | L172: ○ | M172: 支払金額の合計 | O172: (小数点以下２桁) | R172: ※税率別内訳項番21の集計値 | U172: 属性(ｻ) | AO172: 半角数字（サイン付）
B173: 1.9 | C173: 11 | D173: 符号（支払消費税額合計） | G173: 51 | H173: X | I173: 1 | K173: － | L173: ○ | M173: 支払消費税額合計の符号 | R173: ※税率別内訳項番23の集計結果 | S173: ＋:正数 －:負数 | T173: △:無指定
B174: 1.9 | C174: 12 | D174: 支払消費税額合計 | G174: 52 | H174: ９ | I174: 9 | K174: － | L174: ○ | M174: 支払消費税額の合計 | O174: (小数点以下２桁) | R174: ※税率別内訳項番23の集計値 | U174: 属性(ｻ) | AO174: 半角数字（サイン付）
B175: 1.9 | C175: 13 | D175: 登録番号 | G175: 61 | H175: X | I175: 14 | K175: － | L175: ○ | M175: ”T”＋法人番号13桁 | O175: ※2021.10以降、税務署への申告により取得のうえ設定
B176: 2.1 | D176: ="税率別内訳（" & SUM(I177:J187) & "バイト × ３明細） ※未使用ブロックはALL SPACEを設定する。" -> 税率別内訳（55バイト × ３明細） ※未使用ブロックはALL SPACEを設定する。 | N176: 繰返部の設定順序は、軽減税率8%、標準税率10%、予備税率（卸提供の役務10%） | BC176: ※支払と同様の利用方法とする
B177: 1.9 | C177: =C175+1 -> 14 | E177: 請求消費税率 | G177: =G175+I175+J175 -> 75 | H177: 9 | I177: 2 | J177: 1 | K177: － | M177: 請求の消費税率(99.9％)、ゼロ:個別判断 | P177: (小数点以下1桁) | U177: 属性 | BC177: 予備税率(旧税率8%) に役務の提供の合計額を入力
B178: 1.9 | C178: =C177+1 -> 15 | E178: 符号（請求金額） | G178: =G177+I177+J177 -> 78 | H178: X | I178: 1 | K178: － | M178: 請求金額の符号 | S178: ＋:正数 －:負数 | T178: △:無指定
B179: 1.9 | C179: =C178+1 -> 16 | E179: 請求金額 | G179: 79 | H179: ９ | I179: 9 | J179: 2 | K179: － | M179: 請求金額 | O179: (小数点以下２桁) | U179: 属性(ｻ)
B180: 1.9 | C180: 17 | E180: 符号（請求消費税額） | G180: 90 | H180: X | I180: 1 | K180: － | M180: 請求消費税額の符号 | S180: ＋:正数 －:負数 | T180: △:無指定
B181: 1.9 | C181: 18 | E181: 請求消費税額 | G181: 91 | H181: ９ | I181: 9 | K181: － | M181: 請求の消費税額 | U181: 属性(ｻ)
B182: 1.9 | C182: 19 | E182: 支払消費税率 | G182: 100 | H182: ９ | I182: 2 | J182: 1 | K182: － | L182: ○ | M182: 支払の消費税率(99.9％)、ゼロ:個別判断 | P182: (小数点以下1桁) | U182: 属性
B183: 1.9 | C183: 20 | E183: 符号（支払金額） | G183: 103 | H183: X | I183: 1 | K183: － | L183: ○ | M183: 支払金額の符号 | S183: ＋:正数 －:負数 | T183: △:無指定
B184: 1.9 | C184: 21 | E184: 支払金額 | G184: 104 | H184: ９ | I184: 9 | J184: 2 | K184: － | L184: ○ | M184: 支払金額 | O184: (小数点以下２桁) | U184: 属性(ｻ)
B185: 1.9 | C185: 22 | E185: 符号（支払消費税額） | G185: 115 | H185: X | I185: 1 | K185: － | L185: ○ | M185: 支払消費税額の符号 | S185: ＋:正数 －:負数 | T185: △:無指定
B186: 1.9 | C186: 23 | E186: 支払消費税額 | G186: 116 | H186: ９ | I186: 9 | K186: － | L186: ○ | M186: 支払の消費税額 | U186: 属性(ｻ)
B187: 1.9 | C187: 24 | E187: 予備 | G187: 125 | H187: X | I187: 5 | M187: レイアウト拡張時の予備領域 | O187: (利用禁止）
B188: 2.5 | C188: 25 | D188: 登録番号2 | G188: =G175+I175+J175+SUM(I177:J187)*3 -> 240 | H188: X | I188: 14 | M188: ”T”＋法人番号13桁
B189: 2.5 | C189: 26 | D189: 予備 | G189: 254 | H189: X | I189: 3 | M189: レイアウト拡張時の予備領域 | O189: (利用禁止）

Sheet ５２販促金請求
AF1: =シート別総ページ数 -> 
C2: （８）Ｖ１・５２販促金請求 | X2: 入力チェック仕様
D3: ① コントロールレコード | X3: V1連携時
B4: 変更 | C4: 項番 | D4: 項目 | G4: 開始位置 | H4: 属性 | I4: 整数桁 | J4: 小数桁 | K4: 必須 | L4: 項目説明 | S4: コード | U4: Ｖ１ → Ｖ１ | X4: 必須 | AB4: コード値 | AO4: 属性チェック | AT4: 単項目
U5: センタチェック | AB5: 固定値 | AF5: 範囲 | AJ5: 区分マスタ | AT5: 日付 | AW5: 時間
C6: =C5+1 -> 1 | D6: ﾃﾞｰﾀ種別 | G6: 1 | H6: 9 | I6: 2 | K6: ◎ | L6: ５２：販促金請求データ | N6: 〈卸売業 ⇒ メーカへ販促金を請求する〉 | S6: 52 | U6: ｺｰﾄﾞ | BB6: =SUM(I6:J23) -> 256 | BC6: =SUM(I6:J23) -> 256
C7: 2 | D7: 送信先ｺｰﾄﾞ | G7: =G6+I6+J6 -> 3 | H7: 9 | I7: 8 | K7: ◎ | L7: 送信先(メーカ) | M7: の統一取引先コード | U7: センター登録
C8: 3 | D8: 送信元ｺｰﾄﾞ | G8: 11 | H8: 9 | I8: 8 | K8: ◎ | L8: 送信元(卸) | M8: の統一取引先コード | U8: センター登録
C9: 4 | D9: ﾚｺｰﾄﾞ区分 | G9: 19 | H9: 9 | I9: 1 | K9: ◎ | L9: １：コントロールレコード | S9: 1 | U9: ｺｰﾄﾞ
C10: 5 | D10: ﾃﾞｰﾀ作成日 | G10: 20 | H10: 9 | I10: 8 | K10: ○ | L10: データ作成日付 | N10: (西暦 YYYYMMDD)
C11: 6 | D11: 送信先カナ名 | G11: 28 | H11: X | I11: 20 | K11: ○ | L11: 送信先(メーカ)名 | N11: (英数カナのみ)
C12: 7 | D12: 送信元カナ名 | G12: 48 | H12: X | I12: 20 | K12: ○ | L12: 送信元(卸)名 | N12: (英数カナのみ)
C13: 8 | D13: 直接送信先ｺｰﾄﾞ | G13: 68 | H13: 9 | I13: 8 | L13: 送信先と異なる場所へ送信する場合にセット。 セット不要の場合"00000000"
C14: 9 | D14: 直接送信先名 | G14: 76 | H14: X | I14: 20 | L14: 送信先と異なる場所へ送信する場合にセット。 セット不要の場合スペース
C15: 10 | D15: 卸売業企業コード区分 | G15: 96 | H15: X | I15: 1 | L15: 卸売業企業コード区分 | S15: 1:統一取引先(8桁） 6:GLN(13桁） | T15: 7:卸PVコード 8:メーカPVコード
C16: 11 | D16: 卸売業企業コード | G16: 97 | H16: X | I16: 13 | L16: 卸店企業コード (13桁以内、左詰め) 統一取引先(8桁)／GLN(13桁)／プライベートコード(13桁以内)
C17: 12 | D17: 卸売業企業名 | G17: 110 | H17: X/N | I17: 30 | K17: ○ | L17: 卸店企業社名 | N17: (英数カナは30文字、漢字は15文字)
C18: 13 | D18: 卸売業企業名漢字区分 | G18: 140 | H18: X | I18: 1 | L18: 該当項目の漢字区分 | S18: △/0:英数カナ 1: S-JIS漢字 2: IBM漢字 | T18: 3: JEF漢字 9: その他漢字
C19: 14 | D19: メーカ企業コード区分 | G19: 141 | H19: X | I19: 1 | L19: メーカ企業コード区分 | S19: 1:統一取引先(8桁） 6:GLN(13桁） | T19: 7:卸PVコード 8:メーカPVコード
C20: 15 | D20: メーカ企業コード | G20: 142 | H20: X | I20: 13 | L20: メーカ企業コード (13桁以内、左詰め) 統一取引先(8桁)／GLN(13桁)／プライベートコード(13桁以内)
C21: 16 | D21: メーカ企業名 | G21: 155 | H21: X/N | I21: 30 | K21: ○ | L21: メーカ社名 | N21: (英数カナは30文字、漢字は15文字)
C22: 17 | D22: メーカ企業名漢字区分 | G22: 185 | H22: X | I22: 1 | L22: 該当項目の漢字区分 | S22: △/0:英数カナ 1: S-JIS漢字 2: IBM漢字 | T22: 3: JEF漢字 9: その他漢字
C23: 18 | D23: 予備 | G23: 186 | H23: X | I23: 71 | L23: レイアウト拡張時の予備領域 | N23: (利用禁止）
D28: ② ヘッダーレコード | X28: V1連携時
B29: 変更 | C29: 項番 | D29: 項目 | G29: 開始位置 | H29: 属性 | I29: 整数桁 | J29: 小数桁 | K29: 必須 | L29: 項目説明 | S29: コード | U29: Ｖ１ → Ｖ１ | X29: 必須 | AB29: コード値 | AO29: 属性チェック | AT29: 単項目
U30: センタチェック | AB30: 固定値 | AF30: 範囲 | AJ30: 区分マスタ | AT30: 日付 | AW30: 時間
C31: =C30+1 -> 1 | D31: ﾃﾞｰﾀ種別 | G31: 1 | H31: 9 | I31: 2 | K31: ◎ | L31: ５２：販促金請求データ | N31: 〈卸売業 ⇒ メーカへ販促金を請求する〉 | S31: 52 | U31: 共通部チェック (ｺﾝﾄﾛｰﾙ同値､ 軽症ｴﾗｰ) | BB31: =SUM(I31:J67) -> 256 | BC31: =SUM(I31:J67) -> 256
C32: 2 | D32: 送信先ｺｰﾄﾞ | G32: =G31+I31+J31 -> 3 | H32: 9 | I32: 8 | K32: ◎ | L32: 送信先(メーカ) | M32: の統一取引先コード
C33: 3 | D33: 送信元ｺｰﾄﾞ | G33: 11 | H33: 9 | I33: 8 | K33: ◎ | L33: 送信元(卸) | M33: の統一取引先コード
C34: 4 | D34: ﾚｺｰﾄﾞ区分 | G34: 19 | H34: 9 | I34: 1 | K34: ◎ | L34: ２：ヘッダーレコード | S34: 2
C35: 5 | D35: 請求書№ | G35: 20 | H35: X | I35: 10 | K35: ○ | L35: 卸店からの請求書における請求番号 | O35: (英数字10桁以内、左詰め）
C36: 6 | D36: 請求伝票番号 | G36: 30 | H36: X | I36: 10 | L36: 請求番号が得意先毎に設定される場合に使用する | O36: (英数字10桁以内、左詰め）
C37: 7 | D37: 請求締日 | G37: 40 | H37: X | I37: 8 | L37: 卸店からの請求締最終年月日 | O37: (西暦 YYYYMMDD)
C38: 8 | D38: 計上日 | G38: 48 | H38: X | I38: 8 | K38: ○ | L38: 請求計上日 | O38: (西暦 YYYYMMDD)
C39: 9 | D39: 入金予定日 | G39: 56 | H39: X | I39: 8 | L39: 入金希望予定日 | O39: (西暦 YYYYMMDD)
C40: 10 | D40: 請求支払返信区分 | G40: 64 | H40: X | I40: 1 | L40: 請求データに対する支払データの返信区分 | S40: 1:全件返信 2:差分返信 | T40: △:無指定
C41: 11 | D41: 販売促進企画番号 | G41: 65 | H41: X | I41: 10 | L41: 販売促進企画を提案する際の管理上の番号 | O41: (英数字10桁以内、左詰め)
C42: 12 | D42: 事業所／帳合先コード区分 | G42: 75 | H42: X | I42: 1 | L42: 事業所／帳合先 コード区分 | S42: 1:統一取引先(8桁） 6:GLN(13桁） | T42: 7:卸PVコード 8:メーカPVコード △:無指定
C43: 13 | D43: 事業所／帳合先コード | G43: 76 | H43: X | I43: 13 | L43: 卸店事業所／帳合先コード (13桁以内、左詰め) 統一取引先(8桁)／GLN(13桁)／プライベートコード(13桁以内)
C44: 14 | D44: 事業所／帳合先名 | G44: 89 | H44: X/N | I44: 30 | K44: ○ | L44: 卸店事業所／帳合先名 | N44: (英数カナは30文字、漢字は15文字、無指定時はスペース)
C45: 15 | D45: 事業所／帳合先名漢字区分 | G45: 119 | H45: X | I45: 1 | L45: 該当項目の漢字区分 | S45: △/0:英数カナ 1: S-JIS漢字 2: IBM漢字 | T45: 3: JEF漢字 9: その他漢字
C46: 16 | D46: 得意先コード区分 | G46: 120 | H46: X | I46: 1 | L46: 得意先コード区分 | S46: 1:統一取引先(8桁） 6:GLN(13桁） | T46: 7:卸PVコード 8:メーカPVコード △:無指定
C47: 17 | D47: 得意先コード | G47: 121 | H47: X | I47: 13 | L47: 卸店得意先コード (13桁以内、左詰め) 統一取引先(8桁)／GLN(13桁)／プライベートコード(13桁以内)
C48: 18 | D48: 得意先名 | G48: 134 | H48: X/N | I48: 30 | K48: ○ | L48: 卸店得意先名 | N48: (英数カナは30文字、漢字は15文字、無指定時はスペース)
C49: （次頁に続く）
C54: （前頁の続き）
B55: 変更 | C55: 項番 | D55: 項目 | G55: 開始位置 | H55: 属性 | I55: 整数桁 | J55: 小数桁 | K55: 必須 | L55: 項目説明 | S55: コード | U55: Ｖ１ → Ｖ１ | X55: 必須 | AB55: コード値 | AO55: 属性チェック | AT55: 単項目
U56: センタチェック | AB56: 固定値 | AF56: 範囲 | AJ56: 区分マスタ | AT56: 日付 | AW56: 時間
C57: =C48+1 -> 19 | D57: 得意先名漢字区分 | G57: =G48+I48+J48 -> 164 | H57: X | I57: 1 | L57: 該当項目の漢字区分 | S57: △/0:英数カナ 1: S-JIS漢字 2: IBM漢字 | T57: 3: JEF漢字 9: その他漢字
C58: =C57+1 -> 20 | D58: 届け先コード区分 | G58: =G57+I57+J57 -> 165 | H58: X | I58: 1 | L58: 届け先コード区分 | S58: 1:統一取引先(8桁） 6:GLN(13桁） | T58: 7:卸PVコード 8:メーカPVコード △:無指定
C59: 21 | D59: 届け先／店舗コード | G59: 166 | H59: X | I59: 13 | L59: 届け先／店舗コード （13桁以内、左詰め) 統一取引先(8桁)／GLN(13桁)／プライベートコード(13桁以内)
C60: 22 | D60: 届け先名／店舗名 | G60: 179 | H60: X/N | I60: 30 | K60: ○ | L60: 届け先／店名 | N60: (英数カナは30文字、漢字は15文字、無指定時はスペース)
C61: 23 | D61: 届け先名漢字区分 | G61: 209 | H61: X | I61: 1 | L61: 該当項目の漢字区分 | S61: △/0:英数カナ 1: S-JIS漢字 2: IBM漢字 | T61: 3: JEF漢字 9: その他漢字
C62: 24 | D62: 得意先区分 | G62: 210 | H62: X | I62: 1 | L62: 対象となる得意先を表す | S62: 1:全店 2:地域 | T62: 3:店舗 △:無指定
C63: 25 | D63: 卸売業担当者コード区分 | G63: 211 | H63: X | I63: 1 | L63: 卸売業担当者コード区分 | S63: 1:統一取引先(8桁） 6:GLN(13桁） | T63: 7:卸PVコード 8:メーカPVコード △:無指定
C64: 26 | D64: 卸売業担当者コード | G64: 212 | H64: X | I64: 13 | L64: 請求元企業の営業担当者／営業担当組織コード 統一取引先(8桁)／GLN(13桁)／プライベートコード(13桁以内)
C65: 27 | D65: 卸売業担当者名 | G65: 225 | H65: X/N | I65: 20 | L65: 請求元企業の営業担当者名／営業担当組織名 (英数カナは20文字、漢字は10文字、無指定時はスペース)
C66: 28 | D66: 卸売業担当者名漢字区分 | G66: 245 | H66: X | I66: 1 | L66: 該当項目の漢字区分 | S66: △/0:英数カナ 1: S-JIS漢字 2: IBM漢字 | T66: 3: JEF漢字 9: その他漢字
C67: =C133+1 -> 41 | D67: 予備 | G67: 246 | H67: X | I67: 11 | L67: レイアウト拡張時の予備領域 | N67: (利用禁止）
D72: ③ 明細レコード | X72: V1連携時
B73: 変更 | C73: 項番 | D73: 項目 | G73: 開始位置 | H73: 属性 | I73: 整数桁 | J73: 小数桁 | K73: 必須 | L73: 項目説明 | S73: コード | U73: Ｖ１ → Ｖ１ | X73: 必須 | AB73: コード値 | AO73: 属性チェック | AT73: 単項目
U74: センタチェック | AB74: 固定値 | AF74: 範囲 | AJ74: 区分マスタ | AT74: 日付 | AW74: 時間
C75: =C74+1 -> 1 | D75: ﾃﾞｰﾀ種別 | G75: 1 | H75: 9 | I75: 2 | K75: ◎ | L75: ５２：販促金請求データ | N75: 〈卸売業 ⇒ メーカへ販促金を請求する〉 | S75: 52 | U75: 共通部チェック (ｺﾝﾄﾛｰﾙ同値､ 軽症ｴﾗｰ) | BB75: =SUM(I75:J134) -> 256 | BC75: =SUM(I75:J134) -> 256
C76: 2 | D76: 送信先ｺｰﾄﾞ | G76: =G75+I75+J75 -> 3 | H76: 9 | I76: 8 | K76: ◎ | L76: 送信先(メーカ) | M76: の統一取引先コード
C77: 3 | D77: 送信元ｺｰﾄﾞ | G77: 11 | H77: 9 | I77: 8 | K77: ◎ | L77: 送信元(卸) | M77: の統一取引先コード
C78: 4 | D78: ﾚｺｰﾄﾞ区分 | G78: 19 | H78: 9 | I78: 1 | K78: ◎ | L78: ４：明細レコード | S78: 4
C79: 5 | D79: 明細行№ | G79: 20 | H79: X | I79: 3 | K79: ○ | L79: 請求書№／請求伝票番号毎の明細行№ （001～999、999超過時は別の請求書№とする） | U79: 属性 | AO79: 半角数字
C80: 6 | D80: 計上№ | G80: 23 | H80: X | I80: 10 | L80: 明細の管理番号 (英数字10桁以内、左詰め) 請求書№・請求伝票番号と合わせて支払照合のキーとなる
B81: 2.5 | C81: 7 | D81: 対象期間（開始日） | G81: 33 | H81: X | I81: 8 | L81: 資産譲渡日付 | N81: (西暦 YYYYMMDD)
B82: 2.5 | C82: 8 | D82: 対象期間（終了日） | G82: 41 | H82: X | I82: 8 | L82: 資産譲渡日付 | N82: (西暦 YYYYMMDD)
C83: 9 | D83: 特売区分 | G83: 49 | H83: X | I83: 1 | L83: 販促金の特売等の区分を表す | S83: 0:分類不能 1:定番 2:特売 | T83: 8:その他 △:無指定
C84: 10 | D84: 商品コード使用区分 | G84: 50 | H84: X | I84: 1 | L84: 商品コードの使用区分 | S84: 0:統一商品コード 1:ITFコード 2:JAN＋荷姿コード 3:JANコード | T84: 6:GTINコード 7:メーカPVコード 8:卸PVコード △:商品特定なし
C85: 11 | D85: 商品コード | G85: 51 | H85: X | I85: 16 | K85: ○ | L85: 上記商品コード設定／ﾌﾟﾗｲﾍﾞｰﾄｺｰﾄﾞ | N85: (左詰め16桁以内)
C86: 12 | D86: 商品名／規格 | G86: 67 | H86: X/N | I86: 40 | K86: ○ | L86: 商品名、通常30桁／規格、通常10桁 (英数カナ文字／漢字、無指定時はスペース)
C87: 13 | D87: 商品名（漢字区分） | G87: 107 | H87: X | I87: 1 | L87: 該当項目の漢字区分 | S87: △/0:英数カナ 1: S-JIS漢字 2: IBM漢字 | T87: 3: JEF漢字 9: その他漢字
C88: 14 | D88: 入数１ | G88: 108 | H88: 9 | I88: 3 | L88: 商品のボール内バラ数 | N88: (商品特定なし：000)
C89: 15 | D89: 入数２ | G89: 111 | H89: 9 | I89: 2 | L89: 商品のケース内ボール数 | N89: (商品特定なし：00)
C90: （次頁に続く）
C106: （前頁の続き）
B107: 変更 | C107: 項番 | D107: 項目 | G107: 開始位置 | H107: 属性 | I107: 整数桁 | J107: 小数桁 | K107: 必須 | L107: 項目説明 | S107: コード | U107: Ｖ１ → Ｖ１ | X107: 必須 | AB107: コード値 | AO107: 属性チェック | AT107: 単項目
U108: センタチェック | AB108: 固定値 | AF108: 範囲 | AJ108: 区分マスタ | AT108: 日付 | AW108: 時間
C109: =C89+1 -> 16 | D109: 仕入単価 （建値／卸店入単価） | G109: =G89+I89+J89 -> 113 | H109: 9 | I109: 6 | J109: 2 | L109: 卸店納入単価 | N109: (商品特定なし：000000.00)
C110: =C109+1 -> 17 | D110: 納入単価 （小売店納入単価） | G110: =G109+I109+J109 -> 121 | H110: 9 | I110: 6 | J110: 2 | L110: 小売店納入単価 | N110: (商品特定なし：000000.00)
C111: 18 | D111: 付加単価 | G111: 129 | H111: 9 | I111: 6 | J111: 2 | L111: 相対での設定単価情報等 | N111: (小数点以下２桁)
C112: 19 | D112: 数 量 | G112: 137 | H112: 9 | I112: 8 | L112: 請求の対象となる数量
C113: 20 | D113: 計上対象数量／金額単位 | G113: 145 | H113: X | I113: 1 | L113: 計上対象数量の単位を表す | S113: 0:円 1:ケース 3:バラ | T113: 5:Ｋg 7:g △:無指定
C114: 21 | D114: 請求計上対象数量／金額 | G114: 146 | H114: 9 | I114: 8 | J114: 2 | K114: ○ | L114: 請求の対象となる数量／金額 | N114: (小数点以下２桁) | U114: 属性 | AO114: 半角数字
C115: 22 | D115: 請求計上計算区分 | G115: 156 | H115: X | I115: 1 | L115: 請求計上の計算区分を表す | S115: 0:仕入価(建値)金額換算 1:納品価金額換算 3:バラ数量換算 5:ケース数量換算 △:無指定
C116: 23 | D116: 請求計上条件区分 | G116: 157 | H116: X | I116: 1 | K116: ○ | L116: 請求計上の条件区分を表す | S116: 0:％ 1:ケース 3:バラ | T116: 5:Ｋg 6:g 8:金額 △:無指定
C117: 24 | D117: 請求計上条件 | G117: 158 | H117: 9 | I117: 6 | J117: 2 | K117: ○ | L117: 請求計上対象数量に対する条件 条件区分＝０(％)以外の時は金額 | O117: (小数点以下２桁) | U117: 属性 | AO117: 半角数字
C118: 25 | D118: 符号（請求計上金額） | G118: 166 | H118: X | I118: 1 | L118: 請求計上金額の符号 | S118: ＋:正数 －:負数 | T118: △:無指定
C119: 26 | D119: 請求計上金額 | G119: 167 | H119: 9 | I119: 8 | J119: 2 | K119: ○ | L119: 請求金額 計算式＝（請求計上対象数量Ｘ請求計上条件 | O119: (小数点以下２桁) | U119: 属性(ｻ) | AO119: 半角数字（サイン付）
C120: 27 | D120: 請求金額計算区分 | G120: 177 | H120: X | I120: 1 | L120: 小数点以下が発生した場合の正数化する計算方法 | S120: 1:切捨て 2:切上げ | T120: 3:四捨五入 △:無指定
C121: 28 | D121: 請求区分 | G121: 178 | H121: X | I121: 1 | L121: 請求区分 | S121: 1:通常(当月請求) 2:再請求 | T121: △:無指定
C122: 29 | D122: 店入直送区分 | G122: 179 | H122: X | I122: 1 | L122: 店(倉)入れまたは直送等の区分 | S122: 1:店入 2:直送 | T122: △:無指定
C123: 30 | D123: 摘要コード | G123: 180 | H123: X | I123: 3 | L123: 商品に紐づかない販売時等のコメントを表記する | S123: △△△／000:コメントなし 001～030:別項 090～098:任意利用 099～999:その他
C124: 31 | D124: 適要１（補足情報） | G124: 183 | H124: X | I124: 20 | L124: 摘要コード内容／補足コメント | N124: (20桁以内､ｺﾒﾝﾄ無し時はスペース)
C125: 32 | D125: 適要２（補足情報） | G125: 203 | H125: X | I125: 20 | L125: 摘要コード内容／補足コメント | N125: (20桁以内､ｺﾒﾝﾄ無し時はスペース)
C126: 33 | D126: 摘要１（漢字区分） | G126: 223 | H126: X | I126: 1 | L126: 該当項目の漢字区分 | S126: △/0:英数カナ 1: S-JIS漢字 2: IBM漢字 | T126: 3: JEF漢字 9: その他漢字
C127: 34 | D127: 摘要２（漢字区分） | G127: 224 | H127: X | I127: 1 | L127: 該当項目の漢字区分 | S127: △/0:英数カナ 1: S-JIS漢字 2: IBM漢字 | T127: 3: JEF漢字 9: その他漢字
C128: 35 | D128: 付加情報１（１桁） | G128: 225 | H128: X | I128: 1 | L128: 相対での設定情報（１桁）
C129: 36 | D129: 付加情報２（２桁） | G129: 226 | H129: X | I129: 2 | L129: 相対での設定情報（２桁）
C130: 37 | D130: 付加情報３（３桁） | G130: 228 | H130: X | I130: 3 | L130: 相対での設定情報（３桁）
C131: 38 | D131: 付加情報４（５桁） | G131: 231 | H131: X | I131: 5 | L131: 相対での設定情報（５桁）
C132: 39 | D132: 付加情報５（７桁） | G132: 236 | H132: X | I132: 7 | L132: 相対での設定情報（７桁）
B133: 1.9 | C133: 40 | D133: 請求消費税率 | G133: 243 | H133: 9 | I133: 2 | J133: 1 | K133: ○ | L133: 消費税の税率(99.9％)、ゼロ:個別判断 | O133: (小数点以下1桁) | U133: 属性
B134: 1.9 | C134: 41 | D134: 予備 | G134: 246 | H134: X | I134: 11 | L134: レイアウト拡張時の予備領域 | N134: (利用禁止）
D154: ④ 明細オプションレコード（※任意） | X154: V1連携時
B155: 変更 | C155: 項番 | D155: 項目 | G155: 開始位置 | H155: 属性 | I155: 整数桁 | J155: 小数桁 | K155: 必須 | L155: 項目説明 | S155: コード | U155: Ｖ１ → Ｖ１ | X155: 必須 | AB155: コード値 | AO155: 属性チェック | AT155: 単項目
U156: センタチェック | AB156: 固定値 | AF156: 範囲 | AJ156: 区分マスタ | AT156: 日付 | AW156: 時間
C157: =C156+1 -> 1 | D157: ﾃﾞｰﾀ種別 | G157: 1 | H157: 9 | I157: 2 | K157: ◎ | L157: ５２：販促金請求データ | N157: 〈卸売業 ⇒ メーカへ販促金を請求する〉 | S157: 52 | U157: 共通部チェック (ｺﾝﾄﾛｰﾙ同値､ 軽症ｴﾗｰ) | BB157: =SUM(I157:J168) -> 256 | BC157: =SUM(I157:J168) -> 256
C158: 2 | D158: 送信先ｺｰﾄﾞ | G158: =G157+I157+J157 -> 3 | H158: 9 | I158: 8 | K158: ◎ | L158: 送信先(メーカ) | M158: の統一取引先コード
C159: 3 | D159: 送信元ｺｰﾄﾞ | G159: 11 | H159: 9 | I159: 8 | K159: ◎ | L159: 送信元(卸) | M159: の統一取引先コード
C160: 4 | D160: ﾚｺｰﾄﾞ区分 | G160: 19 | H160: 9 | I160: 1 | K160: ◎ | L160: ５：明細オプションレコード | S160: 5
C161: 5 | D161: 明細行№ | G161: 20 | H161: X | I161: 3 | K161: ○ | L161: 請求書№／請求伝票番号毎の明細行№ （001～999、999超過時は別の請求書№とする）
C162: 6 | D162: 計上№ | G162: 23 | H162: X | I162: 10 | L162: 明細の管理番号 (英数字10桁以内、左詰め) 請求書№・請求伝票番号と合わせて支払照合のキーとなる
C163: 7 | D163: 適要３（補足情報） | G163: 33 | H163: X | I163: 80 | L163: 適用コード内容／補足コメント | N163: (80桁以内、ｺﾒﾝﾄ無し時はスペース）
C164: 8 | D164: 摘要３（漢字区分） | G164: 113 | H164: X | I164: 1 | L164: 該当項目の漢字区分 | S164: △/0:英数カナ 1: S-JIS漢字 2: IBM漢字 | T164: 3: JEF漢字 9: その他漢字
C165: 9 | D165: 付加情報６（１０桁） | G165: 114 | H165: X | I165: 10 | L165: 相対での設定情報（10桁）
C166: 10 | D166: 付加情報７（１６桁） | G166: 124 | H166: X | I166: 16 | L166: 相対での設定情報（16桁）
C167: 11 | D167: 付加情報８（２０桁） | G167: 140 | H167: X | I167: 20 | L167: 相対での設定情報（20桁）
C168: 12 | D168: 予備 | G168: 160 | H168: X | I168: 97 | L168: レイアウト拡張時の予備領域 | N168: (利用禁止）
D173: ⑤ トレーラレコード
B174: 変更 | C174: 項番 | D174: 項目 | G174: 開始位置 | H174: 属性 | I174: 整数桁 | J174: 小数桁 | K174: 必須 | L174: 項目説明 | S174: コード | U174: Ｖ１ → Ｖ１ | X174: 必須 | AB174: コード値 | AO174: 属性チェック | AT174: 単項目
U175: センタチェック | AB175: 固定値 | AF175: 範囲 | AJ175: 区分マスタ | AT175: 日付 | AW175: 時間
C176: =C175+1 -> 1 | D176: ﾃﾞｰﾀ種別 | G176: 1 | H176: 9 | I176: 2 | K176: ◎ | L176: ５２：販促金請求データ | N176: 〈卸売業 ⇒ メーカへ販促金を請求する〉 | S176: 52 | U176: 共通部チェック (ｺﾝﾄﾛｰﾙ同値､ 軽症ｴﾗｰ) | BB176: =SUM(I176:J217) -> 196 | BC176: =SUM(I176:J182)+SUM(I185:J190)*3+SUM(I192:J192) -> 228
C177: 2 | D177: 送信先ｺｰﾄﾞ | G177: =G176+I176+J176 -> 3 | H177: 9 | I177: 8 | K177: ◎ | L177: 送信先(メーカ) | M177: の統一取引先コード
C178: 3 | D178: 送信元ｺｰﾄﾞ | G178: 11 | H178: 9 | I178: 8 | K178: ◎ | L178: 送信元(卸) | M178: の統一取引先コード
C179: 4 | D179: ﾚｺｰﾄﾞ区分 | G179: 19 | H179: 9 | I179: 1 | K179: ◎ | L179: ９：トレーラレコード | S179: 9
C180: 5 | D180: ﾚｺｰﾄﾞ件数 | G180: 20 | H180: 9 | I180: 6 | K180: ○ | L180: コントロールレコードとトレーラレコードで括られたレコードの総件数 (コントロールレコードとトレーラレコードは含まない) | U180: 属性 | AO180: 半角数字
B181: 1.9 | C181: 6 | D181: 符号 | G181: 26 | H181: X | I181: 1 | L181: 請求金額合計の符号 | R181: ※税率別内訳項番11の集計結果 | S181: ＋:正数 －:負数 | T181: △:無指定
B182: 1.9 | C182: 7 | D182: 請求金額合計 | G182: 27 | H182: 9 | I182: 9 | J182: 2 | L182: 請求金額の合計 | N182: (小数点以下２桁) | R182: ※税率別内訳項番11の集計値 | U182: 属性(ｻ) | AO182: 半角数字（サイン付）
B183: 1.9 | C183: 8 | D183: 登録番号 | G183: 38 | H183: X | I183: 14 | K183: ○ | L183: ”T”＋法人番号13桁 | N183: ※2021.10以降、税務署への申告により取得のうえ設定
B184: 2.1 | D184: ="税率別内訳（" & SUM(I185:J190) & "バイト × ３明細） ※未使用ブロックはALL SPACEを設定する。" -> 税率別内訳（30バイト × ３明細） ※未使用ブロックはALL SPACEを設定する。 | M184: 繰返部の設定順序は、軽減税率8%、標準税率10%、予備税率（卸提供の役務10%） | BD184: ※請求と同様の利用方法とする
B185: 1.9 | C185: =C183+1 -> 9 | E185: 請求消費税率 | G185: =G183+I183+J183 -> 52 | H185: 9 | I185: 2 | J185: 1 | K185: ○ | L185: 請求の消費税率(99.9％)、ゼロ:個別判断 | O185: (小数点以下1桁) | U185: 属性 | BD185: 予備税率(旧税率8%) に役務の提供の合計額を入力
B186: 1.9 | C186: =C185+1 -> 10 | E186: 符号(請求金額） | G186: =G185+I185+J185 -> 55 | H186: X | I186: 1 | K186: ○ | L186: 請求金額の符号 | S186: ＋:正数 －:負数 | T186: △:無指定
B187: 1.9 | C187: 11 | E187: 請求金額 | G187: =G186+I186+J186 -> 56 | H187: 9 | I187: 9 | J187: 2 | K187: ○ | L187: 請求金額 | N187: (小数点以下２桁) | U187: 属性(ｻ)
B188: 1.9 | C188: 12 | E188: 符号（請求消費税額） | G188: =G187+I187+J187 -> 67 | H188: X | I188: 1 | K188: ○ | L188: 請求消費税額合計の符号 | S188: ＋:正数 －:負数 | T188: △:無指定
B189: 1.9 | C189: 13 | E189: 請求消費税額 | G189: =G188+I188+J188 -> 68 | H189: ９ | I189: 9 | K189: ○ | L189: 請求消費税額の合計 | U189: 属性(ｻ)
B190: 1.9 | C190: 14 | E190: 予備 | G190: =G189+I189+J189 -> 77 | H190: X | I190: 5 | L190: レイアウト拡張時の予備領域 | N190: (利用禁止）
B191: 2.5 | C191: 15 | D191: 登録番号2 | G191: =G183+I183+J183+SUM(I185:J190)*3 -> 142 | H191: X | I191: 14 | L191: ”T”＋法人番号13桁
B192: 2.5 | C192: 16 | D192: 予備 | G192: =G191+I191+J191 -> 156 | H192: X | I192: 101 | L192: レイアウト拡張時の予備領域 | N192: (利用禁止）

Sheet ６４取引先コード照会
AE1: =シート別総ページ数 -> 
C2: （９）Ｖ１・６４取引先コード照会 | W2: 入力チェック仕様
D3: ① コントロールレコード | W3: V1連携時
B4: 変更 | C4: 項番 | D4: 項目 | G4: 開始位置 | H4: 属性 | I4: 整数桁 | J4: 小数桁 | K4: 必須 | L4: 項目説明 | R4: コード | T4: Ｖ１ → Ｖ１ | W4: 必須 | AA4: コード値 | AN4: 属性チェック | AS4: 単項目
T5: センタチェック | AA5: 固定値 | AE5: 範囲 | AI5: 区分マスタ | AS5: 日付 | AV5: 時間
C6: 1 | D6: データ種別 | G6: 1 | H6: 9 | I6: 2 | K6: ◎ | L6: ６４：取引先コード照会データ | R6: 64 | T6: ｺｰﾄﾞ
C7: 2 | D7: 送信先コード | G7: 3 | H7: 9 | I7: 8 | K7: ◎ | L7: ゼロ | T7: センター登録
C8: 3 | D8: 送信元コード | G8: 11 | H8: 9 | I8: 8 | K8: ◎ | L8: 自社取引先コード | T8: センター登録
C9: 4 | D9: レコード区分 | G9: 19 | H9: 9 | I9: 1 | K9: ◎ | L9: １：コントロールレコード | R9: 1 | T9: ｺｰﾄﾞ
C10: 5 | D10: データ作成日 | G10: 20 | H10: 9 | I10: 8 | K10: ○ | L10: 本データを作成した日付 | N10: (西暦 YYYYMMDD)
C11: 6 | D11: 送信先名 | G11: 28 | H11: X | I11: 20 | L11: スペース
C12: 7 | D12: 送信元名 | G12: 48 | H12: X | I12: 20 | K12: ○ | L12: 自社名 | M12: のカナ名称
C13: 8 | D13: 予備 | G13: 68 | H13: X | I13: 189 | L13: レイアウト拡張時の予備領域 | N13: (利用禁止）
D19: ③ 明細レコード | W19: V1連携時
B20: 変更 | C20: 項番 | D20: 項目 | G20: 開始位置 | H20: 属性 | I20: 整数桁 | J20: 小数桁 | K20: 必須 | L20: 項目説明 | R20: コード | T20: Ｖ１ → Ｖ１ | W20: 必須 | AA20: コード値 | AN20: 属性チェック | AS20: 単項目
T21: センタチェック | AA21: 固定値 | AE21: 範囲 | AI21: 区分マスタ | AS21: 日付 | AV21: 時間
C22: 1 | D22: データ種別 | G22: 1 | H22: 9 | I22: 2 | K22: ◎ | L22: ６４：取引先コード照会データ | R22: 64 | T22: 共通部チェック (ｺﾝﾄﾛｰﾙ同値､ 軽症ｴﾗｰ)
C23: 2 | D23: 送信先コード | G23: 3 | H23: 9 | I23: 8 | K23: ◎ | L23: ゼロ
C24: 3 | D24: 送信元コード | G24: 11 | H24: 9 | I24: 8 | K24: ◎ | L24: 自社取引先コード
C25: 4 | D25: レコード区分 | G25: 19 | H25: 9 | I25: 1 | K25: ◎ | L25: ４：明細レコード | R25: 4
D26: 登録・照会情報
C27: 5 | E27: 社名 | G27: 20 | H27: X | I27: 30 | K27: ○ | L27: 照会対象の社名 | M27: (支店名も入力)
C28: 6 | E28: 郵便番号 | G28: 50 | H28: X | I28: 8 | K28: ○ | L28: 照会対象の郵便番号
C29: 7 | E29: 住所 | G29: 58 | H29: X | I29: 40 | L29: 照会対象の住所
B30: 2.3 | C30: 8 | E30: 電話番号 | G30: 98 | H30: X | I30: 12 | L30: 照会対象の電話番号 ・携帯の電話番号（"070-"、"080-"、090-"で始まる番号）は、登録不可
C31: 9 | E31: 取引先コード | G31: 110 | H31: 9 | I31: 8 | L31: 照会対象の取引先コード | N31: (注１)
C32: 10 | E32: 自由使用 | G32: 118 | H32: X | I32: 20 | L32: 任意に使用
D33: 登録・照会結果
C34: 11 | E34: 社名 | G34: 138 | H34: X | I34: 30 | L34: スペース
C35: 12 | E35: 郵便番号 | G35: 168 | H35: X | I35: 8 | L35: スペース
C36: 13 | E36: 住所 | G36: 176 | H36: X | I36: 40 | L36: スペース
C37: 14 | E37: 電話番号 | G37: 216 | H37: X | I37: 12 | L37: スペース
C38: 15 | E38: 取引先コード | G38: 228 | H38: 9 | I38: 8 | L38: スペース
C39: 16 | E39: 処理結果 | G39: 236 | H39: 9 | I39: 2 | L39: "00"
C40: 17 | D40: 予備 | G40: 238 | H40: X | I40: 19 | L40: レイアウト拡張時の予備領域 | N40: (利用禁止）
L41: (注1) 取引先コードでの照会を行いたい場合にセットする。（項番５,６,７,８はセット不要）
L42: 例）受信した交換データに自社マスタ未登録の取引先コードがあった場合
D46: ③ トレーラレコード | W46: V1連携時
B47: 変更 | C47: 項番 | D47: 項目 | G47: 開始位置 | H47: 属性 | I47: 整数桁 | J47: 小数桁 | K47: 必須 | L47: 項目説明 | R47: コード | T47: Ｖ１ → Ｖ１ | W47: 必須 | AA47: コード値 | AN47: 属性チェック | AS47: 単項目
T48: センタチェック | AA48: 固定値 | AE48: 範囲 | AI48: 区分マスタ | AS48: 日付 | AV48: 時間
C49: 1 | D49: データ種別 | G49: 1 | H49: 9 | I49: 2 | K49: ◎ | L49: ６４：取引先コード照会データ | R49: 64 | T49: 共通部チェック (ｺﾝﾄﾛｰﾙ同値､ 軽症ｴﾗｰ)
C50: 2 | D50: 送信先コード | G50: 3 | H50: 9 | I50: 8 | K50: ◎ | L50: ゼロ
C51: 3 | D51: 送信元コード | G51: 11 | H51: 9 | I51: 8 | K51: ◎ | L51: 自社取引先コード
C52: 4 | D52: レコード区分 | G52: 19 | H52: 9 | I52: 1 | K52: ◎ | L52: ９：トレーラレコード | R52: 9
B53: 1.7 | C53: 5 | D53: レコード件数 | G53: 20 | H53: 9 | I53: 6 | K53: ○ | L53: コントロールレコードとトレーラレコードで括られたレコードの総件数 (コントロールレコードとトレーラレコードは含まない) ・データ送信側では、自身のフォーマットのレコード件数を設定する。 ・データ受信側では、当項目と実際のレコード件数の整合性チェックには利用しない。※下記【トレーラレコード連携時の留意事項】を参照のこと | T53: 属性 | AN53: 半角数字
C54: 6 | D54: 明細件数 | G54: 26 | H54: 9 | I54: 6 | L54: 照会件数 | T54: 属性 | AN54: 半角数字
C55: 7 | D55: 予備 | G55: 32 | H55: X | I55: 225 | L55: レイアウト拡張時の予備領域 | N55: (利用禁止）

Sheet ６７取引先コード照会結果
AE1: 1
C2: （１０）Ｖ１・６７取引先コード照会結果 | W2: 入力チェック仕様
D3: ① コントロールレコード | W3: V1連携時
B4: 変更 | C4: 項番 | D4: 項目 | G4: 開始位置 | H4: 属性 | I4: 整数桁 | J4: 小数桁 | K4: 必須 | L4: 項目説明 | R4: コード | T4: Ｖ１ → Ｖ１ | W4: 必須 | AA4: コード値 | AN4: 属性チェック | AS4: 単項目
T5: センタチェック | AA5: 固定値 | AE5: 範囲 | AI5: 区分マスタ | AS5: 日付 | AV5: 時間
C6: 1 | D6: データ種別 | G6: 1 | H6: 9 | I6: 2 | K6: ◎ | L6: ６７：取引先コード照会結果データ | R6: 67 | T6: ｺｰﾄﾞ
C7: 2 | D7: 送信先コード | G7: 3 | H7: 9 | I7: 8 | K7: ◎ | L7: 照会データの送信元コード | T7: センター登録
C8: 3 | D8: 送信元コード | G8: 11 | H8: 9 | I8: 8 | K8: ◎ | L8: ゼロ | T8: センター登録
C9: 4 | D9: レコード区分 | G9: 19 | H9: 9 | I9: 1 | K9: ◎ | L9: １：コントロールレコード | R9: 1 | T9: ｺｰﾄﾞ
C10: 5 | D10: データ作成日 | G10: 20 | H10: 9 | I10: 8 | K10: ○ | L10: 本データを作成した日付 | N10: (西暦 YYYYMMDD)
C11: 6 | D11: 送信先名 | G11: 28 | H11: X | I11: 20 | K11: ○ | L11: 照会データの自社名称
C12: 7 | D12: 送信元名 | G12: 48 | H12: X | I12: 20 | L12: スペース
C13: 8 | D13: 予備 | G13: 68 | H13: X | I13: 189 | L13: レイアウト拡張時の予備領域 | N13: (利用禁止）
D19: ② 明細レコード | W19: V1連携時
B20: 変更 | C20: 項番 | D20: 項目 | G20: 開始位置 | H20: 属性 | I20: 整数桁 | J20: 小数桁 | K20: 必須 | L20: 項目説明 | R20: コード | T20: Ｖ１ → Ｖ１ | W20: 必須 | AA20: コード値 | AN20: 属性チェック | AS20: 単項目
T21: センタチェック | AA21: 固定値 | AE21: 範囲 | AI21: 区分マスタ | AS21: 日付 | AV21: 時間
C22: 1 | D22: データ種別 | G22: 1 | H22: 9 | I22: 2 | K22: ◎ | L22: ６７：取引先コード照会結果データ | R22: 67 | T22: 共通部チェック (ｺﾝﾄﾛｰﾙ同値､ 軽症ｴﾗｰ)
C23: 2 | D23: 送信先コード | G23: 3 | H23: 9 | I23: 8 | K23: ◎ | L23: 照会データの送信元コード
C24: 3 | D24: 送信元コード | G24: 11 | H24: 9 | I24: 8 | K24: ◎ | L24: ゼロ
C25: 4 | D25: レコード区分 | G25: 19 | H25: 9 | I25: 1 | K25: ◎ | L25: ４：明細レコード | R25: 4
D26: 登録・照会情報
C27: ５ | E27: 社名 | G27: 20 | H27: X | I27: 30 | K27: ○ | L27: 照会対象の社名 | M27: (支店名も入力)
C28: ６ | E28: 郵便番号 | G28: 50 | H28: X | I28: 8 | K28: ○ | L28: 照会対象の郵便番号
C29: ７ | E29: 住所 | G29: 58 | H29: X | I29: 40 | L29: 照会対象の住所
C30: 8 | E30: 電話番号 | G30: 98 | H30: X | I30: 12 | L30: 照会対象の電話番号
C31: 9 | E31: 取引先コード | G31: 110 | H31: 9 | I31: 8 | L31: 照会対象の取引先コード
C32: 10 | E32: 自由使用 | G32: 118 | H32: X | I32: 20 | L32: 任意に使用
D33: 登録・照会結果
C34: 11 | E34: 社名 | G34: 138 | H34: X | I34: 30 | L34: 照会時、取引先マスタの内容 | N34: (エラー時、スペース)
C35: 12 | E35: 郵便番号 | G35: 168 | H35: X | I35: 8 | L35: 照会時、取引先マスタの内容 | N35: (エラー時、スペース)
C36: 13 | E36: 住所 | G36: 176 | H36: X | I36: 40 | L36: 照会時、取引先マスタの内容 | N36: (エラー時、スペース)
C37: 14 | E37: 電話番号 | G37: 216 | H37: X | I37: 12 | L37: 照会時、取引先マスタの内容 | N37: (エラー時、スペース)
C38: 15 | E38: 取引先コード | G38: 228 | H38: 9 | I38: 8 | L38: 照会時、取引先マスタの内容 | N38: (エラー時、スペース)
C39: 16 | E39: 処理結果 | G39: 236 | H39: 9 | I39: 2 | L39: "11":登録 "20":照会 "60"～:エラー
C40: 17 | E40: 最終使用日付 | G40: 238 | H40: 9 | I40: 8 | L40: 該当コードの最終使用日付
C41: 18 | D41: 予備 | G41: 246 | H41: X | I41: 11 | L41: レイアウト拡張時の予備領域 | N41: (利用禁止）
D47: ③ トレーラレコード | W47: V1連携時
B48: 変更 | C48: 項番 | D48: 項目 | G48: 開始位置 | H48: 属性 | I48: 整数桁 | J48: 小数桁 | K48: 必須 | L48: 項目説明 | R48: コード | T48: Ｖ１ → Ｖ１ | W48: 必須 | AA48: コード値 | AN48: 属性チェック | AS48: 単項目
T49: センタチェック | AA49: 固定値 | AE49: 範囲 | AI49: 区分マスタ | AS49: 日付 | AV49: 時間
C50: 1 | D50: データ種別 | G50: 1 | H50: 9 | I50: 2 | K50: ◎ | L50: ６７：取引先コード照会結果データ | R50: 67 | T50: 共通部チェック (ｺﾝﾄﾛｰﾙ同値､ 軽症ｴﾗｰ)
C51: 2 | D51: 送信先コード | G51: 3 | H51: 9 | I51: 8 | K51: ◎ | L51: 照会データの送信元コード
C52: 3 | D52: 送信元コード | G52: 11 | H52: 9 | I52: 8 | K52: ◎ | L52: ゼロ
C53: 4 | D53: レコード区分 | G53: 19 | H53: 9 | I53: 1 | K53: ◎ | L53: ９：トレーラレコード | R53: 9
B54: 1.7 | C54: 5 | D54: レコード件数 | G54: 20 | H54: 9 | I54: 6 | K54: ○ | L54: コントロールレコードとトレーラレコードで括られたレコードの総件数 (コントロールレコードとトレーラレコードは含まない) ・データ送信側では、自身のフォーマットのレコード件数を設定する。 ・データ受信側では、当項目と実際のレコード件数の整合性チェックには利用しない。※下記【トレーラレコード連携時の留意事項】を参照のこと | T54: 属性 | AN54: 半角数字
C55: 6 | D55: 明細件数 | G55: 26 | H55: 9 | I55: 6 | L55: 照会件数 | T55: 属性 | AN55: 半角数字
C56: 7 | D56: 予備 | G56: 32 | H56: X | I56: 225 | L56: レイアウト拡張時の予備領域 | N56: (利用禁止）

Sheet V2レコード構成
BA1: =シート別総ページ数 -> 
D4: ２． | G4: Ｖ２・ＥＤＩ標準フォーマット
E6: ２．１ Ｖ２・レコード構成
E8: （１） | J8: ０３発注／１３入庫予定／１４受領／１８返品通知／ | AG8: （１，２００バイト／レコード） | AW8: （２） | BB8: ４３販売報告 | BO8: （１，２００バイト／レコード）
J9: ２３出荷報告／３５請求明細／３６支払明細
J11: コントロール レコード | BB11: コントロール レコード
J13: ヘッダー(800) / 明細(400) レコード | BB13: ヘッダー(450) / 5商品分(150) レコード
J15: ヘッダー(800) / 明細(400) レコード | AC15: 同一ヘッダーmax６明細 | AO15: 同一送信先単位 | BB15: ヘッダー(450) / 5商品分(150) レコード | BU15: 同一ヘッダーmax999明細 | CG15: 同一送信先単位
J17: ヘッダー(800) / 明細(400) レコード | BB17: ヘッダー(450) / 5商品分(150) レコード
Q18: ・ | BJ18: ・
Q19: ・ | BJ19: ・
J20: ヘッダー(800) / 明細(400) レコード | BB20: トレーラ レコード
J22: トレーラ レコード | BB22: コントロール レコード
J24: コントロール レコード | BB24: ヘッダー(450) / 5商品分(150) レコード
J26: ヘッダー(800) / 明細(400) レコード | BB26: ヘッダー(450) / 5商品分(150) レコード
BG27: ・
J28: ヘッダー(800) / 明細(400) レコード | BG28: ・
Q29: ・ | BB29: ヘッダー(450) / 5商品分(150) レコード
Q30: ・
J31: ヘッダー(800) / 明細(400) レコード | BB31: トレーラ レコード
J33: トレーラ レコード | BB33: ※ 伝票の並び ： 任意
BB34: ※ 明細レコードがショートブロック（レコード中５商品未満）の場合、
J35: ※ 伝票の並び ： 任意 | BB35: オールスペースを設定する

Sheet ０３発注
A1: ２．２ Ｖ２・レコードフォーマット | AH1: =シート別総ページ数 -> 
C2: （１）Ｖ２・０３発注 | AG2: （１）Ｖ１・０２発注
D3: ① コントロールレコード | AH3: ① コントロールレコード
B4: 変更 | C4: 項番 | D4: 項目 | G4: 開始位置 | H4: 属性 | I4: 整数桁 | J4: 小数桁 | K4: 必須 | L4: 項目説明 | R4: コード | T4: V２ → Ｖ１･Ｖ２ | U4: Ｖ２→ Ｖ１ | V4: Ｖ２ ← Ｖ２ | W4: Ｖ２ ← Ｖ１ | X4: Ｖ１フォーマット | AG4: 項番 | AH4: 項目 | AK4: 開始位置 | AL4: 属性 | AM4: 整数桁 | AN4: 小数桁 | AO4: 必須
T5: センタチェック | U5: センタチェック | V5: コンバート | W5: コンバート | X5: 比較・ 変更点 | Z5: 項番 | AA5: 項目 | AB5: 開始 | AC5: 属性 | AD5: 整数 | AE5: 小数
C6: 1 | D6: データ種別 | G6: 1 | H6: 9 | I6: 2 | K6: ◎ | L6: ０３：発注データ | R6: 03 | T6: ｺｰﾄﾞ | V6: ○ | W6: "03"固定 | X6: ○ | Y6: ｺｰﾄﾞ | AA6: =IF($Z6="","",VLOOKUP($Z6,$AG$6:$AO$20,2,)) ->  | AB6: =IF($Z6="","",VLOOKUP($Z6,$AG$6:$AO$20,5,)) ->  | AC6: =IF($Z6="","",VLOOKUP($Z6,$AG$6:$AO$20,6,)) ->  | AD6: =IF($Z6="","",VLOOKUP($Z6,$AG$6:$AO$20,7,)) ->  | AE6: =IF($Z6="","",VLOOKUP($Z6,$AG$6:$AO$20,8,)) ->  | AG6: 1 | AH6: データ種別 | AK6: 1 | AL6: 9 | AM6: 2 | AO6: ○
C7: 2 | D7: 送信先コード | G7: 3 | H7: 9 | I7: 8 | K7: ◎ | L7: 送信先(メーカ) | M7: の統一取引先コード | T7: センター登録 | V7: ○ | W7: ○ | Z7: 2 | AA7: 送信先コード | AB7: 3 | AC7: 9 | AD7: 8 | AE7: 0 | AG7: 2 | AH7: 送信先コード | AK7: 3 | AL7: 9 | AM7: 8 | AO7: ○
C8: 3 | D8: 送信元コード | G8: 11 | H8: 9 | I8: 8 | K8: ◎ | L8: 送信元(卸) | M8: の統一取引先コード | T8: センター登録 | V8: ○ | W8: ○ | Z8: 3 | AA8: 送信元コード | AB8: 11 | AC8: 9 | AD8: 8 | AE8: 0 | AG8: 3 | AH8: 送信元コード | AK8: 11 | AL8: 9 | AM8: 8 | AO8: ○
C9: 4 | D9: レコード区分 | G9: 19 | H9: 9 | I9: 1 | K9: ◎ | L9: １：コントロールレコード | R9: 1 | T9: ｺｰﾄﾞ | U9: V2連携時 | V9: ○ | W9: ○ | Z9: 4 | AA9: レコード区分 | AB9: 19 | AC9: 9 | AD9: 1 | AE9: 0 | AG9: 4 | AH9: レコード区分 | AK9: 19 | AL9: 9 | AM9: 1 | AO9: ○
C10: 5 | D10: データ作成日 | G10: 20 | H10: 9 | I10: 8 | K10: ◎ | L10: データ作成日付 | N10: (西暦 YYYYMMDD) | T10: 必須＋日付 | U10: センタチェック | V10: ○ | W10: ○ | Z10: 5 | AA10: データ作成日 | AB10: 20 | AC10: 9 | AD10: 8 | AE10: 0 | AG10: 5 | AH10: データ作成日 | AK10: 20 | AL10: 9 | AM10: 8 | AO10: ○
C11: 6 | D11: データ作成時刻 | G11: 28 | H11: 9 | I11: 6 | L11: データ作成時刻 | N11: (HHMMSS) | T11: 時刻 | U11: と同じ | V11: ○ | W11: 属性初期値 | X11: ◎ | AG11: 6 | AH11: 送信先名 | AK11: 28 | AL11: X | AM11: 20 | AO11: ○
C12: 7 | D12: 送信先名 | G12: 34 | H12: X | I12: 20 | L12: 送信先(メーカ)名 | N12: (英数カナのみ) | V12: ○ | W12: ○ | Z12: 6 | AA12: 送信先名 | AB12: 28 | AC12: X | AD12: 20 | AE12: 0 | AG12: 7 | AH12: 送信元名 | AK12: 48 | AL12: X | AM12: 20 | AO12: ○
C13: 8 | D13: 送信元名 | G13: 54 | H13: X | I13: 20 | K13: ◎ | L13: 送信元(卸)名 | N13: (英数カナのみ) | T13: 必須 | V13: ○ | W13: ○ | Z13: 7 | AA13: 送信元名 | AB13: 48 | AC13: X | AD13: 20 | AE13: 0 | AG13: 8 | AH13: 直接送信先コード | AK13: 68 | AL13: 9 | AM13: 8
C14: 9 | D14: 直接送信先コード | G14: 74 | H14: 9 | I14: 8 | L14: 送信先コードと異なる場合にセット | N14: (通常はゼロ) | T14: センター登録 | V14: ○ | W14: ○ | Z14: 8 | AA14: 直接送信先コード | AB14: 68 | AC14: 9 | AD14: 8 | AE14: 0 | AG14: 9 | AH14: 直接送信先カナ名 | AK14: 76 | AL14: X | AM14: 20
C15: 10 | D15: 直接送信先名 | G15: 82 | H15: X | I15: 20 | L15: 直接送信先名 | N15: (英数カナのみ、通常はスペース) | V15: ○ | W15: ○ | Z15: 9 | AA15: 直接送信先カナ名 | AB15: 76 | AC15: X | AD15: 20 | AE15: 0 | AG15: 10 | AH15: 予備 | AK15: 96 | AL15: X | AM15: 161
C16: 11 | D16: 送信ファイルNO | G16: 102 | H16: 9 | I16: 2 | L16: 同時送信時の問合せ№ | N16: (00～99) | T16: 属性 | V16: ○ | W16: 属性初期値 | X16: ◎
C17: 12 | D17: 予備 | G17: 104 | H17: X | I17: 1077 | L17: レイアウト拡張用の予備領域 | N17: (利用禁止) | V17: ○ | W17: 属性初期値
C18: 13 | D18: 連携エリア | G18: 1181 | H18: X | I18: 20 | L18: 旧フォーマット予備連携データ | N18: (新フォーマット間：相対利用可能エリア) | V18: ○ | W18: ○ | X18: ◎ | Z18: 10 | AA18: 予備 | AB18: 96 | AC18: X | AD18: 161 | AE18: 0
D24: ② ヘッダー／明細レコード | AH24: ② ヘッダーレコード
B25: 変更 | C25: 項番 | D25: 項目 | G25: 開始位置 | H25: 属性 | I25: 整数桁 | J25: 小数桁 | K25: 必須 | L25: 項目説明 | R25: コード | T25: V２ → Ｖ１･Ｖ２ | U25: Ｖ２→ Ｖ１ | V25: Ｖ２ ← Ｖ２ | W25: Ｖ２ ← Ｖ１ | X25: Ｖ１フォーマット | AG25: 項番 | AH25: 項目 | AK25: 開始位置 | AL25: 属性 | AM25: 整数桁 | AN25: 小数桁 | AO25: 必須
T26: センタチェック | U26: センタチェック | V26: コンバート | W26: コンバート | X26: 比較・ 変更点 | Z26: 項番 | AA26: 項目 | AB26: 開始 | AC26: 属性 | AD26: 整数 | AE26: 小数
C27: 1 | D27: データ種別 | G27: 1 | H27: 9 | I27: 2 | K27: ◎ | L27: ０３：発注データ | R27: 03 | T27: 共通部チェック (ｺﾝﾄﾛｰﾙ同値､ 軽症ｴﾗｰ) | V27: ○ | W27: "03"固定 | X27: ○ | Y27: ｺｰﾄﾞ | AA27: =IF($Z27="","",VLOOKUP($Z27,$AG$27:$AO$54,2,)) ->  | AB27: =IF($Z27="","",VLOOKUP($Z27,$AG$27:$AO$54,5,)) ->  | AC27: =IF($Z27="","",VLOOKUP($Z27,$AG$27:$AO$54,6,)) ->  | AD27: =IF($Z27="","",VLOOKUP($Z27,$AG$27:$AO$54,7,)) ->  | AE27: =IF($Z27="","",VLOOKUP($Z27,$AG$27:$AO$54,8,)) ->  | AG27: 1 | AH27: データ種別 | AK27: 1 | AL27: 9 | AM27: 2 | AO27: ○
C28: 2 | D28: 送信先コード | G28: 3 | H28: 9 | I28: 8 | K28: ◎ | L28: 送信先(メーカ) | M28: の統一取引先コード | V28: ○ | W28: ○ | Z28: 2 | AA28: 送信先コード | AB28: 3 | AC28: 9 | AD28: 8 | AE28: 0 | AG28: 2 | AH28: 送信先コード | AK28: 3 | AL28: 9 | AM28: 8 | AO28: ○
C29: 3 | D29: 送信元コード | G29: 11 | H29: 9 | I29: 8 | K29: ◎ | L29: 送信元(卸) | M29: の統一取引先コード | V29: ○ | W29: ○ | Z29: 3 | AA29: 送信元コード | AB29: 11 | AC29: 9 | AD29: 8 | AE29: 0 | AG29: 3 | AH29: 送信元コード | AK29: 11 | AL29: 9 | AM29: 8 | AO29: ○
C30: 4 | D30: レコード区分 | G30: 19 | H30: 9 | I30: 1 | K30: ◎ | L30: ３：ヘッダー／明細レコード | R30: 3 | U30: V2連携時 | V30: ○ | W30: "3"固定 | X30: ○ | Y30: ｺｰﾄﾞ | AG30: 4 | AH30: レコード区分 | AK30: 19 | AL30: 9 | AM30: 1 | AO30: ○
C31: 5 | D31: 漢字コード区分 | G31: 20 | H31: X | I31: 1 | L31: センターにて漢字コード区分をセットする | R31: 1:S-JIS 2:JIS | S31: 3:JEF 4:IBM | U31: センタチェック と同じ | V31: センター設定 | W31: センター設定 | X31: ◎ | AG31: 5 | AH31: 卸伝票NO | AK31: 20 | AL31: 9 | AM31: 6 | AO31: ○
C32: 6 | D32: 卸発注伝票NO | G32: 21 | H32: 9 | I32: 8 | K32: ◎ | L32: 受発注データの卸伝票№ | N32: (6桁→8桁に拡張、6桁運用の時は上２桁ゼロ埋め） | T32: 必須＋属性 | V32: ○ | W32: "00"＋卸伝票NO | X32: ○ | Y32: 桁数 | Z32: 5 | AA32: 卸伝票NO | AB32: 20 | AC32: 9 | AD32: 6 | AE32: 0 | AG32: 6 | AH32: 店入直送区分 | AK32: 26 | AL32: 9 | AM32: 1 | AO32: ○
C33: 7 | D33: 店入直送区分 | G33: 29 | H33: 9 | I33: 1 | K33: ◎ | L33: 店(倉)入れまたは直送等の区分 | R33: 1:店入 2:直送 | S33: 3:店引取 4:直送引取 | T33: 必須＋コード | V33: ○ | W33: ○ | X33: ○ | Y33: ｺｰﾄﾞ | Z33: 6 | AA33: 店入直送区分 | AB33: 26 | AC33: 9 | AD33: 1 | AE33: 0 | AG33: 7 | AH33: 取引コード | AK33: 27 | AL33: 9 | AM33: 2 | AO33: ○
B34: 2.6 | C34: 8 | D34: 取引コード | G34: 30 | H34: 9 | I34: 2 | K34: ◎ | L34: 業界統一取引コード | R34: 11:店入売上 12:店入売上訂正 21:店入返品 22:店入返品訂正 31:直送売上 32:直送売上訂正 | S34: 41:直送返品 42:直送返品訂正 51:割戻し金 52:相殺 81:ﾒｰｶｰ提供の役務 91:卸提供の役務 | T34: 必須＋コード | V34: ○ | W34: ○ | Z34: 7 | AA34: 取引コード | AB34: 27 | AC34: 9 | AD34: 2 | AE34: 0 | AG34: 8 | AH34: 納品日 | AK34: 29 | AL34: 9 | AM34: 8 | AO34: ○
C35: 9 | D35: 納品日／引取日 | G35: 32 | H35: 9 | I35: 8 | K35: ◎ | L35: 卸店納品日／商品引取日 | N35: (西暦 YYYYMMDD) | T35: 必須＋日付 | V35: ○ | W35: ○ | X35: ○ | Y35: 名称 | Z35: 8 | AA35: 納品日 | AB35: 29 | AC35: 9 | AD35: 8 | AE35: 0 | AG35: 9 | AH35: 納入時間 | AK35: 37 | AL35: 9 | AM35: 4
C36: 10 | D36: 納入時間（自） | G36: 40 | H36: 9 | I36: 4 | L36: 納入時間指定開始時間 | N36: (HHMM) | T36: 時刻 | V36: ○ | W36: 時刻不正 → 属性初期値 | Z36: 9 | AA36: 納入時間 | AB36: 37 | AC36: 9 | AD36: 4 | AE36: 0 | AG36: 10 | AH36: 明細行数 | AK36: 41 | AL36: 9 | AM36: 2 | AO36: ○
C37: 11 | D37: 納入時間（至） | G37: 44 | H37: 9 | I37: 4 | L37: 納入時間指定終了時間 | N37: (HHMM) | T37: 時刻 | V37: ○ | W37: 属性初期値 | X37: ◎ | AG37: 11 | AH37: 一次店コード | AK37: 43 | AL37: 9 | AM37: 8 | AO37: ○
C38: 12 | D38: 発注日 | G38: 48 | H38: 9 | I38: 8 | L38: 実際の発注データの入力日 | N38: (西暦 YYYYMMDD) | T38: 日付 | V38: ○ | W38: 属性初期値 | X38: ◎ | AG38: 12 | AH38: 二次店コード | AK38: 51 | AL38: 9 | AM38: 8
C39: 13 | D39: 明細行数 | G39: 56 | H39: 9 | I39: 2 | K39: ○ | L39: 伝票内明細数 | R39: 00～06 | T39: コード | V39: ○ | W39: ○ | Z39: 10 | AA39: 明細行数 | AB39: 41 | AC39: 9 | AD39: 2 | AE39: 0 | AG39: 13 | AH39: 届け先コード | AK39: 59 | AL39: 9 | AM39: 8 | AO39: ○
C40: 14 | D40: 一次店コード | G40: 58 | H40: X | I40: 13 | K40: ◎ | L40: 統一取引先コード(8桁） | P40: (後方スペース埋め) | T40: 必須 | V40: ○ | W40: 前詰８桁＋空白５桁 | X40: ○ | Y40: 属性＋桁数 | Z40: 11 | AA40: 一次店コード | AB40: 43 | AC40: 9 | AD40: 8 | AE40: 0 | AG40: 14 | AH40: 専用伝票日付 | AK40: 67 | AL40: 9 | AM40: 8
C41: 15 | D41: 二次店コード | G41: 71 | H41: X | I41: 13 | L41: 統一取引先コード(8桁) | P41: (後方スペース埋め) | V41: ○ | W41: 前詰８桁＋空白５桁 | X41: ○ | Y41: 属性＋桁数 | Z41: 12 | AA41: 二次店コード | AB41: 51 | AC41: 9 | AD41: 8 | AE41: 0 | AG41: 15 | AH41: 専用伝票NO | AK41: 75 | AL41: 9 | AM41: 9
C42: 16 | D42: 三次店コード | G42: 84 | H42: X | I42: 13 | L42: 統一取引先コード(8桁)／プライベート・コード(3～8桁)／ＧＬＮ(13桁) | P42: (後方スペース埋め) | V42: ○ | W42: 属性初期値 | X42: ◎ | AG42: 16 | AH42: 伝票合計金額符号 | AK42: 84 | AL42: X | AM42: 1 | AO42: ○
C43: 17 | D43: 届け先コード | G43: 97 | H43: X | I43: 13 | K43: ○ | L43: 統一取引先コード(8桁) | P43: (後方スペース埋め) | V43: ○ | W43: 前詰８桁＋空白５桁 | X43: ○ | Y43: 属性＋桁数 | Z43: 13 | AA43: 届け先コード | AB43: 59 | AC43: 9 | AD43: 8 | AE43: 0 | AG43: 17 | AH43: 伝票合計金額 | AK43: 85 | AL43: 9 | AM43: 8 | AO43: ○
C44: 18 | D44: チェーン店コード | G44: 110 | H44: X | I44: 13 | L44: 統一取引先コード(8桁)／プライベート・コード(3～8桁)／ＧＬＮ(13桁) | P44: (後方スペース埋め) | V44: ○ | W44: 属性初期値 | X44: ◎ | AG44: 18 | AH44: 二次店納入合計符号 | AK44: 93 | AL44: X | AM44: 1
C45: （次頁に続く） | AG45: 19 | AH45: 二次店納入合計金額 | AK45: 94 | AL45: 9 | AM45: 8
AG46: 20 | AH46: 一次店カナ名 | AK46: 102 | AL46: X | AM46: 30 | AO46: ○
AG47: 21 | AH47: 二次店カナ名 | AK47: 132 | AL47: X | AM47: 30
AG48: 22 | AH48: 届け先カナ名 | AK48: 162 | AL48: X | AM48: 30 | AO48: ○
AG49: 23 | AH49: メーカ所属組織名 | AK49: 192 | AL49: X | AM49: 10
AG50: 24 | AH50: 伝票区分 | AK50: 202 | AL50: 9 | AM50: 1 | AO50: ○
AG51: 25 | AH51: 定番特売区分 | AK51: 203 | AL51: X | AM51: 1 | AO51: ○
AG52: 26 | AH52: 摘要欄 | AK52: 204 | AL52: X | AM52: 30
AG53: 27 | AH53: メーカコード | AK53: 234 | AL53: X | AM53: 9 | AO53: ○
AG54: 28 | AH54: 予備 | AK54: 243 | AL54: X | AM54: 14
C70: （前頁の続き）
B71: 変更 | C71: 項番 | D71: 項目 | G71: 開始位置 | H71: 属性 | I71: 整数桁 | J71: 小数桁 | K71: 必須 | L71: 項目説明 | R71: コード | T71: V２ → Ｖ１･Ｖ２ | U71: Ｖ２→ Ｖ１ | V71: Ｖ２ ← Ｖ２ | W71: Ｖ２ ← Ｖ１ | X71: Ｖ１フォーマット
T72: センタチェック | U72: センタチェック | V72: コンバート | W72: コンバート | X72: 比較・ 変更点 | Z72: 項番 | AA72: 項目 | AB72: 開始 | AC72: 属性 | AD72: 整数 | AE72: 小数
C73: 19 | D73: 専用伝票日付 | G73: 123 | H73: 9 | I73: 8 | L73: 納品伝票が専用伝票の場合にセット | N73: (西暦 YYYYMMDD) | T73: 日付 | V73: ○ | W73: ○ | Z73: 14 | AA73: =IF($Z73="","",VLOOKUP($Z73,$AG$27:$AO$54,2,)) -> 専用伝票日付 | AB73: =IF($Z73="","",VLOOKUP($Z73,$AG$27:$AO$54,5,)) -> 67 | AC73: =IF($Z73="","",VLOOKUP($Z73,$AG$27:$AO$54,6,)) -> 9 | AD73: =IF($Z73="","",VLOOKUP($Z73,$AG$27:$AO$54,7,)) -> 8 | AE73: =IF($Z73="","",VLOOKUP($Z73,$AG$27:$AO$54,8,)) -> 0
C74: 20 | D74: 専用伝票NO | G74: 131 | H74: 9 | I74: 9 | L74: 〃 | N74: (専用伝票№、左ゼロ埋め) | T74: 属性 | V74: ○ | W74: ○ | Z74: 15 | AA74: 専用伝票NO | AB74: 75 | AC74: 9 | AD74: 9 | AE74: 0
C75: 21 | D75: 伝票合計金額符号 | G75: 140 | H75: X | I75: 1 | K75: ○ | L75: 伝票の合計金額の符号 | R75: △/＋:正数 | S75: －:負数 | T75: コード | V75: ○ | W75: 不正コード値 → "△" | X75: ○ | Y75: ｺｰﾄﾞ | Z75: 16 | AA75: 伝票合計金額符号 | AB75: 84 | AC75: X | AD75: 1 | AE75: 0
C76: 22 | D76: 伝票合計金額 | G76: 141 | H76: 9 | I76: 8 | K76: ○ | L76: 伝票の合計金額 | N76: (卸店入価格、１億円未満) | T76: 属性 | V76: ○ | W76: ○ | Z76: 17 | AA76: 伝票合計金額 | AB76: 85 | AC76: 9 | AD76: 8 | AE76: 0
C77: 23 | D77: 二次店納入合計金額符号 | G77: 149 | H77: X | I77: 1 | L77: 正味納入合計金額の符号 | R77: △/＋:正数 | S77: －:負数 | T77: コード | V77: ○ | W77: 不正コード値 → "△" | X77: ○ | Y77: ｺｰﾄﾞ | Z77: 18 | AA77: 二次店納入合計符号 | AB77: 93 | AC77: X | AD77: 1 | AE77: 0
C78: 24 | D78: 二次店納入合計金額 | G78: 150 | H78: 9 | I78: 8 | L78: 正味納入合計金額 | N78: (二次店納入価格、１億円未満） | T78: 属性 | V78: ○ | W78: ○ | Z78: 19 | AA78: 二次店納入合計金額 | AB78: 94 | AC78: 9 | AD78: 8 | AE78: 0
C79: 25 | D79: 一次店名 | G79: 158 | H79: X/N | I79: 40 | K79: ○ | L79: 一次店名 | N79: (英数カナは30文字、漢字は20文字) | V79: ○ | W79: ○ | X79: ○ | Y79: 属性＋桁数 | Z79: 20 | AA79: 一次店カナ名 | AB79: 102 | AC79: X | AD79: 30 | AE79: 0
C80: 26 | D80: 二次店名 | G80: 198 | H80: X/N | I80: 40 | L80: 二次店名 | N80: (英数カナは30文字、漢字は20文字) | V80: ○ | W80: ○ | X80: ○ | Y80: 属性＋桁数 | Z80: 21 | AA80: 二次店カナ名 | AB80: 132 | AC80: X | AD80: 30 | AE80: 0
C81: 27 | D81: 三次店名 | G81: 238 | H81: X/N | I81: 40 | L81: 三次店名 | N81: (英数カナは30文字、漢字は20文字) | V81: ○ | W81: 属性初期値 | X81: ◎
C82: 28 | D82: 届け先名 | G82: 278 | H82: X/N | I82: 40 | K82: ○ | L82: 届け先名 | N82: (英数カナは30文字、漢字は20文字) | V82: ○ | W82: ○ | X82: ○ | Y82: 属性＋桁数 | Z82: 22 | AA82: 届け先カナ名 | AB82: 162 | AC82: X | AD82: 30 | AE82: 0
C83: 29 | D83: チェーン店名 | G83: 318 | H83: X/N | I83: 40 | L83: チェーン店名 | N83: (英数カナは30文字、漢字は20文字) | V83: ○ | W83: 属性初期値 | X83: ◎
C84: 30 | D84: 電話番号 | G84: 358 | H84: X | I84: 15 | L84: 通常は届け先の電話番号 | N84: (局番区切り(-)あり) | V84: ○ | W84: 属性初期値 | X84: ◎
C85: 31 | D85: 住所 | G85: 373 | H85: X/N | I85: 80 | L85: 通常は届け先の住所 | N85: (英数カナは60文字、漢字は40文字) | V85: ○ | W85: 属性初期値 | X85: ◎
C86: 32 | D86: メーカコード | G86: 453 | H86: X | I86: 9 | K86: ○ | L86: ７桁の場合は後ろスペース | N86: (49xxxxx / 45xxxxxxx) | V86: ○ | W86: ○ | Z86: 27 | AA86: メーカコード | AB86: 234 | AC86: X | AD86: 9 | AE86: 0
C87: 33 | D87: メーカ所属組織名 | G87: 462 | H87: X | I87: 10 | L87: メーカの担当所属の組織名(英数カナ)を指定、実質スペース運用が多い | V87: ○ | W87: ○ | Z87: 23 | AA87: メーカ所属組織名 | AB87: 192 | AC87: X | AD87: 10 | AE87: 0
C88: 34 | D88: 伝票区分 | G88: 472 | H88: 9 | I88: 1 | K88: ○ | L88: 伝票発行の区分 | R88: 0:菓子統一伝票 1:ﾁｪｰﾝｽﾄｱ伝票(伝票№なし) 2:専用伝票 (伝票№あり) 3:専用伝票 (伝票№なし) 4:ﾁｪｰﾝｽﾄｱ伝票(ﾀｰﾝｱﾗｳﾝﾄﾞ型) 8:伝票レス | T88: コード(新) | V88: ○ | W88: ○ | X88: ○ | Y88: ｺｰﾄﾞ | Z88: 24 | AA88: 伝票区分 | AB88: 202 | AC88: 9 | AD88: 1 | AE88: 0
C89: 35 | D89: 定番特売区分 | G89: 473 | H89: X | I89: 1 | K89: ○ | L89: 定番発注/特売発注の区分 | R89: 0:定番 1:特売 | S89: △:分類不能 | T89: コード | V89: ○ | W89: "0"・"1"以外 → "△" | X89: ○ | Y89: ｺｰﾄﾞ | Z89: 25 | AA89: 定番特売区分 | AB89: 203 | AC89: X | AD89: 1 | AE89: 0
C90: 36 | D90: ロット不足運賃負担区分 | G90: 474 | H90: X | I90: 1 | L90: 発注ロット不足になった場合の運賃負担の区分 | R90: △:無指定 1:卸負担 | S90: 2:負担なし | T90: コード | V90: ○ | W90: 属性初期値 | X90: ◎
C91: 37 | D91: 下請法 | F91: 伝票表示区分 | G91: 475 | H91: X | I91: 1 | L91: 下請法関係の伝票表示の有無区分 | R91: △:表示なし | S91: 1:表示あり | T91: コード | V91: ○ | W91: 属性初期値 | X91: ◎
C92: 38 | F92: 伝票表示内容 | G92: 476 | H92: X/N | I92: 80 | L92: 下請法対応メッセージ | N92: (英数カナは60文字、漢字は40文字) | V92: ○ | W92: 属性初期値 | X92: ◎
C93: 39 | F93: 日本語区分（表示） | G93: 556 | H93: X | I93: 1 | L93: 下請法関係の伝票表示内容の日本語区分 | R93: △/0:英数カナ 1: 漢字(S-JIS/JIS/JEF/IBM) | T93: コード | V93: ○ | W93: 属性初期値 | X93: ◎
C94: 40 | F94: 支払期限 | G94: 557 | H94: 9 | I94: 8 | L94: 支払期限を明示する場合セットする | N94: (西暦 YYYYMMDD) | T94: 日付 | V94: ○ | W94: 属性初期値 | X94: ◎
C95: 41 | D95: 消費税区分 | G95: 565 | H95: X | I95: 1 | L95: 税区分 | R95: 1:外税 2:内税 | S95: 3:非課税 △:個別判断 | T95: コード | V95: ○ | W95: 属性初期値 | X95: ◎
C96: 42 | D96: 消費税率 | G96: 566 | H96: 9 | I96: 2 | J96: 1 | L96: 消費税の税率(99.9％)、ゼロ:個別判断 | O96: (小数点以下1桁) | T96: 属性 | V96: ○ | W96: 属性初期値 | X96: ◎
C97: 43 | D97: 摘要 | G97: 569 | H97: X/N | I97: 50 | L97: 伝票の摘要欄の内容 | N97: (英数カナは50文字、漢字は25文字) | V97: ○ | W97: ○ | X97: ○ | Y97: 属性＋桁数 | Z97: 26 | AA97: 摘要欄 | AB97: 204 | AC97: X | AD97: 30 | AE97: 0
C98: 44 | D98: 取引先区分（一次店） | G98: 619 | H98: X | I98: 1 | L98: 該当項目の取引先の属性区分 | R98: △:統一取引先(8桁) | T98: コード | V98: ○ | W98: 属性初期値 | X98: ◎
C99: 45 | D99: 取引先区分（二次店） | G99: 620 | H99: X | I99: 1 | L99: 〃 | R99: △:統一取引先(8桁) | T99: コード | V99: ○ | W99: 属性初期値 | X99: ◎
C100: 46 | D100: 取引先区分（三次店） | G100: 621 | H100: X | I100: 1 | L100: 〃 | R100: △: 統一取引先(8桁) 6: GLN(13桁) 7/8:プライベートコード(卸/ﾒｰｶ) | T100: コード | V100: ○ | W100: 属性初期値 | X100: ◎
C101: 47 | D101: 取引先区分（届け先） | G101: 622 | H101: X | I101: 1 | L101: 〃 | R101: △:統一取引先(8桁) | T101: コード | V101: ○ | W101: 属性初期値 | X101: ◎
C102: 48 | D102: 取引先区分（チェーン店） | G102: 623 | H102: X | I102: 1 | L102: 〃 | R102: △: 統一取引先(8桁) 6: GLN(13桁) 7/8:プライベートコード(卸/ﾒｰｶ) | T102: コード | V102: ○ | W102: 属性初期値 | X102: ◎
C103: 49 | D103: 日本語区分（一次店） | G103: 624 | H103: X | I103: 1 | L103: 該当項目の日本語区分 | R103: △/0:英数カナ 1: 漢字(S-JIS/JIS/JEF/IBM) | T103: コード | V103: ○ | W103: 属性初期値 | X103: ◎
C104: 50 | D104: 日本語区分（二次店） | G104: 625 | H104: X | I104: 1 | L104: 〃 | R104: 〃 | T104: コード | V104: ○ | W104: 属性初期値 | X104: ◎
C105: 51 | D105: 日本語区分（三次店） | G105: 626 | H105: X | I105: 1 | L105: 〃 | R105: 〃 | T105: コード | V105: ○ | W105: 属性初期値 | X105: ◎
C106: 52 | D106: 日本語区分（届け先） | G106: 627 | H106: X | I106: 1 | L106: 〃 | R106: 〃 | T106: コード | V106: ○ | W106: 属性初期値 | X106: ◎
C107: 53 | D107: 日本語区分（チェーン店） | G107: 628 | H107: X | I107: 1 | L107: 〃 | R107: 〃 | T107: コード | V107: ○ | W107: 属性初期値 | X107: ◎
C108: 54 | D108: 日本語区分（住所） | G108: 629 | H108: X | I108: 1 | L108: 〃 | R108: 〃 | T108: コード | V108: ○ | W108: 属性初期値 | X108: ◎
C109: 55 | D109: 日本語区分（摘要） | G109: 630 | H109: X | I109: 1 | L109: 〃 | R109: 〃 | T109: コード | V109: ○ | W109: 属性初期値 | X109: ◎
B110: 1.1 | C110: 56 | D110: 一次店カナ名 | G110: 631 | H110: X | I110: 30 | L110: 一次店カナ名 | N110: (一次店名 に漢字を設定する場合、必須) | V110: ○ | W110: 属性初期値 | X110: ◎
B111: 1.1 | C111: 57 | D111: 二次店カナ名 | G111: 661 | H111: X | I111: 30 | L111: 二次店カナ名 | N111: (二次店名 に漢字を設定する場合、必須) | V111: ○ | W111: 属性初期値 | X111: ◎
B112: 1.1 | C112: 58 | D112: 届け先カナ名 | G112: 691 | H112: X | I112: 30 | L112: 届け先カナ名 | N112: (届け先名 に漢字を設定する場合、必須) | V112: ○ | W112: 属性初期値 | X112: ◎
B113: 1.1 | C113: 59 | D113: 摘要カナ | G113: 721 | H113: X | I113: 30 | L113: 摘要カナ | N113: (摘要 に漢字を設定する場合、必須) | V113: ○ | W113: 属性初期値 | X113: ◎
B114: 1.1 | C114: 60 | D114: ヘッダー予備 | G114: 751 | H114: X | I114: 30 | L114: レイアウト拡張用の予備領域 | N114: (利用禁止) | V114: ○ | W114: 属性初期値 | AA114: =IF($Z114="","",VLOOKUP($Z114,$AG$27:$AO$54,2,)) ->  | AB114: =IF($Z114="","",VLOOKUP($Z114,$AG$27:$AO$54,5,)) ->  | AC114: =IF($Z114="","",VLOOKUP($Z114,$AG$27:$AO$54,6,)) ->  | AD114: =IF($Z114="","",VLOOKUP($Z114,$AG$27:$AO$54,7,)) ->  | AE114: =IF($Z114="","",VLOOKUP($Z114,$AG$27:$AO$54,8,)) -> 
C115: 61 | D115: ヘッダー連携エリア | G115: 781 | H115: X | I115: 20 | L115: 旧フォーマット予備連携データ | N115: (新フォーマット間：相対利用可能エリア) | V115: ○ | W115: ○ | X115: ◎ | Z115: 28 | AA115: =IF($Z115="","",VLOOKUP($Z115,$AG$27:$AO$54,2,)) -> 予備 | AB115: =IF($Z115="","",VLOOKUP($Z115,$AG$27:$AO$54,5,)) -> 243 | AC115: =IF($Z115="","",VLOOKUP($Z115,$AG$27:$AO$54,6,)) -> X | AD115: =IF($Z115="","",VLOOKUP($Z115,$AG$27:$AO$54,7,)) -> 14 | AE115: =IF($Z115="","",VLOOKUP($Z115,$AG$27:$AO$54,8,)) -> 0
C116: （次頁に続く）
C130: （前頁の続き） | AH130: ③ 明細レコード
B131: 変更 | C131: 項番 | D131: 項目 | G131: 開始位置 | H131: 属性 | I131: 整数桁 | J131: 小数桁 | K131: 必須 | L131: 項目説明 | R131: コード | T131: V２ → Ｖ１･Ｖ２ | U131: Ｖ２→ Ｖ１ | V131: Ｖ２ ← Ｖ２ | W131: Ｖ２ ← Ｖ１ | X131: Ｖ１フォーマット | AG131: 項番 | AH131: 項目 | AK131: 開始位置 | AL131: 属性 | AM131: 整数桁 | AN131: 小数桁 | AO131: 必須
T132: センタチェック | U132: センタチェック | V132: コンバート | W132: コンバート | X132: 比較・ 変更点 | Z132: 項番 | AA132: 項目 | AB132: 開始 | AC132: 属性 | AD132: 整数 | AE132: 小数
D133: 明細部（４００バイト） | AG133: 1 | AH133: データ種別 | AK133: 1 | AL133: 9 | AM133: 2 | AO133: ○
C134: 62 | E134: 明細行NO | G134: 801 | H134: 9 | I134: 2 | K134: ◎ | L134: 伝票内明細数 | R134: 01～06 | T134: 必須＋コード | V134: ○ | W134: 6行変換設定 | X134: ○ | Y134: 名称 | Z134: 5 | AA134: =IF($Z134="","",VLOOKUP($Z134,$AG$133:$AO$156,3,)) -> 行NO | AB134: =IF($Z134="","",VLOOKUP($Z134,$AG$133:$AO$156,5,)) -> 20 | AC134: =IF($Z134="","",VLOOKUP($Z134,$AG$133:$AO$156,6,)) -> 9 | AD134: =IF($Z134="","",VLOOKUP($Z134,$AG$133:$AO$156,7,)) -> 2 | AE134: =IF($Z134="","",VLOOKUP($Z134,$AG$133:$AO$156,8,)) -> 0 | AG134: 2 | AH134: 送信先コード | AK134: 3 | AL134: 9 | AM134: 8 | AO134: ○
C135: 63 | E135: 専用伝票行NO | G135: 803 | H135: 9 | I135: 2 | L135: 専用伝票の行№ | N135: (00～99) | T135: 属性 | V135: ○ | W135: ○ | Z135: 6 | AA135: 専用伝票行NO | AB135: 22 | AC135: 9 | AD135: 2 | AE135: 0 | AG135: 3 | AH135: 送信元コード | AK135: 11 | AL135: 9 | AM135: 8 | AO135: ○
C136: 64 | E136: 商品コード識別区分 | G136: 805 | H136: 9 | I136: 1 | K136: ○ | L136: 品番(商品コード)の識別区分 | R136: 0:統一商品コード 1:ＩＴＦコード (14桁) 2:ＩＴＦコード(16桁) 【利用停止化】 3:JANコード (標準:13桁) 4:JANコード (短縮:8桁) 6:GTINコード (14桁) | T136: コード(新) | V136: ○ | W136: ○ | X136: ○ | Y136: 属性＋コード 2:利用停止 | Z136: 7 | AA136: 商品コード識別区分 | AB136: 24 | AC136: X | AD136: 1 | AE136: 0 | AG136: 4 | AH136: レコード区分 | AK136: 19 | AL136: 9 | AM136: 1 | AO136: ○
C137: 65 | E137: 品番 | G137: 806 | H137: X | I137: 16 | K137: ○ | L137: 統一商品ｺｰﾄﾞ､ITFｺｰﾄﾞ､JANｺｰﾄﾞ､GTINｺｰﾄﾞ | O137: (左詰め) | V137: ○ | W137: ○ | X137: ○ | Y137: ITF(16) 利用停止 | Z137: 8 | AA137: 品番 | AB137: 25 | AC137: X | AD137: 16 | AE137: 0 | AH137: 明細部繰返（１１７バイト × ２明細）
C138: 66 | E138: 商品名 | G138: 822 | H138: X/N | I138: 40 | K138: ○ | L138: 商品名 | N138: (英数カナは25文字、漢字は20文字) | V138: ○ | W138: ○ | X138: ○ | Y138: 属性＋桁数 | Z138: 9 | AA138: 商品名 | AB138: 41 | AC138: X | AD138: 25 | AE138: 0 | AG138: 5 | AI138: 行NO | AK138: 20 | AL138: 9 | AM138: 2 | AO138: ○
C139: 67 | E139: 包装区分 | G139: 862 | H139: 9 | I139: 1 | K139: ○ | L139: 数量の発注単位の区分 | N139: (1:ケース発注時) | O139: (2:ボール発注時) | P139: (3:バラ発注時) | R139: 1:ケース発注 2:ボール発注 | S139: 3:バラ発注 | T139: 必須＋コード | V139: ○ | W139: 不正コード値 → "1" | Z139: 10 | AA139: 包装区分 | AB139: 66 | AC139: 9 | AD139: 1 | AE139: 0 | AG139: 6 | AI139: 専用伝票行NO | AK139: 22 | AL139: 9 | AM139: 2
C140: 68 | E140: 内容 | F140: ボール内バラ数 | G140: 863 | H140: 9 | I140: 4 | J140: 2 | K140: ○ | L140: 包装区分に準じた設定 | N140: (ボール内バラ数 | O140: /ボール内バラ数 | P140: /ゼロ) | T140: 属性 | V140: ○ | W140: ○ | Z140: 11 | AA140: =IF($Z140="","",VLOOKUP($Z140,$AG$133:$AO$156,4,)) -> ボール内バラ数 | AB140: 67 | AC140: 9 | AD140: 4 | AE140: 2 | AG140: 7 | AI140: 商品コード識別区分 | AK140: 24 | AL140: X | AM140: 1 | AO140: ○
C141: 69 | F141: ケース内ボール数 | G141: 869 | H141: 9 | I141: 2 | K141: ○ | L141: 包装区分に準じた設定 | N141: (ケース内ボール数 | O141: /ゼロ | P141: /ゼロ) | T141: 属性 | V141: ○ | W141: ○ | Z141: 12 | AA141: =IF($Z141="","",VLOOKUP($Z141,$AG$133:$AO$156,4,)) -> ケース内ボール数 | AB141: 73 | AC141: 9 | AD141: 2 | AE141: 0 | AG141: 8 | AI141: 品番 | AK141: 25 | AL141: X | AM141: 16 | AO141: ○
C142: 70 | E142: 数量符号 | G142: 871 | H142: X | I142: 1 | K142: ○ | L142: 数量の符号 | R142: △/＋:正数 | S142: －:負数 | T142: コード | V142: ○ | W142: ○ | X142: ○ | Y142: コード 2:利用停止 | Z142: 13 | AA142: =IF($Z142="","",VLOOKUP($Z142,$AG$133:$AO$156,3,)) -> 数量符号 | AB142: 75 | AC142: X | AD142: 1 | AE142: 0 | AG142: 9 | AI142: 商品名 | AK142: 41 | AL142: X | AM142: 25 | AO142: ○
C143: 71 | E143: 数量 | F143: ケース数量 | G143: 872 | H143: 9 | I143: 7 | K143: ○ | L143: 包装区分に準じた設定 | N143: (ケース数量 | O143: /ゼロ | P143: /ゼロ) | T143: 属性 | V143: ○ | W143: ○ | Z143: 14 | AA143: =IF($Z143="","",VLOOKUP($Z143,$AG$133:$AO$156,4,)) -> ケース数量 | AB143: 76 | AC143: 9 | AD143: 7 | AE143: 0 | AG143: 10 | AI143: 包装区分 | AK143: 66 | AL143: 9 | AM143: 1 | AO143: ○
C144: 72 | F144: ボール数量 | G144: 879 | H144: 9 | I144: 7 | K144: ○ | L144: 包装区分に準じた設定 | N144: (ゼロ | O144: /ボール数量 | P144: /ゼロ) | T144: 属性 | V144: ○ | W144: ○ | Z144: 15 | AA144: =IF($Z144="","",VLOOKUP($Z144,$AG$133:$AO$156,4,)) -> ボール数量 | AB144: 83 | AC144: 9 | AD144: 7 | AE144: 0 | AG144: 11 | AI144: 内容 | AJ144: ボール内バラ数 | AK144: 67 | AL144: 9 | AM144: 4 | AN144: 2 | AO144: ○
C145: 73 | F145: バラ数量 | G145: 886 | H145: 9 | I145: 7 | J145: 2 | K145: ○ | L145: 包装区分に準じた設定 | N145: (バラ換算数量 | O145: /バラ換算数量 | P145: バラ発注数量) | T145: 属性 | V145: ○ | W145: ○ | Z145: 16 | AA145: =IF($Z145="","",VLOOKUP($Z145,$AG$133:$AO$156,4,)) -> バラ数量 | AB145: 90 | AC145: 9 | AD145: 7 | AE145: 2 | AG145: 12 | AJ145: ケース内ボール数 | AK145: 73 | AL145: 9 | AM145: 2 | AO145: ○
C146: 74 | E146: 単価 | F146: 卸店入価格 | G146: 895 | H146: 9 | I146: 6 | J146: 2 | K146: ○ | L146: 卸店入価格 | N146: (バラ単価) | T146: 属性 | V146: ○ | W146: ○ | Z146: 17 | AA146: =IF($Z146="","",VLOOKUP($Z146,$AG$133:$AO$156,4,)) -> 卸店入価格 | AB146: 99 | AC146: 9 | AD146: 6 | AE146: 2 | AG146: 13 | AI146: 数量符号 | AK146: 75 | AL146: X | AM146: 1 | AO146: ○
C147: 75 | F147: 二次店納入価格 | G147: 903 | H147: 9 | I147: 6 | J147: 2 | L147: 二次卸店等への納入価格 | N147: (バラ単価) | T147: 属性 | V147: ○ | W147: ○ | Z147: 18 | AA147: =IF($Z147="","",VLOOKUP($Z147,$AG$133:$AO$156,4,)) -> 二次店納入価格 | AB147: 107 | AC147: 9 | AD147: 6 | AE147: 2 | AG147: 14 | AI147: 数量 | AJ147: ケース数量 | AK147: 76 | AL147: 9 | AM147: 7 | AO147: ○
C148: 76 | E148: 金額符号 | G148: 911 | H148: X | I148: 1 | K148: ○ | L148: 金額の符号 | R148: △/＋:正数 | S148: －:負数 | T148: コード | V148: ○ | W148: ○ | X148: ○ | Y148: コード | Z148: 19 | AA148: =IF($Z148="","",VLOOKUP($Z148,$AG$133:$AO$156,3,)) -> 金額符号 | AB148: 115 | AC148: X | AD148: 1 | AE148: 0 | AG148: 15 | AJ148: ボール数量 | AK148: 83 | AL148: 9 | AM148: 7 | AO148: ○
C149: 77 | E149: 金額 | F149: 卸店入金額 | G149: 912 | H149: 9 | I149: 8 | K149: ○ | L149: 卸店入金額 | T149: 属性 | V149: ○ | W149: ○ | Z149: 20 | AA149: =IF($Z149="","",VLOOKUP($Z149,$AG$133:$AO$156,4,)) -> 卸店入金額 | AB149: 116 | AC149: 9 | AD149: 8 | AE149: 0 | AG149: 16 | AJ149: バラ数量 | AK149: 90 | AL149: 9 | AM149: 7 | AN149: 2 | AO149: ○
C150: 78 | F150: 二次店納入金額 | G150: 920 | H150: 9 | I150: 8 | L150: 二次卸店等への納入金額 | T150: 属性 | V150: ○ | W150: ○ | Z150: 21 | AA150: =IF($Z150="","",VLOOKUP($Z150,$AG$133:$AO$156,4,)) -> 二次店納入金額 | AB150: 124 | AC150: 9 | AD150: 8 | AE150: 0 | AG150: 17 | AI150: 単価 | AJ150: 卸店入価格 | AK150: 99 | AL150: 9 | AM150: 6 | AN150: 2 | AO150: ○
C151: 79 | E151: 商品添付区分 | G151: 928 | H151: X | I151: 1 | L151: 添付商品扱いの区分 | N151: (相対運用) | R151: △:通常商品 | S151: １:添付商品 | T151: コード(新) | V151: ○ | W151: 属性初期値 | X151: ◎ | AA151: =IF($Z151="","",VLOOKUP($Z151,$AG$133:$AO$156,3,)) ->  | AG151: 18 | AJ151: 二次店納入価格 | AK151: 107 | AL151: 9 | AM151: 6 | AN151: 2
C152: 80 | E152: 入荷単位ケース数 | G152: 929 | H152: 9 | I152: 2 | L152: 荷合せ品の場合の１梱包ケース数量を指定する | R152: 00～20 | T152: コード | V152: ○ | W152: 属性初期値 | X152: ◎ | AG152: 19 | AI152: 金額符号 | AK152: 115 | AL152: X | AM152: 1 | AO152: ○
C153: 81 | E153: 卸発注行番号 | G153: 931 | H153: 9 | I153: 2 | L153: 卸売業での発注伝票行NO | N153: (00～99) | T153: 属性 | V153: ○ | W153: 属性初期値 | X153: ◎ | AG153: 20 | AI153: 金額 | AJ153: 卸店入金額 | AK153: 116 | AL153: 9 | AM153: 8 | AO153: ○
C154: 82 | E154: 納入単価表示区分 | G154: 933 | H154: X | I154: 1 | L154: 在庫型センター納入時に、単価／金額を表示したくない時 | R154: △:表示 | S154: 1:非表示 | T154: コード | V154: ○ | W154: 属性初期値 | X154: ◎ | AG154: 21 | AJ154: 二次店納入金額 | AK154: 124 | AL154: 9 | AM154: 8
C155: 83 | E155: 卸最新在庫日付区分 | G155: 934 | H155: X | I155: 1 | L155: 卸最新在庫日付の日付区分 | R155: △:未使用 1:製造日 | S155: 2:賞味期限 | T155: コード | V155: ○ | W155: 属性初期値 | X155: ◎ | AG155: 22 | AI155: 卸最新在庫日付 | AK155: 132 | AL155: X | AM155: 5
C156: 84 | E156: 卸最新在庫日付 | G156: 935 | H156: 9 | I156: 8 | L156: 賞味期限／製造日 | N156: (西暦 YYYYMMDD、賞味年月表示は月末最終日） | T156: 日付 | V156: ○ | W156: 日付不正 → 属性初期値 &当該内容を摘要に設定 | X156: ○ | Y156: 属性+桁数 | Z156: 22 | AA156: 卸最新在庫日付 | AB156: 132 | AC156: X | AD156: 5 | AE156: 0 | AG156: 23 | AH156: 予備２ | AK156: 254 | AL156: X | AM156: 3
C157: 85 | E157: 入庫許容日付区分 | G157: 943 | H157: X | I157: 1 | L157: 入庫許容日付の日付区分 | R157: △:未使用 1:製造日 | S157: 2:賞味期限 | T157: コード | V157: ○ | W157: 属性初期値 | X157: ◎
C158: 86 | E158: 入庫許容日付 | G158: 944 | H158: 9 | I158: 8 | L158: 賞味期限／製造日 | N158: (西暦 YYYYMMDD、賞味年月表示は月末最終日） | T158: 日付 | V158: ○ | W158: 属性初期値 | X158: ◎
C159: 87 | E159: 温度管理区分 | G159: 952 | H159: X | I159: 1 | L159: 該当商品の温度帯管理区 | R159: △/0:常温 1:28℃以下 2:20℃以下 | S159: 3:冷蔵(10℃以下) 4:冷凍(-15℃ 以下) | T159: コード | V159: ○ | W159: 属性初期値 | X159: ◎
C160: 88 | E160: 摘要 | G160: 953 | H160: X/N | I160: 50 | L160: 任意使用 | N160: (英数カナは50文字、漢字は25文字) | V160: ○ | W160: 卸最新在庫日付参照 | X160: ◎
C161: 89 | E161: 日本語区分（商品名） | G161: 1003 | H161: X | I161: 1 | L161: 該当項目の日本語区分 | R161: △/0:英数カナ 1: 漢字(S-JIS/JIS/JEF/IBM) | T161: コード | V161: ○ | W161: 属性初期値 | X161: ◎
C162: 90 | E162: 日本語区分（摘要） | G162: 1004 | H162: X | I162: 1 | L162: 〃 | R162: 〃 | T162: コード | V162: ○ | W162: 属性初期値 | X162: ◎
C163: 91 | E163: 菓子業界商品分類コード | G163: 1005 | H163: X | I163: 6 | L163: 菓子業界の新商品分類コード | N163: (JICFSの機能分類コードとして登録) | V163: ○ | W163: 属性初期値 | X163: ◎
B164: 1.1 | C164: 92 | E164: 商品名カナ | G164: 1011 | H164: X | I164: 25 | L164: 商品名カナ | N164: (商品名に 漢字を設定する場合、必須) | V164: ○ | W164: 属性初期値 | X164: ◎
B165: 1.1 | C165: 93 | E165: 明細予備 | G165: 1036 | H165: X | I165: 155 | L165: レイアウト拡張用の予備領域 | N165: (利用禁止) | V165: ○ | W165: 属性初期値 | AA165: =IF($Z165="","",VLOOKUP($Z165,$AG$133:$AO$156,3,)) ->  | AB165: =IF($Z165="","",VLOOKUP($Z165,$AG$133:$AO$156,5,)) ->  | AC165: =IF($Z165="","",VLOOKUP($Z165,$AG$133:$AO$156,6,)) ->  | AD165: =IF($Z165="","",VLOOKUP($Z165,$AG$133:$AO$156,7,)) -> 
C166: 94 | E166: 明細連携エリア | G166: 1191 | H166: X | I166: 10 | L166: 旧フォーマット予備連携データ | N166: (新フォーマット間：相対利用可能エリア) | V166: ○ | W166: ○ | X166: ◎ | Z166: 23 | AA166: =IF($Z166="","",VLOOKUP($Z166,$AG$133:$AO$156,2,)) -> 予備２ | AB166: =IF($Z166="","",VLOOKUP($Z166,$AG$133:$AO$156,5,)) -> 254 | AC166: =IF($Z166="","",VLOOKUP($Z166,$AG$133:$AO$156,6,)) -> X | AD166: =IF($Z166="","",VLOOKUP($Z166,$AG$133:$AO$156,7,)) -> 3 | AE166: 0
D171: ③ トレーラレコード | AH171: ④ トレーラレコード
B172: 変更 | C172: 項番 | D172: 項目 | G172: 開始位置 | H172: 属性 | I172: 整数桁 | J172: 小数桁 | K172: 必須 | L172: 項目説明 | R172: コード | T172: V２ → Ｖ１･Ｖ２ | U172: Ｖ２→ Ｖ１ | V172: Ｖ２ ← Ｖ２ | W172: Ｖ２ ← Ｖ１ | X172: Ｖ１フォーマット | AG172: 項番 | AH172: 項目 | AK172: 開始位置 | AL172: 属性 | AM172: 整数桁 | AN172: 小数桁 | AO172: 必須
T173: センタチェック | U173: センタチェック | V173: コンバート | W173: コンバート | X173: 比較・ 変更点 | Z173: 項番 | AA173: 項目 | AB173: 開始 | AC173: 属性 | AD173: 整数 | AE173: 小数
C174: 1 | D174: データ種別 | G174: 1 | H174: 9 | I174: 2 | K174: ◎ | L174: ０３：発注データ | R174: 03 | T174: 共通部チェック (ｺﾝﾄﾛｰﾙ同値､ 軽症ｴﾗｰ) | V174: ○ | W174: "03"固定 | X174: ○ | Y174: コード | AA174: =IF($Z174="","",VLOOKUP($Z174,$AG$174:$AO$182,2,)) ->  | AB174: =IF($Z174="","",VLOOKUP($Z174,$AG$174:$AO$182,5,)) ->  | AC174: =IF($Z174="","",VLOOKUP($Z174,$AG$174:$AO$182,6,)) ->  | AD174: =IF($Z174="","",VLOOKUP($Z174,$AG$174:$AO$182,7,)) ->  | AE174: =IF($Z174="","",VLOOKUP($Z174,$AG$133:$AO$156,8,)) ->  | AG174: 1 | AH174: データ種別 | AK174: 1 | AL174: 9 | AM174: 2 | AO174: ○
C175: 2 | D175: 送信先コード | G175: 3 | H175: 9 | I175: 8 | K175: ◎ | L175: 送信先(メーカ) | M175: の統一取引先コード | V175: ○ | W175: ○ | Z175: 2 | AA175: 送信先コード | AB175: 3 | AC175: 9 | AD175: 8 | AE175: 0 | AG175: 2 | AH175: 送信先コード | AK175: 3 | AL175: 9 | AM175: 8 | AO175: ○
C176: 3 | D176: 送信元コード | G176: 11 | H176: 9 | I176: 8 | K176: ◎ | L176: 送信元(卸) | M176: の統一取引先コード | V176: ○ | W176: ○ | Z176: 3 | AA176: 送信元コード | AB176: 11 | AC176: 9 | AD176: 8 | AE176: 0 | AG176: 3 | AH176: 送信元コード | AK176: 11 | AL176: 9 | AM176: 8 | AO176: ○
C177: 4 | D177: レコード区分 | G177: 19 | H177: 9 | I177: 1 | K177: ◎ | L177: ９：トレーラレコード | R177: 9 | V177: ○ | W177: ○ | Z177: 4 | AA177: レコード区分 | AB177: 19 | AC177: 9 | AD177: 1 | AE177: 0 | AG177: 4 | AH177: レコード区分 | AK177: 19 | AL177: 9 | AM177: 1 | AO177: ○
B178: 1.7 | C178: 5 | D178: レコード件数 | G178: 20 | H178: 9 | I178: 6 | K178: ○ | L178: レコードの総件数 ・データ送信側では、自身のフォーマットのレコード件数を設定する。 ・データ受信側では、当項目と実際のレコード件数の整合性チェックには利用しない。※下記【トレーラレコード連携時の留意事項】を参照のこと | T178: 属性 | V178: ※ センター集計値 | W178: ※ センター集計値 | Z178: 5 | AA178: レコード件数 | AB178: 20 | AC178: 9 | AD178: 6 | AE178: 0 | AG178: 5 | AH178: レコード件数 | AK178: 20 | AL178: 9 | AM178: 6 | AO178: ○
C179: 6 | D179: 伝票枚数 | G179: 26 | H179: 9 | I179: 6 | L179: 伝票枚数 | T179: 属性 | V179: ※ センター集計値 | W179: ※ センター集計値 | Z179: 6 | AA179: 伝票枚数 | AB179: 26 | AC179: 9 | AD179: 6 | AE179: 0 | AG179: 6 | AH179: 伝票枚数 | AK179: 26 | AL179: 9 | AM179: 6
C180: 7 | D180: 合計金額符号 | G180: 32 | H180: X | I180: 1 | L180: 合計金額の符号 | R180: △/＋:正数 | S180: －:負数 | T180: ｺｰﾄﾞ | V180: ※ センター設定 | W180: ※ センター設定 | X180: ○ | Y180: コード | Z180: 7 | AA180: 合計金額符号 | AB180: 32 | AC180: X | AD180: 1 | AE180: 0 | AG180: 7 | AH180: 合計金額符号 | AK180: 32 | AL180: X | AM180: 1
C181: 8 | D181: 合計金額 | G181: 33 | H181: 9 | I181: 10 | L181: 卸店入金額の全明細行の金額合計 | T181: 属性 | V181: ※ センター集計値 | W181: ※ センター集計値 | Z181: 8 | AA181: 合計金額 | AB181: 33 | AC181: 9 | AD181: 10 | AE181: 0 | AG181: 8 | AH181: 合計金額 | AK181: 33 | AL181: 9 | AM181: 10
C182: 9 | D182: 予備 | G182: 43 | H182: X | I182: 1138 | L182: レイアウト拡張用の予備領域 | N182: (利用禁止) | V182: ○ | W182: 属性初期値 | AB182: =IF($Z182="","",VLOOKUP($Z182,$AG$133:$AO$156,5,)) ->  | AC182: =IF($Z182="","",VLOOKUP($Z182,$AG$133:$AO$156,6,)) ->  | AD182: =IF($Z182="","",VLOOKUP($Z182,$AG$133:$AO$156,7,)) ->  | AG182: 9 | AH182: 予備 | AK182: 43 | AL182: X | AM182: 214
C183: 10 | D183: 連携エリア | G183: 1181 | H183: X | I183: 20 | L183: 新フォーマット間：相対利用可能エリア | V183: ○ | W183: 属性初期値 | X183: ◎ | AB183: =IF($Z183="","",VLOOKUP($Z183,$AG$133:$AO$156,5,)) ->  | AC183: =IF($Z183="","",VLOOKUP($Z183,$AG$133:$AO$156,6,)) ->  | AD183: =IF($Z183="","",VLOOKUP($Z183,$AG$133:$AO$156,7,)) -> 
V184: ※ 配信分割時

Sheet １３入庫予定
AH1: =シート別総ページ数 -> 
C2: （２）Ｖ２・１３入庫予定 | AG2: （２）Ｖ１・１１入庫予定
D3: ① コントロールレコード | AH3: ① コントロールレコード
B4: 変更 | C4: 項番 | D4: 項目 | G4: 開始位置 | H4: 属性 | I4: 整数桁 | J4: 小数桁 | K4: 必須 | L4: 項目説明 | R4: コード | T4: V２ → Ｖ１･Ｖ２ | U4: Ｖ２→ Ｖ１ | V4: Ｖ２ ← Ｖ２ | W4: Ｖ２ ← Ｖ１ | X4: Ｖ１フォーマット | AG4: 項番 | AH4: 項目 | AK4: 開始位置 | AL4: 属性 | AM4: 整数桁 | AN4: 小数桁 | AO4: 必須
T5: センタチェック | U5: センタチェック | V5: コンバート | W5: コンバート | X5: 比較・ 変更点 | Z5: 項番 | AA5: 項目 | AB5: 開始 | AC5: 属性 | AD5: 整数 | AE5: 小数
C6: 1 | D6: データ種別 | G6: 1 | H6: 9 | I6: 2 | K6: ◎ | L6: １３：入庫予定データ | R6: 13 | T6: ｺｰﾄﾞ | V6: ○ | W6: "13"固定 | X6: ○ | Y6: ｺｰﾄﾞ | AA6: =IF($Z6="","",VLOOKUP($Z6,$AG$6:$AO$20,2,)) ->  | AB6: =IF($Z6="","",VLOOKUP($Z6,$AG$6:$AO$20,5,)) ->  | AC6: =IF($Z6="","",VLOOKUP($Z6,$AG$6:$AO$20,6,)) ->  | AD6: =IF($Z6="","",VLOOKUP($Z6,$AG$6:$AO$20,7,)) ->  | AE6: =IF($Z6="","",VLOOKUP($Z6,$AG$6:$AO$20,8,)) ->  | AG6: 1 | AH6: データ種別 | AK6: 1 | AL6: 9 | AM6: 2 | AO6: ○
C7: 2 | D7: 送信先コード | G7: 3 | H7: 9 | I7: 8 | K7: ◎ | L7: 送信先(卸) | M7: の統一取引先コード | T7: センター登録 | V7: ○ | W7: ○ | Z7: 2 | AA7: 送信先コード | AB7: 3 | AC7: 9 | AD7: 8 | AE7: 0 | AG7: 2 | AH7: 送信先コード | AK7: 3 | AL7: 9 | AM7: 8 | AO7: ○
C8: 3 | D8: 送信元コード | G8: 11 | H8: 9 | I8: 8 | K8: ◎ | L8: 送信元(メーカ) | M8: の統一取引先コード | T8: センター登録 | V8: ○ | W8: ○ | Z8: 3 | AA8: 送信元コード | AB8: 11 | AC8: 9 | AD8: 8 | AE8: 0 | AG8: 3 | AH8: 送信元コード | AK8: 11 | AL8: 9 | AM8: 8 | AO8: ○
C9: 4 | D9: レコード区分 | G9: 19 | H9: 9 | I9: 1 | K9: ◎ | L9: １：コントロールレコード | R9: 1 | T9: ｺｰﾄﾞ | U9: V2連携時 | V9: ○ | W9: ○ | Z9: 4 | AA9: レコード区分 | AB9: 19 | AC9: 9 | AD9: 1 | AE9: 0 | AG9: 4 | AH9: レコード区分 | AK9: 19 | AL9: 9 | AM9: 1 | AO9: ○
C10: 5 | D10: データ作成日 | G10: 20 | H10: 9 | I10: 8 | K10: ◎ | L10: データ作成日付 | N10: (西暦 YYYYMMDD) | T10: 必須＋日付 | U10: センタチェック | V10: ○ | W10: ○ | Z10: 5 | AA10: データ作成日 | AB10: 20 | AC10: 9 | AD10: 8 | AE10: 0 | AG10: 5 | AH10: データ作成日 | AK10: 20 | AL10: 9 | AM10: 8 | AO10: ○
C11: 6 | D11: データ作成時刻 | G11: 28 | H11: 9 | I11: 6 | L11: データ作成時刻 | N11: (HHMMSS) | T11: 時刻 | U11: と同じ | V11: ○ | W11: 属性初期値 | X11: ◎ | AG11: 6 | AH11: 送信先名 | AK11: 28 | AL11: X | AM11: 20 | AO11: ○
C12: 7 | D12: 送信先名 | G12: 34 | H12: X | I12: 20 | K12: ○ | L12: 送信元(卸)名 | N12: (英数カナのみ) | V12: ○ | W12: ○ | Z12: 6 | AA12: 送信先名 | AB12: 28 | AC12: X | AD12: 20 | AE12: 0 | AG12: 7 | AH12: 送信元名 | AK12: 48 | AL12: X | AM12: 20 | AO12: ○
C13: 8 | D13: 送信元名 | G13: 54 | H13: X | I13: 20 | K13: ◎ | L13: 送信先(メーカ)名 | N13: (英数カナのみ) | T13: 必須 | V13: ○ | W13: ○ | Z13: 7 | AA13: 送信元名 | AB13: 48 | AC13: X | AD13: 20 | AE13: 0 | AG13: 8 | AH13: 直接送信先コード | AK13: 68 | AL13: 9 | AM13: 8
C14: 9 | D14: 直接送信先コード | G14: 74 | H14: 9 | I14: 8 | L14: 送信先コードと異なる場合にセット | N14: (通常はゼロ) | T14: センター登録 | V14: ○ | W14: ○ | Z14: 8 | AA14: 直接送信先コード | AB14: 68 | AC14: 9 | AD14: 8 | AE14: 0 | AG14: 9 | AH14: 直接送信先カナ名 | AK14: 76 | AL14: X | AM14: 20
C15: 10 | D15: 直接送信先名 | G15: 82 | H15: X | I15: 20 | L15: 直接送信先名 | N15: (英数カナのみ、通常はスペース) | V15: ○ | W15: ○ | Z15: 9 | AA15: 直接送信先カナ名 | AB15: 76 | AC15: X | AD15: 20 | AE15: 0 | AG15: 10 | AH15: 予備 | AK15: 96 | AL15: X | AM15: 161
C16: 11 | D16: 送信ファイルNO | G16: 102 | H16: 9 | I16: 2 | L16: 同時送信時の問合せ№ | N16: (00～99) | T16: 属性 | V16: ○ | W16: 属性初期値 | X16: ◎
C17: 12 | D17: 予備 | G17: 104 | H17: X | I17: 1077 | L17: レイアウト拡張用の予備領域 | N17: (利用禁止) | V17: ○ | W17: 属性初期値
C18: 13 | D18: 連携エリア | G18: 1181 | H18: X | I18: 20 | L18: 新フォーマット間：相対利用可能エリア | V18: ○ | W18: 属性初期値 | X18: ◎
D24: ② ヘッダー／明細レコード | AH24: ② ヘッダーレコード
B25: 変更 | C25: 項番 | D25: 項目 | G25: 開始位置 | H25: 属性 | I25: 整数桁 | J25: 小数桁 | K25: 必須 | L25: 項目説明 | R25: コード | T25: V２ → Ｖ１･Ｖ２ | U25: Ｖ２→ Ｖ１ | V25: Ｖ２ ← Ｖ２ | W25: Ｖ２ ← Ｖ１ | X25: Ｖ１フォーマット | AG25: 項番 | AH25: 項目 | AK25: 開始位置 | AL25: 属性 | AM25: 整数桁 | AN25: 小数桁 | AO25: 必須
T26: センタチェック | U26: センタチェック | V26: コンバート | W26: コンバート | X26: 比較・ 変更点 | Z26: 項番 | AA26: 項目 | AB26: 開始 | AC26: 属性 | AD26: 整数 | AE26: 小数
C27: 1 | D27: データ種別 | G27: 1 | H27: 9 | I27: 2 | K27: ◎ | L27: １３：入庫予定データ | R27: 13 | T27: 共通部チェック (ｺﾝﾄﾛｰﾙ同値､ 軽症ｴﾗｰ) | V27: ○ | W27: "13"固定 | X27: ○ | Y27: ｺｰﾄﾞ | AA27: =IF($Z27="","",VLOOKUP($Z27,$AG$27:$AO$52,2,)) ->  | AB27: =IF($Z27="","",VLOOKUP($Z27,$AG$27:$AO$52,5,)) ->  | AC27: =IF($Z27="","",VLOOKUP($Z27,$AG$27:$AO$52,6,)) ->  | AD27: =IF($Z27="","",VLOOKUP($Z27,$AG$27:$AO$52,7,)) ->  | AE27: =IF($Z27="","",VLOOKUP($Z27,$AG$27:$AO$52,8,)) ->  | AG27: 1 | AH27: データ種別 | AK27: 1 | AL27: 9 | AM27: 2 | AO27: ○
C28: 2 | D28: 送信先コード | G28: 3 | H28: 9 | I28: 8 | K28: ◎ | L28: 送信先(卸) | M28: の統一取引先コード | V28: ○ | W28: ○ | Z28: 2 | AA28: =IF($Z28="","",VLOOKUP($Z28,$AG$27:$AO$52,2,)) -> 送信先コード | AB28: =IF($Z28="","",VLOOKUP($Z28,$AG$27:$AO$52,5,)) -> 3 | AC28: =IF($Z28="","",VLOOKUP($Z28,$AG$27:$AO$52,6,)) -> 9 | AD28: =IF($Z28="","",VLOOKUP($Z28,$AG$27:$AO$52,7,)) -> 8 | AE28: =IF($Z28="","",VLOOKUP($Z28,$AG$27:$AO$52,8,)) -> 0 | AG28: 2 | AH28: 送信先コード | AK28: 3 | AL28: 9 | AM28: 8 | AO28: ○
C29: 3 | D29: 送信元コード | G29: 11 | H29: 9 | I29: 8 | K29: ◎ | L29: 送信元(メーカ) | M29: の統一取引先コード | V29: ○ | W29: ○ | Z29: 3 | AA29: =IF($Z29="","",VLOOKUP($Z29,$AG$27:$AO$52,2,)) -> 送信元コード | AB29: =IF($Z29="","",VLOOKUP($Z29,$AG$27:$AO$52,5,)) -> 11 | AC29: =IF($Z29="","",VLOOKUP($Z29,$AG$27:$AO$52,6,)) -> 9 | AD29: =IF($Z29="","",VLOOKUP($Z29,$AG$27:$AO$52,7,)) -> 8 | AE29: =IF($Z29="","",VLOOKUP($Z29,$AG$27:$AO$52,8,)) -> 0 | AG29: 3 | AH29: 送信元コード | AK29: 11 | AL29: 9 | AM29: 8 | AO29: ○
C30: 4 | D30: レコード区分 | G30: 19 | H30: 9 | I30: 1 | K30: ◎ | L30: ３：ヘッダー／明細レコード | R30: 3 | V30: ○ | W30: "3"固定 | X30: ○ | Y30: ｺｰﾄﾞ | AG30: 4 | AH30: レコード区分 | AK30: 19 | AL30: 9 | AM30: 1 | AO30: ○
C31: 5 | D31: 漢字コード区分 | G31: 20 | H31: X | I31: 1 | L31: センターにて漢字コード区分をセットする | R31: 1:S-JIS 2:JIS | S31: 3:JEF 4:IBM | V31: センター設定 | W31: センター設定 | X31: ◎ | AA31: =IF($Z31="","",VLOOKUP($Z31,$AG$27:$AO$52,2,)) ->  | AB31: =IF($Z31="","",VLOOKUP($Z31,$AG$27:$AO$52,5,)) ->  | AC31: =IF($Z31="","",VLOOKUP($Z31,$AG$27:$AO$52,6,)) ->  | AD31: =IF($Z31="","",VLOOKUP($Z31,$AG$27:$AO$52,7,)) ->  | AE31: =IF($Z31="","",VLOOKUP($Z31,$AG$27:$AO$52,8,)) ->  | AG31: 5 | AH31: 卸伝票NO | AK31: 20 | AL31: 9 | AM31: 6 | AO31: ○
C32: 6 | D32: 卸発注伝票NO | G32: 21 | H32: 9 | I32: 8 | K32: ○ | L32: 受発注データの卸伝票№ | N32: (6桁→8桁に拡張、6桁運用の時は上２桁ゼロ埋め） | T32: 属性 | V32: ○ | W32: 予備上2桁(不正時"00") ＋卸伝票NO | X32: ○ | Y32: 桁数 | Z32: 21 5 | AA32: 予備 卸伝票NO | AB32: 157 20 | AC32: X 9 | AD32: 100 6 | AE32: 0 | AG32: 6 | AH32: メーカ伝票NO | AK32: 26 | AL32: 9 | AM32: 6
C33: 7 | D33: メーカ伝票NO | G33: 29 | H33: 9 | I33: 8 | L33: メーカ発行伝票№ | N33: (6桁→8桁に拡張、6桁運用の時は上２桁ゼロ埋め） | T33: 属性 | V33: ○ | W33: ○ | X33: ○ | Y33: 桁数 | Z33: 6 | AA33: =IF($Z33="","",VLOOKUP($Z33,$AG$27:$AO$52,2,)) -> メーカ伝票NO | AB33: =IF($Z33="","",VLOOKUP($Z33,$AG$27:$AO$52,5,)) -> 26 | AC33: =IF($Z33="","",VLOOKUP($Z33,$AG$27:$AO$52,6,)) -> 9 | AD33: =IF($Z33="","",VLOOKUP($Z33,$AG$27:$AO$52,7,)) -> 6 | AE33: =IF($Z33="","",VLOOKUP($Z33,$AG$27:$AO$52,8,)) -> 0 | AG33: 7 | AH33: 元伝NO | AK33: 32 | AL33: 9 | AM33: 6
C34: 8 | D34: 店入直送区分 | G34: 37 | H34: 9 | I34: 1 | K34: ◎ | L34: 店(倉)入れまたは直送等の区分 | R34: 1:店入 (2:直送) | S34: (3:店引取) (4:直送引取) | T34: 必須＋ｺｰﾄﾞ | V34: ○ | W34: "1"固定 | X34: ◎ | AG34: 8 | AH34: 取引コード | AK34: 38 | AL34: 9 | AM34: 2 | AO34: ○
B35: 2.6 | C35: 9 | D35: 取引コード | G35: 38 | H35: 9 | I35: 2 | K35: ◎ | L35: 業界統一取引コード | R35: 11:店入売上 12:店入売上訂正 21:店入返品 22:店入返品訂正 31:直送売上 32:直送売上訂正 | S35: 41:直送返品 42:直送返品訂正 51:割戻し金 52:相殺 81:ﾒｰｶｰ提供の役務 91:卸提供の役務 | T35: 必須＋ｺｰﾄﾞ | V35: ○ | W35: ○ | Z35: 8 | AA35: 取引コード | AB35: 38 | AC35: 9 | AD35: 2 | AE35: 0 | AG35: 9 | AH35: 納品日 | AK35: 40 | AL35: 9 | AM35: 8 | AO35: ○
C36: 10 | D36: 納品日 | G36: 40 | H36: 9 | I36: 8 | K36: ○ | L36: 発注伝票の納品日 | N36: (西暦 YYYYMMDD) | T36: 日付 | V36: ○ | W36: ○ | Z36: 9 | AA36: 納品日 | AB36: 40 | AC36: 9 | AD36: 8 | AE36: 0 | AG36: 10 | AH36: 出荷日 | AK36: 48 | AL36: 9 | AM36: 8 | AO36: ○
C37: 11 | D37: 出荷日 | G37: 48 | H37: 9 | I37: 8 | K37: ○ | L37: 実出荷日 | N37: (西暦 YYYYMMDD) | T37: 日付 | V37: ○ | W37: ○ | Z37: 10 | AA37: 出荷日 | AB37: 48 | AC37: 9 | AD37: 8 | AE37: 0 | AG37: 11 | AH37: 着荷日 | AK37: 56 | AL37: 9 | AM37: 8 | AO37: ○
C38: 12 | D38: 着荷日 | G38: 56 | H38: 9 | I38: 8 | K38: ○ | L38: 納品予定日 | N38: (西暦 YYYYMMDD) | T38: 日付 | V38: ○ | W38: ○ | Z38: 11 | AA38: 着荷日 | AB38: 56 | AC38: 9 | AD38: 8 | AE38: 0 | AG38: 12 | AH38: 納入時間 | AK38: 64 | AL38: 9 | AM38: 4
C39: 13 | D39: 納入予定時間 | G39: 64 | H39: 9 | I39: 4 | L39: 納入予定時間 | N39: (HHMM) | T39: 時刻 | V39: ○ | W39: ○ | X39: ○ | Y39: 名称 | Z39: 12 | AA39: 納入時間 | AB39: 64 | AC39: 9 | AD39: 4 | AE39: 0 | AG39: 13 | AH39: 明細行数 | AK39: 68 | AL39: 9 | AM39: 2 | AO39: ○
C40: 14 | D40: 倉庫コード | G40: 68 | H40: X | I40: 4 | L40: メーカの出荷倉庫を識別 | N40: (相対協議) | V40: ○ | W40: 属性初期値 | X40: ◎ | AG40: 14 | AH40: 届け先コード | AK40: 70 | AL40: 9 | AM40: 8 | AO40: ○
C41: 15 | D41: 伝送区分 | G41: 72 | H41: X | I41: 1 | N41: (未使用) | V41: ○ | W41: 属性初期値 | X41: ◎ | AG41: 15 | AH41: 届け先カナ名 | AK41: 78 | AL41: X | AM41: 30 | AO41: ○
C42: 16 | D42: 出荷報告以外区分 | G42: 73 | H42: X | I42: 1 | N42: (未使用) | V42: ○ | W42: 属性初期値 | X42: ◎ | AG42: 16 | AH42: 伝票合計金額符号 | AK42: 108 | AL42: X | AM42: 1 | AO42: ○
C43: 17 | D43: 集計明細区分 | G43: 74 | H43: X | I43: 1 | N43: (未使用) | V43: ○ | W43: 属性初期値 | X43: ◎ | AG43: 17 | AH43: 伝票合計金額 | AK43: 109 | AL43: 9 | AM43: 8 | AO43: ○
C44: 18 | D44: 請求締日 | G44: 75 | H44: 9 | I44: 8 | N44: (未使用) | V44: ○ | W44: 属性初期値 | X44: ◎ | AG44: 18 | AH44: 定番特売区分 | AK44: 117 | AL44: X | AM44: 1 | AO44: ○
C45: 19 | D45: 請求口座 | G45: 83 | H45: X | I45: 10 | N45: (未使用) | V45: ○ | W45: 属性初期値 | X45: ◎ | AG45: 19 | AH45: 摘要欄 | AK45: 118 | AL45: X | AM45: 30
C46: 20 | D46: 請求支払区分 | G46: 93 | H46: 9 | I46: 2 | N46: (未使用) | V46: ○ | W46: 属性初期値 | X46: ◎ | AG46: 20 | AH46: メーカコード | AK46: 148 | AL46: X | AM46: 9 | AO46: ○
C47: 21 | D47: 明細行数 | G47: 95 | H47: 9 | I47: 2 | K47: ○ | L47: 伝票内明細数 | R47: 00～06 | T47: ｺｰﾄﾞ | V47: ○ | W47: ○ | Z47: 13 | AA47: 明細行数 | AB47: 68 | AC47: 9 | AD47: 2 | AE47: 0 | AG47: 21 | AH47: 予備 | AK47: 157 | AL47: X | AM47: 100
C48: 22 | D48: 一次店コード | G48: 97 | H48: X | I48: 13 | K48: ◎ | L48: 統一取引先コード(8桁) | P48: (後方スペース埋め) | T48: 必須 | V48: ○ | W48: 届け先コード 前詰８桁＋空白５桁 | X48: ◎
C49: 23 | D49: 二次店コード | G49: 110 | H49: X | I49: 13 | L49: 統一取引先コード(8桁)／プライベート・コード(3～8桁)／ＧＬＮ(13桁) | P49: (後方スペース埋め) | V49: ○ | W49: 属性初期値 | X49: ◎
C50: 24 | D50: 三次店コード | G50: 123 | H50: X | I50: 13 | L50: 統一取引先コード(8桁)／プライベート・コード(3～8桁)／ＧＬＮ(13桁) | P50: (後方スペース埋め) | V50: ○ | W50: 属性初期値 | X50: ◎
C51: 25 | D51: 届け先コード | G51: 136 | H51: X | I51: 13 | K51: ○ | L51: 統一取引先コード(8桁)／プライベート・コード(3～8桁)／ＧＬＮ(13桁) | P51: (後方スペース埋め) | V51: ○ | W51: 前詰８桁＋空白５桁 | X51: ○ | Y51: 属性＋桁数 | Z51: 14 | AA51: 届け先コード | AB51: 70 | AC51: 9 | AD51: 8 | AE51: 0
C52: 26 | D52: チェーン店コード | G52: 149 | H52: X | I52: 13 | L52: 統一取引先コード(8桁)／プライベート・コード(3～8桁)／ＧＬＮ(13桁) | P52: (後方スペース埋め) | V52: ○ | W52: 属性初期値 | X52: ◎
C53: （次頁に続く）
C69: （前頁の続き）
B70: 変更 | C70: 項番 | D70: 項目 | G70: 開始位置 | H70: 属性 | I70: 整数桁 | J70: 小数桁 | K70: 必須 | L70: 項目説明 | R70: コード | T70: V２ → Ｖ１･Ｖ２ | U70: Ｖ２→ Ｖ１ | V70: Ｖ２ ← Ｖ２ | W70: Ｖ２ ← Ｖ１ | X70: Ｖ１フォーマット
T71: センタチェック | U71: センタチェック | V71: コンバート | W71: コンバート | X71: 比較・ 変更点 | Z71: 項番 | AA71: 項目 | AB71: 開始 | AC71: 属性 | AD71: 整数 | AE71: 小数
C72: 27 | D72: 専用伝票日付 | G72: 162 | H72: 9 | I72: 8 | N72: (未使用) | V72: ○ | W72: 属性初期値 | X72: ◎ | AA72: =IF($Z72="","",VLOOKUP($Z72,$AG$27:$AO$52,2,)) ->  | AB72: =IF($Z72="","",VLOOKUP($Z72,$AG$27:$AO$52,5,)) ->  | AC72: =IF($Z72="","",VLOOKUP($Z72,$AG$27:$AO$52,6,)) ->  | AD72: =IF($Z72="","",VLOOKUP($Z72,$AG$27:$AO$52,7,)) ->  | AE72: =IF($Z72="","",VLOOKUP($Z72,$AG$27:$AO$52,8,)) -> 
C73: 28 | D73: 専用伝票NO | G73: 170 | H73: 9 | I73: 9 | N73: (未使用) | V73: ○ | W73: 属性初期値 | X73: ◎
C74: 29 | D74: 元伝年月日 | G74: 179 | H74: 9 | I74: 8 | N74: (未使用) | V74: ○ | W74: 属性初期値 | X74: ◎
C75: 30 | D75: 元伝NO | G75: 187 | H75: 9 | I75: 8 | N75: (未使用) | V75: ○ | W75: ○ | X75: ○ | Y75: 桁数 | Z75: 7 | AA75: 元伝NO | AB75: 32 | AC75: 9 | AD75: 6 | AE75: 0
C76: 31 | D76: 伝票合計金額符号 | G76: 195 | H76: X | I76: 1 | K76: ○ | L76: 伝票の合計金額の符号 | R76: △/＋:正数 | S76: －:負数 | T76: ｺｰﾄﾞ | V76: ○ | W76: ○ | X76: ○ | Y76: ｺｰﾄﾞ | Z76: 16 | AA76: 伝票合計金額符号 | AB76: 108 | AC76: X | AD76: 1 | AE76: 0
C77: 32 | D77: 伝票合計金額 | G77: 196 | H77: 9 | I77: 8 | K77: ○ | L77: 伝票の合計金額 | N77: (卸店入価格、１億円未満) | T77: 属性 | V77: ○ | W77: ○ | Z77: 17 | AA77: 伝票合計金額 | AB77: 109 | AC77: 9 | AD77: 8 | AE77: 0
C78: 33 | D78: 二次店納入合計金額符号 | G78: 204 | H78: X | I78: 1 | L78: 正味納入合計金額の符号 | R78: △/＋:正数 | S78: －:負数 | T78: ｺｰﾄﾞ | V78: ○ | W78: 属性初期値 | X78: ◎
C79: 34 | D79: 二次店納入合計金額 | G79: 205 | H79: 9 | I79: 8 | L79: 正味納入合計金額 | N79: (二次店納入価格、１億円未満） | T79: 属性 | V79: ○ | W79: 属性初期値 | X79: ◎
C80: 35 | D80: 一次店名 | G80: 213 | H80: X/N | I80: 40 | L80: 一次店名 | N80: (英数カナは30文字、漢字は20文字) | V80: ○ | W80: 属性初期値 | X80: ◎
C81: 36 | D81: 二次店名 | G81: 253 | H81: X/N | I81: 40 | L81: 二次店名 | N81: (英数カナは30文字、漢字は20文字) | V81: ○ | W81: 属性初期値 | X81: ◎
C82: 37 | D82: 三次店名 | G82: 293 | H82: X/N | I82: 40 | L82: 三次店名 | N82: (英数カナは30文字、漢字は20文字) | V82: ○ | W82: 属性初期値 | X82: ◎
C83: 38 | D83: 届け先名 | G83: 333 | H83: X/N | I83: 40 | K83: ○ | L83: 届け先名 | N83: (英数カナは30文字、漢字は20文字) | V83: ○ | W83: ○ | X83: ○ | Y83: 属性＋桁数 | Z83: 15 | AA83: 届け先カナ名 | AB83: 78 | AC83: X | AD83: 30 | AE83: 0
C84: 39 | D84: チェーン店名 | G84: 373 | H84: X/N | I84: 40 | L84: チェーン店名 | N84: (英数カナは30文字、漢字は20文字) | V84: ○ | W84: 属性初期値 | X84: ◎
C85: 40 | D85: 電話番号 | G85: 413 | H85: X | I85: 15 | L85: 通常は届け先の電話番号 | N85: (局番区切り(-)あり) | V85: ○ | W85: 属性初期値 | X85: ◎
C86: 41 | D86: 住所 | G86: 428 | H86: X/N | I86: 80 | L86: 通常は届け先の住所 | N86: (英数カナは60文字、漢字は40文字) | V86: ○ | W86: 属性初期値 | X86: ◎
C87: 42 | D87: 摘要 | G87: 508 | H87: X/N | I87: 50 | L87: 伝票の摘要欄の内容 | N87: (英数カナは50文字、漢字は25文字） | V87: ○ | W87: ○ | X87: ○ | Y87: 属性＋桁数 | Z87: 19 | AA87: 摘要欄 | AB87: 118 | AC87: X | AD87: 30 | AE87: 0
C88: 43 | D88: メーカコード | G88: 558 | H88: X | I88: 9 | K88: ○ | L88: ７桁の場合は後ろスペース | N88: (49xxxxx / 45xxxxxxx) | V88: ○ | W88: ○ | Z88: 20 | AA88: メーカコード | AB88: 148 | AC88: X | AD88: 9 | AE88: 0
C89: 44 | D89: メーカ所属組織名 | G89: 567 | H89: X | I89: 10 | N89: (未使用) | V89: ○ | W89: 属性初期値 | X89: ◎
C90: 45 | D90: 伝票区分 | G90: 577 | H90: 9 | I90: 1 | N90: (未使用) | V90: ○ | W90: 属性初期値 | X90: ◎
C91: 46 | D91: 登録店区分 | G91: 578 | H91: X | I91: 1 | N91: (未使用) | V91: ○ | W91: 属性初期値 | X91: ◎
C92: 47 | D92: 定番特売区分 | G92: 579 | H92: X | I92: 1 | K92: ○ | L92: 定番発注/特売発注の区分 | R92: 0:定番 1:特売 | S92: △:分類不能 | T92: ｺｰﾄﾞ | V92: ○ | W92: "0"・"1"以外 → "△" | X92: ○ | Y92: ｺｰﾄﾞ | Z92: 18 | AA92: 定番特売区分 | AB92: 117 | AC92: X | AD92: 1 | AE92: 0
C93: 48 | D93: 消費税区分 | G93: 580 | H93: X | I93: 1 | L93: 税区分 | R93: 1:外税 2:内税 | S93: 3:非課税 △:個別判断 | T93: ｺｰﾄﾞ | V93: ○ | W93: 属性初期値 | X93: ◎
C94: 49 | D94: 消費税率 | G94: 581 | H94: 9 | I94: 2 | J94: 1 | L94: 消費税の税率(99.9％)、ゼロ:個別判断 | O94: (小数点以下1桁) | T94: 属性 | V94: ○ | W94: 属性初期値 | X94: ◎
C95: 50 | D95: ロット不足運賃負担区分 | G95: 584 | H95: X | I95: 1 | L95: 発注ロット不足になった場合の運賃負担の区分 | R95: △:無指定 1:卸負担 | S95: 2:負担なし | T95: ｺｰﾄﾞ | V95: ○ | W95: 属性初期値 | X95: ◎
C96: 51 | D96: 取引先区分（一次店） | G96: 585 | H96: X | I96: 1 | L96: 該当項目の取引先の属性区分 | R96: △:統一取引先(8桁) | T96: ｺｰﾄﾞ | V96: ○ | W96: 属性初期値 | X96: ◎
C97: 52 | D97: 取引先区分（二次店） | G97: 586 | H97: X | I97: 1 | L97: 〃 | R97: △: 統一取引先(8桁) 6: GLN(13桁) 7/8:プライベートコード(卸/ﾒｰｶ) | T97: ｺｰﾄﾞ | V97: ○ | W97: 属性初期値 | X97: ◎
C98: 53 | D98: 取引先区分（三次店） | G98: 587 | H98: X | I98: 1 | L98: 〃 | R98: 〃 | T98: ｺｰﾄﾞ | V98: ○ | W98: 属性初期値 | X98: ◎
B99: 1.3 | C99: 54 | D99: 取引先区分（届け先） | G99: 588 | H99: X | I99: 1 | L99: 〃 | R99: 〃 | T99: ｺｰﾄﾞ | V99: ○ | W99: 属性初期値 | X99: ◎
C100: 55 | D100: 取引先区分（チェーン店） | G100: 589 | H100: X | I100: 1 | L100: 〃 | R100: 〃 | T100: ｺｰﾄﾞ | V100: ○ | W100: 属性初期値 | X100: ◎
C101: 56 | D101: 日本語区分（一次店） | G101: 590 | H101: X | I101: 1 | L101: 該当項目の日本語区分 | R101: △/0:英数カナ 1: 漢字(S-JIS/JIS/JEF/IBM) | T101: ｺｰﾄﾞ | V101: ○ | W101: 属性初期値 | X101: ◎
C102: 57 | D102: 日本語区分（二次店） | G102: 591 | H102: X | I102: 1 | L102: 〃 | R102: 〃 | T102: ｺｰﾄﾞ | V102: ○ | W102: 属性初期値 | X102: ◎
C103: 58 | D103: 日本語区分（三次店） | G103: 592 | H103: X | I103: 1 | L103: 〃 | R103: 〃 | T103: ｺｰﾄﾞ | V103: ○ | W103: 属性初期値 | X103: ◎
C104: 59 | D104: 日本語区分（届け先） | G104: 593 | H104: X | I104: 1 | L104: 〃 | R104: 〃 | T104: ｺｰﾄﾞ | V104: ○ | W104: 属性初期値 | X104: ◎
C105: 60 | D105: 日本語区分（チェーン店） | G105: 594 | H105: X | I105: 1 | L105: 〃 | R105: 〃 | T105: ｺｰﾄﾞ | V105: ○ | W105: 属性初期値 | X105: ◎
C106: 61 | D106: 日本語区分（住所） | G106: 595 | H106: X | I106: 1 | L106: 〃 | R106: 〃 | T106: ｺｰﾄﾞ | V106: ○ | W106: 属性初期値 | X106: ◎
C107: 62 | D107: 日本語区分（摘要） | G107: 596 | H107: X | I107: 1 | L107: 〃 | R107: 〃 | T107: ｺｰﾄﾞ | V107: ○ | W107: 属性初期値 | X107: ◎
B108: 1.1 | C108: 63 | D108: 一次店カナ名 | G108: 597 | H108: X | I108: 30 | L108: 一次店カナ名 | N108: (一次店名 に漢字を設定する場合、必須) | V108: ○ | W108: 属性初期値 | X108: ◎
B109: 1.1 | C109: 64 | D109: 二次店カナ名 | G109: 627 | H109: X | I109: 30 | L109: 二次店カナ名 | N109: (二次店名 に漢字を設定する場合、必須) | V109: ○ | W109: 属性初期値 | X109: ◎
B110: 1.1 | C110: 65 | D110: 届け先カナ名 | G110: 657 | H110: Ｘ | I110: 30 | L110: 届け先カナ名 | N110: (届け先名 に漢字を設定する場合、必須) | V110: ○ | W110: 属性初期値 | X110: ◎
B111: 1.1 | C111: 66 | D111: 摘要カナ | G111: 687 | H111: Ｘ | I111: 30 | L111: 摘要カナ | N111: (摘要 に漢字を設定する場合、必須) | V111: ○ | W111: 属性初期値 | X111: ◎
B112: 1.1 | C112: 67 | D112: ヘッダー予備 | G112: 717 | H112: X | I112: 64 | L112: レイアウト拡張用の予備領域 | N112: (利用禁止) | V112: ○ | W112: 属性初期値
C113: 68 | D113: ヘッダー連携エリア | G113: 781 | H113: X | I113: 20 | L113: 新フォーマット間：相対利用可能エリア | V113: ○ | W113: 属性初期値 | X113: ◎
C114: （次頁に続く）
C140: （前頁の続き） | AH140: ③ 明細レコード
B141: 変更 | C141: 項番 | D141: 項目 | G141: 開始位置 | H141: 属性 | I141: 整数桁 | J141: 小数桁 | K141: 必須 | L141: 項目説明 | R141: コード | T141: V２ → Ｖ１･Ｖ２ | U141: Ｖ２→ Ｖ１ | V141: Ｖ２ ← Ｖ２ | W141: Ｖ２ ← Ｖ１ | X141: Ｖ１フォーマット | AG141: 項番 | AH141: 項目 | AK141: 開始位置 | AL141: 属性 | AM141: 整数桁 | AN141: 小数桁 | AO141: 必須
T142: センタチェック | U142: センタチェック | V142: コンバート | W142: コンバート | X142: 比較・ 変更点 | Z142: 項番 | AA142: 項目 | AB142: 開始 | AC142: 属性 | AD142: 整数 | AE142: 小数
D143: 明細部（４００バイト） | AG143: 1 | AH143: データ種別 | AK143: 1 | AL143: 9 | AM143: 2 | AO143: ○
C144: 69 | E144: 明細行NO | G144: 801 | H144: 9 | I144: 2 | K144: ◎ | L144: 伝票内明細数 | R144: 01～06 | T144: 必須＋ｺｰﾄﾞ | V144: ○ | W144: 6行変換設定 | X144: ○ | Y144: 名称 | Z144: 5 | AA144: =IF($Z144="","",VLOOKUP($Z144,$AG$143:$AO$168,3,)) -> 行NO | AB144: =IF($Z144="","",VLOOKUP($Z144,$AG$143:$AO$168,5,)) -> 20 | AC144: =IF($Z144="","",VLOOKUP($Z144,$AG$143:$AO$168,6,)) -> 9 | AD144: =IF($Z144="","",VLOOKUP($Z144,$AG$143:$AO$168,7,)) -> 2 | AE144: =IF($Z144="","",VLOOKUP($Z144,$AG$143:$AO$168,8,)) -> 0 | AG144: 2 | AH144: 送信先コード | AK144: 3 | AL144: 9 | AM144: 8 | AO144: ○
C145: 70 | E145: 専用伝票行NO | G145: 803 | H145: 9 | I145: 2 | L145: 専用伝票の行№ | N145: (00～99) | T145: 属性 | V145: ○ | W145: 属性初期値 | X145: ◎ | AA145: =IF($Z145="","",VLOOKUP($Z145,$AG$134:$AO$157,3,)) ->  | AB145: =IF($Z145="","",VLOOKUP($Z145,$AG$134:$AO$157,5,)) ->  | AC145: =IF($Z145="","",VLOOKUP($Z145,$AG$134:$AO$157,6,)) ->  | AD145: =IF($Z145="","",VLOOKUP($Z145,$AG$134:$AO$157,7,)) ->  | AE145: =IF($Z145="","",VLOOKUP($Z145,$AG$134:$AO$157,8,)) ->  | AG145: 3 | AH145: 送信元コード | AK145: 11 | AL145: 9 | AM145: 8 | AO145: ○
C146: 71 | E146: 商品コード識別区分 | G146: 805 | H146: 9 | I146: 1 | K146: ○ | L146: 品番(商品コード)の識別区分 | R146: 0:統一商品コード 1:ＩＴＦコード (14桁) 2:ＩＴＦコード(16桁) 【利用停止化】 3:JANコード (標準:13桁) 4:JANコード (短縮:8桁) 6:GTINコード (14桁) | T146: コード(新) | V146: ○ | W146: ○ | X146: ○ | Y146: 属性＋コード 2:利用停止 | Z146: 6 | AA146: =IF($Z146="","",VLOOKUP($Z146,$AG$143:$AO$168,3,)) -> 商品コード識別区分 | AB146: =IF($Z146="","",VLOOKUP($Z146,$AG$143:$AO$168,5,)) -> 22 | AC146: =IF($Z146="","",VLOOKUP($Z146,$AG$143:$AO$168,6,)) -> X | AD146: =IF($Z146="","",VLOOKUP($Z146,$AG$143:$AO$168,7,)) -> 1 | AE146: =IF($Z146="","",VLOOKUP($Z146,$AG$143:$AO$168,8,)) -> 0 | AG146: 4 | AH146: レコード区分 | AK146: 19 | AL146: 9 | AM146: 1 | AO146: ○
C147: 72 | E147: 品番 | G147: 806 | H147: X | I147: 16 | K147: ○ | L147: 統一商品ｺｰﾄﾞ､ITFｺｰﾄﾞ､JANｺｰﾄﾞ､GTINｺｰﾄﾞ | O147: (左詰め) | V147: ○ | W147: ○ | X147: ○ | Y147: ITF(16) 利用停止 | Z147: 7 | AA147: =IF($Z147="","",VLOOKUP($Z147,$AG$143:$AO$168,3,)) -> 品番 | AB147: 23 | AC147: X | AD147: 16 | AE147: 0 | AH147: 明細部繰返（１１８バイト × ２明細）
C148: 73 | E148: 商品名 | G148: 822 | H148: X/N | I148: 40 | K148: ○ | L148: 商品名 | N148: (英数カナは25文字、漢字は20文字) | V148: ○ | W148: ○ | X148: ○ | Y148: 属性＋桁数 | Z148: 8 | AA148: =IF($Z148="","",VLOOKUP($Z148,$AG$143:$AO$168,3,)) -> 商品名 | AB148: 39 | AC148: X | AD148: 25 | AE148: 0 | AG148: 5 | AI148: 行NO | AK148: 20 | AL148: 9 | AM148: 2 | AO148: ○
C149: 74 | E149: 包装区分 | G149: 862 | H149: 9 | I149: 1 | K149: ◎ | L149: 数量の発注単位の区分 | N149: (1:ケース発注時) | O149: (2:ボール発注時) | P149: (3:バラ発注時) | R149: 1:ケース発注 2:ボール発注 | S149: 3:バラ発注 | T149: 必須＋ｺｰﾄﾞ | V149: ○ | W149: 不正コード値 → "1" | Z149: 9 | AA149: =IF($Z149="","",VLOOKUP($Z149,$AG$143:$AO$168,3,)) -> 包装区分 | AB149: 64 | AC149: 9 | AD149: 1 | AE149: 0 | AG149: 6 | AI149: 商品コード識別区分 | AK149: 22 | AL149: X | AM149: 1 | AO149: ○
C150: 75 | E150: 内容 | F150: ボール内バラ数 | G150: 863 | H150: 9 | I150: 4 | J150: 2 | K150: ○ | L150: 包装区分に準じた設定 | N150: (ボール内バラ数 | O150: /ボール内バラ数 | P150: /ゼロ) | T150: 属性 | V150: ○ | W150: ○ | Z150: 10 | AA150: =IF($Z150="","",VLOOKUP($Z150,$AG$143:$AO$168,4,)) -> ボール内バラ数 | AB150: 65 | AC150: 9 | AD150: 4 | AE150: 2 | AG150: 7 | AI150: 品番 | AK150: 23 | AL150: X | AM150: 16 | AO150: ○
C151: 76 | F151: ケース内ボール数 | G151: 869 | H151: 9 | I151: 2 | K151: ○ | L151: 包装区分に準じた設定 | N151: (ケース内ボール数 | O151: /ゼロ | P151: /ゼロ) | T151: 属性 | V151: ○ | W151: ○ | Z151: 11 | AA151: =IF($Z151="","",VLOOKUP($Z151,$AG$143:$AO$168,4,)) -> ケース内ボール数 | AB151: 71 | AC151: 9 | AD151: 2 | AE151: 0 | AG151: 8 | AI151: 商品名 | AK151: 39 | AL151: X | AM151: 25 | AO151: ○
C152: 77 | E152: 数量符号 | G152: 871 | H152: X | I152: 1 | K152: ○ | L152: 数量の符号 | R152: △/＋:正数 | S152: －:負数 | T152: ｺｰﾄﾞ | V152: ○ | W152: ○ | X152: ○ | Y152: コード 2:利用停止 | Z152: 12 | AA152: =IF($Z152="","",VLOOKUP($Z152,$AG$143:$AO$168,3,)) -> 数量符号 | AB152: 73 | AC152: X | AD152: 1 | AE152: 0 | AG152: 9 | AI152: 包装区分 | AK152: 64 | AL152: 9 | AM152: 1 | AO152: ○
C153: 78 | E153: 数量 | F153: ケース数量 | G153: 872 | H153: 9 | I153: 7 | K153: ○ | L153: 包装区分に準じた設定 | N153: (ケース数量 | O153: /ゼロ | P153: /ゼロ) | T153: 属性 | V153: ○ | W153: ○ | Z153: 13 | AA153: =IF($Z153="","",VLOOKUP($Z153,$AG$143:$AO$168,4,)) -> ケース数量 | AB153: 74 | AC153: 9 | AD153: 7 | AE153: 0 | AG153: 10 | AI153: 内容 | AJ153: ボール内バラ数 | AK153: 65 | AL153: 9 | AM153: 4 | AN153: 2 | AO153: ○
C154: 79 | F154: ボール数量 | G154: 879 | H154: 9 | I154: 7 | K154: ○ | L154: 包装区分に準じた設定 | N154: (ゼロ | O154: /ボール数量 | P154: /ゼロ) | T154: 属性 | V154: ○ | W154: ○ | Z154: 14 | AA154: =IF($Z154="","",VLOOKUP($Z154,$AG$143:$AO$168,4,)) -> ボール数量 | AB154: 81 | AC154: 9 | AD154: 7 | AE154: 0 | AG154: 11 | AJ154: ケース内ボール数 | AK154: 71 | AL154: 9 | AM154: 2 | AO154: ○
C155: 80 | F155: バラ数量 | G155: 886 | H155: 9 | I155: 7 | J155: 2 | K155: ○ | L155: 包装区分に準じた設定 | N155: (バラ数量 | O155: /バラ数量 | P155: バラ数量) | T155: 属性 | V155: ○ | W155: ○ | Z155: 15 | AA155: =IF($Z155="","",VLOOKUP($Z155,$AG$143:$AO$168,4,)) -> バラ数量 | AB155: 88 | AC155: 9 | AD155: 7 | AE155: 2 | AG155: 12 | AI155: 数量符号 | AK155: 73 | AL155: X | AM155: 1 | AO155: ○
C156: 81 | E156: 単価 | F156: 卸店入価格 | G156: 895 | H156: 9 | I156: 6 | J156: 2 | K156: ○ | L156: 卸店入価格 | N156: (バラ単価) | T156: 属性 | V156: ○ | W156: ○ | Z156: 16 | AA156: =IF($Z156="","",VLOOKUP($Z156,$AG$143:$AO$168,4,)) -> 卸店入価格 | AB156: 97 | AC156: 9 | AD156: 6 | AE156: 2 | AG156: 13 | AI156: 数量 | AJ156: ケース数量 | AK156: 74 | AL156: 9 | AM156: 7 | AO156: ○
C157: 82 | F157: 二次店納入価格 | G157: 903 | H157: 9 | I157: 6 | J157: 2 | L157: 二次卸店等への納入価格 | N157: (バラ単価) | T157: 属性 | V157: ○ | W157: ○ | Z157: 17 | AA157: =IF($Z157="","",VLOOKUP($Z157,$AG$143:$AO$168,4,)) -> 二次店納入価格 | AB157: 105 | AC157: 9 | AD157: 6 | AE157: 2 | AG157: 14 | AJ157: ボール数量 | AK157: 81 | AL157: 9 | AM157: 7 | AO157: ○
C158: 83 | E158: 金額符号 | G158: 911 | H158: X | I158: 1 | K158: ○ | L158: 金額の符号 | R158: △/＋:正数 | S158: －:負数 | T158: ｺｰﾄﾞ | V158: ○ | W158: ○ | X158: ○ | Y158: コード 2:利用停止 | Z158: 18 | AA158: =IF($Z158="","",VLOOKUP($Z158,$AG$143:$AO$168,3,)) -> 金額符号 | AB158: 113 | AC158: X | AD158: 1 | AE158: 0 | AG158: 15 | AJ158: バラ数量 | AK158: 88 | AL158: 9 | AM158: 7 | AN158: 2 | AO158: ○
C159: 84 | E159: 金額 | F159: 卸店入金額 | G159: 912 | H159: 9 | I159: 8 | K159: ○ | L159: 卸店入金額 | T159: 属性 | V159: ○ | W159: ○ | Z159: 19 | AA159: =IF($Z159="","",VLOOKUP($Z159,$AG$143:$AO$168,4,)) -> 卸店入金額 | AB159: 114 | AC159: 9 | AD159: 8 | AE159: 0 | AG159: 16 | AI159: 単価 | AJ159: 卸店入価格 | AK159: 97 | AL159: 9 | AM159: 6 | AN159: 2 | AO159: ○
C160: 85 | F160: 二次店納入金額 | G160: 920 | H160: 9 | I160: 8 | L160: 二次卸店等への納入金額 | T160: 属性 | V160: ○ | W160: ○ | Z160: 20 | AA160: =IF($Z160="","",VLOOKUP($Z160,$AG$143:$AO$168,4,)) -> 二次店納入金額 | AB160: 122 | AC160: 9 | AD160: 8 | AE160: 0 | AG160: 17 | AJ160: 二次店納入価格 | AK160: 105 | AL160: 9 | AM160: 6 | AN160: 2
C161: 86 | E161: 商品添付区分 | G161: 928 | H161: X | I161: 1 | K161: ○ | L161: 添付商品扱いの区分 | N161: (相対運用) | R161: △:売上げ 1:現物添付 | S161: 2:見本 3:景品 | T161: ｺｰﾄﾞ(新) | V161: ○ | W161: "0" → "△" | Z161: 22 | AA161: =IF($Z161="","",VLOOKUP($Z161,$AG$143:$AO$168,3,)) -> 商品添付区分 | AB161: 131 | AC161: X | AD161: 1 | AE161: 0 | AG161: 18 | AI161: 金額符号 | AK161: 113 | AL161: X | AM161: 1 | AO161: ○
C162: 87 | E162: 欠品区分 | G162: 929 | H162: 9 | I162: 2 | K162: ○ | L162: 商品の出荷状況を指定 | R162: 00:正常 01:品切れ 02:終売 | S162: 03:未発売 04:コード訂正 | T162: ｺｰﾄﾞ(新) | V162: ○ | W162: "△" → "00"、 その他、前ｾﾞﾛ埋め | X162: ○ | Y162: 桁数 | Z162: 21 | AA162: 欠品区分 | AB162: 130 | AC162: 9 | AD162: 1 | AE162: 0 | AG162: 19 | AI162: 金額 | AJ162: 卸店入金額 | AK162: 114 | AL162: 9 | AM162: 8 | AO162: ○
C163: 88 | E163: 入荷単位ケース数 | G163: 931 | H163: 9 | I163: 2 | L163: 荷合せ品の場合の１梱包ケース数量を指定する | R163: 00～20 | T163: ｺｰﾄﾞ | V163: ○ | W163: 属性初期値 | X163: ◎ | AG163: 20 | AJ163: 二次店納入金額 | AK163: 122 | AL163: 9 | AM163: 8
C164: 89 | E164: 単価計算区分 | G164: 933 | H164: X | I164: 1 | L164: 単価×数量の計算方法を指定する | N164: (小数点以下端数の計算処置方法) | R164: △:切捨て 1:切上げ | S164: 2:四捨五入 | T164: ｺｰﾄﾞ | V164: ○ | W164: 属性初期値 | X164: ◎ | AG164: 21 | AI164: 欠品区分 | AK164: 130 | AL164: 9 | AM164: 1 | AO164: ○
C165: 90 | E165: 卸発注行番号 | G165: 934 | H165: 9 | I165: 2 | L165: 卸売業での発注伝票行NO | N165: (00～99) | T165: 属性 | V165: ○ | W165: 属性初期値 | X165: ◎ | AG165: 22 | AI165: 商品添付区分 | AK165: 131 | AL165: X | AM165: 1 | AO165: ○
C166: 91 | E166: 卸最新在庫日付区分 | G166: 936 | H166: X | I166: 1 | L166: 卸最新在庫日付の日付区分 | R166: △:未使用 1:製造日 | S166: 2:賞味期限 | T166: ｺｰﾄﾞ | V166: ○ | W166: 属性初期値 | X166: ◎ | AG166: 23 | AI166: 賞味期限製造年月日 | AK166: 132 | AL166: X | AM166: 6
B167: 1.8 | C167: 92 | E167: 卸最新在庫日付 | G167: 937 | H167: 9 | I167: 8 | L167: 賞味期限／製造日(YYYYMMDD) | N167: (賞味年月表示は月末最終日） | T167: 日付 | V167: ○ | W167: 属性初期値 | X167: ◎ | AA167: =IF($Z167="","",VLOOKUP($Z167,$AG$144:$AO$169,3,)) ->  | AB167: =IF($Z167="","",VLOOKUP($Z167,$AG$144:$AO$169,5,)) ->  | AC167: =IF($Z167="","",VLOOKUP($Z167,$AG$144:$AO$169,6,)) ->  | AD167: =IF($Z167="","",VLOOKUP($Z167,$AG$144:$AO$169,7,)) ->  | AE167: =IF($Z167="","",VLOOKUP($Z167,$AG$144:$AO$169,8,)) ->  | AG167: 24 | AH167: 予備２ | AK167: 256 | AL167: X | AM167: 1
C168: 93 | E168: 入庫許容日付区分 | G168: 945 | H168: X | I168: 1 | L168: 入庫許容日付の日付区分 | R168: △:未使用 1:製造日 | S168: 2:賞味期限 | T168: ｺｰﾄﾞ | V168: ○ | W168: 属性初期値 | X168: ◎
C169: 94 | E169: 入庫許容日付 | G169: 946 | H169: 9 | I169: 8 | L169: 賞味期限／製造日(YYYYMMDD) | N169: (賞味年月表示は月末最終日） | T169: 日付 | V169: ○ | W169: 属性初期値 | X169: ◎
C170: 95 | E170: 実入庫製品日付区分 | G170: 954 | H170: X | I170: 1 | L170: 実入庫製品日付の日付区分 | R170: △:未使用 1:製造日 | S170: 2:賞味期限 | T170: ｺｰﾄﾞ | V170: ○ | W170: 属性初期値 | X170: ◎
B171: 1.8 | C171: 96 | E171: 実入庫製品日付 | G171: 955 | H171: 9 | I171: 8 | L171: 賞味期限／製造日(YYYYMMDD) | N171: (賞味年月表示は月末最終日） | T171: 日付 | V171: ○ | W171: ○ | X171: ○ | Y171: 名称＋属性 +桁数 | Z171: 23 | AA171: =IF($Z171="","",VLOOKUP($Z171,$AG$144:$AO$169,3,)) -> 賞味期限製造年月日 | AB171: =IF($Z171="","",VLOOKUP($Z171,$AG$144:$AO$169,5,)) -> 132 | AC171: =IF($Z171="","",VLOOKUP($Z171,$AG$144:$AO$169,6,)) -> X | AD171: =IF($Z171="","",VLOOKUP($Z171,$AG$144:$AO$169,7,)) -> 6 | AE171: =IF($Z171="","",VLOOKUP($Z171,$AG$144:$AO$169,8,)) -> 0
C172: 97 | E172: 製造ロット番号 | G172: 963 | H172: X | I172: 10 | L172: 出荷商品の製造ロット番号を指定する | V172: ○ | W172: 属性初期値 | X172: ◎
C173: 98 | E173: 温度管理区分 | G173: 973 | H173: X | I173: 1 | L173: 該当商品の温度帯管理区 | R173: △/0:常温 1:28℃以下 2:20℃以下 | S173: 3:冷蔵(10℃以下) 4:冷凍(-15℃ 以下) | T173: ｺｰﾄﾞ | V173: ○ | W173: 属性初期値 | X173: ◎
C174: 99 | D174: ③ トレーラレコード | E174: 製品容器区分 | G174: 974 | H174: 9 | I174: 1 | L174: 該当商品の製品・容器かを指定 | R174: 0:製品 | S174: 1:容器 | T174: ｺｰﾄﾞ | V174: ○ | W174: 属性初期値 | X174: ◎
C175: 100 | E175: 外箱GTIN(ITF)コード | G175: 975 | H175: X | I175: 14 | L175: 実際に入庫する外箱のＩＴＦコードを指定する | V175: ○ | W175: 属性初期値 | X175: ◎
C176: 101 | E176: 摘要 | G176: 989 | H176: X/N | I176: 50 | L176: 任意使用 | N176: (英数カナは50文字、漢字は25文字) | V176: ○ | W176: 属性初期値 | X176: ◎
C177: 102 | E177: 日本語区分（商品名） | G177: 1039 | H177: X | I177: 1 | L177: 該当項目の日本語区分 | R177: △/0:英数カナ 1: 漢字(S-JIS/JIS/JEF/IBM) | T177: ｺｰﾄﾞ | V177: ○ | W177: 属性初期値 | X177: ◎
C178: 103 | E178: 日本語区分（摘要） | G178: 1040 | H178: X | I178: 1 | L178: 〃 | R178: 〃 | T178: ｺｰﾄﾞ | V178: ○ | W178: 属性初期値 | X178: ◎
C179: 104 | E179: 菓子業界商品分類コード | G179: 1041 | H179: X | I179: 6 | L179: 菓子業界の新商品分類コード | N179: (JICFSの機能分類コードとして登録) | V179: ○ | W179: 属性初期値 | X179: ◎
C180: （次頁に続く）
C194: （前頁の続き）
B195: 変更 | C195: 項番 | D195: 項目 | G195: 開始位置 | H195: 属性 | I195: 整数桁 | J195: 小数桁 | K195: 必須 | L195: 項目説明 | R195: コード | T195: V２ → Ｖ１･Ｖ２ | U195: Ｖ２→ Ｖ１ | V195: Ｖ２ ← Ｖ２ | W195: Ｖ２ ← Ｖ１ | X195: Ｖ１フォーマット
T196: センタチェック | U196: センタチェック | V196: コンバート | W196: コンバート | X196: 比較・ 変更点 | Z196: 項番 | AA196: 項目 | AB196: 開始 | AC196: 属性 | AD196: 整数 | AE196: 小数
C197: 105 | E197: 割戻1 | F197: 割戻計算区分 | G197: 1047 | H197: X | I197: 1 | N197: (未使用) | V197: ○ | W197: 属性初期値 | X197: ◎ | AA197: =IF($Z197="","",VLOOKUP($Z197,$AG$143:$AO$168,3,)) ->  | AB197: =IF($Z197="","",VLOOKUP($Z197,$AG$143:$AO$168,5,)) ->  | AC197: =IF($Z197="","",VLOOKUP($Z197,$AG$143:$AO$168,6,)) ->  | AD197: =IF($Z197="","",VLOOKUP($Z197,$AG$143:$AO$168,7,)) ->  | AE197: =IF($Z197="","",VLOOKUP($Z197,$AG$143:$AO$168,8,)) -> 
C198: 106 | F198: 割戻区分 | G198: 1048 | H198: X | I198: 1 | N198: (未使用) | V198: ○ | W198: 属性初期値 | X198: ◎
C199: 107 | F199: 割戻基準 | G199: 1049 | H199: X | I199: 1 | N199: (未使用) | V199: ○ | W199: 属性初期値 | X199: ◎
C200: 108 | F200: 割戻率／単価 | G200: 1050 | H200: 9 | I200: 4 | J200: 2 | N200: (未使用) | V200: ○ | W200: 属性初期値 | X200: ◎
C201: 109 | F201: 割戻金額符号 | G201: 1056 | H201: X | I201: 1 | N201: (未使用) | V201: ○ | W201: 属性初期値 | X201: ◎
C202: 110 | F202: 割戻金額 | G202: 1057 | H202: 9 | I202: 8 | N202: (未使用) | V202: ○ | W202: 属性初期値 | X202: ◎
C203: 111 | F203: 割戻コード | G203: 1065 | H203: X | I203: 5 | N203: (未使用) | V203: ○ | W203: 属性初期値 | X203: ◎
C204: 112 | E204: 割戻2 | F204: 割戻計算区分 | G204: 1070 | H204: X | I204: 1 | N204: (未使用) | V204: ○ | W204: 属性初期値 | X204: ◎
C205: 113 | F205: 割戻区分 | G205: 1071 | H205: X | I205: 1 | N205: (未使用) | V205: ○ | W205: 属性初期値 | X205: ◎
C206: 114 | F206: 割戻基準 | G206: 1072 | H206: X | I206: 1 | N206: (未使用) | V206: ○ | W206: 属性初期値 | X206: ◎
C207: 115 | F207: 割戻率／単価 | G207: 1073 | H207: 9 | I207: 4 | J207: 2 | N207: (未使用) | V207: ○ | W207: 属性初期値 | X207: ◎
C208: 116 | F208: 割戻金額符号 | G208: 1079 | H208: X | I208: 1 | N208: (未使用) | V208: ○ | W208: 属性初期値 | X208: ◎
C209: 117 | F209: 割戻金額 | G209: 1080 | H209: 9 | I209: 8 | N209: (未使用) | V209: ○ | W209: 属性初期値 | X209: ◎
C210: 118 | F210: 割戻コード | G210: 1088 | H210: X | I210: 5 | N210: (未使用) | V210: ○ | W210: 属性初期値 | X210: ◎
C211: 119 | E211: 割戻3 | F211: 割戻計算区分 | G211: 1093 | H211: X | I211: 1 | N211: (未使用) | V211: ○ | W211: 属性初期値 | X211: ◎
C212: 120 | F212: 割戻区分 | G212: 1094 | H212: X | I212: 1 | N212: (未使用) | V212: ○ | W212: 属性初期値 | X212: ◎
C213: 121 | F213: 割戻基準 | G213: 1095 | H213: X | I213: 1 | N213: (未使用) | V213: ○ | W213: 属性初期値 | X213: ◎
C214: 122 | F214: 割戻率／単価 | G214: 1096 | H214: 9 | I214: 4 | J214: 2 | N214: (未使用) | V214: ○ | W214: 属性初期値 | X214: ◎
C215: 123 | F215: 割戻金額符号 | G215: 1102 | H215: X | I215: 1 | N215: (未使用) | V215: ○ | W215: 属性初期値 | X215: ◎
C216: 124 | F216: 割戻金額 | G216: 1103 | H216: 9 | I216: 8 | N216: (未使用) | V216: ○ | W216: 属性初期値 | X216: ◎
C217: 125 | F217: 割戻コード | G217: 1111 | H217: X | I217: 5 | N217: (未使用) | V217: ○ | W217: 属性初期値 | X217: ◎
B218: 1.1 | C218: 126 | E218: 商品名カナ | G218: 1116 | H218: X | I218: 25 | L218: 商品名カナ | N218: (商品名に 漢字を設定する場合、必須) | V218: ○ | W218: 属性初期値 | X218: ◎
B219: 1.1 | C219: 127 | E219: 明細予備 | G219: 1141 | H219: X | I219: 50 | L219: レイアウト拡張用の予備領域 | N219: (利用禁止) | V219: ○ | W219: 属性初期値
C220: 128 | E220: 明細連携エリア | G220: 1191 | H220: X | I220: 10 | L220: 新フォーマット間：相対利用可能エリア | V220: ○ | W220: 属性初期値 | X220: ◎
D226: ③ トレーラレコード | AH226: ④ トレーラレコード
B227: 変更 | C227: 項番 | D227: 項目 | G227: 開始位置 | H227: 属性 | I227: 整数桁 | J227: 小数桁 | K227: 必須 | L227: 項目説明 | R227: コード | T227: V２ → Ｖ１･Ｖ２ | U227: Ｖ２→ Ｖ１ | V227: Ｖ２ ← Ｖ２ | W227: Ｖ２ ← Ｖ１ | X227: Ｖ１フォーマット | AG227: 項番 | AH227: 項目 | AK227: 開始位置 | AL227: 属性 | AM227: 整数桁 | AN227: 小数桁 | AO227: 必須
T228: センタチェック | U228: センタチェック | V228: コンバート | W228: コンバート | X228: 比較・ 変更点 | Z228: 項番 | AA228: 項目 | AB228: 開始 | AC228: 属性 | AD228: 整数 | AE228: 小数
C229: 1 | D229: データ種別 | G229: 1 | H229: 9 | I229: 2 | K229: ◎ | L229: １３：入庫予定データ | R229: 13 | T229: 共通部チェック (ｺﾝﾄﾛｰﾙ同値､ 軽症ｴﾗｰ) | V229: ○ | W229: "13"固定 | X229: ○ | Y229: コード | AA229: =IF($Z229="","",VLOOKUP($Z229,$AG$229:$AO$240,2,)) ->  | AB229: =IF($Z229="","",VLOOKUP($Z229,$AG$229:$AO$240,5,)) ->  | AC229: =IF($Z229="","",VLOOKUP($Z229,$AG$229:$AO$240,6,)) ->  | AD229: =IF($Z229="","",VLOOKUP($Z229,$AG$229:$AO$240,7,)) ->  | AE229: =IF($Z229="","",VLOOKUP($Z229,$AG$229:$AO$240,8,)) ->  | AG229: 1 | AH229: データ種別 | AK229: 1 | AL229: 9 | AM229: 2 | AO229: ○
C230: 2 | D230: 送信先コード | G230: 3 | H230: 9 | I230: 8 | K230: ◎ | L230: 送信先(卸) | M230: の統一取引先コード | V230: ○ | W230: ○ | Z230: 2 | AA230: 送信先コード | AB230: 3 | AC230: 9 | AD230: 8 | AE230: 0 | AG230: 2 | AH230: 送信先コード | AK230: 3 | AL230: 9 | AM230: 8 | AO230: ○
C231: 3 | D231: 送信元コード | G231: 11 | H231: 9 | I231: 8 | K231: ◎ | L231: 送信元(メーカ) | M231: の統一取引先コード | V231: ○ | W231: ○ | Z231: 3 | AA231: 送信元コード | AB231: 11 | AC231: 9 | AD231: 8 | AE231: 0 | AG231: 3 | AH231: 送信元コード | AK231: 11 | AL231: 9 | AM231: 8 | AO231: ○
C232: 4 | D232: レコード区分 | G232: 19 | H232: 9 | I232: 1 | K232: ◎ | L232: ９：トレーラレコード | R232: 9 | U232: V2連携時 | V232: ○ | W232: ○ | Z232: 4 | AA232: レコード区分 | AB232: 19 | AC232: 9 | AD232: 1 | AE232: 0 | AG232: 4 | AH232: レコード区分 | AK232: 19 | AL232: 9 | AM232: 1 | AO232: ○
B233: 1.7 | C233: 5 | D233: レコード件数 | G233: 20 | H233: 9 | I233: 6 | K233: ○ | L233: レコードの総件数 ・データ送信側では、自身のフォーマットのレコード件数を設定する。 ・データ受信側では、当項目と実際のレコード件数の整合性チェックには利用しない。※下記【トレーラレコード連携時の留意事項】を参照のこと | T233: 属性 | U233: センタチェック | V233: ※ センター集計値 | W233: ※ センター集計値 | Z233: 5 | AA233: レコード件数 | AB233: 20 | AC233: 9 | AD233: 6 | AE233: 0 | AG233: 5 | AH233: レコード件数 | AK233: 20 | AL233: 9 | AM233: 6 | AO233: ○
C234: 6 | D234: 伝票枚数 | G234: 26 | H234: 9 | I234: 6 | L234: 伝票枚数 | T234: 属性 | U234: と同じ | V234: ※ センター集計値 | W234: ※ センター集計値 | Z234: 6 | AA234: 伝票枚数 | AB234: 26 | AC234: 9 | AD234: 6 | AE234: 0 | AG234: 6 | AH234: 伝票枚数 | AK234: 26 | AL234: 9 | AM234: 6
C235: 7 | D235: 合計金額符号 | G235: 32 | H235: X | I235: 1 | L235: 合計金額の符号 | R235: △/＋:正数 | S235: －:負数 | T235: ｺｰﾄﾞ | V235: ※ センター設定 | W235: ※ センター設定 | X235: ○ | Y235: コード | Z235: 7 | AA235: 合計金額符号 | AB235: 32 | AC235: X | AD235: 1 | AE235: 0 | AG235: 7 | AH235: 合計金額符号 | AK235: 32 | AL235: X | AM235: 1
C236: 8 | D236: 合計金額 | G236: 33 | H236: 9 | I236: 10 | L236: 卸店入金額の全明細行の金額合計 | T236: 属性 | V236: ※ センター集計値 | W236: ※ センター集計値 | Z236: 8 | AA236: 合計金額 | AB236: 33 | AC236: 9 | AD236: 10 | AE236: 0 | AG236: 8 | AH236: 合計金額 | AK236: 33 | AL236: 9 | AM236: 10
C237: 9 | D237: 予備 | G237: 43 | H237: X | I237: 1138 | L237: レイアウト拡張用の予備領域 | N237: (利用禁止) | V237: ○ | W237: 属性初期値 | AG237: 9 | AH237: 予備 | AK237: 43 | AL237: X | AM237: 214
C238: 10 | D238: 連携エリア | G238: 1181 | H238: X | I238: 20 | L238: 新フォーマット間：相対利用可能エリア | V238: ○ | W238: 属性初期値 | X238: ◎
V239: ※ 配信分割時

Sheet １４受領
AH1: =シート別総ページ数 -> 
C2: （３）Ｖ２・１４受領 | AG2: （３）Ｖ１・１２受領
D3: ① コントロールレコード | AH3: ① コントロールレコード
B4: 変更 | C4: 項番 | D4: 項目 | G4: 開始位置 | H4: 属性 | I4: 整数桁 | J4: 小数桁 | K4: 必須 | L4: 項目説明 | R4: コード | T4: V２ → Ｖ１･Ｖ２ | U4: Ｖ２→ Ｖ１ | V4: Ｖ２ ← Ｖ２ | W4: Ｖ２ ← Ｖ１ | X4: Ｖ１フォーマット | AG4: 項番 | AH4: 項目 | AK4: 開始位置 | AL4: 属性 | AM4: 整数桁 | AN4: 小数桁 | AO4: 必須
T5: センタチェック | U5: センタチェック | V5: コンバート | W5: コンバート | X5: 比較・ 変更点 | Z5: 項番 | AA5: 項目 | AB5: 開始 | AC5: 属性 | AD5: 整数 | AE5: 小数
C6: 1 | D6: データ種別 | G6: 1 | H6: 9 | I6: 2 | K6: ◎ | L6: １４：受領データ | R6: 14 | T6: ｺｰﾄﾞ | V6: ○ | W6: "14"固定 | X6: ○ | Y6: ｺｰﾄﾞ | AA6: =IF($Z6="","",VLOOKUP($Z6,$AG$6:$AO$20,2,)) ->  | AB6: =IF($Z6="","",VLOOKUP($Z6,$AG$6:$AO$20,5,)) ->  | AC6: =IF($Z6="","",VLOOKUP($Z6,$AG$6:$AO$20,6,)) ->  | AD6: =IF($Z6="","",VLOOKUP($Z6,$AG$6:$AO$20,7,)) ->  | AE6: =IF($Z6="","",VLOOKUP($Z6,$AG$6:$AO$20,8,)) ->  | AG6: 1 | AH6: データ種別 | AK6: 1 | AL6: 9 | AM6: 2 | AO6: ○
C7: 2 | D7: 送信先コード | G7: 3 | H7: 9 | I7: 8 | K7: ◎ | L7: 送信先(メーカ) | M7: の統一取引先コード | T7: センター登録 | V7: ○ | W7: ○ | Z7: 2 | AA7: 送信先コード | AB7: 3 | AC7: 9 | AD7: 8 | AE7: 0 | AG7: 2 | AH7: 送信先コード | AK7: 3 | AL7: 9 | AM7: 8 | AO7: ○
C8: 3 | D8: 送信元コード | G8: 11 | H8: 9 | I8: 8 | K8: ◎ | L8: 送信元(卸) | M8: の統一取引先コード | T8: センター登録 | V8: ○ | W8: ○ | Z8: 3 | AA8: 送信元コード | AB8: 11 | AC8: 9 | AD8: 8 | AE8: 0 | AG8: 3 | AH8: 送信元コード | AK8: 11 | AL8: 9 | AM8: 8 | AO8: ○
C9: 4 | D9: レコード区分 | G9: 19 | H9: 9 | I9: 1 | K9: ◎ | L9: １：コントロールレコード | R9: 1 | T9: ｺｰﾄﾞ | U9: V2連携時 | V9: ○ | W9: ○ | Z9: 4 | AA9: レコード区分 | AB9: 19 | AC9: 9 | AD9: 1 | AE9: 0 | AG9: 4 | AH9: レコード区分 | AK9: 19 | AL9: 9 | AM9: 1 | AO9: ○
C10: 5 | D10: データ作成日 | G10: 20 | H10: 9 | I10: 8 | K10: ◎ | L10: データ作成日付 | N10: (西暦 YYYYMMDD) | T10: 必須＋日付 | U10: センタチェック | V10: ○ | W10: ○ | Z10: 5 | AA10: データ作成日 | AB10: 20 | AC10: 9 | AD10: 8 | AE10: 0 | AG10: 5 | AH10: データ作成日 | AK10: 20 | AL10: 9 | AM10: 8 | AO10: ○
C11: 6 | D11: データ作成時刻 | G11: 28 | H11: 9 | I11: 6 | L11: データ作成時刻 | N11: (HHMMSS) | T11: 時刻 | U11: と同じ | V11: ○ | W11: 属性初期値 | X11: ◎ | AG11: 6 | AH11: 送信先名 | AK11: 28 | AL11: X | AM11: 20 | AO11: ○
C12: 7 | D12: 送信先名 | G12: 34 | H12: X | I12: 20 | K12: ○ | L12: 送信先(メーカ)名 | N12: (英数カナのみ) | V12: ○ | W12: ○ | Z12: 6 | AA12: 送信先名 | AB12: 28 | AC12: X | AD12: 20 | AE12: 0 | AG12: 7 | AH12: 送信元名 | AK12: 48 | AL12: X | AM12: 20 | AO12: ○
C13: 8 | D13: 送信元名 | G13: 54 | H13: X | I13: 20 | K13: ◎ | L13: 送信元(卸)名 | N13: (英数カナのみ) | T13: 必須 | V13: ○ | W13: ○ | Z13: 7 | AA13: 送信元名 | AB13: 48 | AC13: X | AD13: 20 | AE13: 0 | AG13: 8 | AH13: 直接送信先コード | AK13: 68 | AL13: 9 | AM13: 8
C14: 9 | D14: 直接送信先コード | G14: 74 | H14: 9 | I14: 8 | L14: 送信先コードと異なる場合にセット | N14: (通常はゼロ) | T14: センター登録 | V14: ○ | W14: ○ | Z14: 8 | AA14: 直接送信先コード | AB14: 68 | AC14: 9 | AD14: 8 | AE14: 0 | AG14: 9 | AH14: 直接送信先カナ名 | AK14: 76 | AL14: X | AM14: 20
C15: 10 | D15: 直接送信先名 | G15: 82 | H15: X | I15: 20 | L15: 直接送信先名 | N15: (英数カナのみ、通常はスペース) | V15: ○ | W15: ○ | Z15: 9 | AA15: 直接送信先カナ名 | AB15: 76 | AC15: X | AD15: 20 | AE15: 0 | AG15: 10 | AH15: 予備 | AK15: 96 | AL15: X | AM15: 161
C16: 11 | D16: 送信ファイルNO | G16: 102 | H16: 9 | I16: 2 | L16: 同時送信時の問合せ№ | N16: (00～99) | T16: 属性 | V16: ○ | W16: 属性初期値 | X16: ◎
C17: 12 | D17: 予備 | G17: 104 | H17: X | I17: 1077 | L17: レイアウト拡張用の予備領域 | N17: (利用禁止) | V17: ○ | W17: 属性初期値
C18: 13 | D18: 連携エリア | G18: 1181 | H18: X | I18: 20 | L18: 新フォーマット間：相対利用可能エリア | V18: ○ | W18: 属性初期値 | X18: ◎
D24: ② ヘッダー／明細レコード | AH24: ② ヘッダーレコード
B25: 変更 | C25: 項番 | D25: 項目 | G25: 開始位置 | H25: 属性 | I25: 整数桁 | J25: 小数桁 | K25: 必須 | L25: 項目説明 | R25: コード | T25: V２ → Ｖ１･Ｖ２ | U25: Ｖ２→ Ｖ１ | V25: Ｖ２ ← Ｖ２ | W25: Ｖ２ ← Ｖ１ | X25: Ｖ１フォーマット | AG25: 項番 | AH25: 項目 | AK25: 開始位置 | AL25: 属性 | AM25: 整数桁 | AN25: 小数桁 | AO25: 必須
T26: センタチェック | U26: センタチェック | V26: コンバート | W26: コンバート | X26: 比較・ 変更点 | Z26: 項番 | AA26: 項目 | AB26: 開始 | AC26: 属性 | AD26: 整数 | AE26: 小数
C27: 1 | D27: データ種別 | G27: 1 | H27: 9 | I27: 2 | K27: ◎ | L27: １４：受領データ | R27: 14 | T27: 共通部チェック (ｺﾝﾄﾛｰﾙ同値､ 軽症ｴﾗｰ) | V27: ○ | W27: "14"固定 | X27: ○ | Y27: ｺｰﾄﾞ | AA27: =IF($Z27="","",VLOOKUP($Z27,$AG$27:$AP$52,2,)) ->  | AB27: =IF($Z27="","",VLOOKUP($Z27,$AG$27:$AP$52,5,)) ->  | AC27: =IF($Z27="","",VLOOKUP($Z27,$AG$27:$AP$52,6,)) ->  | AD27: =IF($Z27="","",VLOOKUP($Z27,$AG$27:$AP$52,7,)) ->  | AE27: =IF($Z27="","",VLOOKUP($Z27,$AG$27:$AP$52,8,)) ->  | AG27: 1 | AH27: データ種別 | AK27: 1 | AL27: 9 | AM27: 2 | AO27: ○
C28: 2 | D28: 送信先コード | G28: 3 | H28: 9 | I28: 8 | K28: ◎ | L28: 送信先(メーカ) | M28: の統一取引先コード | V28: ○ | W28: ○ | Z28: 2 | AA28: =IF($Z28="","",VLOOKUP($Z28,$AG$27:$AP$52,2,)) -> 送信先コード | AB28: =IF($Z28="","",VLOOKUP($Z28,$AG$27:$AP$52,5,)) -> 3 | AC28: =IF($Z28="","",VLOOKUP($Z28,$AG$27:$AP$52,6,)) -> 9 | AD28: =IF($Z28="","",VLOOKUP($Z28,$AG$27:$AP$52,7,)) -> 8 | AE28: =IF($Z28="","",VLOOKUP($Z28,$AG$27:$AP$52,8,)) -> 0 | AG28: 2 | AH28: 送信先コード | AK28: 3 | AL28: 9 | AM28: 8 | AO28: ○
C29: 3 | D29: 送信元コード | G29: 11 | H29: 9 | I29: 8 | K29: ◎ | L29: 送信元(卸) | M29: の統一取引先コード | V29: ○ | W29: ○ | Z29: 3 | AA29: =IF($Z29="","",VLOOKUP($Z29,$AG$27:$AP$52,2,)) -> 送信元コード | AB29: =IF($Z29="","",VLOOKUP($Z29,$AG$27:$AP$52,5,)) -> 11 | AC29: =IF($Z29="","",VLOOKUP($Z29,$AG$27:$AP$52,6,)) -> 9 | AD29: =IF($Z29="","",VLOOKUP($Z29,$AG$27:$AP$52,7,)) -> 8 | AE29: =IF($Z29="","",VLOOKUP($Z29,$AG$27:$AP$52,8,)) -> 0 | AG29: 3 | AH29: 送信元コード | AK29: 11 | AL29: 9 | AM29: 8 | AO29: ○
C30: 4 | D30: レコード区分 | G30: 19 | H30: 9 | I30: 1 | K30: ◎ | L30: ３：ヘッダー／明細レコード | R30: 3 | V30: ○ | W30: "3"固定 | X30: ○ | Y30: ｺｰﾄﾞ | AA30: =IF($Z30="","",VLOOKUP($Z30,$AG$27:$AP$52,2,)) ->  | AB30: =IF($Z30="","",VLOOKUP($Z30,$AG$27:$AP$52,5,)) ->  | AC30: =IF($Z30="","",VLOOKUP($Z30,$AG$27:$AP$52,6,)) ->  | AD30: =IF($Z30="","",VLOOKUP($Z30,$AG$27:$AP$52,7,)) ->  | AE30: =IF($Z30="","",VLOOKUP($Z30,$AG$27:$AP$52,8,)) ->  | AG30: 4 | AH30: レコード区分 | AK30: 19 | AL30: 9 | AM30: 1 | AO30: ○
C31: 5 | D31: 漢字コード区分 | G31: 20 | H31: X | I31: 1 | L31: センターにて漢字コード区分をセットする | R31: 1:S-JIS 2:JIS | S31: 3:JEF 4:IBM | V31: センター設定 | W31: センター設定 | X31: ◎ | AA31: =IF($Z31="","",VLOOKUP($Z31,$AG$27:$AP$52,2,)) ->  | AB31: =IF($Z31="","",VLOOKUP($Z31,$AG$27:$AP$52,5,)) ->  | AC31: =IF($Z31="","",VLOOKUP($Z31,$AG$27:$AP$52,6,)) ->  | AD31: =IF($Z31="","",VLOOKUP($Z31,$AG$27:$AP$52,7,)) ->  | AE31: =IF($Z31="","",VLOOKUP($Z31,$AG$27:$AP$52,8,)) ->  | AG31: 5 | AH31: 卸伝票NO | AK31: 20 | AL31: 9 | AM31: 6 | AO31: ○
C32: 6 | D32: 卸発注伝票NO | G32: 21 | H32: 9 | I32: 8 | K32: ○ | L32: 受発注データの卸伝票№ | N32: (6桁→8桁に拡張、6桁運用の時は上２桁ゼロ埋め） | T32: 属性 | V32: ○ | W32: 予備上2桁(不正時"00") ＋卸伝票NO | X32: ○ | Y32: 桁数 | Z32: 21 5 | AA32: 予備 卸伝票NO | AB32: 157 20 | AC32: X 9 | AD32: 100 6 | AE32: 0 | AG32: 6 | AH32: メーカ伝票NO | AK32: 26 | AL32: 9 | AM32: 6
C33: 7 | D33: メーカ伝票NO | G33: 29 | H33: 9 | I33: 8 | L33: メーカ発行伝票№ | N33: (6桁→8桁に拡張、6桁運用の時は上２桁ゼロ埋め） | T33: 属性 | V33: ○ | W33: ○ | X33: ○ | Y33: 桁数 | Z33: 6 | AA33: =IF($Z33="","",VLOOKUP($Z33,$AG$27:$AP$52,2,)) -> メーカ伝票NO | AB33: =IF($Z33="","",VLOOKUP($Z33,$AG$27:$AP$52,5,)) -> 26 | AC33: =IF($Z33="","",VLOOKUP($Z33,$AG$27:$AP$52,6,)) -> 9 | AD33: =IF($Z33="","",VLOOKUP($Z33,$AG$27:$AP$52,7,)) -> 6 | AE33: =IF($Z33="","",VLOOKUP($Z33,$AG$27:$AP$52,8,)) -> 0 | AG33: 7 | AH33: 元伝NO | AK33: 32 | AL33: 9 | AM33: 6
C34: 8 | D34: 店入直送区分 | G34: 37 | H34: 9 | I34: 1 | L34: 店(倉)入れまたは直送等の区分 | R34: 1:店入 2:直送 | S34: 3:店引取 4:直送引取 | T34: ｺｰﾄﾞ | V34: ○ | W34: "1"固定 | X34: ◎ | AG34: 8 | AH34: 取引コード | AK34: 38 | AL34: 9 | AM34: 2 | AO34: ○
